Workbook

Sheet Macros Instructions
B8: Important information: download this Excel file to a computer desktop or document folder and enable the macros. If the macros are not enabled, follow these steps:
B9: • Close the file.
B10: • Find the file in the saved location/folder.
B11: • Right click on the file and select Properties.
B12: • At the bottom of the General tab, tick the Unblock checkbox and select Apply and then OK.
B13: • Open the file.
B15: If the above did not enable the macros, follow these steps:
B16: • Open the file.
B17: • Go to File > Options > Trust Center > Trust Center Settings > Trusted Locations.
B18: • Add the saved location/folder (this tells Excel that it is safe to run macros from that location).

Sheet Instructions
B2: How to use EMCI
B4: Entering information:
C6: 1) Milking event (1 to 4)
C8: Choose the last milking event. The first milk that goes into the vat is considered to be the first milking. Additional milkings in the vat are considered second, third and fourth, respectively. The model assumes that the maximum milk load in the vat is four milkings (skip-a-day operation). The model assumes that there is a 12 hour period between milking events and that the milk tempearture is 5◦C during storage.
C12: 2) Time-from-milking (in hours)
C14: Insert the time elapsed since milking has finished. The model is set to allow time points between 0.05 to 2.35 hours. After 2.35 hours the milk temperature should be 5◦C. If the time is unkown, delete any information and leave the cell blank. To recover time options press the "Default" button.
C17: 3) Milk temperature
C19: Insert the milk temperautre at the time of early collection. The milk temperature selection range differs among milking events and milking volume. The lowest milk temperature assumed in the model is 5◦C. The model assumes that the pre-cooling systems (inline coolers) will cool down the milk to 25◦C before it enters the vat. For the first milking event, the highest temeprature is set to 25◦C. For the second milking event, the highest temperature is set to 15◦C (it assumes that milk will be mixing with cold milk already present in the vat). For the third and fourth milking events, the highest temperature depends on the selection of different or constant milking volume. For different milking volume, the highest mik temperature is 15◦C during the third and fourth milking events. For constant milking volume, the highest milk temperature is 11.7◦C for the third and 10◦C for the fourth milking event.
C26: 4) Microorganism levels (log cfu/ml):
C28: Insert information regarding the bacterial concentration in log10 units. The first column is used for the initial level. The second column is used for the Nominated Maximum Tolerable Level (NMTL). The NMTL is the recommended highest bacterial concentration used for growth predictions. The model is set with a default 1 log B. cereus and Pseudomonas/ ml and 2 log S. aureus/ ml, as the initial levels. For NMTL, the model is set with a default of 5 log S. aureus and B. cereus/ ml and 6 log Pseudomonas/ ml. Press the "Default" button to reset to the described default values.
C33: 5) Calculations based on (S: S.aureus, B: B.cereus, P: Pseudomonas, A: all) or Food Safety (FS: B. cereus and S. aureus)
C35: Choose the bacteria of interest to calculate predicted times to reach the NMTL. The model is set to allow individual microorganisms by selecting "S" for S. aureus, "B" for B. cereus and "P" for Pseudomonas. The model can also be set to predict time to reach the NMTL based on all microorganisms (B. cereus, S. aureus and Pseudomonas) by selecting "A" or micoorganisms relevant to food safety (B. cereus and S. aureus) by selecting "FS". When more than one microorganism is selected the model assumes the worst-case scenario and predicts times based on the faster growing microorganism.
B41: Outcome information:
C43: Time to reach the NMTL (in hours):
C45: The model predicts the time to reach the Nominated Maximum Tolerable Level (NMTL) in hours based on the information entered by the user. The outcome appears in green and indicating "within range" for time-temperature profiles covered by the milk cooling curve. The outcome appears in orange and indicating "assess risk" for time-temperature combinations outside the milk cooling curve. The outcome appears in red and indicating "breakdown"for time-temperature combinations above the maximum initial temperature set by the milk cooling curve. Calculations for the predicted time to reach the NMTL are different for each type of outcome.
C51: Graphical representation:
C53: The milk cooling model is represented with a blue line in the graph and the entered information regarding time and temperature is represented with a yellow circle.
C57: Disclaimer
C59: This tool was designed as a research and instructional tool for estimating the survival and growth of bacteria in cow milk stored in a functional milk vat. Although every care has been taken during its development, the final conditions of its use are outside the control of the developers. Expert interpretation is required and users must determine if they have the necessary skills for themselves. In case of doubt please consult an expert food microbiologist.

Sheet EMCI
C3: Early Milk Collection Index (EMCI) | AC3: Graph
AC4: Milk T | AD4: Time | AE4: NMTL | AG4: Milk T | AH4: Time | AI4: NMTL | AJ4: ENTRY TIME
F5: 1 | AC5: =IF(AND($F$9=1),'1st milking (D)'!E23, '2nd milking (D)'!E23) -> 25 | AD5: =IF(AND($F$9=1),'1st milking (D)'!F23, '2nd milking (D)'!F23) -> 0 | AE5: =IF(AND($F$9=1,$F$31="C"),#REF!,IF(AND($F$9=2,$F$31="C"),#REF!,IF(AND($F$9=3,$F$31="C"),#REF!,IF(AND($F$9=4,$F$31="C"),#REF!,IF(AND($F$9=1,$F$31="d"),'1st milking (D)'!AL23, IF(AND($F$9=2,$F$31="d"),'2nd milking (D)'!AL23, IF(AND($F$9=3,$F$31="D"),'3rd milking (D)'!AL23,IF(AND($F$9=4,$F$31="D"),'4th milking (D)'!AL23)))))))) -> FALSE | AG5: =IF(AC5=0,AG4,AC5) -> 25 | AH5: =AD5 -> 0 | AI5: FALSE | AJ5: =IF(F11="",AK5,F11/60) -> 0.5 | AK5: =IF(F9=1, ((F13-25)/-8.5),((F13-15)/-4.25)) -> 0.5882352941
C6: Please enter information: | F6: 2 | AC6: =IF(AND($F$9=1),'1st milking (D)'!E24, '2nd milking (D)'!E24) -> 24.75 | AD6: =IF(AND($F$9=1),'1st milking (D)'!F24, '2nd milking (D)'!F24) -> 0.02941176471 | AE6: =IF(AND($F$9=1,$F$31="C"),#REF!,IF(AND($F$9=2,$F$31="C"),#REF!,IF(AND($F$9=3,$F$31="C"),#REF!,IF(AND($F$9=4,$F$31="C"),#REF!,IF(AND($F$9=1,$F$31="d"),'1st milking (D)'!AL24, IF(AND($F$9=2,$F$31="d"),'2nd milking (D)'!AL24, IF(AND($F$9=3,$F$31="D"),'3rd milking (D)'!AL24,IF(AND($F$9=4,$F$31="D"),'4th milking (D)'!AL24)))))))) -> FALSE | AG6: 24.75 | AH6: 0.02941176471 | AI6: FALSE
F7: 3 | AC7: =IF(AND($F$9=1),'1st milking (D)'!E25, '2nd milking (D)'!E25) -> 24.5 | AD7: =IF(AND($F$9=1),'1st milking (D)'!F25, '2nd milking (D)'!F25) -> 0.05882352941 | AE7: =IF(AND($F$9=1,$F$31="C"),#REF!,IF(AND($F$9=2,$F$31="C"),#REF!,IF(AND($F$9=3,$F$31="C"),#REF!,IF(AND($F$9=4,$F$31="C"),#REF!,IF(AND($F$9=1,$F$31="d"),'1st milking (D)'!AL25, IF(AND($F$9=2,$F$31="d"),'2nd milking (D)'!AL25, IF(AND($F$9=3,$F$31="D"),'3rd milking (D)'!AL25,IF(AND($F$9=4,$F$31="D"),'4th milking (D)'!AL25)))))))) -> FALSE | AG7: 24.5 | AH7: 0.05882352941 | AI7: FALSE
F8: 4 | AC8: =IF(AND($F$9=1),'1st milking (D)'!E26, '2nd milking (D)'!E26) -> 24.25 | AD8: =IF(AND($F$9=1),'1st milking (D)'!F26, '2nd milking (D)'!F26) -> 0.08823529412 | AE8: =IF(AND($F$9=1,$F$31="C"),#REF!,IF(AND($F$9=2,$F$31="C"),#REF!,IF(AND($F$9=3,$F$31="C"),#REF!,IF(AND($F$9=4,$F$31="C"),#REF!,IF(AND($F$9=1,$F$31="d"),'1st milking (D)'!AL26, IF(AND($F$9=2,$F$31="d"),'2nd milking (D)'!AL26, IF(AND($F$9=3,$F$31="D"),'3rd milking (D)'!AL26,IF(AND($F$9=4,$F$31="D"),'4th milking (D)'!AL26)))))))) -> FALSE | AG8: 24.25 | AH8: 0.08823529412 | AI8: FALSE
C9: 1) Milking event (1 to 4) | F9: 1 | AC9: =IF(AND($F$9=1),'1st milking (D)'!E27, '2nd milking (D)'!E27) -> 24 | AD9: =IF(AND($F$9=1),'1st milking (D)'!F27, '2nd milking (D)'!F27) -> 0.1176470588 | AE9: =IF(AND($F$9=1,$F$31="C"),#REF!,IF(AND($F$9=2,$F$31="C"),#REF!,IF(AND($F$9=3,$F$31="C"),#REF!,IF(AND($F$9=4,$F$31="C"),#REF!,IF(AND($F$9=1,$F$31="d"),'1st milking (D)'!AL27, IF(AND($F$9=2,$F$31="d"),'2nd milking (D)'!AL27, IF(AND($F$9=3,$F$31="D"),'3rd milking (D)'!AL27,IF(AND($F$9=4,$F$31="D"),'4th milking (D)'!AL27)))))))) -> FALSE | AG9: 24 | AH9: 0.1176470588 | AI9: FALSE
AC10: =IF(AND($F$9=1),'1st milking (D)'!E28, '2nd milking (D)'!E28) -> 23.75 | AD10: =IF(AND($F$9=1),'1st milking (D)'!F28, '2nd milking (D)'!F28) -> 0.1470588235 | AE10: =IF(AND($F$9=1,$F$31="C"),#REF!,IF(AND($F$9=2,$F$31="C"),#REF!,IF(AND($F$9=3,$F$31="C"),#REF!,IF(AND($F$9=4,$F$31="C"),#REF!,IF(AND($F$9=1,$F$31="d"),'1st milking (D)'!AL28, IF(AND($F$9=2,$F$31="d"),'2nd milking (D)'!AL28, IF(AND($F$9=3,$F$31="D"),'3rd milking (D)'!AL28,IF(AND($F$9=4,$F$31="D"),'4th milking (D)'!AL28)))))))) -> FALSE | AG10: =IF(AC10=0,AG9,AC10) -> 23.75 | AH10: =IF(AD10=0,AH9,AD10) -> 0.1470588235 | AI10: =IF(AE10=0,AI9,AE10) -> FALSE
C11: 2) Time from milking (in minutes) | F11: 30 | AC11: =IF(AND($F$9=1),'1st milking (D)'!E29, '2nd milking (D)'!E29) -> 23.5 | AD11: =IF(AND($F$9=1),'1st milking (D)'!F29, '2nd milking (D)'!F29) -> 0.1764705882 | AE11: =IF(AND($F$9=1,$F$31="C"),#REF!,IF(AND($F$9=2,$F$31="C"),#REF!,IF(AND($F$9=3,$F$31="C"),#REF!,IF(AND($F$9=4,$F$31="C"),#REF!,IF(AND($F$9=1,$F$31="d"),'1st milking (D)'!AL29, IF(AND($F$9=2,$F$31="d"),'2nd milking (D)'!AL29, IF(AND($F$9=3,$F$31="D"),'3rd milking (D)'!AL29,IF(AND($F$9=4,$F$31="D"),'4th milking (D)'!AL29)))))))) -> FALSE | AG11: 23.5 | AH11: 0.1764705882 | AI11: FALSE
AC12: =IF(AND($F$9=1),'1st milking (D)'!E30, '2nd milking (D)'!E30) -> 23.25 | AD12: =IF(AND($F$9=1),'1st milking (D)'!F30, '2nd milking (D)'!F30) -> 0.2058823529 | AE12: =IF(AND($F$9=1,$F$31="C"),#REF!,IF(AND($F$9=2,$F$31="C"),#REF!,IF(AND($F$9=3,$F$31="C"),#REF!,IF(AND($F$9=4,$F$31="C"),#REF!,IF(AND($F$9=1,$F$31="d"),'1st milking (D)'!AL30, IF(AND($F$9=2,$F$31="d"),'2nd milking (D)'!AL30, IF(AND($F$9=3,$F$31="D"),'3rd milking (D)'!AL30,IF(AND($F$9=4,$F$31="D"),'4th milking (D)'!AL30)))))))) -> FALSE | AG12: 23.25 | AH12: 0.2058823529 | AI12: FALSE
C13: 3) Milk temperature | F13: 20 | AC13: =IF(AND($F$9=1),'1st milking (D)'!E31, '2nd milking (D)'!E31) -> 23 | AD13: =IF(AND($F$9=1),'1st milking (D)'!F31, '2nd milking (D)'!F31) -> 0.2352941176 | AE13: =IF(AND($F$9=1,$F$31="C"),#REF!,IF(AND($F$9=2,$F$31="C"),#REF!,IF(AND($F$9=3,$F$31="C"),#REF!,IF(AND($F$9=4,$F$31="C"),#REF!,IF(AND($F$9=1,$F$31="d"),'1st milking (D)'!AL31, IF(AND($F$9=2,$F$31="d"),'2nd milking (D)'!AL31, IF(AND($F$9=3,$F$31="D"),'3rd milking (D)'!AL31,IF(AND($F$9=4,$F$31="D"),'4th milking (D)'!AL31)))))))) -> FALSE | AG13: 23 | AH13: 0.2352941176 | AI13: FALSE
AC14: =IF(AND($F$9=1),'1st milking (D)'!E32, '2nd milking (D)'!E32) -> 22.75 | AD14: =IF(AND($F$9=1),'1st milking (D)'!F32, '2nd milking (D)'!F32) -> 0.2647058824 | AE14: =IF(AND($F$9=1,$F$31="C"),#REF!,IF(AND($F$9=2,$F$31="C"),#REF!,IF(AND($F$9=3,$F$31="C"),#REF!,IF(AND($F$9=4,$F$31="C"),#REF!,IF(AND($F$9=1,$F$31="d"),'1st milking (D)'!AL32, IF(AND($F$9=2,$F$31="d"),'2nd milking (D)'!AL32, IF(AND($F$9=3,$F$31="D"),'3rd milking (D)'!AL32,IF(AND($F$9=4,$F$31="D"),'4th milking (D)'!AL32)))))))) -> FALSE | AG14: 22.75 | AH14: 0.2647058824 | AI14: FALSE
AC15: =IF(AND($F$9=1),'1st milking (D)'!E33, '2nd milking (D)'!E33) -> 22.5 | AD15: =IF(AND($F$9=1),'1st milking (D)'!F33, '2nd milking (D)'!F33) -> 0.2941176471 | AE15: =IF(AND($F$9=1,$F$31="C"),#REF!,IF(AND($F$9=2,$F$31="C"),#REF!,IF(AND($F$9=3,$F$31="C"),#REF!,IF(AND($F$9=4,$F$31="C"),#REF!,IF(AND($F$9=1,$F$31="d"),'1st milking (D)'!AL33, IF(AND($F$9=2,$F$31="d"),'2nd milking (D)'!AL33, IF(AND($F$9=3,$F$31="D"),'3rd milking (D)'!AL33,IF(AND($F$9=4,$F$31="D"),'4th milking (D)'!AL33)))))))) -> FALSE | AG15: 22.5 | AH15: 0.2941176471 | AI15: FALSE
C16: 4) Microorganism levels (log cfu/ml): | AC16: =IF(AND($F$9=1),'1st milking (D)'!E34, '2nd milking (D)'!E34) -> 22.25 | AD16: =IF(AND($F$9=1),'1st milking (D)'!F34, '2nd milking (D)'!F34) -> 0.3235294118 | AE16: =IF(AND($F$9=1,$F$31="C"),#REF!,IF(AND($F$9=2,$F$31="C"),#REF!,IF(AND($F$9=3,$F$31="C"),#REF!,IF(AND($F$9=4,$F$31="C"),#REF!,IF(AND($F$9=1,$F$31="d"),'1st milking (D)'!AL34, IF(AND($F$9=2,$F$31="d"),'2nd milking (D)'!AL34, IF(AND($F$9=3,$F$31="D"),'3rd milking (D)'!AL34,IF(AND($F$9=4,$F$31="D"),'4th milking (D)'!AL34)))))))) -> FALSE | AG16: 22.25 | AH16: 0.3235294118 | AI16: FALSE
C17: S | AC17: =IF(AND($F$9=1),'1st milking (D)'!E35, '2nd milking (D)'!E35) -> 22 | AD17: =IF(AND($F$9=1),'1st milking (D)'!F35, '2nd milking (D)'!F35) -> 0.3529411765 | AE17: =IF(AND($F$9=1,$F$31="C"),#REF!,IF(AND($F$9=2,$F$31="C"),#REF!,IF(AND($F$9=3,$F$31="C"),#REF!,IF(AND($F$9=4,$F$31="C"),#REF!,IF(AND($F$9=1,$F$31="d"),'1st milking (D)'!AL35, IF(AND($F$9=2,$F$31="d"),'2nd milking (D)'!AL35, IF(AND($F$9=3,$F$31="D"),'3rd milking (D)'!AL35,IF(AND($F$9=4,$F$31="D"),'4th milking (D)'!AL35)))))))) -> FALSE | AG17: 22 | AH17: 0.3529411765 | AI17: FALSE
C18: B | F18: Initial | G18: NMTL | AC18: =IF(AND($F$9=1),'1st milking (D)'!E36, '2nd milking (D)'!E36) -> 21.75 | AD18: =IF(AND($F$9=1),'1st milking (D)'!F36, '2nd milking (D)'!F36) -> 0.3823529412 | AE18: =IF(AND($F$9=1,$F$31="C"),#REF!,IF(AND($F$9=2,$F$31="C"),#REF!,IF(AND($F$9=3,$F$31="C"),#REF!,IF(AND($F$9=4,$F$31="C"),#REF!,IF(AND($F$9=1,$F$31="d"),'1st milking (D)'!AL36, IF(AND($F$9=2,$F$31="d"),'2nd milking (D)'!AL36, IF(AND($F$9=3,$F$31="D"),'3rd milking (D)'!AL36,IF(AND($F$9=4,$F$31="D"),'4th milking (D)'!AL36)))))))) -> FALSE | AG18: 21.75 | AH18: 0.3823529412 | AI18: FALSE
C19: P | D19: S. aureus | F19: 2 | G19: 5 | AC19: =IF(AND($F$9=1),'1st milking (D)'!E37, '2nd milking (D)'!E37) -> 21.5 | AD19: =IF(AND($F$9=1),'1st milking (D)'!F37, '2nd milking (D)'!F37) -> 0.4117647059 | AE19: =IF(AND($F$9=1,$F$31="C"),#REF!,IF(AND($F$9=2,$F$31="C"),#REF!,IF(AND($F$9=3,$F$31="C"),#REF!,IF(AND($F$9=4,$F$31="C"),#REF!,IF(AND($F$9=1,$F$31="d"),'1st milking (D)'!AL37, IF(AND($F$9=2,$F$31="d"),'2nd milking (D)'!AL37, IF(AND($F$9=3,$F$31="D"),'3rd milking (D)'!AL37,IF(AND($F$9=4,$F$31="D"),'4th milking (D)'!AL37)))))))) -> FALSE | AG19: 21.5 | AH19: 0.4117647059 | AI19: FALSE
C20: A | D20: B. cereus | F20: 1 | G20: 5 | AC20: =IF(AND($F$9=1),'1st milking (D)'!E38, '2nd milking (D)'!E38) -> 21.25 | AD20: =IF(AND($F$9=1),'1st milking (D)'!F38, '2nd milking (D)'!F38) -> 0.4411764706 | AE20: =IF(AND($F$9=1,$F$31="C"),#REF!,IF(AND($F$9=2,$F$31="C"),#REF!,IF(AND($F$9=3,$F$31="C"),#REF!,IF(AND($F$9=4,$F$31="C"),#REF!,IF(AND($F$9=1,$F$31="d"),'1st milking (D)'!AL38, IF(AND($F$9=2,$F$31="d"),'2nd milking (D)'!AL38, IF(AND($F$9=3,$F$31="D"),'3rd milking (D)'!AL38,IF(AND($F$9=4,$F$31="D"),'4th milking (D)'!AL38)))))))) -> FALSE | AG20: 21.25 | AH20: 0.4411764706 | AI20: FALSE
C21: FS | D21: Pseudomonas | F21: 1 | G21: 6 | AC21: =IF(AND($F$9=1),'1st milking (D)'!E39, '2nd milking (D)'!E39) -> 21 | AD21: =IF(AND($F$9=1),'1st milking (D)'!F39, '2nd milking (D)'!F39) -> 0.4705882353 | AE21: =IF(AND($F$9=1,$F$31="C"),#REF!,IF(AND($F$9=2,$F$31="C"),#REF!,IF(AND($F$9=3,$F$31="C"),#REF!,IF(AND($F$9=4,$F$31="C"),#REF!,IF(AND($F$9=1,$F$31="d"),'1st milking (D)'!AL39, IF(AND($F$9=2,$F$31="d"),'2nd milking (D)'!AL39, IF(AND($F$9=3,$F$31="D"),'3rd milking (D)'!AL39,IF(AND($F$9=4,$F$31="D"),'4th milking (D)'!AL39)))))))) -> FALSE | AG21: 21 | AH21: 0.4705882353 | AI21: FALSE
AC22: =IF(AND($F$9=1),'1st milking (D)'!E40, '2nd milking (D)'!E40) -> 20.75 | AD22: =IF(AND($F$9=1),'1st milking (D)'!F40, '2nd milking (D)'!F40) -> 0.5 | AE22: =IF(AND($F$9=1,$F$31="C"),#REF!,IF(AND($F$9=2,$F$31="C"),#REF!,IF(AND($F$9=3,$F$31="C"),#REF!,IF(AND($F$9=4,$F$31="C"),#REF!,IF(AND($F$9=1,$F$31="d"),'1st milking (D)'!AL40, IF(AND($F$9=2,$F$31="d"),'2nd milking (D)'!AL40, IF(AND($F$9=3,$F$31="D"),'3rd milking (D)'!AL40,IF(AND($F$9=4,$F$31="D"),'4th milking (D)'!AL40)))))))) -> FALSE | AG22: 20.75 | AH22: 0.5 | AI22: FALSE
AC23: =IF(AND($F$9=1),'1st milking (D)'!E41, '2nd milking (D)'!E41) -> 20.5 | AD23: =IF(AND($F$9=1),'1st milking (D)'!F41, '2nd milking (D)'!F41) -> 0.5294117647 | AE23: =IF(AND($F$9=1,$F$31="C"),#REF!,IF(AND($F$9=2,$F$31="C"),#REF!,IF(AND($F$9=3,$F$31="C"),#REF!,IF(AND($F$9=4,$F$31="C"),#REF!,IF(AND($F$9=1,$F$31="d"),'1st milking (D)'!AL41, IF(AND($F$9=2,$F$31="d"),'2nd milking (D)'!AL41, IF(AND($F$9=3,$F$31="D"),'3rd milking (D)'!AL41,IF(AND($F$9=4,$F$31="D"),'4th milking (D)'!AL41)))))))) -> FALSE | AG23: 20.5 | AH23: 0.5294117647 | AI23: FALSE
C24: 5) Calculations based on (S: S.aureus, B: B.cereus, P:Pseudo, A:all) | AC24: =IF(AND($F$9=1),'1st milking (D)'!E42, '2nd milking (D)'!E42) -> 20.25 | AD24: =IF(AND($F$9=1),'1st milking (D)'!F42, '2nd milking (D)'!F42) -> 0.5588235294 | AE24: =IF(AND($F$9=1,$F$31="C"),#REF!,IF(AND($F$9=2,$F$31="C"),#REF!,IF(AND($F$9=3,$F$31="C"),#REF!,IF(AND($F$9=4,$F$31="C"),#REF!,IF(AND($F$9=1,$F$31="d"),'1st milking (D)'!AL42, IF(AND($F$9=2,$F$31="d"),'2nd milking (D)'!AL42, IF(AND($F$9=3,$F$31="D"),'3rd milking (D)'!AL42,IF(AND($F$9=4,$F$31="D"),'4th milking (D)'!AL42)))))))) -> FALSE | AG24: 20.25 | AH24: 0.5588235294 | AI24: FALSE
C25: or Food Safety (FS: S. aureus and B.cereus) | AC25: =IF(AND($F$9=1),'1st milking (D)'!E43, '2nd milking (D)'!E43) -> 20 | AD25: =IF(AND($F$9=1),'1st milking (D)'!F43, '2nd milking (D)'!F43) -> 0.5882352941 | AE25: =IF(AND($F$9=1,$F$31="C"),#REF!,IF(AND($F$9=2,$F$31="C"),#REF!,IF(AND($F$9=3,$F$31="C"),#REF!,IF(AND($F$9=4,$F$31="C"),#REF!,IF(AND($F$9=1,$F$31="d"),'1st milking (D)'!AL43, IF(AND($F$9=2,$F$31="d"),'2nd milking (D)'!AL43, IF(AND($F$9=3,$F$31="D"),'3rd milking (D)'!AL43,IF(AND($F$9=4,$F$31="D"),'4th milking (D)'!AL43)))))))) -> FALSE | AG25: 20 | AH25: 0.5882352941 | AI25: FALSE
AC26: =IF(AND($F$9=1),'1st milking (D)'!E44, '2nd milking (D)'!E44) -> 19.75 | AD26: =IF(AND($F$9=1),'1st milking (D)'!F44, '2nd milking (D)'!F44) -> 0.6176470588 | AE26: =IF(AND($F$9=1,$F$31="C"),#REF!,IF(AND($F$9=2,$F$31="C"),#REF!,IF(AND($F$9=3,$F$31="C"),#REF!,IF(AND($F$9=4,$F$31="C"),#REF!,IF(AND($F$9=1,$F$31="d"),'1st milking (D)'!AL44, IF(AND($F$9=2,$F$31="d"),'2nd milking (D)'!AL44, IF(AND($F$9=3,$F$31="D"),'3rd milking (D)'!AL44,IF(AND($F$9=4,$F$31="D"),'4th milking (D)'!AL44)))))))) -> FALSE | AG26: 19.75 | AH26: 0.6176470588 | AI26: FALSE
D27: Microorganism | F27: FS | AC27: =IF(AND($F$9=1),'1st milking (D)'!E45, '2nd milking (D)'!E45) -> 19.5 | AD27: =IF(AND($F$9=1),'1st milking (D)'!F45, '2nd milking (D)'!F45) -> 0.6470588235 | AE27: =IF(AND($F$9=1,$F$31="C"),#REF!,IF(AND($F$9=2,$F$31="C"),#REF!,IF(AND($F$9=3,$F$31="C"),#REF!,IF(AND($F$9=4,$F$31="C"),#REF!,IF(AND($F$9=1,$F$31="d"),'1st milking (D)'!AL45, IF(AND($F$9=2,$F$31="d"),'2nd milking (D)'!AL45, IF(AND($F$9=3,$F$31="D"),'3rd milking (D)'!AL45,IF(AND($F$9=4,$F$31="D"),'4th milking (D)'!AL45)))))))) -> FALSE | AG27: 19.5 | AH27: 0.6470588235 | AI27: FALSE
AC28: =IF(AND($F$9=1),'1st milking (D)'!E46, '2nd milking (D)'!E46) -> 19.25 | AD28: =IF(AND($F$9=1),'1st milking (D)'!F46, '2nd milking (D)'!F46) -> 0.6764705882 | AE28: =IF(AND($F$9=1,$F$31="C"),#REF!,IF(AND($F$9=2,$F$31="C"),#REF!,IF(AND($F$9=3,$F$31="C"),#REF!,IF(AND($F$9=4,$F$31="C"),#REF!,IF(AND($F$9=1,$F$31="d"),'1st milking (D)'!AL46, IF(AND($F$9=2,$F$31="d"),'2nd milking (D)'!AL46, IF(AND($F$9=3,$F$31="D"),'3rd milking (D)'!AL46,IF(AND($F$9=4,$F$31="D"),'4th milking (D)'!AL46)))))))) -> FALSE | AG28: 19.25 | AH28: 0.6764705882 | AI28: FALSE
AC29: =IF(AND($F$9=1),'1st milking (D)'!E47, '2nd milking (D)'!E47) -> 19 | AD29: =IF(AND($F$9=1),'1st milking (D)'!F47, '2nd milking (D)'!F47) -> 0.7058823529 | AE29: =IF(AND($F$9=1,$F$31="C"),#REF!,IF(AND($F$9=2,$F$31="C"),#REF!,IF(AND($F$9=3,$F$31="C"),#REF!,IF(AND($F$9=4,$F$31="C"),#REF!,IF(AND($F$9=1,$F$31="d"),'1st milking (D)'!AL47, IF(AND($F$9=2,$F$31="d"),'2nd milking (D)'!AL47, IF(AND($F$9=3,$F$31="D"),'3rd milking (D)'!AL47,IF(AND($F$9=4,$F$31="D"),'4th milking (D)'!AL47)))))))) -> FALSE | AG29: 19 | AH29: 0.7058823529 | AI29: FALSE
AC30: =IF(AND($F$9=1),'1st milking (D)'!E48, '2nd milking (D)'!E48) -> 18.75 | AD30: =IF(AND($F$9=1),'1st milking (D)'!F48, '2nd milking (D)'!F48) -> 0.7352941176 | AE30: =IF(AND($F$9=1,$F$31="C"),#REF!,IF(AND($F$9=2,$F$31="C"),#REF!,IF(AND($F$9=3,$F$31="C"),#REF!,IF(AND($F$9=4,$F$31="C"),#REF!,IF(AND($F$9=1,$F$31="d"),'1st milking (D)'!AL48, IF(AND($F$9=2,$F$31="d"),'2nd milking (D)'!AL48, IF(AND($F$9=3,$F$31="D"),'3rd milking (D)'!AL48,IF(AND($F$9=4,$F$31="D"),'4th milking (D)'!AL48)))))))) -> FALSE | AG30: 18.75 | AH30: 0.7352941176 | AI30: FALSE
AC31: =IF(AND($F$9=1),'1st milking (D)'!E49, '2nd milking (D)'!E49) -> 18.5 | AD31: =IF(AND($F$9=1),'1st milking (D)'!F49, '2nd milking (D)'!F49) -> 0.7647058824 | AE31: =IF(AND($F$9=1,$F$31="C"),#REF!,IF(AND($F$9=2,$F$31="C"),#REF!,IF(AND($F$9=3,$F$31="C"),#REF!,IF(AND($F$9=4,$F$31="C"),#REF!,IF(AND($F$9=1,$F$31="d"),'1st milking (D)'!AL49, IF(AND($F$9=2,$F$31="d"),'2nd milking (D)'!AL49, IF(AND($F$9=3,$F$31="D"),'3rd milking (D)'!AL49,IF(AND($F$9=4,$F$31="D"),'4th milking (D)'!AL49)))))))) -> FALSE | AG31: 18.5 | AH31: 0.7647058824 | AI31: FALSE
I32: Time to reach the NMTL (in hours): | L32: =IF(L45<0,0,L45) -> 11.05642245 | M32: =+IF(F11="","WITHIN THE RANGE",M45) -> WITHIN THE RANGE | AC32: =IF(AND($F$9=1),'1st milking (D)'!E50, '2nd milking (D)'!E50) -> 18.25 | AD32: =IF(AND($F$9=1),'1st milking (D)'!F50, '2nd milking (D)'!F50) -> 0.7941176471 | AE32: =IF(AND($F$9=1,$F$31="C"),#REF!,IF(AND($F$9=2,$F$31="C"),#REF!,IF(AND($F$9=3,$F$31="C"),#REF!,IF(AND($F$9=4,$F$31="C"),#REF!,IF(AND($F$9=1,$F$31="d"),'1st milking (D)'!AL50, IF(AND($F$9=2,$F$31="d"),'2nd milking (D)'!AL50, IF(AND($F$9=3,$F$31="D"),'3rd milking (D)'!AL50,IF(AND($F$9=4,$F$31="D"),'4th milking (D)'!AL50)))))))) -> FALSE | AG32: 18.25 | AH32: 0.7941176471 | AI32: FALSE
AC33: =IF(AND($F$9=1),'1st milking (D)'!E51, '2nd milking (D)'!E51) -> 18 | AD33: =IF(AND($F$9=1),'1st milking (D)'!F51, '2nd milking (D)'!F51) -> 0.8235294118 | AE33: =IF(AND($F$9=1,$F$31="C"),#REF!,IF(AND($F$9=2,$F$31="C"),#REF!,IF(AND($F$9=3,$F$31="C"),#REF!,IF(AND($F$9=4,$F$31="C"),#REF!,IF(AND($F$9=1,$F$31="d"),'1st milking (D)'!AL51, IF(AND($F$9=2,$F$31="d"),'2nd milking (D)'!AL51, IF(AND($F$9=3,$F$31="D"),'3rd milking (D)'!AL51,IF(AND($F$9=4,$F$31="D"),'4th milking (D)'!AL51)))))))) -> FALSE | AG33: 18 | AH33: 0.8235294118 | AI33: FALSE
AC34: =IF(AND($F$9=1),'1st milking (D)'!E52, '2nd milking (D)'!E52) -> 17.75 | AD34: =IF(AND($F$9=1),'1st milking (D)'!F52, '2nd milking (D)'!F52) -> 0.8529411765 | AE34: =IF(AND($F$9=1,$F$31="C"),#REF!,IF(AND($F$9=2,$F$31="C"),#REF!,IF(AND($F$9=3,$F$31="C"),#REF!,IF(AND($F$9=4,$F$31="C"),#REF!,IF(AND($F$9=1,$F$31="d"),'1st milking (D)'!AL52, IF(AND($F$9=2,$F$31="d"),'2nd milking (D)'!AL52, IF(AND($F$9=3,$F$31="D"),'3rd milking (D)'!AL52,IF(AND($F$9=4,$F$31="D"),'4th milking (D)'!AL52)))))))) -> FALSE | AG34: 17.75 | AH34: 0.8529411765 | AI34: FALSE
AC35: =IF(AND($F$9=1),'1st milking (D)'!E53, '2nd milking (D)'!E53) -> 17.5 | AD35: =IF(AND($F$9=1),'1st milking (D)'!F53, '2nd milking (D)'!F53) -> 0.8823529412 | AE35: =IF(AND($F$9=1,$F$31="C"),#REF!,IF(AND($F$9=2,$F$31="C"),#REF!,IF(AND($F$9=3,$F$31="C"),#REF!,IF(AND($F$9=4,$F$31="C"),#REF!,IF(AND($F$9=1,$F$31="d"),'1st milking (D)'!AL53, IF(AND($F$9=2,$F$31="d"),'2nd milking (D)'!AL53, IF(AND($F$9=3,$F$31="D"),'3rd milking (D)'!AL53,IF(AND($F$9=4,$F$31="D"),'4th milking (D)'!AL53)))))))) -> FALSE | AG35: 17.5 | AH35: 0.8823529412 | AI35: FALSE
AC36: =IF(AND($F$9=1),'1st milking (D)'!E54, '2nd milking (D)'!E54) -> 17.25 | AD36: =IF(AND($F$9=1),'1st milking (D)'!F54, '2nd milking (D)'!F54) -> 0.9117647059 | AE36: =IF(AND($F$9=1,$F$31="C"),#REF!,IF(AND($F$9=2,$F$31="C"),#REF!,IF(AND($F$9=3,$F$31="C"),#REF!,IF(AND($F$9=4,$F$31="C"),#REF!,IF(AND($F$9=1,$F$31="d"),'1st milking (D)'!AL54, IF(AND($F$9=2,$F$31="d"),'2nd milking (D)'!AL54, IF(AND($F$9=3,$F$31="D"),'3rd milking (D)'!AL54,IF(AND($F$9=4,$F$31="D"),'4th milking (D)'!AL54)))))))) -> FALSE | AG36: 17.25 | AH36: 0.9117647059 | AI36: FALSE
AC37: =IF(AND($F$9=1),'1st milking (D)'!E55, '2nd milking (D)'!E55) -> 17 | AD37: =IF(AND($F$9=1),'1st milking (D)'!F55, '2nd milking (D)'!F55) -> 0.9411764706 | AE37: =IF(AND($F$9=1,$F$31="C"),#REF!,IF(AND($F$9=2,$F$31="C"),#REF!,IF(AND($F$9=3,$F$31="C"),#REF!,IF(AND($F$9=4,$F$31="C"),#REF!,IF(AND($F$9=1,$F$31="d"),'1st milking (D)'!AL55, IF(AND($F$9=2,$F$31="d"),'2nd milking (D)'!AL55, IF(AND($F$9=3,$F$31="D"),'3rd milking (D)'!AL55,IF(AND($F$9=4,$F$31="D"),'4th milking (D)'!AL55)))))))) -> FALSE | AG37: 17 | AH37: 0.9411764706 | AI37: FALSE
AC38: =IF(AND($F$9=1),'1st milking (D)'!E56, '2nd milking (D)'!E56) -> 16.75 | AD38: =IF(AND($F$9=1),'1st milking (D)'!F56, '2nd milking (D)'!F56) -> 0.9705882353 | AE38: =IF(AND($F$9=1,$F$31="C"),#REF!,IF(AND($F$9=2,$F$31="C"),#REF!,IF(AND($F$9=3,$F$31="C"),#REF!,IF(AND($F$9=4,$F$31="C"),#REF!,IF(AND($F$9=1,$F$31="d"),'1st milking (D)'!AL56, IF(AND($F$9=2,$F$31="d"),'2nd milking (D)'!AL56, IF(AND($F$9=3,$F$31="D"),'3rd milking (D)'!AL56,IF(AND($F$9=4,$F$31="D"),'4th milking (D)'!AL56)))))))) -> FALSE | AG38: 16.75 | AH38: 0.9705882353 | AI38: FALSE
AC39: =IF(AND($F$9=1),'1st milking (D)'!E57, '2nd milking (D)'!E57) -> 16.5 | AD39: =IF(AND($F$9=1),'1st milking (D)'!F57, '2nd milking (D)'!F57) -> 1 | AE39: =IF(AND($F$9=1,$F$31="C"),#REF!,IF(AND($F$9=2,$F$31="C"),#REF!,IF(AND($F$9=3,$F$31="C"),#REF!,IF(AND($F$9=4,$F$31="C"),#REF!,IF(AND($F$9=1,$F$31="d"),'1st milking (D)'!AL57, IF(AND($F$9=2,$F$31="d"),'2nd milking (D)'!AL57, IF(AND($F$9=3,$F$31="D"),'3rd milking (D)'!AL57,IF(AND($F$9=4,$F$31="D"),'4th milking (D)'!AL57)))))))) -> FALSE | AG39: 16.5 | AH39: 1 | AI39: FALSE
AC40: =IF(AND($F$9=1),'1st milking (D)'!E58, '2nd milking (D)'!E58) -> 16.25 | AD40: =IF(AND($F$9=1),'1st milking (D)'!F58, '2nd milking (D)'!F58) -> 1.029411765 | AE40: =IF(AND($F$9=1,$F$31="C"),#REF!,IF(AND($F$9=2,$F$31="C"),#REF!,IF(AND($F$9=3,$F$31="C"),#REF!,IF(AND($F$9=4,$F$31="C"),#REF!,IF(AND($F$9=1,$F$31="d"),'1st milking (D)'!AL58, IF(AND($F$9=2,$F$31="d"),'2nd milking (D)'!AL58, IF(AND($F$9=3,$F$31="D"),'3rd milking (D)'!AL58,IF(AND($F$9=4,$F$31="D"),'4th milking (D)'!AL58)))))))) -> FALSE | AG40: 16.25 | AH40: 1.029411765 | AI40: FALSE
AC41: =IF(AND($F$9=1),'1st milking (D)'!E59, '2nd milking (D)'!E59) -> 16 | AD41: =IF(AND($F$9=1),'1st milking (D)'!F59, '2nd milking (D)'!F59) -> 1.058823529 | AE41: =IF(AND($F$9=1,$F$31="C"),#REF!,IF(AND($F$9=2,$F$31="C"),#REF!,IF(AND($F$9=3,$F$31="C"),#REF!,IF(AND($F$9=4,$F$31="C"),#REF!,IF(AND($F$9=1,$F$31="d"),'1st milking (D)'!AL59, IF(AND($F$9=2,$F$31="d"),'2nd milking (D)'!AL59, IF(AND($F$9=3,$F$31="D"),'3rd milking (D)'!AL59,IF(AND($F$9=4,$F$31="D"),'4th milking (D)'!AL59)))))))) -> FALSE | AG41: 16 | AH41: 1.058823529 | AI41: FALSE
AC42: =IF(AND($F$9=1),'1st milking (D)'!E60, '2nd milking (D)'!E60) -> 15.75 | AD42: =IF(AND($F$9=1),'1st milking (D)'!F60, '2nd milking (D)'!F60) -> 1.088235294 | AE42: =IF(AND($F$9=1,$F$31="C"),#REF!,IF(AND($F$9=2,$F$31="C"),#REF!,IF(AND($F$9=3,$F$31="C"),#REF!,IF(AND($F$9=4,$F$31="C"),#REF!,IF(AND($F$9=1,$F$31="d"),'1st milking (D)'!AL60, IF(AND($F$9=2,$F$31="d"),'2nd milking (D)'!AL60, IF(AND($F$9=3,$F$31="D"),'3rd milking (D)'!AL60,IF(AND($F$9=4,$F$31="D"),'4th milking (D)'!AL60)))))))) -> FALSE | AG42: =IF(AC42=0,AG41,AC42) -> 15.75 | AH42: =IF(AD42=0,AH41,AD42) -> 1.088235294 | AI42: =IF(AE42=0,AI41,AE42) -> FALSE
AC43: =IF(AND($F$9=1),'1st milking (D)'!E61, '2nd milking (D)'!E61) -> 15.5 | AD43: =IF(AND($F$9=1),'1st milking (D)'!F61, '2nd milking (D)'!F61) -> 1.117647059 | AE43: =IF(AND($F$9=1,$F$31="C"),#REF!,IF(AND($F$9=2,$F$31="C"),#REF!,IF(AND($F$9=3,$F$31="C"),#REF!,IF(AND($F$9=4,$F$31="C"),#REF!,IF(AND($F$9=1,$F$31="d"),'1st milking (D)'!AL61, IF(AND($F$9=2,$F$31="d"),'2nd milking (D)'!AL61, IF(AND($F$9=3,$F$31="D"),'3rd milking (D)'!AL61,IF(AND($F$9=4,$F$31="D"),'4th milking (D)'!AL61)))))))) -> FALSE | AG43: 15.5 | AH43: 1.117647059 | AI43: FALSE
AC44: =IF(AND($F$9=1),'1st milking (D)'!E62, '2nd milking (D)'!E62) -> 15.25 | AD44: =IF(AND($F$9=1),'1st milking (D)'!F62, '2nd milking (D)'!F62) -> 1.147058824 | AE44: =IF(AND($F$9=1,$F$31="C"),#REF!,IF(AND($F$9=2,$F$31="C"),#REF!,IF(AND($F$9=3,$F$31="C"),#REF!,IF(AND($F$9=4,$F$31="C"),#REF!,IF(AND($F$9=1,$F$31="d"),'1st milking (D)'!AL62, IF(AND($F$9=2,$F$31="d"),'2nd milking (D)'!AL62, IF(AND($F$9=3,$F$31="D"),'3rd milking (D)'!AL62,IF(AND($F$9=4,$F$31="D"),'4th milking (D)'!AL62)))))))) -> FALSE | AG44: 15.25 | AH44: 1.147058824 | AI44: FALSE
D45: =IF(AND($F$9=1),'1st milking (D)'!B10,IF(AND($F$9=2),'2nd milking (D)'!B10,IF(AND($F$9=3),'3rd milking (D)'!B10,IF(AND($F$9=4),'4th milking (D)'!B10)))) -> 10.94220405 | E45: =IF(AND($F$9=1,F13<=25,F11<=141),'1st milking (DF)'!B10, IF(AND($F$9=2),'2nd milking (DF)'!B10, IF(AND($F$9=3),'3rd milking (DF)'!B10,IF(AND($F$9=4),'4th milking (DF)'!B10)))) -> 11.05642245 | F45: =IF(AND($F$9=1),'1st milking (DO)'!B10, IF(AND($F$9=2),'2nd milking (DO)'!B10, IF(AND($F$9=3),'3rd milking (DO)'!B10,IF(AND($F$9=4),'4th milking (DO)'!B10)))) -> 11.0845408 | G45: =IF(AND(F9=1,F13>25,F13<35),'1st milking (BR2) '!B10, IF(AND(F9=1,F13=35),'1st milking (BR1)'!B9,"NO")) -> NO | H45: =IF(AND(F9=2,F11>141,F13>5),'2nd milking (DO2)'!B10,IF(AND(F9=3,F11>141,F13>5),'3rd milking (DO2)'!B10,IF(AND(F9=4,F11>141,F13>5),'4th milking (DO2)'!B10,"out"))) -> out | L45: =+IF(F11="",D45,L46) -> 11.05642245 | M45: =IF(AND(F9=1,F13>25,F13<35),"BREAKDOWN",IF(F13=35,"BREAKDOWN",IF(AND(F9=2,F13>15),"BREAKDOWN",IF(AND(F9=3,F13>15),"BREAKDOWN", IF(AND(F9=4,F13>15),"BREAKDOWN",IF(OR(F13=5,F13<5),"WITHIN RANGE",IF(OR(E47="out",F11>141),"ASSESS RISK","WITHIN THE RANGE"))))))) -> WITHIN THE RANGE | AC45: =IF(AND($F$9=1),'1st milking (D)'!E63, '2nd milking (D)'!E63) -> 15 | AD45: =IF(AND($F$9=1),'1st milking (D)'!F63, '2nd milking (D)'!F63) -> 1.176470588 | AE45: =IF(AND($F$9=1,$F$31="C"),#REF!,IF(AND($F$9=2,$F$31="C"),#REF!,IF(AND($F$9=3,$F$31="C"),#REF!,IF(AND($F$9=4,$F$31="C"),#REF!,IF(AND($F$9=1,$F$31="d"),'1st milking (D)'!AL63, IF(AND($F$9=2,$F$31="d"),'2nd milking (D)'!AL63, IF(AND($F$9=3,$F$31="D"),'3rd milking (D)'!AL63,IF(AND($F$9=4,$F$31="D"),'4th milking (D)'!AL63)))))))) -> FALSE | AG45: 15 | AH45: 1.176470588 | AI45: FALSE
D46: No time | E46: Flexible | F46: Out | G46: Breakdown | H46: Out 2,3,4th | I46: 5C or below | L46: =IF(AND(F9=1,F13>25,F13<35),G45,IF(AND(F9=1,F13=35),G45,IF(AND(F9=2,F13>15),"out",IF(AND(F9=3,F13>15),"out",IF(AND(F9=4,F13>15),"out",IF(AND(F9>1,F11>141,F13>5),H45,IF(OR(F13=5,F13<5),I45,IF(OR(E47="out",F11>141),F45,E45)))))))) -> 11.05642245 | AC46: =IF(AND($F$9=1),'1st milking (D)'!E64, '2nd milking (D)'!E64) -> 14.75 | AD46: =IF(AND($F$9=1),'1st milking (D)'!F64, '2nd milking (D)'!F64) -> 1.205882353 | AE46: =IF(AND($F$9=1,$F$31="C"),#REF!,IF(AND($F$9=2,$F$31="C"),#REF!,IF(AND($F$9=3,$F$31="C"),#REF!,IF(AND($F$9=4,$F$31="C"),#REF!,IF(AND($F$9=1,$F$31="d"),'1st milking (D)'!AL64, IF(AND($F$9=2,$F$31="d"),'2nd milking (D)'!AL64, IF(AND($F$9=3,$F$31="D"),'3rd milking (D)'!AL64,IF(AND($F$9=4,$F$31="D"),'4th milking (D)'!AL64)))))))) -> FALSE | AG46: 14.75 | AH46: 1.205882353 | AI46: FALSE
E47: =E45 -> 11.05642245 | AC47: =IF(AND($F$9=1),'1st milking (D)'!E65, '2nd milking (D)'!E65) -> 14.5 | AD47: =IF(AND($F$9=1),'1st milking (D)'!F65, '2nd milking (D)'!F65) -> 1.235294118 | AE47: =IF(AND($F$9=1,$F$31="C"),#REF!,IF(AND($F$9=2,$F$31="C"),#REF!,IF(AND($F$9=3,$F$31="C"),#REF!,IF(AND($F$9=4,$F$31="C"),#REF!,IF(AND($F$9=1,$F$31="d"),'1st milking (D)'!AL65, IF(AND($F$9=2,$F$31="d"),'2nd milking (D)'!AL65, IF(AND($F$9=3,$F$31="D"),'3rd milking (D)'!AL65,IF(AND($F$9=4,$F$31="D"),'4th milking (D)'!AL65)))))))) -> FALSE | AG47: 14.5 | AH47: 1.235294118 | AI47: FALSE
AC48: =IF(AND($F$9=1),'1st milking (D)'!E66, '2nd milking (D)'!E66) -> 14.25 | AD48: =IF(AND($F$9=1),'1st milking (D)'!F66, '2nd milking (D)'!F66) -> 1.264705882 | AE48: =IF(AND($F$9=1,$F$31="C"),#REF!,IF(AND($F$9=2,$F$31="C"),#REF!,IF(AND($F$9=3,$F$31="C"),#REF!,IF(AND($F$9=4,$F$31="C"),#REF!,IF(AND($F$9=1,$F$31="d"),'1st milking (D)'!AL66, IF(AND($F$9=2,$F$31="d"),'2nd milking (D)'!AL66, IF(AND($F$9=3,$F$31="D"),'3rd milking (D)'!AL66,IF(AND($F$9=4,$F$31="D"),'4th milking (D)'!AL66)))))))) -> FALSE | AG48: 14.25 | AH48: 1.264705882 | AI48: FALSE
AC49: =IF(AND($F$9=1),'1st milking (D)'!E67, '2nd milking (D)'!E67) -> 14 | AD49: =IF(AND($F$9=1),'1st milking (D)'!F67, '2nd milking (D)'!F67) -> 1.294117647 | AE49: =IF(AND($F$9=1,$F$31="C"),#REF!,IF(AND($F$9=2,$F$31="C"),#REF!,IF(AND($F$9=3,$F$31="C"),#REF!,IF(AND($F$9=4,$F$31="C"),#REF!,IF(AND($F$9=1,$F$31="d"),'1st milking (D)'!AL67, IF(AND($F$9=2,$F$31="d"),'2nd milking (D)'!AL67, IF(AND($F$9=3,$F$31="D"),'3rd milking (D)'!AL67,IF(AND($F$9=4,$F$31="D"),'4th milking (D)'!AL67)))))))) -> FALSE | AG49: 14 | AH49: 1.294117647 | AI49: FALSE
AC50: =IF(AND($F$9=1),'1st milking (D)'!E68, '2nd milking (D)'!E68) -> 13.75 | AD50: =IF(AND($F$9=1),'1st milking (D)'!F68, '2nd milking (D)'!F68) -> 1.323529412 | AE50: =IF(AND($F$9=1,$F$31="C"),#REF!,IF(AND($F$9=2,$F$31="C"),#REF!,IF(AND($F$9=3,$F$31="C"),#REF!,IF(AND($F$9=4,$F$31="C"),#REF!,IF(AND($F$9=1,$F$31="d"),'1st milking (D)'!AL68, IF(AND($F$9=2,$F$31="d"),'2nd milking (D)'!AL68, IF(AND($F$9=3,$F$31="D"),'3rd milking (D)'!AL68,IF(AND($F$9=4,$F$31="D"),'4th milking (D)'!AL68)))))))) -> FALSE | AG50: 13.75 | AH50: 1.323529412 | AI50: FALSE
AC51: =IF(AND($F$9=1),'1st milking (D)'!E69, '2nd milking (D)'!E69) -> 13.5 | AD51: =IF(AND($F$9=1),'1st milking (D)'!F69, '2nd milking (D)'!F69) -> 1.352941176 | AE51: =IF(AND($F$9=1,$F$31="C"),#REF!,IF(AND($F$9=2,$F$31="C"),#REF!,IF(AND($F$9=3,$F$31="C"),#REF!,IF(AND($F$9=4,$F$31="C"),#REF!,IF(AND($F$9=1,$F$31="d"),'1st milking (D)'!AL69, IF(AND($F$9=2,$F$31="d"),'2nd milking (D)'!AL69, IF(AND($F$9=3,$F$31="D"),'3rd milking (D)'!AL69,IF(AND($F$9=4,$F$31="D"),'4th milking (D)'!AL69)))))))) -> FALSE | AG51: 13.5 | AH51: 1.352941176 | AI51: FALSE
AC52: =IF(AND($F$9=1),'1st milking (D)'!E70, '2nd milking (D)'!E70) -> 13.25 | AD52: =IF(AND($F$9=1),'1st milking (D)'!F70, '2nd milking (D)'!F70) -> 1.382352941 | AE52: =IF(AND($F$9=1,$F$31="C"),#REF!,IF(AND($F$9=2,$F$31="C"),#REF!,IF(AND($F$9=3,$F$31="C"),#REF!,IF(AND($F$9=4,$F$31="C"),#REF!,IF(AND($F$9=1,$F$31="d"),'1st milking (D)'!AL70, IF(AND($F$9=2,$F$31="d"),'2nd milking (D)'!AL70, IF(AND($F$9=3,$F$31="D"),'3rd milking (D)'!AL70,IF(AND($F$9=4,$F$31="D"),'4th milking (D)'!AL70)))))))) -> FALSE | AG52: 13.25 | AH52: 1.382352941 | AI52: FALSE
AC53: =IF(AND($F$9=1),'1st milking (D)'!E71, '2nd milking (D)'!E71) -> 13 | AD53: =IF(AND($F$9=1),'1st milking (D)'!F71, '2nd milking (D)'!F71) -> 1.411764706 | AE53: =IF(AND($F$9=1,$F$31="C"),#REF!,IF(AND($F$9=2,$F$31="C"),#REF!,IF(AND($F$9=3,$F$31="C"),#REF!,IF(AND($F$9=4,$F$31="C"),#REF!,IF(AND($F$9=1,$F$31="d"),'1st milking (D)'!AL71, IF(AND($F$9=2,$F$31="d"),'2nd milking (D)'!AL71, IF(AND($F$9=3,$F$31="D"),'3rd milking (D)'!AL71,IF(AND($F$9=4,$F$31="D"),'4th milking (D)'!AL71)))))))) -> FALSE | AG53: 13 | AH53: 1.411764706 | AI53: FALSE
AC54: =IF(AND($F$9=1),'1st milking (D)'!E72, '2nd milking (D)'!E72) -> 12.75 | AD54: =IF(AND($F$9=1),'1st milking (D)'!F72, '2nd milking (D)'!F72) -> 1.441176471 | AE54: =IF(AND($F$9=1,$F$31="C"),#REF!,IF(AND($F$9=2,$F$31="C"),#REF!,IF(AND($F$9=3,$F$31="C"),#REF!,IF(AND($F$9=4,$F$31="C"),#REF!,IF(AND($F$9=1,$F$31="d"),'1st milking (D)'!AL72, IF(AND($F$9=2,$F$31="d"),'2nd milking (D)'!AL72, IF(AND($F$9=3,$F$31="D"),'3rd milking (D)'!AL72,IF(AND($F$9=4,$F$31="D"),'4th milking (D)'!AL72)))))))) -> FALSE | AG54: 12.75 | AH54: 1.441176471 | AI54: FALSE
AC55: =IF(AND($F$9=1),'1st milking (D)'!E73, '2nd milking (D)'!E73) -> 12.5 | AD55: =IF(AND($F$9=1),'1st milking (D)'!F73, '2nd milking (D)'!F73) -> 1.470588235 | AE55: =IF(AND($F$9=1,$F$31="C"),#REF!,IF(AND($F$9=2,$F$31="C"),#REF!,IF(AND($F$9=3,$F$31="C"),#REF!,IF(AND($F$9=4,$F$31="C"),#REF!,IF(AND($F$9=1,$F$31="d"),'1st milking (D)'!AL73, IF(AND($F$9=2,$F$31="d"),'2nd milking (D)'!AL73, IF(AND($F$9=3,$F$31="D"),'3rd milking (D)'!AL73,IF(AND($F$9=4,$F$31="D"),'4th milking (D)'!AL73)))))))) -> FALSE | AG55: 12.5 | AH55: 1.470588235 | AI55: FALSE
AC56: =IF(AND($F$9=1),'1st milking (D)'!E74, '2nd milking (D)'!E74) -> 12.25 | AD56: =IF(AND($F$9=1),'1st milking (D)'!F74, '2nd milking (D)'!F74) -> 1.5 | AE56: =IF(AND($F$9=1,$F$31="C"),#REF!,IF(AND($F$9=2,$F$31="C"),#REF!,IF(AND($F$9=3,$F$31="C"),#REF!,IF(AND($F$9=4,$F$31="C"),#REF!,IF(AND($F$9=1,$F$31="d"),'1st milking (D)'!AL74, IF(AND($F$9=2,$F$31="d"),'2nd milking (D)'!AL74, IF(AND($F$9=3,$F$31="D"),'3rd milking (D)'!AL74,IF(AND($F$9=4,$F$31="D"),'4th milking (D)'!AL74)))))))) -> FALSE | AG56: 12.25 | AH56: 1.5 | AI56: FALSE
AC57: =IF(AND($F$9=1),'1st milking (D)'!E75, '2nd milking (D)'!E75) -> 12 | AD57: =IF(AND($F$9=1),'1st milking (D)'!F75, '2nd milking (D)'!F75) -> 1.529411765 | AE57: =IF(AND($F$9=1,$F$31="C"),#REF!,IF(AND($F$9=2,$F$31="C"),#REF!,IF(AND($F$9=3,$F$31="C"),#REF!,IF(AND($F$9=4,$F$31="C"),#REF!,IF(AND($F$9=1,$F$31="d"),'1st milking (D)'!AL75, IF(AND($F$9=2,$F$31="d"),'2nd milking (D)'!AL75, IF(AND($F$9=3,$F$31="D"),'3rd milking (D)'!AL75,IF(AND($F$9=4,$F$31="D"),'4th milking (D)'!AL75)))))))) -> FALSE | AG57: 12 | AH57: 1.529411765 | AI57: FALSE
AC58: =IF(AND($F$9=1),'1st milking (D)'!E76, '2nd milking (D)'!E76) -> 11.75 | AD58: =IF(AND($F$9=1),'1st milking (D)'!F76, '2nd milking (D)'!F76) -> 1.558823529 | AE58: =IF(AND($F$9=1,$F$31="C"),#REF!,IF(AND($F$9=2,$F$31="C"),#REF!,IF(AND($F$9=3,$F$31="C"),#REF!,IF(AND($F$9=4,$F$31="C"),#REF!,IF(AND($F$9=1,$F$31="d"),'1st milking (D)'!AL76, IF(AND($F$9=2,$F$31="d"),'2nd milking (D)'!AL76, IF(AND($F$9=3,$F$31="D"),'3rd milking (D)'!AL76,IF(AND($F$9=4,$F$31="D"),'4th milking (D)'!AL76)))))))) -> FALSE | AG58: 11.75 | AH58: 1.558823529 | AI58: FALSE
AC59: =IF(AND($F$9=1),'1st milking (D)'!E77, '2nd milking (D)'!E77) -> 11.5 | AD59: =IF(AND($F$9=1),'1st milking (D)'!F77, '2nd milking (D)'!F77) -> 1.588235294 | AE59: =IF(AND($F$9=1,$F$31="C"),#REF!,IF(AND($F$9=2,$F$31="C"),#REF!,IF(AND($F$9=3,$F$31="C"),#REF!,IF(AND($F$9=4,$F$31="C"),#REF!,IF(AND($F$9=1,$F$31="d"),'1st milking (D)'!AL77, IF(AND($F$9=2,$F$31="d"),'2nd milking (D)'!AL77, IF(AND($F$9=3,$F$31="D"),'3rd milking (D)'!AL77,IF(AND($F$9=4,$F$31="D"),'4th milking (D)'!AL77)))))))) -> FALSE | AG59: 11.5 | AH59: 1.588235294 | AI59: FALSE
AC60: =IF(AND($F$9=1),'1st milking (D)'!E78, '2nd milking (D)'!E78) -> 11.25 | AD60: =IF(AND($F$9=1),'1st milking (D)'!F78, '2nd milking (D)'!F78) -> 1.617647059 | AE60: =IF(AND($F$9=1,$F$31="C"),#REF!,IF(AND($F$9=2,$F$31="C"),#REF!,IF(AND($F$9=3,$F$31="C"),#REF!,IF(AND($F$9=4,$F$31="C"),#REF!,IF(AND($F$9=1,$F$31="d"),'1st milking (D)'!AL78, IF(AND($F$9=2,$F$31="d"),'2nd milking (D)'!AL78, IF(AND($F$9=3,$F$31="D"),'3rd milking (D)'!AL78,IF(AND($F$9=4,$F$31="D"),'4th milking (D)'!AL78)))))))) -> FALSE | AG60: 11.25 | AH60: 1.617647059 | AI60: FALSE
AC61: =IF(AND($F$9=1),'1st milking (D)'!E79, '2nd milking (D)'!E79) -> 11 | AD61: =IF(AND($F$9=1),'1st milking (D)'!F79, '2nd milking (D)'!F79) -> 1.647058824 | AE61: =IF(AND($F$9=1,$F$31="C"),#REF!,IF(AND($F$9=2,$F$31="C"),#REF!,IF(AND($F$9=3,$F$31="C"),#REF!,IF(AND($F$9=4,$F$31="C"),#REF!,IF(AND($F$9=1,$F$31="d"),'1st milking (D)'!AL79, IF(AND($F$9=2,$F$31="d"),'2nd milking (D)'!AL79, IF(AND($F$9=3,$F$31="D"),'3rd milking (D)'!AL79,IF(AND($F$9=4,$F$31="D"),'4th milking (D)'!AL79)))))))) -> FALSE | AG61: 11 | AH61: 1.647058824 | AI61: FALSE
AC62: =IF(AND($F$9=1),'1st milking (D)'!E80, '2nd milking (D)'!E80) -> 10.75 | AD62: =IF(AND($F$9=1),'1st milking (D)'!F80, '2nd milking (D)'!F80) -> 1.676470588 | AE62: =IF(AND($F$9=1,$F$31="C"),#REF!,IF(AND($F$9=2,$F$31="C"),#REF!,IF(AND($F$9=3,$F$31="C"),#REF!,IF(AND($F$9=4,$F$31="C"),#REF!,IF(AND($F$9=1,$F$31="d"),'1st milking (D)'!AL80, IF(AND($F$9=2,$F$31="d"),'2nd milking (D)'!AL80, IF(AND($F$9=3,$F$31="D"),'3rd milking (D)'!AL80,IF(AND($F$9=4,$F$31="D"),'4th milking (D)'!AL80)))))))) -> FALSE | AG62: 10.75 | AH62: 1.676470588 | AI62: FALSE
AC63: =IF(AND($F$9=1),'1st milking (D)'!E81, '2nd milking (D)'!E81) -> 10.5 | AD63: =IF(AND($F$9=1),'1st milking (D)'!F81, '2nd milking (D)'!F81) -> 1.705882353 | AE63: =IF(AND($F$9=1,$F$31="C"),#REF!,IF(AND($F$9=2,$F$31="C"),#REF!,IF(AND($F$9=3,$F$31="C"),#REF!,IF(AND($F$9=4,$F$31="C"),#REF!,IF(AND($F$9=1,$F$31="d"),'1st milking (D)'!AL81, IF(AND($F$9=2,$F$31="d"),'2nd milking (D)'!AL81, IF(AND($F$9=3,$F$31="D"),'3rd milking (D)'!AL81,IF(AND($F$9=4,$F$31="D"),'4th milking (D)'!AL81)))))))) -> FALSE | AG63: 10.5 | AH63: 1.705882353 | AI63: FALSE
AC64: =IF(AND($F$9=1),'1st milking (D)'!E82, '2nd milking (D)'!E82) -> 10.25 | AD64: =IF(AND($F$9=1),'1st milking (D)'!F82, '2nd milking (D)'!F82) -> 1.735294118 | AE64: =IF(AND($F$9=1,$F$31="C"),#REF!,IF(AND($F$9=2,$F$31="C"),#REF!,IF(AND($F$9=3,$F$31="C"),#REF!,IF(AND($F$9=4,$F$31="C"),#REF!,IF(AND($F$9=1,$F$31="d"),'1st milking (D)'!AL82, IF(AND($F$9=2,$F$31="d"),'2nd milking (D)'!AL82, IF(AND($F$9=3,$F$31="D"),'3rd milking (D)'!AL82,IF(AND($F$9=4,$F$31="D"),'4th milking (D)'!AL82)))))))) -> FALSE | AG64: =IF(AC64=0,AG63,AC64) -> 10.25 | AH64: 1.735294118 | AI64: FALSE
AC65: =IF(AND($F$9=1),'1st milking (D)'!E83, '2nd milking (D)'!E83) -> 10 | AD65: =IF(AND($F$9=1),'1st milking (D)'!F83, '2nd milking (D)'!F83) -> 1.764705882 | AE65: =IF(AND($F$9=1,$F$31="C"),#REF!,IF(AND($F$9=2,$F$31="C"),#REF!,IF(AND($F$9=3,$F$31="C"),#REF!,IF(AND($F$9=4,$F$31="C"),#REF!,IF(AND($F$9=1,$F$31="d"),'1st milking (D)'!AL83, IF(AND($F$9=2,$F$31="d"),'2nd milking (D)'!AL83, IF(AND($F$9=3,$F$31="D"),'3rd milking (D)'!AL83,IF(AND($F$9=4,$F$31="D"),'4th milking (D)'!AL83)))))))) -> FALSE | AG65: 10 | AH65: 1.764705882 | AI65: FALSE
AC66: =IF(AND($F$9=1),'1st milking (D)'!E84, '2nd milking (D)'!E84) -> 9.75 | AD66: =IF(AND($F$9=1),'1st milking (D)'!F84, '2nd milking (D)'!F84) -> 1.794117647 | AE66: =IF(AND($F$9=1,$F$31="C"),#REF!,IF(AND($F$9=2,$F$31="C"),#REF!,IF(AND($F$9=3,$F$31="C"),#REF!,IF(AND($F$9=4,$F$31="C"),#REF!,IF(AND($F$9=1,$F$31="d"),'1st milking (D)'!AL84, IF(AND($F$9=2,$F$31="d"),'2nd milking (D)'!AL84, IF(AND($F$9=3,$F$31="D"),'3rd milking (D)'!AL84,IF(AND($F$9=4,$F$31="D"),'4th milking (D)'!AL84)))))))) -> FALSE | AG66: 9.75 | AH66: 1.794117647 | AI66: FALSE
AC67: =IF(AND($F$9=1),'1st milking (D)'!E85, '2nd milking (D)'!E85) -> 9.5 | AD67: =IF(AND($F$9=1),'1st milking (D)'!F85, '2nd milking (D)'!F85) -> 1.823529412 | AE67: =IF(AND($F$9=1,$F$31="C"),#REF!,IF(AND($F$9=2,$F$31="C"),#REF!,IF(AND($F$9=3,$F$31="C"),#REF!,IF(AND($F$9=4,$F$31="C"),#REF!,IF(AND($F$9=1,$F$31="d"),'1st milking (D)'!AL85, IF(AND($F$9=2,$F$31="d"),'2nd milking (D)'!AL85, IF(AND($F$9=3,$F$31="D"),'3rd milking (D)'!AL85,IF(AND($F$9=4,$F$31="D"),'4th milking (D)'!AL85)))))))) -> FALSE | AG67: 9.5 | AH67: 1.823529412 | AI67: FALSE
AC68: =IF(AND($F$9=1),'1st milking (D)'!E86, '2nd milking (D)'!E86) -> 9.25 | AD68: =IF(AND($F$9=1),'1st milking (D)'!F86, '2nd milking (D)'!F86) -> 1.852941176 | AE68: =IF(AND($F$9=1,$F$31="C"),#REF!,IF(AND($F$9=2,$F$31="C"),#REF!,IF(AND($F$9=3,$F$31="C"),#REF!,IF(AND($F$9=4,$F$31="C"),#REF!,IF(AND($F$9=1,$F$31="d"),'1st milking (D)'!AL86, IF(AND($F$9=2,$F$31="d"),'2nd milking (D)'!AL86, IF(AND($F$9=3,$F$31="D"),'3rd milking (D)'!AL86,IF(AND($F$9=4,$F$31="D"),'4th milking (D)'!AL86)))))))) -> FALSE | AG68: 9.25 | AH68: 1.852941176 | AI68: FALSE
AC69: =IF(AND($F$9=1),'1st milking (D)'!E87, '2nd milking (D)'!E87) -> 9 | AD69: =IF(AND($F$9=1),'1st milking (D)'!F87, '2nd milking (D)'!F87) -> 1.882352941 | AE69: =IF(AND($F$9=1,$F$31="C"),#REF!,IF(AND($F$9=2,$F$31="C"),#REF!,IF(AND($F$9=3,$F$31="C"),#REF!,IF(AND($F$9=4,$F$31="C"),#REF!,IF(AND($F$9=1,$F$31="d"),'1st milking (D)'!AL87, IF(AND($F$9=2,$F$31="d"),'2nd milking (D)'!AL87, IF(AND($F$9=3,$F$31="D"),'3rd milking (D)'!AL87,IF(AND($F$9=4,$F$31="D"),'4th milking (D)'!AL87)))))))) -> FALSE | AG69: 9 | AH69: 1.882352941 | AI69: FALSE
AC70: =IF(AND($F$9=1),'1st milking (D)'!E88, '2nd milking (D)'!E88) -> 8.75 | AD70: =IF(AND($F$9=1),'1st milking (D)'!F88, '2nd milking (D)'!F88) -> 1.911764706 | AE70: =IF(AND($F$9=1,$F$31="C"),#REF!,IF(AND($F$9=2,$F$31="C"),#REF!,IF(AND($F$9=3,$F$31="C"),#REF!,IF(AND($F$9=4,$F$31="C"),#REF!,IF(AND($F$9=1,$F$31="d"),'1st milking (D)'!AL88, IF(AND($F$9=2,$F$31="d"),'2nd milking (D)'!AL88, IF(AND($F$9=3,$F$31="D"),'3rd milking (D)'!AL88,IF(AND($F$9=4,$F$31="D"),'4th milking (D)'!AL88)))))))) -> FALSE | AG70: 8.75 | AH70: 1.911764706 | AI70: FALSE
AC71: =IF(AND($F$9=1),'1st milking (D)'!E89, '2nd milking (D)'!E89) -> 8.5 | AD71: =IF(AND($F$9=1),'1st milking (D)'!F89, '2nd milking (D)'!F89) -> 1.941176471 | AE71: =IF(AND($F$9=1,$F$31="C"),#REF!,IF(AND($F$9=2,$F$31="C"),#REF!,IF(AND($F$9=3,$F$31="C"),#REF!,IF(AND($F$9=4,$F$31="C"),#REF!,IF(AND($F$9=1,$F$31="d"),'1st milking (D)'!AL89, IF(AND($F$9=2,$F$31="d"),'2nd milking (D)'!AL89, IF(AND($F$9=3,$F$31="D"),'3rd milking (D)'!AL89,IF(AND($F$9=4,$F$31="D"),'4th milking (D)'!AL89)))))))) -> FALSE | AG71: 8.5 | AH71: 1.941176471 | AI71: FALSE
AC72: =IF(AND($F$9=1),'1st milking (D)'!E90, '2nd milking (D)'!E90) -> 8.25 | AD72: =IF(AND($F$9=1),'1st milking (D)'!F90, '2nd milking (D)'!F90) -> 1.970588235 | AE72: =IF(AND($F$9=1,$F$31="C"),#REF!,IF(AND($F$9=2,$F$31="C"),#REF!,IF(AND($F$9=3,$F$31="C"),#REF!,IF(AND($F$9=4,$F$31="C"),#REF!,IF(AND($F$9=1,$F$31="d"),'1st milking (D)'!AL90, IF(AND($F$9=2,$F$31="d"),'2nd milking (D)'!AL90, IF(AND($F$9=3,$F$31="D"),'3rd milking (D)'!AL90,IF(AND($F$9=4,$F$31="D"),'4th milking (D)'!AL90)))))))) -> FALSE | AG72: 8.25 | AH72: 1.970588235 | AI72: FALSE
AC73: =IF(AND($F$9=1),'1st milking (D)'!E91, '2nd milking (D)'!E91) -> 8 | AD73: =IF(AND($F$9=1),'1st milking (D)'!F91, '2nd milking (D)'!F91) -> 2 | AE73: =IF(AND($F$9=1,$F$31="C"),#REF!,IF(AND($F$9=2,$F$31="C"),#REF!,IF(AND($F$9=3,$F$31="C"),#REF!,IF(AND($F$9=4,$F$31="C"),#REF!,IF(AND($F$9=1,$F$31="d"),'1st milking (D)'!AL91, IF(AND($F$9=2,$F$31="d"),'2nd milking (D)'!AL91, IF(AND($F$9=3,$F$31="D"),'3rd milking (D)'!AL91,IF(AND($F$9=4,$F$31="D"),'4th milking (D)'!AL91)))))))) -> FALSE | AG73: 8 | AH73: 2 | AI73: FALSE
AC74: =IF(AND($F$9=1),'1st milking (D)'!E92, '2nd milking (D)'!E92) -> 7.75 | AD74: =IF(AND($F$9=1),'1st milking (D)'!F92, '2nd milking (D)'!F92) -> 2.029411765 | AE74: =IF(AND($F$9=1,$F$31="C"),#REF!,IF(AND($F$9=2,$F$31="C"),#REF!,IF(AND($F$9=3,$F$31="C"),#REF!,IF(AND($F$9=4,$F$31="C"),#REF!,IF(AND($F$9=1,$F$31="d"),'1st milking (D)'!AL92, IF(AND($F$9=2,$F$31="d"),'2nd milking (D)'!AL92, IF(AND($F$9=3,$F$31="D"),'3rd milking (D)'!AL92,IF(AND($F$9=4,$F$31="D"),'4th milking (D)'!AL92)))))))) -> FALSE | AG74: 7.75 | AH74: 2.029411765 | AI74: FALSE
AC75: =IF(AND($F$9=1),'1st milking (D)'!E93, '2nd milking (D)'!E93) -> 7.5 | AD75: =IF(AND($F$9=1),'1st milking (D)'!F93, '2nd milking (D)'!F93) -> 2.058823529 | AE75: =IF(AND($F$9=1,$F$31="C"),#REF!,IF(AND($F$9=2,$F$31="C"),#REF!,IF(AND($F$9=3,$F$31="C"),#REF!,IF(AND($F$9=4,$F$31="C"),#REF!,IF(AND($F$9=1,$F$31="d"),'1st milking (D)'!AL93, IF(AND($F$9=2,$F$31="d"),'2nd milking (D)'!AL93, IF(AND($F$9=3,$F$31="D"),'3rd milking (D)'!AL93,IF(AND($F$9=4,$F$31="D"),'4th milking (D)'!AL93)))))))) -> FALSE | AG75: 7.5 | AH75: 2.058823529 | AI75: FALSE
AC76: =IF(AND($F$9=1),'1st milking (D)'!E94, '2nd milking (D)'!E94) -> 7.25 | AD76: =IF(AND($F$9=1),'1st milking (D)'!F94, '2nd milking (D)'!F94) -> 2.088235294 | AE76: =IF(AND($F$9=1,$F$31="C"),#REF!,IF(AND($F$9=2,$F$31="C"),#REF!,IF(AND($F$9=3,$F$31="C"),#REF!,IF(AND($F$9=4,$F$31="C"),#REF!,IF(AND($F$9=1,$F$31="d"),'1st milking (D)'!AL94, IF(AND($F$9=2,$F$31="d"),'2nd milking (D)'!AL94, IF(AND($F$9=3,$F$31="D"),'3rd milking (D)'!AL94,IF(AND($F$9=4,$F$31="D"),'4th milking (D)'!AL94)))))))) -> FALSE | AG76: 7.25 | AH76: 2.088235294 | AI76: FALSE
AC77: =IF(AND($F$9=1),'1st milking (D)'!E95, '2nd milking (D)'!E95) -> 7 | AD77: =IF(AND($F$9=1),'1st milking (D)'!F95, '2nd milking (D)'!F95) -> 2.117647059 | AE77: =IF(AND($F$9=1,$F$31="C"),#REF!,IF(AND($F$9=2,$F$31="C"),#REF!,IF(AND($F$9=3,$F$31="C"),#REF!,IF(AND($F$9=4,$F$31="C"),#REF!,IF(AND($F$9=1,$F$31="d"),'1st milking (D)'!AL95, IF(AND($F$9=2,$F$31="d"),'2nd milking (D)'!AL95, IF(AND($F$9=3,$F$31="D"),'3rd milking (D)'!AL95,IF(AND($F$9=4,$F$31="D"),'4th milking (D)'!AL95)))))))) -> FALSE | AG77: 7 | AH77: 2.117647059 | AI77: FALSE
AC78: =IF(AND($F$9=1),'1st milking (D)'!E96, '2nd milking (D)'!E96) -> 6.75 | AD78: =IF(AND($F$9=1),'1st milking (D)'!F96, '2nd milking (D)'!F96) -> 2.147058824 | AE78: =IF(AND($F$9=1,$F$31="C"),#REF!,IF(AND($F$9=2,$F$31="C"),#REF!,IF(AND($F$9=3,$F$31="C"),#REF!,IF(AND($F$9=4,$F$31="C"),#REF!,IF(AND($F$9=1,$F$31="d"),'1st milking (D)'!AL96, IF(AND($F$9=2,$F$31="d"),'2nd milking (D)'!AL96, IF(AND($F$9=3,$F$31="D"),'3rd milking (D)'!AL96,IF(AND($F$9=4,$F$31="D"),'4th milking (D)'!AL96)))))))) -> FALSE | AG78: 6.75 | AH78: 2.147058824 | AI78: FALSE
AC79: =IF(AND($F$9=1),'1st milking (D)'!E97, '2nd milking (D)'!E97) -> 6.5 | AD79: =IF(AND($F$9=1),'1st milking (D)'!F97, '2nd milking (D)'!F97) -> 2.176470588 | AE79: =IF(AND($F$9=1,$F$31="C"),#REF!,IF(AND($F$9=2,$F$31="C"),#REF!,IF(AND($F$9=3,$F$31="C"),#REF!,IF(AND($F$9=4,$F$31="C"),#REF!,IF(AND($F$9=1,$F$31="d"),'1st milking (D)'!AL97, IF(AND($F$9=2,$F$31="d"),'2nd milking (D)'!AL97, IF(AND($F$9=3,$F$31="D"),'3rd milking (D)'!AL97,IF(AND($F$9=4,$F$31="D"),'4th milking (D)'!AL97)))))))) -> FALSE | AG79: 6.5 | AH79: 2.176470588 | AI79: FALSE
AC80: =IF(AND($F$9=1),'1st milking (D)'!E98, '2nd milking (D)'!E98) -> 6.25 | AD80: =IF(AND($F$9=1),'1st milking (D)'!F98, '2nd milking (D)'!F98) -> 2.205882353 | AE80: =IF(AND($F$9=1,$F$31="C"),#REF!,IF(AND($F$9=2,$F$31="C"),#REF!,IF(AND($F$9=3,$F$31="C"),#REF!,IF(AND($F$9=4,$F$31="C"),#REF!,IF(AND($F$9=1,$F$31="d"),'1st milking (D)'!AL98, IF(AND($F$9=2,$F$31="d"),'2nd milking (D)'!AL98, IF(AND($F$9=3,$F$31="D"),'3rd milking (D)'!AL98,IF(AND($F$9=4,$F$31="D"),'4th milking (D)'!AL98)))))))) -> FALSE | AG80: 6.25 | AH80: 2.205882353 | AI80: FALSE
AC81: =IF(AND($F$9=1),'1st milking (D)'!E99, '2nd milking (D)'!E99) -> 6 | AD81: =IF(AND($F$9=1),'1st milking (D)'!F99, '2nd milking (D)'!F99) -> 2.235294118 | AE81: =IF(AND($F$9=1,$F$31="C"),#REF!,IF(AND($F$9=2,$F$31="C"),#REF!,IF(AND($F$9=3,$F$31="C"),#REF!,IF(AND($F$9=4,$F$31="C"),#REF!,IF(AND($F$9=1,$F$31="d"),'1st milking (D)'!AL99, IF(AND($F$9=2,$F$31="d"),'2nd milking (D)'!AL99, IF(AND($F$9=3,$F$31="D"),'3rd milking (D)'!AL99,IF(AND($F$9=4,$F$31="D"),'4th milking (D)'!AL99)))))))) -> FALSE | AG81: 6 | AH81: 2.235294118 | AI81: FALSE
AC82: =IF(AND($F$9=1),'1st milking (D)'!E100, '2nd milking (D)'!E100) -> 5.75 | AD82: =IF(AND($F$9=1),'1st milking (D)'!F100, '2nd milking (D)'!F100) -> 2.264705882 | AE82: =IF(AND($F$9=1,$F$31="C"),#REF!,IF(AND($F$9=2,$F$31="C"),#REF!,IF(AND($F$9=3,$F$31="C"),#REF!,IF(AND($F$9=4,$F$31="C"),#REF!,IF(AND($F$9=1,$F$31="d"),'1st milking (D)'!AL100, IF(AND($F$9=2,$F$31="d"),'2nd milking (D)'!AL100, IF(AND($F$9=3,$F$31="D"),'3rd milking (D)'!AL100,IF(AND($F$9=4,$F$31="D"),'4th milking (D)'!AL100)))))))) -> FALSE | AG82: 5.75 | AH82: 2.264705882 | AI82: FALSE
AC83: =IF(AND($F$9=1),'1st milking (D)'!E101, '2nd milking (D)'!E101) -> 5.5 | AD83: =IF(AND($F$9=1),'1st milking (D)'!F101, '2nd milking (D)'!F101) -> 2.294117647 | AE83: =IF(AND($F$9=1,$F$31="C"),#REF!,IF(AND($F$9=2,$F$31="C"),#REF!,IF(AND($F$9=3,$F$31="C"),#REF!,IF(AND($F$9=4,$F$31="C"),#REF!,IF(AND($F$9=1,$F$31="d"),'1st milking (D)'!AL101, IF(AND($F$9=2,$F$31="d"),'2nd milking (D)'!AL101, IF(AND($F$9=3,$F$31="D"),'3rd milking (D)'!AL101,IF(AND($F$9=4,$F$31="D"),'4th milking (D)'!AL101)))))))) -> FALSE | AG83: 5.5 | AH83: 2.294117647 | AI83: FALSE
AC84: =IF(AND($F$9=1),'1st milking (D)'!E102, '2nd milking (D)'!E102) -> 5.25 | AD84: =IF(AND($F$9=1),'1st milking (D)'!F102, '2nd milking (D)'!F102) -> 2.323529412 | AE84: =IF(AND($F$9=1,$F$31="C"),#REF!,IF(AND($F$9=2,$F$31="C"),#REF!,IF(AND($F$9=3,$F$31="C"),#REF!,IF(AND($F$9=4,$F$31="C"),#REF!,IF(AND($F$9=1,$F$31="d"),'1st milking (D)'!AL102, IF(AND($F$9=2,$F$31="d"),'2nd milking (D)'!AL102, IF(AND($F$9=3,$F$31="D"),'3rd milking (D)'!AL102,IF(AND($F$9=4,$F$31="D"),'4th milking (D)'!AL102)))))))) -> FALSE | AG84: 5.25 | AH84: 2.323529412 | AI84: FALSE
AC85: =IF(AND($F$9=1),'1st milking (D)'!E103, '2nd milking (D)'!E103) -> 5 | AD85: =IF(AND($F$9=1),'1st milking (D)'!F103, '2nd milking (D)'!F103) -> 2.352941176 | AE85: =IF(AND($F$9=1,$F$31="C"),#REF!,IF(AND($F$9=2,$F$31="C"),#REF!,IF(AND($F$9=3,$F$31="C"),#REF!,IF(AND($F$9=4,$F$31="C"),#REF!,IF(AND($F$9=1,$F$31="d"),'1st milking (D)'!AL103, IF(AND($F$9=2,$F$31="d"),'2nd milking (D)'!AL103, IF(AND($F$9=3,$F$31="D"),'3rd milking (D)'!AL103,IF(AND($F$9=4,$F$31="D"),'4th milking (D)'!AL103)))))))) -> FALSE | AG85: 5 | AH85: 2.352941176 | AI85: FALSE

Sheet 1st milking (BR1)
A2: Entry
A4: Milking | B4: 1
A5: Time | B5: =EMCI!F11/60 -> 0.5
A6: Milk T | B6: 35
A7: Volume | B7: D
A9: Outcome | B9: =IF(B5>10,"out",AV20) -> 2.813572611
B11: No (logs) | C11: Nf (logs) | D11: Tmin
A12: S aureus | B12: =EMCI!F19 -> 2 | C12: =EMCI!G19 -> 5 | D12: 5.6
A13: B cereus | B13: =EMCI!F20 -> 1 | C13: =EMCI!G20 -> 5 | D13: 1.5
A14: Pseudo | B14: =EMCI!F21 -> 1 | C14: =EMCI!G21 -> 6 | D14: -6.1
A18: Cooling curve profile | E18: Growth (log/h) | I18: Saureus | J18: Growth accumulated | O18: Time to NMTL (depending on initial logs) | T18: B cereus | U18: Growth accumulated | Z18: Time to NMTL (depending on initial logs) | AE18: Pseudo | AF18: Growth accumulated | AK18: Time to NMTL (depending on initial logs) | AP18: NMTL | AQ18: NMTL | AR18: NMTL | AS18: NMTL | AT18: NMTL | AV18: NMTL
A19: Temp | B19: Time | C19: Time interval | E19: S. aureus | F19: B.cereus | G19: Pseudo | I19: Growth interval | J19: =B12 -> 2 | K19: =J19+1 -> 3 | L19: =K19+1 -> 4 | M19: =L19+1 -> 5 | O19: =J19 -> 2 | P19: =K19 -> 3 | Q19: =L19 -> 4 | R19: =M19 -> 5 | T19: Growth interval | U19: =B13 -> 1 | V19: =U19+1 -> 2 | W19: =V19+1 -> 3 | X19: =W19+1 -> 4 | Z19: =U19 -> 1 | AA19: =V19 -> 2 | AB19: =W19 -> 3 | AC19: =X19 -> 4 | AE19: Growth interval | AF19: =B14 -> 1 | AG19: =AF19+1 -> 2 | AH19: =AG19+1 -> 3 | AI19: =AH19+1 -> 4 | AK19: =AF19 -> 1 | AL19: =AG19 -> 2 | AM19: =AH19 -> 3 | AN19: =AI19 -> 4 | AP19: Shorter of 3 microorganisms | AQ19: B. cereus | AR19: S. aureus | AS19: Pseudo | AT19: Food Safety | AV19: Entry
A20: =B6 -> 35 | B20: =B5 -> 0.5 | C20: =B5 -> 0.5 | E20: =IF(A20>D12,(0.00033*(A20-5.6)*((6.5-2.8)*(1-EXP(0.5*(6.5-9.8)))*(36.7-0.9324)*(1-EXP(0.42*(-5-0.9324)))))^2,0) -> 0.9053672131 | F20: =IF(A20>$D$13,(((0.175*(A20-1.5)*SQRT(0.995-0.92)*(1-EXP(0.4395*(A20-45)))))^2)/2.3,0) -> 1.093238844 | G20: =IF(A20>$D$14,((0.1709*(A20+6.1)*SQRT(0.995-0.947)*(1-EXP(0.1723*(A20-41.2))))^2)/2.3,0) -> 0.4436194156 | I20: =C20*E20 -> 0.4526836066 | J20: =J19+$I$20 -> 2.452683607 | K20: =K19+$I$20 -> 3.452683607 | L20: 4.452683607 | M20: 5.452683607 | O20: =($C$12-J20)/E20 -> 2.813572611 | P20: =($C$12-K20)/E20 -> 1.709048407 | Q20: =($C$12-L20)/E20 -> 0.6045242035 | R20: =($C$12-M20)/E20 -> -0.5 | T20: =C20*F20 -> 0.5466194218 | U20: =U19+$T$20 -> 1.546619422 | V20: =V19+$T$20 -> 2.546619422 | W20: 3.546619422 | X20: 4.546619422 | Z20: =($C$13-U20)/F20 -> 3.158852796 | AA20: =($C$13-V20)/F20 -> 2.244139597 | AB20: =($C$13-W20)/F20 -> 1.329426398 | AC20: =($C$13-X20)/F20 -> 0.4147131991 | AE20: =C20*G20 -> 0.2218097078 | AF20: =AF19+$AE$20 -> 1.221809708 | AG20: =AG19+$AE$20 -> 2.221809708 | AH20: 3.221809708 | AI20: 4.221809708 | AK20: =($C$14-AF20)/G20 -> 10.77092238 | AL20: =($C$14-AG20)/G20 -> 8.516737905 | AM20: =($C$14-AH20)/G20 -> 6.262553429 | AN20: =($C$14-AI20)/G20 -> 4.008368953 | AP20: =+MIN(AQ20:AS20) -> 2.813572611 | AQ20: =Z20 -> 3.158852796 | AR20: =O20 -> 2.813572611 | AS20: =AK20 -> 10.77092238 | AT20: =MIN(AQ20:AR20) -> 2.813572611 | AV20: =IF(EMCI!F27="A",'1st milking (BR1)'!AP20,IF(EMCI!F27="B",'1st milking (BR1)'!AQ20,IF(EMCI!F27="S",'1st milking (BR1)'!AR20,IF(EMCI!F27="P",'1st milking (BR1)'!AS20,IF(EMCI!F27="FS",'1st milking (BR1)'!AT20,"error"))))) -> 2.813572611

Sheet 1st milking (BR2)
A2: Entry | E2: Milk cooling curve (1st milking) | O2: Entry: | P2: Temp | Q2: Time
P3: =E5 -> 35 | Q3: =F5 -> 0
A4: Milking | B4: 1 | C4: 1 | E4: T | F4: t | P4: =E6 -> 20 | Q4: =F6 -> 0.5
A5: Time | B5: =EMCI!F11/60 -> 0.5 | C5: F | E5: 35 | F5: 0
A6: Milk T | B6: =EMCI!F13 -> 20 | E6: =B6 -> 20 | F6: =B5 -> 0.5
A7: Volume | B7: D | P7: x | Q7: y | R7: xy | S7: xx
P8: =Q3 -> 0 | Q8: =P3 -> 35 | R8: =P8*Q8 -> 0 | S8: =P8*P8 -> 0
G9: Flexible | P9: =Q4 -> 0.5 | Q9: =P4 -> 20 | R9: =P9*Q9 -> 10 | S9: =P9*P9 -> 0.25
A10: Outcome | B10: =IF(OR(B6>35,B6<=25),"out",LOOKUP(B6,A23:A103,B23:B103)) -> out | E10: slope | F10: -8.5 | G10: =P12 -> -30 | O10: sum | P10: =SUM(P8:P9) -> 0.5 | Q10: =SUM(Q8:Q9) -> 55 | R10: 10 | S10: 0.25
E11: intercept | F11: 25 | G11: =P13 -> 35
O12: slope | P12: =(2*R10-P10*Q10)/(2*S10-(P10^2)) -> -30
O13: intercept | P13: =(Q10-P12*P10)/2 -> 35
F14: No (logs) | G14: Nf (logs) | H14: Tmin
E15: S aureus | F15: =EMCI!F19 -> 2 | G15: =EMCI!G19 -> 5 | H15: 5.6
E16: B cereus | F16: =EMCI!F20 -> 1 | G16: =EMCI!G20 -> 5 | H16: 1.5
E17: Pseudo | F17: =EMCI!F21 -> 1 | G17: =EMCI!G21 -> 6 | H17: -6.1
A21: Lookup function | E21: Cooling curve profile | I21: Growth (log/h) during cooling | M21: Growth (log/h) to calc NMTL | Q21: Saureus | R21: Growth acc | T21: Time to NMTL (depending on initial logs) | V21: B cereus | W21: Growth acc | Y21: Time to NMTL (depending on initial logs) | AA21: Pseudo | AB21: Growth acc | AD21: Time to NMTL (depending on initial logs) | AF21: NMTL | AG21: NMTL | AH21: NMTL | AI21: NMTL | AJ21: NMTL | AL21: NMTL
A22: =E22 -> Temp | B22: NMTL | E22: Temp | F22: Time | G22: Time interval | I22: S. aureus | J22: B.cereus | K22: Pseudo | M22: S. aureus | N22: B.cereus | O22: Pseudo | Q22: Growth interval | R22: =F15 -> 2 | T22: =R22 -> 2 | V22: Growth interval | W22: =F16 -> 1 | Y22: =W22 -> 1 | AA22: Growth interval | AB22: =F17 -> 1 | AD22: =AB22 -> 1 | AF22: Shorter of 3 microorganisms | AG22: B. cereus | AH22: S. aureus | AI22: Pseudo | AJ22: Food Safety | AL22: Entry
A23: =E103 -> 15 | B23: =AL103 -> 19.84580296 | E23: =E5 -> 35 | F23: =(E23-$G$11)/$G$10 -> 0 | G23: =F23 -> 0 | I23: =IF(E23>H15,(0.00033*(E23-5.6)*((6.5-2.8)*(1-EXP(0.5*(6.5-9.8)))*(36.7-0.9324)*(1-EXP(0.42*(-5-0.9324)))))^2,0) -> 0.9053672131 | J23: =IF(E23>$H$16,(((0.175*(E23-1.5)*SQRT(0.995-0.92)*(1-EXP(0.4395*(E23-45)))))^2)/2.3,0) -> 1.093238844 | K23: =IF(E23>$H$17,((0.1709*(E23+6.1)*SQRT(0.995-0.947)*(1-EXP(0.1723*(E23-41.2))))^2)/2.3,0) -> 0.4436194156 | M23: =IF(E23>$H$15,(0.00033*(E23-5.6)*((6.5-2.8)*(1-EXP(0.5*(6.5-9.8)))*(36.7-0.9324)*(1-EXP(0.42*(-5-0.9324)))))^2,0) -> 0.9053672131 | N23: =IF(E23>$H$16,(((0.175*(E23-1.5)*SQRT(0.995-0.92)*(1-EXP(0.4395*(E23-45)))))^2)/2.3,0) -> 1.093238844 | O23: =IF(E23>$H$17,((0.1709*(E23+6.1)*SQRT(0.995-0.947)*(1-EXP(0.1723*(E23-41.2))))^2)/2.3,0) -> 0.4436194156 | Q23: =G23*I23 -> 0 | R23: =R22 -> 2 | T23: =($G$15-R23)/M23 -> 3.313572611 | V23: =G23*J23 -> 0 | W23: =W22 -> 1 | Y23: =($G$16-W23)/N23 -> 3.658852796 | AA23: =G23*K23 -> 0 | AB23: =AB22 -> 1 | AD23: =($G$17-AB23)/O23 -> 11.27092238 | AF23: =+MIN(AG23:AI23) -> 3.313572611 | AG23: =Y23 -> 3.658852796 | AH23: =T23 -> 3.313572611 | AI23: =AD23 -> 11.27092238 | AJ23: =MIN(AG23:AH23) -> 3.313572611 | AL23: =IF(EMCI!$F$27="A",$AF23,IF(EMCI!$F$27="B",$AG23,IF(EMCI!$F$27="S",$AH23,IF(EMCI!$F$27="P",$AI23,IF(EMCI!$F$27="FS",$AJ23,"error"))))) -> 3.313572611
A24: =E102 -> 15.25 | B24: =AL102 -> 19.13888885 | E24: =E23-0.25 -> 34.75 | F24: =(E24-$G$11)/$G$10 -> 0.008333333333 | G24: =F24-F23 -> 0.008333333333 | I24: =IF(E24>$H$15,(0.00033*(((E24+E23)/2)-5.6)*((6.5-2.8)*(1-EXP(0.5*(6.5-9.8)))*(36.7-0.9324)*(1-EXP(0.42*(-5-0.9324)))))^2,0) -> 0.8976848786 | J24: =IF(E24>$H$16,(((0.175*(((E24+E23)/2)-1.5)*SQRT(0.995-0.92)*(1-EXP(0.4395*(((E24+E23)/2)-45)))))^2)/2.3,0) -> 1.086545355 | K24: =IF(E24>$H$17,((0.1709*(((E24+E23)/2)+6.1)*SQRT(0.995-0.947)*(1-EXP(0.1723*(((E24+E23)/2)-41.2))))^2)/2.3,0) -> 0.4508159372 | M24: =IF(E24>$H$15,(0.00033*(E24-5.6)*((6.5-2.8)*(1-EXP(0.5*(6.5-9.8)))*(36.7-0.9324)*(1-EXP(0.42*(-5-0.9324)))))^2,0) -> 0.8900352767 | N24: =IF(E24>$H$16,(((0.175*(E24-1.5)*SQRT(0.995-0.92)*(1-EXP(0.4395*(E24-45)))))^2)/2.3,0) -> 1.079784594 | O24: =IF(E24>$H$17,((0.1709*(E24+6.1)*SQRT(0.995-0.947)*(1-EXP(0.1723*(E24-41.2))))^2)/2.3,0) -> 0.4577962738 | Q24: 0.007480707322 | R24: =R23+Q24 -> 2.007480707 | T24: =($G$15-R24)/M24 -> 3.362247959 | V24: 0.009054544622 | W24: =W23+V24 -> 1.009054545 | Y24: =($G$16-W24)/N24 -> 3.696057045 | AA24: 0.003756799477 | AB24: =AB23+AA24 -> 1.003756799 | AD24: =($G$17-AB24)/O24 -> 10.91368254 | AF24: =+MIN(AG24:AI24) -> 3.362247959 | AG24: 3.696057045 | AH24: 3.362247959 | AI24: 10.91368254 | AJ24: =MIN(AG24:AH24) -> 3.362247959 | AL24: =IF(EMCI!$F$27="A",$AF24,IF(EMCI!$F$27="B",$AG24,IF(EMCI!$F$27="S",$AH24,IF(EMCI!$F$27="P",$AI24,IF(EMCI!$F$27="FS",$AJ24,"error"))))) -> 3.362247959
A25: =E101 -> 15.5 | B25: =AL101 -> 18.46965425 | E25: =E24-0.25 -> 34.5 | F25: =(E25-$G$11)/$G$10 -> 0.01666666667 | G25: =F25-F24 -> 0.008333333333 | I25: =IF(E25>$H$15,(0.00033*(((E25+E24)/2)-5.6)*((6.5-2.8)*(1-EXP(0.5*(6.5-9.8)))*(36.7-0.9324)*(1-EXP(0.42*(-5-0.9324)))))^2,0) -> 0.8824184073 | J25: =IF(E25>$H$16,(((0.175*(((E25+E24)/2)-1.5)*SQRT(0.995-0.92)*(1-EXP(0.4395*(((E25+E24)/2)-45)))))^2)/2.3,0) -> 1.072962338 | K25: =IF(E25>$H$17,((0.1709*(((E25+E24)/2)+6.1)*SQRT(0.995-0.947)*(1-EXP(0.1723*(((E25+E24)/2)-41.2))))^2)/2.3,0) -> 0.464560658 | M25: 0.8748342705 | N25: 1.066084031 | O25: 0.4711095974 | Q25: 0.007353486728 | R25: =R24+Q25 -> 2.014834194 | T25: 3.412264364 | V25: 0.008941352814 | W25: =W24+V25 -> 1.017995897 | Y25: 3.735169074 | AA25: 0.003871338816 | AB25: =AB24+AA25 -> 1.007628138 | AD25: 10.59704979 | AF25: 3.412264364 | AG25: 3.735169074 | AH25: 3.412264364 | AI25: 10.59704979 | AJ25: 3.412264364 | AL25: =IF(EMCI!$F$27="A",$AF25,IF(EMCI!$F$27="B",$AG25,IF(EMCI!$F$27="S",$AH25,IF(EMCI!$F$27="P",$AI25,IF(EMCI!$F$27="FS",$AJ25,"error"))))) -> 3.412264364
A26: =E100 -> 15.75 | B26: =AL100 -> 17.83547839 | E26: 34.25 | F26: 0.025 | G26: 0.008333333333 | I26: 0.8672828663 | J26: 1.059154806 | K26: 0.4774438549 | M26: 0.8597641947 | N26: 1.052179499 | O26: 0.4835644294 | Q26: 0.007227357219 | R26: 2.022061551 | T26: 3.463668838 | V26: 0.00882629005 | W26: 1.026822187 | Y26: 3.776140684 | AA26: 0.003978698791 | AB26: 1.011606837 | AD26: 10.31588111 | AF26: 3.463668838 | AG26: 3.776140684 | AH26: 3.463668838 | AI26: 10.31588111 | AJ26: 3.463668838 | AL26: =IF(EMCI!$F$27="A",$AF26,IF(EMCI!$F$27="B",$AG26,IF(EMCI!$F$27="S",$AH26,IF(EMCI!$F$27="P",$AI26,IF(EMCI!$F$27="FS",$AJ26,"error"))))) -> 3.463668838
A27: =E99 -> 16 | B27: =AL99 -> 17.23396449 | E27: 34 | F27: 0.03333333333 | G27: 0.008333333333 | I27: 0.8522782556 | J27: 1.045162666 | K27: 0.4894725377 | M27: 0.8448250491 | N27: 1.038108601 | O27: 0.4951695973 | Q27: 0.007102318797 | R27: 2.02916387 | T27: 3.516510469 | V27: 0.008709688884 | W27: 1.035531876 | Y27: 3.818933895 | AA27: 0.004078937814 | AB27: 1.015685775 | AD27: 10.06587289 | AF27: 3.516510469 | AG27: 3.818933895 | AH27: 3.516510469 | AI27: 10.06587289 | AJ27: 3.516510469 | AL27: =IF(EMCI!$F$27="A",$AF27,IF(EMCI!$F$27="B",$AG27,IF(EMCI!$F$27="S",$AH27,IF(EMCI!$F$27="P",$AI27,IF(EMCI!$F$27="FS",$AJ27,"error"))))) -> 3.516510469
A28: =E98 -> 16.25 | B28: =AL98 -> 16.66291714 | E28: 33.75 | F28: 0.04166666667 | G28: 0.008333333333 | I28: 0.8374045752 | J28: 1.031021348 | K28: 0.5006572107 | M28: 0.8300168338 | N28: 1.023904717 | O28: 0.5059371498 | Q28: 0.00697837146 | R28: 2.036142242 | T28: 3.570840539 | V28: 0.00859184457 | W28: 1.044123721 | Y28: 3.863519928 | AA28: 0.004172143422 | AB28: 1.019857918 | AD28: 9.843400675 | AF28: 3.570840539 | AG28: 3.863519928 | AH28: 3.570840539 | AI28: 9.843400675 | AJ28: 3.570840539 | AL28: =IF(EMCI!$F$27="A",$AF28,IF(EMCI!$F$27="B",$AG28,IF(EMCI!$F$27="S",$AH28,IF(EMCI!$F$27="P",$AI28,IF(EMCI!$F$27="FS",$AJ28,"error"))))) -> 3.570840539
A29: =E97 -> 16.5 | B29: =AL97 -> 16.12032236 | E29: 33.5 | F29: 0.05 | G29: 0.008333333333 | I29: 0.822661825 | J29: 1.016762295 | K29: 0.5110113421 | M29: 0.8153395488 | N29: 1.009597461 | O29: 0.5158818569 | Q29: 0.006855515208 | R29: 2.042997757 | T29: 3.626712635 | V29: 0.008473019126 | W29: 1.05259674 | Y29: 3.909878355 | AA29: 0.004258427851 | AB29: 1.024116346 | AD29: 9.64539378 | AF29: 3.626712635 | AG29: 3.909878355 | AH29: 3.626712635 | AI29: 9.64539378 | AJ29: 3.626712635 | AL29: =IF(EMCI!$F$27="A",$AF29,IF(EMCI!$F$27="B",$AG29,IF(EMCI!$F$27="S",$AH29,IF(EMCI!$F$27="P",$AI29,IF(EMCI!$F$27="FS",$AJ29,"error"))))) -> 3.626712635
A30: =E96 -> 16.75 | B30: =AL96 -> 15.6043299 | E30: 33.25 | F30: 0.05833333333 | G30: 0.008333333333 | I30: 0.8080500051 | J30: 1.002413396 | K30: 0.5205508929 | M30: 0.8007931941 | N30: =IF(E30>$H$16,(((0.175*(E30-1.5)*SQRT(0.995-0.92)*(1-EXP(0.4395*(E30-45)))))^2)/2.3,0) -> 0.9952130968 | O30: =IF(E30>$H$17,((0.1709*(E30+6.1)*SQRT(0.995-0.947)*(1-EXP(0.1723*(E30-41.2))))^2)/2.3,0) -> 0.5250207658 | Q30: 0.006733750043 | R30: 2.049731507 | T30: 3.684182777 | V30: 0.00835344497 | W30: 1.060950185 | Y30: 3.957996361 | AA30: 0.004337924107 | AB30: 1.02845427 | AD30: 9.469236368 | AF30: 3.684182777 | AG30: 3.957996361 | AH30: 3.684182777 | AI30: 9.469236368 | AJ30: 3.684182777 | AL30: =IF(EMCI!$F$27="A",$AF30,IF(EMCI!$F$27="B",$AG30,IF(EMCI!$F$27="S",$AH30,IF(EMCI!$F$27="P",$AI30,IF(EMCI!$F$27="FS",$AJ30,"error"))))) -> 3.684182777
A31: =E95 -> 17 | B31: =AL95 -> 15.11323751 | E31: 33 | F31: 0.06666666667 | G31: 0.008333333333 | I31: 0.7935691155 | J31: 0.9879993824 | K31: 0.5292938978 | M31: 0.7863777696 | N31: 0.9807749081 | O31: 0.5333728063 | Q31: 0.006613075963 | R31: 2.056344583 | T31: 3.743309553 | V31: 0.008233328186 | W31: 1.069183513 | Y31: 4.00786812 | AA31: 0.004410782482 | AB31: 1.032865053 | AD31: 9.312688777 | AF31: 3.743309553 | AG31: 4.00786812 | AH31: 3.743309553 | AI31: 9.312688777 | AJ31: 3.743309553 | AL31: =IF(EMCI!$F$27="A",$AF31,IF(EMCI!$F$27="B",$AG31,IF(EMCI!$F$27="S",$AH31,IF(EMCI!$F$27="P",$AI31,IF(EMCI!$F$27="FS",$AJ31,"error"))))) -> 3.743309553
A32: =E94 -> 17.25 | B32: =AL94 -> 14.64547698 | E32: 32.75 | F32: 0.075 | G32: 0.008333333333 | I32: 0.7792191562 | J32: 0.9735421731 | K32: 0.5372600946 | M32: 0.7720932755 | N32: 0.9663035296 | O32: 0.5409584421 | Q32: 0.006493492969 | R32: 2.062838076 | T32: 3.804154262 | V32: 0.008112851443 | W32: 1.077296365 | Y32: 4.059494264 | AA32: 0.004477167455 | AB32: 1.03734222 | AD32: 9.173824445 | AF32: 3.804154262 | AG32: 4.059494264 | AH32: 3.804154262 | AI32: 9.173824445 | AJ32: 3.804154262 | AL32: =IF(EMCI!$F$27="A",$AF32,IF(EMCI!$F$27="B",$AG32,IF(EMCI!$F$27="S",$AH32,IF(EMCI!$F$27="P",$AI32,IF(EMCI!$F$27="FS",$AJ32,"error"))))) -> 3.804154262
A33: =E93 -> 17.5 | B33: =AL93 -> 14.19960167 | E33: 32.5 | F33: 0.08333333333 | G33: 0.008333333333 | I33: 0.7650001272 | J33: 0.9590611914 | K33: 0.544470596 | M33: 0.7579397116 | N33: 0.951817242 | O33: 0.5477993626 | Q33: 0.00637500106 | R33: 2.069213077 | T33: 3.866781062 | V33: 0.007992176595 | W33: 1.085288541 | Y33: 4.112881429 | AA33: 0.004537254966 | AB33: 1.041879475 | AD33: 9.050978995 | AF33: 3.866781062 | AG33: 4.112881429 | AH33: 3.866781062 | AI33: 9.050978995 | AJ33: 3.866781062 | AL33: =IF(EMCI!$F$27="A",$AF33,IF(EMCI!$F$27="B",$AG33,IF(EMCI!$F$27="S",$AH33,IF(EMCI!$F$27="P",$AI33,IF(EMCI!$F$27="FS",$AJ33,"error"))))) -> 3.866781062
A34: =E92 -> 17.75 | B34: =AL92 -> 13.77427535 | E34: 32.25 | F34: 0.09166666667 | G34: 0.008333333333 | I34: 0.7509120285 | J34: 0.9445736419 | K34: 0.5509476002 | M34: 0.743917078 | N34: 0.9373322361 | O34: 0.5539182112 | Q34: 0.006257600238 | R34: 2.075470677 | T34: 3.931257138 | V34: 0.007871447016 | W34: 1.093159988 | Y34: 4.168041876 | AA34: 0.004591230001 | AB34: 1.046470705 | AD34: 8.94270886 | AF34: 3.931257138 | AG34: 4.168041876 | AH34: 3.931257138 | AI34: 8.94270886 | AJ34: 3.931257138 | AL34: =IF(EMCI!$F$27="A",$AF34,IF(EMCI!$F$27="B",$AG34,IF(EMCI!$F$27="S",$AH34,IF(EMCI!$F$27="P",$AI34,IF(EMCI!$F$27="FS",$AJ34,"error"))))) -> 3.931257138
A35: =E91 -> 18 | B35: =AL91 -> 13.36826228 | E35: 32 | F35: 0.1 | G35: 0.008333333333 | I35: 0.7369548601 | J35: 0.9300947603 | K35: 0.556714136 | M35: 0.7300253747 | N35: 0.9228628478 | O35: 0.5593383462 | Q35: 0.006141290501 | R35: 2.081611968 | T35: 3.997652867 | V35: 0.007750789669 | W35: 1.100910778 | Y35: 4.224993163 | AA35: 0.004639284467 | AB35: 1.05110999 | AD35: 8.847757433 | AF35: 3.997652867 | AG35: 4.224993163 | AH35: 3.997652867 | AI35: 8.847757433 | AJ35: 3.997652867 | AL35: =IF(EMCI!$F$27="A",$AF35,IF(EMCI!$F$27="B",$AG35,IF(EMCI!$F$27="S",$AH35,IF(EMCI!$F$27="P",$AI35,IF(EMCI!$F$27="FS",$AJ35,"error"))))) -> 3.997652867
A36: =E90 -> 18.25 | B36: =AL90 -> 12.98041827 | E36: 31.75 | F36: 0.1083333333 | G36: 0.008333333333 | I36: 0.7231286219 | J36: 0.9156380349 | K36: 0.5617938391 | M36: 0.7162646017 | N36: 0.9084217671 | O36: 0.5640836318 | Q36: 0.006026071849 | R36: 2.087638039 | T36: 4.06604201 | V36: 0.007630316958 | W36: 1.108541095 | Y36: 4.283757882 | AA36: 0.004681615326 | AB36: 1.055791605 | AD36: 8.765027234 | AF36: 4.06604201 | AG36: 4.283757882 | AH36: 4.06604201 | AI36: 8.765027234 | AJ36: 4.06604201 | AL36: =IF(EMCI!$F$27="A",$AF36,IF(EMCI!$F$27="B",$AG36,IF(EMCI!$F$27="S",$AH36,IF(EMCI!$F$27="P",$AI36,IF(EMCI!$F$27="FS",$AJ36,"error"))))) -> 4.06604201
A37: =E89 -> 18.5 | B37: =AL89 -> 12.60968263 | E37: 31.5 | F37: 0.1166666667 | G37: 0.008333333333 | I37: 0.709433314 | J37: 0.9012154041 | K37: 0.5662107563 | M37: 0.702634759 | N37: 0.8940202248 | O37: 0.5681782545 | Q37: 0.005911944284 | R37: 2.093549984 | T37: 4.136501901 | V37: 0.007510128368 | W37: 1.116051223 | Y37: 4.344363437 | AA37: 0.004718422969 | AB37: 1.060510028 | AD37: 8.693556877 | AF37: 4.136501901 | AG37: 4.344363437 | AH37: 4.136501901 | AI37: 8.693556877 | AJ37: 4.136501901 | AL37: =IF(EMCI!$F$27="A",$AF37,IF(EMCI!$F$27="B",$AG37,IF(EMCI!$F$27="S",$AH37,IF(EMCI!$F$27="P",$AI37,IF(EMCI!$F$27="FS",$AJ37,"error"))))) -> 4.136501901
A38: =E88 -> 18.75 | B38: =AL88 -> 12.25507101 | E38: 31.25 | F38: 0.125 | G38: 0.008333333333 | I38: 0.6958689364 | J38: 0.8868374322 | K38: 0.5699891741 | M38: 0.6891358465 | N38: 0.8796681576 | O38: 0.5716465639 | Q38: 0.005798907804 | R38: 2.099348891 | T38: 4.209113665 | V38: 0.007390311935 | W38: 1.123441535 | Y38: 4.406841866 | AA38: 0.004749909784 | AB38: 1.065259938 | AD38: 8.632501923 | AF38: 4.209113665 | AG38: 4.406841866 | AH38: 4.209113665 | AI38: 8.632501923 | AJ38: 4.209113665 | AL38: =IF(EMCI!$F$27="A",$AF38,IF(EMCI!$F$27="B",$AG38,IF(EMCI!$F$27="S",$AH38,IF(EMCI!$F$27="P",$AI38,IF(EMCI!$F$27="FS",$AJ38,"error"))))) -> 4.209113665
A39: =E87 -> 19 | B39: =AL87 -> 11.91566888 | E39: 31 | F39: 0.1333333333 | G39: 0.008333333333 | I39: 0.6824354891 | J39: 0.8725134652 | K39: 0.5731534706 | M39: 0.6757678644 | N39: 0.8653743556 | O39: 0.5745129345 | Q39: 0.00568696241 | R39: 2.105035854 | T39: 4.283962436 | V39: 0.007270945543 | W39: 1.130712481 | Y39: 4.471229698 | AA39: 0.004776278922 | AB39: 1.070036217 | AD39: 8.58111887 | AF39: 4.283962436 | AG39: 4.471229698 | AH39: 4.283962436 | AI39: 8.58111887 | AJ39: 4.283962436 | AL39: =IF(EMCI!$F$27="A",$AF39,IF(EMCI!$F$27="B",$AG39,IF(EMCI!$F$27="S",$AH39,IF(EMCI!$F$27="P",$AI39,IF(EMCI!$F$27="FS",$AJ39,"error"))))) -> 4.283962436
A40: =E86 -> 19.25 | B40: =AL86 -> 11.59062569 | E40: 30.75 | F40: 0.1416666667 | G40: 0.008333333333 | I40: 0.6691329721 | J40: 0.85825177 | K40: 0.5757279867 | M40: 0.6625308125 | N40: 0.8511465931 | O40: 0.5768016458 | Q40: 0.005576108101 | R40: 2.110611962 | T40: 4.361137601 | V40: 0.007152098083 | W40: 1.137864579 | Y40: 4.537567855 | AA40: 0.004797733222 | AB40: 1.07483395 | AD40: 8.538751729 | AF40: 4.361137601 | AG40: 4.537567855 | AH40: 4.361137601 | AI40: 8.538751729 | AJ40: 4.361137601 | AL40: =IF(EMCI!$F$27="A",$AF40,IF(EMCI!$F$27="B",$AG40,IF(EMCI!$F$27="S",$AH40,IF(EMCI!$F$27="P",$AI40,IF(EMCI!$F$27="FS",$AJ40,"error"))))) -> 4.361137601
A41: =E85 -> 19.5 | B41: =AL85 -> 11.27914956 | E41: 30.5 | F41: 0.15 | G41: 0.008333333333 | I41: 0.6559613854 | J41: 0.8440596572 | K41: 0.5777369151 | M41: 0.6494246909 | N41: 0.8369917445 | O41: 0.5785367802 | Q41: 0.005466344878 | R41: 2.116078307 | T41: 4.440733057 | V41: 0.007033830476 | W41: 1.144898409 | Y41: 4.605901571 | AA41: 0.004814474293 | AB41: 1.079648424 | AD41: 8.504820687 | AF41: 4.440733057 | AG41: 4.605901571 | AH41: 4.440733057 | AI41: 8.504820687 | AJ41: 4.440733057 | AL41: =IF(EMCI!$F$27="A",$AF41,IF(EMCI!$F$27="B",$AG41,IF(EMCI!$F$27="S",$AH41,IF(EMCI!$F$27="P",$AI41,IF(EMCI!$F$27="FS",$AJ41,"error"))))) -> 4.440733057
A42: =E84 -> 19.75 | B42: =AL84 -> 10.9805025 | E42: 30.25 | F42: 0.1583333333 | G42: 0.008333333333 | I42: 0.642920729 | J42: 0.8299435907 | K42: 0.5792042059 | M42: 0.6364494996 | N42: 0.8229158873 | O42: 0.579742135 | Q42: 0.005357672741 | R42: 2.12143598 | T42: 4.522847488 | V42: 0.006916196589 | W42: 1.151814606 | Y42: 4.676280351 | AA42: 0.004826701716 | AB42: 1.084475126 | AD42: 8.478812523 | AF42: 4.522847488 | AG42: 4.676280351 | AH42: 4.522847488 | AI42: 8.478812523 | AJ42: 4.522847488 | AL42: =IF(EMCI!$F$27="A",$AF42,IF(EMCI!$F$27="B",$AG42,IF(EMCI!$F$27="S",$AH42,IF(EMCI!$F$27="P",$AI42,IF(EMCI!$F$27="FS",$AJ42,"error"))))) -> 4.522847488
A43: =E83 -> 20 | B43: =AL83 -> 10.6939961 | E43: 30 | F43: 0.1666666667 | G43: 0.008333333333 | I43: 0.6300110028 | J43: 0.8159092846 | K43: 0.5801534853 | M43: 0.6236052386 | N43: 0.8089243939 | O43: 0.5804411486 | Q43: 0.00525009169 | R43: 2.126686071 | T43: 4.607584656 | V43: 0.006799244039 | W43: 1.15861385 | Y43: 4.748757954 | AA43: 0.004834612378 | AB43: 1.089309738 | AD43: 8.460272456 | AF43: 4.607584656 | AG43: 4.748757954 | AH43: 4.607584656 | AI43: 8.460272456 | AJ43: 4.607584656 | AL43: =IF(EMCI!$F$27="A",$AF43,IF(EMCI!$F$27="B",$AG43,IF(EMCI!$F$27="S",$AH43,IF(EMCI!$F$27="P",$AI43,IF(EMCI!$F$27="FS",$AJ43,"error"))))) -> 4.607584656
A44: =E82 -> 20.25 | B44: =AL82 -> 10.41898753 | E44: 29.75 | F44: 0.175 | G44: 0.008333333333 | I44: 0.6172322069 | J44: 0.8019617897 | K44: 0.5806079881 | M44: 0.6108919078 | N44: 0.7950220122 | O44: 0.5806568377 | Q44: 0.005143601724 | R44: 2.131829673 | T44: 4.695053724 | V44: 0.006683014914 | W44: 1.165296865 | Y44: 4.823392405 | AA44: 0.004838399901 | AB44: 1.094148138 | AD44: 8.448797195 | AF44: 4.695053724 | AG44: 4.823392405 | AH44: 4.695053724 | AI44: 8.448797195 | AJ44: 4.695053724 | AL44: =IF(EMCI!$F$27="A",$AF44,IF(EMCI!$F$27="B",$AG44,IF(EMCI!$F$27="S",$AH44,IF(EMCI!$F$27="P",$AI44,IF(EMCI!$F$27="FS",$AJ44,"error"))))) -> 4.695053724
A45: =E81 -> 20.5 | B45: =AL81 -> 10.15487604 | E45: 29.5 | F45: 0.1833333333 | G45: 0.008333333333 | I45: 0.6045843413 | J45: 0.7881055691 | K45: 0.5805905002 | M45: 0.5983095074 | N45: 0.7812129377 | O45: 0.580411746 | Q45: 0.005038202845 | R45: 2.136867876 | T45: 4.785369593 | V45: 0.006567546409 | W45: 1.171864411 | Y45: 4.90024602 | AA45: 0.004838254168 | AB45: 1.098986392 | AD45: 8.444028987 | AF45: 4.785369593 | AG45: 4.90024602 | AH45: 4.785369593 | AI45: 8.444028987 | AJ45: 4.785369593 | AL45: =IF(EMCI!$F$27="A",$AF45,IF(EMCI!$F$27="B",$AG45,IF(EMCI!$F$27="S",$AH45,IF(EMCI!$F$27="P",$AI45,IF(EMCI!$F$27="FS",$AJ45,"error"))))) -> 4.785369593
A46: =E80 -> 20.75 | B46: =AL80 -> 9.901099665 | E46: 29.25 | F46: 0.1916666667 | G46: 0.008333333333 | I46: 0.592067406 | J46: 0.7743445666 | K46: 0.5801233122 | M46: 0.5858580372 | N46: 0.7675008773 | O46: 0.5797279015 | Q46: 0.00493389505 | R46: 2.141801771 | T46: 4.87865327 | V46: 0.006452871388 | W46: 1.178317283 | Y46: 4.979385471 | AA46: 0.004834360935 | AB46: 1.103820753 | AD46: 8.44565051 | AF46: 4.87865327 | AG46: 4.979385471 | AH46: 4.87865327 | AI46: 8.44565051 | AJ46: 4.87865327 | AL46: =IF(EMCI!$F$27="A",$AF46,IF(EMCI!$F$27="B",$AG46,IF(EMCI!$F$27="S",$AH46,IF(EMCI!$F$27="P",$AI46,IF(EMCI!$F$27="FS",$AJ46,"error"))))) -> 4.87865327
A47: =E79 -> 21 | B47: =AL79 -> 9.657132279 | E47: 29 | F47: 0.2 | G47: 0.008333333333 | I47: 0.579681401 | J47: 0.7606822661 | K47: 0.5792281811 | M47: 0.5735374974 | N47: 0.7538891053 | O47: 0.5786267823 | Q47: 0.004830678342 | R47: 2.146632449 | T47: 4.975032258 | V47: 0.006339018884 | W47: 1.184656302 | Y47: 5.060881861 | AA47: 0.004826901509 | AB47: 1.108647655 | AD47: 8.453380477 | AF47: 4.975032258 | AG47: 5.060881861 | AH47: 4.975032258 | AI47: 8.453380477 | AJ47: 4.975032258 | AL47: =IF(EMCI!$F$27="A",$AF47,IF(EMCI!$F$27="B",$AG47,IF(EMCI!$F$27="S",$AH47,IF(EMCI!$F$27="P",$AI47,IF(EMCI!$F$27="FS",$AJ47,"error"))))) -> 4.975032258
A48: =E78 -> 21.25 | B48: =AL78 -> 9.422480888 | E48: 28.75 | F48: 0.2083333333 | G48: 0.008333333333 | I48: 0.5674263263 | J48: 0.747121745 | K48: 0.5779262996 | M48: 0.5613478878 | N48: 0.740380514 | O48: 0.57712929 | Q48: 0.004728552719 | R48: 2.151361002 | T48: 5.074640985 | V48: 0.006226014542 | W48: 1.190882316 | Y48: 5.144810826 | AA48: 0.004816052497 | AB48: 1.113463707 | AD48: 8.46696984 | AF48: 5.074640985 | AG48: 5.144810826 | AH48: 5.074640985 | AI48: 8.46696984 | AJ48: 5.074640985 | AL48: =IF(EMCI!$F$27="A",$AF48,IF(EMCI!$F$27="B",$AG48,IF(EMCI!$F$27="S",$AH48,IF(EMCI!$F$27="P",$AI48,IF(EMCI!$F$27="FS",$AJ48,"error"))))) -> 5.074640985
A49: =E77 -> 21.5 | B49: =AL77 -> 9.196683173 | E49: 28.5 | F49: 0.2166666667 | G49: 0.008333333333 | I49: 0.5553021818 | J49: 0.7336657213 | K49: 0.5762382729 | M49: 0.5492892085 | N49: 0.7269776573 | O49: 0.5752557291 | Q49: 0.004627518182 | R49: 2.15598852 | T49: 5.177621253 | V49: 0.006113881011 | W49: 1.196996197 | Y49: 5.231252659 | AA49: 0.004801985607 | AB49: 1.118265693 | AD49: 8.486198504 | AF49: 5.177621253 | AG49: 5.231252659 | AH49: 5.177621253 | AI49: 8.486198504 | AJ49: 5.177621253 | AL49: =IF(EMCI!$F$27="A",$AF49,IF(EMCI!$F$27="B",$AG49,IF(EMCI!$F$27="S",$AH49,IF(EMCI!$F$27="P",$AI49,IF(EMCI!$F$27="FS",$AJ49,"error"))))) -> 5.177621253
A50: =E76 -> 21.75 | B50: =AL76 -> 8.979305231 | E50: 28.25 | F50: 0.225 | G50: 0.008333333333 | I50: 0.5433089677 | J50: 0.7203165949 | K50: 0.5741841009 | M50: 0.5373614595 | N50: 0.7136827905 | O50: 0.5730257919 | Q50: 0.004527574731 | R50: 2.160516095 | T50: 5.284122735 | V50: 0.006002638291 | W50: 1.202998835 | Y50: 5.320292454 | AA50: 0.004784867508 | AB50: 1.12305056 | AD50: 8.510872475 | AF50: 5.284122735 | AG50: 5.320292454 | AH50: 5.284122735 | AI50: 8.510872475 | AJ50: 5.284122735 | AL50: =IF(EMCI!$F$27="A",$AF50,IF(EMCI!$F$27="B",$AG50,IF(EMCI!$F$27="S",$AH50,IF(EMCI!$F$27="P",$AI50,IF(EMCI!$F$27="FS",$AJ50,"error"))))) -> 5.284122735
A51: =E75 -> 22 | B51: =AL75 -> 8.769939523 | E51: 28 | F51: 0.2333333333 | G51: 0.008333333333 | I51: 0.5314466838 | J51: 0.7070764849 | K51: 0.5717831662 | M51: 0.5255646407 | N51: 0.7004979046 | O51: 0.5704585491 | Q51: 0.004428722365 | R51: 2.164944817 | T51: 5.394303503 | V51: 0.005892304041 | W51: 1.208891139 | Y51: 5.412020273 | AA51: 0.004764859719 | AB51: 1.12781542 | AD51: 8.540821392 | AF51: 5.394303503 | AG51: 5.412020273 | AH51: 5.394303503 | AI51: 8.540821392 | AJ51: 5.394303503 | AL51: =IF(EMCI!$F$27="A",$AF51,IF(EMCI!$F$27="B",$AG51,IF(EMCI!$F$27="S",$AH51,IF(EMCI!$F$27="P",$AI51,IF(EMCI!$F$27="FS",$AJ51,"error"))))) -> 5.394303503
A52: =E74 -> 22.25 | B52: =AL74 -> 8.568202978 | E52: 27.75 | F52: 0.2416666667 | G52: 0.008333333333 | I52: 0.5197153302 | J52: 0.693947262 | K52: 0.5690542263 | M52: 0.5138987523 | N52: 0.687424757 | O52: 0.5675724442 | Q52: 0.004330961085 | R52: 2.169275778 | T52: 5.508330598 | V52: 0.00578289385 | W52: 1.214674033 | Y52: 5.506531338 | AA52: 0.004742118553 | AB52: 1.132557539 | AD52: 8.575896366 | AF52: 5.506531338 | AG52: 5.506531338 | AH52: 5.508330598 | AI52: 8.575896366 | AJ52: 5.506531338 | AL52: =IF(EMCI!$F$27="A",$AF52,IF(EMCI!$F$27="B",$AG52,IF(EMCI!$F$27="S",$AH52,IF(EMCI!$F$27="P",$AI52,IF(EMCI!$F$27="FS",$AJ52,"error"))))) -> 5.506531338
A53: =E73 -> 22.5 | B53: =AL73 -> 8.373735269 | E53: 27.5 | F53: 0.25 | G53: =F53-F52 -> 0.008333333333 | I53: 0.5081149069 | J53: 0.6809305772 | K53: 0.5660154098 | M53: 0.5023637941 | N53: 0.6744648989 | O53: 0.564385291 | Q53: 0.004234290891 | R53: 2.173510069 | T53: 5.62638065 | V53: 0.005674421477 | W53: 1.220348455 | Y53: 5.60392624 | AA53: 0.004716795082 | AB53: 1.137274334 | AD53: 8.615968105 | AF53: 5.60392624 | AG53: 5.60392624 | AH53: 5.62638065 | AI53: 8.615968105 | AJ53: 5.60392624 | AL53: =IF(EMCI!$F$27="A",$AF53,IF(EMCI!$F$27="B",$AG53,IF(EMCI!$F$27="S",$AH53,IF(EMCI!$F$27="P",$AI53,IF(EMCI!$F$27="FS",$AJ53,"error"))))) -> 5.60392624
A54: =E72 -> 22.75 | B54: =AL72 -> 8.186197223 | E54: =E53-0.25 -> 27.25 | F54: 0.2583333333 | G54: 0.008333333333 | I54: 0.4966454139 | J54: 0.6680278878 | K54: 0.5626842165 | M54: 0.4909597663 | N54: 0.6616196993 | O54: 0.5609142758 | Q54: 0.004138711783 | R54: =R53+Q54 -> 2.177648781 | T54: 5.748640547 | V54: 0.005566899065 | W54: =W53+V54 -> 1.225915354 | Y54: 5.704311177 | AA54: 0.004689035137 | AB54: =AB53+AA54 -> 1.141963369 | AD54: 8.660925279 | AF54: 5.704311177 | AG54: 5.704311177 | AH54: 5.748640547 | AI54: 8.660925279 | AJ54: 5.704311177 | AL54: =IF(EMCI!$F$27="A",$AF54,IF(EMCI!$F$27="B",$AG54,IF(EMCI!$F$27="S",$AH54,IF(EMCI!$F$27="P",$AI54,IF(EMCI!$F$27="FS",$AJ54,"error"))))) -> 5.704311177
A55: =E71 -> 23 | B55: =AL71 -> 8.005269364 | E55: 27 | F55: 0.2666666667 | G55: 0.008333333333 | I55: 0.4853068512 | J55: 0.6552404797 | K55: 0.55907752 | M55: 0.4796866687 | N55: 0.648890366 | O55: 0.5571759611 | Q55: =G55*I55 -> 0.00404422376 | R55: 2.181693005 | T55: 5.875308153 | V55: =G55*J55 -> 0.005460337331 | W55: =W54+V55 -> 1.231375691 | Y55: 5.807798214 | AA55: =G55*K55 -> 0.004658979333 | AB55: =AB54+AA55 -> 1.146622348 | AD55: 8.710673092 | AF55: 5.807798214 | AG55: =Y55 -> 5.807798214 | AH55: =T55 -> 5.875308153 | AI55: =AD55 -> 8.710673092 | AJ55: 5.807798214 | AL55: =IF(EMCI!$F$27="A",$AF55,IF(EMCI!$F$27="B",$AG55,IF(EMCI!$F$27="S",$AH55,IF(EMCI!$F$27="P",$AI55,IF(EMCI!$F$27="FS",$AJ55,"error"))))) -> 5.807798214
A56: =E70 -> 23.25 | B56: =AL70 -> 7.83065057 | E56: 26.75 | F56: 0.275 | G56: 0.008333333333 | I56: 0.4740992187 | J56: 0.6425694873 | K56: 0.5552115732 | M56: 0.4685445014 | N56: 0.6362779646 | O56: 0.5531862922 | Q56: 0.003950826823 | R56: 2.185643832 | T56: 6.006593099 | V56: 0.005354745728 | W56: 1.236730437 | Y56: 5.914505566 | AA56: 0.00462676311 | AB56: 1.151249111 | AD56: 8.765132031 | AF56: 5.914505566 | AG56: 5.914505566 | AH56: 6.006593099 | AI56: 8.765132031 | AJ56: 5.914505566 | AL56: =IF(EMCI!$F$27="A",$AF56,IF(EMCI!$F$27="B",$AG56,IF(EMCI!$F$27="S",$AH56,IF(EMCI!$F$27="P",$AI56,IF(EMCI!$F$27="FS",$AJ56,"error"))))) -> 5.914505566
A57: =E69 -> 23.5 | B57: =AL69 -> 7.662056844 | E57: 26.5 | F57: 0.2833333333 | G57: 0.008333333333 | I57: 0.4630225166 | J57: 0.6300159116 | K57: 0.5511020161 | M57: 0.4575332643 | N57: 0.623783435 | O57: 0.5489606058 | Q57: 0.003858520971 | R57: 2.189502353 | T57: 6.142717626 | V57: 0.005250132596 | W57: 1.241980569 | Y57: 6.024557915 | AA57: 0.004592516801 | AB57: 1.155841628 | AD57: 8.824236786 | AF57: 6.024557915 | AG57: 6.024557915 | AH57: 6.142717626 | AI57: 8.824236786 | AJ57: 6.024557915 | AL57: =IF(EMCI!$F$27="A",$AF57,IF(EMCI!$F$27="B",$AG57,IF(EMCI!$F$27="S",$AH57,IF(EMCI!$F$27="P",$AI57,IF(EMCI!$F$27="FS",$AJ57,"error"))))) -> 6.024557915
A58: =E68 -> 23.75 | B58: =AL68 -> 7.499220173 | E58: 26.25 | F58: 0.2916666667 | G58: 0.008333333333 | I58: 0.4520767447 | J58: 0.6175806352 | K58: 0.5467638849 | M58: 0.4466529576 | N58: 0.6114076063 | O58: 0.5445136405 | Q58: 0.003767306206 | R58: 2.193269659 | T58: 6.28391751 | V58: 0.005146505293 | W58: 1.247127075 | Y58: 6.138086747 | AA58: 0.004556365708 | AB58: 1.160397994 | AD58: 8.887935299 | AF58: 6.138086747 | AG58: 6.138086747 | AH58: 6.28391751 | AI58: 8.887935299 | AJ58: 6.138086747 | AL58: =IF(EMCI!$F$27="A",$AF58,IF(EMCI!$F$27="B",$AG58,IF(EMCI!$F$27="S",$AH58,IF(EMCI!$F$27="P",$AI58,IF(EMCI!$F$27="FS",$AJ58,"error"))))) -> 6.138086747
A59: =E67 -> 24 | B59: =AL67 -> 7.341887485 | E59: 26 | F59: 0.3 | G59: 0.008333333333 | I59: 0.4412619031 | J59: 0.6052644368 | K59: 0.5422116233 | M59: 0.4359035812 | N59: 0.5991512096 | O59: 0.5398595481 | Q59: 0.003677182526 | R59: 2.196946841 | T59: 6.430443061 | V59: 0.005043870307 | W59: 1.252170945 | Y59: 6.255230724 | AA59: 0.004518430194 | AB59: 1.164916424 | AD59: 8.956187944 | AF59: 6.255230724 | AG59: 6.255230724 | AH59: 6.430443061 | AI59: 8.956187944 | AJ59: 6.255230724 | AL59: =IF(EMCI!$F$27="A",$AF59,IF(EMCI!$F$27="B",$AG59,IF(EMCI!$F$27="S",$AH59,IF(EMCI!$F$27="P",$AI59,IF(EMCI!$F$27="FS",$AJ59,"error"))))) -> 6.255230724
A60: =E66 -> 24.25 | B60: =AL66 -> 7.189819682 | E60: 25.75 | F60: 0.3083333333 | G60: 0.008333333333 | I60: 0.4305779918 | J60: 0.5930680028 | K60: 0.5374590945 | M60: 0.425285135 | N60: 0.5870148896 | O60: 0.5350119068 | Q60: 0.003588149932 | R60: 2.200534991 | T60: 6.582560213 | V60: 0.004942233357 | W60: 1.257113178 | Y60: 6.376136088 | AA60: 0.004478825787 | AB60: 1.16939525 | AD60: 9.028966811 | AF60: 6.376136088 | AG60: 6.376136088 | AH60: 6.582560213 | AI60: 9.028966811 | AJ60: 6.376136088 | AL60: =IF(EMCI!$F$27="A",$AF60,IF(EMCI!$F$27="B",$AG60,IF(EMCI!$F$27="S",$AH60,IF(EMCI!$F$27="P",$AI60,IF(EMCI!$F$27="FS",$AJ60,"error"))))) -> 6.376136088
A61: =E65 -> 24.5 | B61: =AL65 -> 7.042790751 | E61: 25.5 | F61: 0.3166666667 | G61: 0.008333333333 | I61: 0.4200250108 | J61: 0.5809919386 | K61: 0.5325195951 | M61: 0.4147976191 | N61: 0.5749992145 | O61: 0.529983735 | Q61: 0.003500208423 | R61: 2.2040352 | T61: 6.740551709 | V61: 0.004841599489 | W61: 1.261954778 | Y61: 6.500957093 | AA61: 0.004437663292 | AB61: 1.173832913 | AD61: 9.106255095 | AF61: 6.500957093 | AG61: 6.500957093 | AH61: 6.740551709 | AI61: 9.106255095 | AJ61: 6.500957093 | AL61: =IF(EMCI!$F$27="A",$AF61,IF(EMCI!$F$27="B",$AG61,IF(EMCI!$F$27="S",$AH61,IF(EMCI!$F$27="P",$AI61,IF(EMCI!$F$27="FS",$AJ61,"error"))))) -> 6.500957093
A62: =E64 -> 24.75 | B62: =AL64 -> 6.90058694 | E62: 25.25 | F62: 0.325 | G62: 0.008333333333 | I62: 0.4096029601 | J62: 0.5690367778 | K62: 0.5274058688 | M62: 0.4044410335 | N62: 0.5631046854 | O62: 0.5247875056 | Q62: 0.003413358 | R62: 2.207448558 | T62: 6.904718391 | V62: 0.004741973148 | W62: 1.266696751 | Y62: 6.629856483 | AA62: 0.004395048907 | AB62: 1.178227962 | AD62: 9.188046565 | AF62: 6.629856483 | AG62: 6.629856483 | AH62: 6.904718391 | AI62: 9.188046565 | AJ62: 6.629856483 | AL62: =IF(EMCI!$F$27="A",$AF62,IF(EMCI!$F$27="B",$AG62,IF(EMCI!$F$27="S",$AH62,IF(EMCI!$F$27="P",$AI62,IF(EMCI!$F$27="FS",$AJ62,"error"))))) -> 6.629856483
A63: =E63 -> 25 | B63: =AL63 -> 6.763006 | E63: 25 | F63: 0.3333333333 | G63: 0.008333333333 | I63: 0.3993118396 | J63: 0.5572029906 | K63: 0.5221301218 | M63: 0.3942153782 | N63: 0.5513317437 | O63: 0.5194351615 | Q63: 0.003327598663 | R63: 2.210776156 | T63: 7.075380611 | V63: 0.004643358255 | W63: 1.271340109 | Y63: 6.763006 | AA63: 0.004351084348 | AB63: 1.182579046 | AD63: 9.274345116 | AF63: 6.763006 | AG63: 6.763006 | AH63: 7.075380611 | AI63: 9.274345116 | AJ63: 6.763006 | AL63: =IF(EMCI!$F$27="A",$AF63,IF(EMCI!$F$27="B",$AG63,IF(EMCI!$F$27="S",$AH63,IF(EMCI!$F$27="P",$AI63,IF(EMCI!$F$27="FS",$AJ63,"error"))))) -> 6.763006
A64: =E62 -> 25.25 | B64: =AL62 -> 6.629856483 | E64: 24.75 | F64: 0.3416666667 | G64: 0.008333333333 | I64: 0.3891516494 | J64: 0.5454909916 | K64: 0.5167040375 | M64: 0.3841206532 | N64: 0.5396807786 | O64: 0.5139381312 | Q64: 0.003242930412 | R64: 2.214019087 | T64: 7.252879766 | V64: 0.004545758264 | W64: 1.275885868 | Y64: 6.90058694 | AA64: 0.004305866979 | AB64: 1.186884913 | AD64: 9.365164394 | AF64: 6.90058694 | AG64: 6.90058694 | AH64: 7.252879766 | AI64: 9.365164394 | AJ64: 6.90058694 | AL64: =IF(EMCI!$F$27="A",$AF64,IF(EMCI!$F$27="B",$AG64,IF(EMCI!$F$27="S",$AH64,IF(EMCI!$F$27="P",$AI64,IF(EMCI!$F$27="FS",$AJ64,"error"))))) -> 6.90058694
A65: =E61 -> 25.5 | B65: =AL61 -> 6.500957093 | E65: 24.5 | F65: 0.35 | G65: 0.008333333333 | I65: 0.3791223896 | J65: 0.533901146 | K65: 0.5111387932 | M65: 0.3741568585 | N65: 0.5281521328 | O65: 0.5083073442 | Q65: 0.003159353246 | R65: 2.21717844 | T65: 7.43757998 | V65: 0.004449176217 | W65: 1.280335044 | Y65: 7.042790751 | AA65: 0.004259489943 | AB65: 1.191144403 | AD65: 9.460527477 | AF65: 7.042790751 | AG65: 7.042790751 | AH65: 7.43757998 | AI65: 9.460527477 | AJ65: 7.042790751 | AL65: =IF(EMCI!$F$27="A",$AF65,IF(EMCI!$F$27="B",$AG65,IF(EMCI!$F$27="S",$AH65,IF(EMCI!$F$27="P",$AI65,IF(EMCI!$F$27="FS",$AJ65,"error"))))) -> 7.042790751
A66: =E60 -> 25.75 | B66: =AL60 -> 6.376136088 | E66: 24.25 | F66: 0.3583333333 | G66: 0.008333333333 | I66: 0.36922406 | J66: 0.5224337756 | K66: 0.5054450752 | M66: 0.364323994 | N66: 0.5167461085 | O66: 0.502553248 | Q66: 0.003076867167 | R66: 2.220255307 | T66: 7.629869946 | V66: 0.004353614797 | W66: 1.284688659 | Y66: 7.189819682 | AA66: 0.004212042293 | AB66: 1.195356446 | AD66: 9.560466625 | AF66: 7.189819682 | AG66: 7.189819682 | AH66: 7.629869946 | AI66: 9.560466625 | AJ66: 7.189819682 | AL66: =IF(EMCI!$F$27="A",$AF66,IF(EMCI!$F$27="B",$AG66,IF(EMCI!$F$27="S",$AH66,IF(EMCI!$F$27="P",$AI66,IF(EMCI!$F$27="FS",$AJ66,"error"))))) -> 7.189819682
A67: =E59 -> 26 | B67: =AL59 -> 6.255230724 | E67: 24 | F67: 0.3666666667 | G67: 0.008333333333 | I67: 0.3594566607 | J67: 0.5110891638 | K67: 0.4996330956 | M67: 0.3546220599 | N67: 0.5054629716 | O67: 0.4966858232 | Q67: 0.002995472172 | R67: 2.223250779 | T67: 7.830164941 | V67: 0.004259076365 | W67: 1.288947735 | Y67: 7.341887485 | AA67: 0.00416360913 | AB67: 1.199520055 | AD67: 9.665023081 | AF67: 7.341887485 | AG67: 7.341887485 | AH67: 7.830164941 | AI67: 9.665023081 | AJ67: 7.341887485 | AL67: =IF(EMCI!$F$27="A",$AF67,IF(EMCI!$F$27="B",$AG67,IF(EMCI!$F$27="S",$AH67,IF(EMCI!$F$27="P",$AI67,IF(EMCI!$F$27="FS",$AJ67,"error"))))) -> 7.341887485
A68: =E58 -> 26.25 | B68: =AL58 -> 6.138086747 | E68: 23.75 | F68: 0.375 | G68: 0.008333333333 | I68: 0.3498201917 | J68: 0.4998675603 | K68: 0.4937126081 | M68: 0.345051056 | N68: 0.4943029564 | O68: 0.4907146006 | Q68: 0.002915168264 | R68: 2.226165948 | T68: 8.038909037 | V68: 0.004165563002 | W68: 1.293113298 | Y68: 7.499220173 | AA68: 0.004114271734 | AB68: 1.203634326 | AD68: 9.774246919 | AF68: 7.499220173 | AG68: 7.499220173 | AH68: 8.038909037 | AI68: 9.774246919 | AJ68: 7.499220173 | AL68: =IF(EMCI!$F$27="A",$AF68,IF(EMCI!$F$27="B",$AG68,IF(EMCI!$F$27="S",$AH68,IF(EMCI!$F$27="P",$AI68,IF(EMCI!$F$27="FS",$AJ68,"error"))))) -> 7.499220173
A69: =E57 -> 26.5 | B69: =AL57 -> 6.024557915 | E69: 23.5 | F69: 0.3833333333 | G69: 0.008333333333 | I69: 0.3403146529 | J69: 0.4887691849 | K69: 0.4876929244 | M69: 0.3356109824 | N69: 0.4832662692 | O69: 0.4846486768 | Q69: 0.002835955441 | R69: 2.229001903 | T69: 8.256577532 | V69: 0.004073076541 | W69: 1.297186374 | Y69: 7.662056844 | AA69: 0.004064107703 | AB69: 1.207698434 | AD69: 9.888196947 | AF69: 7.662056844 | AG69: 7.662056844 | AH69: 8.256577532 | AI69: 9.888196947 | AJ69: 7.662056844 | AL69: =IF(EMCI!$F$27="A",$AF69,IF(EMCI!$F$27="B",$AG69,IF(EMCI!$F$27="S",$AH69,IF(EMCI!$F$27="P",$AI69,IF(EMCI!$F$27="FS",$AJ69,"error"))))) -> 7.662056844
A70: =E56 -> 26.75 | B70: =AL56 -> 5.914505566 | E70: 23.25 | F70: 0.3916666667 | G70: 0.008333333333 | I70: 0.3309400445 | J70: 0.4777942313 | K70: 0.4815829297 | M70: 0.3263018391 | N70: 0.4723530917 | O70: 0.47849673 | Q70: 0.002757833704 | R70: 2.231759737 | T70: 8.483679623 | V70: 0.003981618594 | W70: 1.301167993 | Y70: 7.83065057 | AA70: 0.004013191081 | AB70: 1.211711625 | AD70: 10.00694064 | AF70: 7.83065057 | AG70: 7.83065057 | AH70: 8.483679623 | AI70: 10.00694064 | AJ70: 7.83065057 | AL70: =IF(EMCI!$F$27="A",$AF70,IF(EMCI!$F$27="B",$AG70,IF(EMCI!$F$27="S",$AH70,IF(EMCI!$F$27="P",$AI70,IF(EMCI!$F$27="FS",$AJ70,"error"))))) -> 7.83065057
A71: =E55 -> 27 | B71: =AL55 -> 5.807798214 | E71: 23 | F71: 0.4 | G71: 0.008333333333 | I71: 0.3216963663 | J71: 0.4669428698 | K71: 0.4753910995 | M71: 0.3171236261 | N71: 0.4615635837 | O71: 0.4722670362 | Q71: 0.002680803053 | R71: 2.23444054 | T71: 8.720761346 | V71: 0.003891190582 | W71: 1.305059184 | Y71: 8.005269364 | AA71: 0.003961592496 | AB71: 1.215673218 | AD71: 10.13055415 | AF71: 8.005269364 | AG71: 8.005269364 | AH71: 8.720761346 | AI71: 10.13055415 | AJ71: 8.005269364 | AL71: =IF(EMCI!$F$27="A",$AF71,IF(EMCI!$F$27="B",$AG71,IF(EMCI!$F$27="S",$AH71,IF(EMCI!$F$27="P",$AI71,IF(EMCI!$F$27="FS",$AJ71,"error"))))) -> 8.005269364
A72: =E54 -> 27.25 | B72: =AL54 -> 5.704311177 | E72: =E71-0.25 -> 22.75 | F72: 0.4083333333 | G72: 0.008333333333 | I72: 0.3125836184 | J72: 0.4562152505 | K72: 0.4691255141 | M72: 0.3080763434 | N72: 0.450897886 | O72: 0.4659674843 | Q72: 0.002604863487 | R72: 2.237045403 | T72: 8.968408826 | V72: 0.003801793754 | W72: 1.308860977 | Y72: 8.186197223 | AA72: 0.003909379284 | AB72: 1.219582597 | AD72: 10.25912229 | AF72: 8.186197223 | AG72: 8.186197223 | AH72: 8.968408826 | AI72: 10.25912229 | AJ72: 8.186197223 | AL72: =IF(EMCI!$F$27="A",$AF72,IF(EMCI!$F$27="B",$AG72,IF(EMCI!$F$27="S",$AH72,IF(EMCI!$F$27="P",$AI72,IF(EMCI!$F$27="FS",$AJ72,"error"))))) -> 8.186197223
A73: =E53 -> 27.5 | B73: =AL53 -> 5.60392624 | E73: 22.5 | F73: 0.4166666667 | G73: 0.008333333333 | I73: 0.3036018009 | J73: 0.4456115053 | K73: 0.4627938749 | M73: 0.2991599909 | N73: 0.4403561224 | O73: 0.4596055917 | Q73: 0.002530015007 | R73: 2.239575418 | T73: 9.227251857 | V73: 0.003713429211 | W73: 1.312574407 | Y73: 8.373735269 | AA73: 0.003856615624 | AB73: 1.223439213 | AD73: 10.39273863 | AF73: 8.373735269 | AG73: 8.373735269 | AH73: 9.227251857 | AI73: 10.39273863 | AJ73: 8.373735269 | AL73: =IF(EMCI!$F$27="A",$AF73,IF(EMCI!$F$27="B",$AG73,IF(EMCI!$F$27="S",$AH73,IF(EMCI!$F$27="P",$AI73,IF(EMCI!$F$27="FS",$AJ73,"error"))))) -> 8.373735269
A74: =E52 -> 27.75 | B74: =AL52 -> 5.506531338 | E74: 22.25 | F74: 0.425 | G74: 0.008333333333 | I74: 0.2947509135 | J74: 0.4351317505 | K74: 0.4564035187 | M74: 0.2903745688 | N74: 0.4299384019 | O74: 0.4531885186 | Q74: 0.002456257613 | R74: 2.242031676 | T74: 9.49796787 | V74: 0.003626097921 | W74: 1.316200505 | Y74: 8.568202978 | AA74: 0.003803362656 | AB74: 1.227242575 | AD74: 10.53150561 | AF74: 8.568202978 | AG74: 8.568202978 | AH74: 9.49796787 | AI74: 10.53150561 | AJ74: 8.568202978 | AL74: =IF(EMCI!$F$27="A",$AF74,IF(EMCI!$F$27="B",$AG74,IF(EMCI!$F$27="S",$AH74,IF(EMCI!$F$27="P",$AI74,IF(EMCI!$F$27="FS",$AJ74,"error"))))) -> 8.568202978
A75: =E51 -> 28 | B75: =AL51 -> 5.394303503 | E75: 22 | F75: 0.4333333333 | G75: 0.008333333333 | I75: 0.2860309565 | J75: 0.4247760882 | K75: 0.449961433 | M75: 0.2817200769 | N75: 0.4196448202 | O75: 0.4467230831 | Q75: 0.002383591304 | R75: =R74+Q75 -> 2.244415267 | T75: 9.781286316 | V75: 0.003539800735 | W75: =W74+V75 -> 1.319740305 | Y75: 8.769939523 | AA75: 0.003749678608 | AB75: =AB74+AA75 -> 1.230992254 | AD75: 10.67553464 | AF75: 8.769939523 | AG75: 8.769939523 | AH75: 9.781286316 | AI75: 10.67553464 | AJ75: 8.769939523 | AL75: =IF(EMCI!$F$27="A",$AF75,IF(EMCI!$F$27="B",$AG75,IF(EMCI!$F$27="S",$AH75,IF(EMCI!$F$27="P",$AI75,IF(EMCI!$F$27="FS",$AJ75,"error"))))) -> 8.769939523
A76: =E50 -> 28.25 | B76: =AL50 -> 5.284122735 | E76: 21.75 | F76: 0.4416666667 | G76: =F76-F75 -> 0.008333333333 | I76: 0.2774419298 | J76: 0.4145446083 | K76: 0.44347427 | M76: 0.2731965153 | N76: 0.4094754618 | O76: 0.4402157751 | Q76: 0.002312016082 | R76: 2.246727283 | T76: 10.07799354 | V76: 0.003454538402 | W76: =W75+V76 -> 1.323194844 | Y76: 8.979305231 | AA76: 0.003695618916 | AB76: =AB75+AA76 -> 1.234687873 | AD76: 10.8249463 | AF76: 8.979305231 | AG76: 8.979305231 | AH76: 10.07799354 | AI76: 10.8249463 | AJ76: 8.979305231 | AL76: =IF(EMCI!$F$27="A",$AF76,IF(EMCI!$F$27="B",$AG76,IF(EMCI!$F$27="S",$AH76,IF(EMCI!$F$27="P",$AI76,IF(EMCI!$F$27="FS",$AJ76,"error"))))) -> 8.979305231
A77: =E49 -> 28.5 | B77: =AL49 -> 5.177621253 | E77: 21.5 | F77: 0.45 | G77: 0.008333333333 | I77: 0.2689838333 | J77: 0.4044373898 | K77: 0.4369483608 | M77: 0.264803884 | N77: 0.3994304007 | O77: 0.4336727703 | Q77: 0.002241531945 | R77: 2.248968815 | T77: 10.3889382 | V77: 0.003370311582 | W77: 1.326565155 | Y77: 9.196683173 | AA77: 0.00364123634 | AB77: 1.238329109 | AD77: 10.97987058 | AF77: 9.196683173 | AG77: 9.196683173 | AH77: 10.3889382 | AI77: 10.97987058 | AJ77: 9.196683173 | AL77: =IF(EMCI!$F$27="A",$AF77,IF(EMCI!$F$27="B",$AG77,IF(EMCI!$F$27="S",$AH77,IF(EMCI!$F$27="P",$AI77,IF(EMCI!$F$27="FS",$AJ77,"error"))))) -> 9.196683173
A78: =E48 -> 28.75 | B78: =AL48 -> 5.074640985 | E78: 21.25 | F78: 0.4583333333 | G78: 0.008333333333 | I78: 0.2606566672 | J78: 0.3944545023 | K78: 0.4303897288 | M78: 0.256542183 | N78: 0.3895097021 | O78: 0.4270999432 | Q78: 0.002172138893 | R78: 2.251140954 | T78: 10.71503725 | V78: 0.003287120853 | W78: 1.329852276 | Y78: 9.422480888 | AA78: 0.003586581073 | AB78: 1.24191569 | AD78: 11.14044707 | AF78: 9.422480888 | AG78: 9.422480888 | AH78: 10.71503725 | AI78: 11.14044707 | AJ78: 9.422480888 | AL78: =IF(EMCI!$F$27="A",$AF78,IF(EMCI!$F$27="B",$AG78,IF(EMCI!$F$27="S",$AH78,IF(EMCI!$F$27="P",$AI78,IF(EMCI!$F$27="FS",$AJ78,"error"))))) -> 9.422480888
A79: =E47 -> 29 | B79: =AL47 -> 4.975032258 | E79: 21 | F79: 0.4666666667 | G79: 0.008333333333 | I79: 0.2524604313 | J79: 0.384596007 | K79: 0.423804103 | M79: 0.2484114122 | N79: 0.3797134233 | O79: 0.4205028805 | Q79: 0.002103836928 | R79: 2.253244791 | T79: 11.05728269 | V79: 0.003204966725 | W79: 1.333057243 | Y79: 9.657132279 | AA79: 0.003531700859 | AB79: 1.245447391 | AD79: 11.3068253 | AF79: 9.657132279 | AG79: 9.657132279 | AH79: 11.05728269 | AI79: 11.3068253 | AJ79: 9.657132279 | AL79: =IF(EMCI!$F$27="A",$AF79,IF(EMCI!$F$27="B",$AG79,IF(EMCI!$F$27="S",$AH79,IF(EMCI!$F$27="P",$AI79,IF(EMCI!$F$27="FS",$AJ79,"error"))))) -> 9.657132279
A80: =E46 -> 29.25 | B80: =AL46 -> 4.87865327 | E80: 20.75 | F80: 0.475 | G80: 0.008333333333 | I80: 0.2443951257 | J80: 0.3748619574 | K80: 0.417196931 | M80: 0.2404115718 | N80: 0.3700416147 | O80: 0.4138868935 | Q80: 0.002036626048 | R80: 2.255281417 | T80: 11.41674905 | V80: 0.003123849645 | W80: 1.336181092 | Y80: 9.901099665 | AA80: 0.003476641092 | AB80: 1.248924032 | AD80: 11.47916506 | AF80: 9.901099665 | AG80: 9.901099665 | AH80: 11.41674905 | AI80: 11.47916506 | AJ80: 9.901099665 | AL80: =IF(EMCI!$F$27="A",$AF80,IF(EMCI!$F$27="B",$AG80,IF(EMCI!$F$27="S",$AH80,IF(EMCI!$F$27="P",$AI80,IF(EMCI!$F$27="FS",$AJ80,"error"))))) -> 9.901099665
A81: =E45 -> 29.5 | B81: =AL45 -> 4.785369593 | E81: 20.5 | F81: 0.4833333333 | G81: 0.008333333333 | I81: 0.2364607504 | J81: 0.3652524008 | K81: 0.4105733909 | M81: 0.2325426616 | N81: 0.3604943205 | O81: 0.4072570303 | Q81: 0.001970506253 | R81: 2.257251923 | T81: 11.79460172 | V81: 0.003043770006 | W81: 1.339224863 | Y81: 10.15487604 | AA81: 0.003421444924 | AB81: 1.252345477 | AD81: 11.65763675 | AF81: 10.15487604 | AG81: 10.15487604 | AH81: 11.79460172 | AI81: 11.65763675 | AJ81: 10.15487604 | AL81: =IF(EMCI!$F$27="A",$AF81,IF(EMCI!$F$27="B",$AG81,IF(EMCI!$F$27="S",$AH81,IF(EMCI!$F$27="P",$AI81,IF(EMCI!$F$27="FS",$AJ81,"error"))))) -> 10.15487604
A82: =E44 -> 29.75 | B82: =AL44 -> 4.695053724 | E82: 20.25 | F82: 0.4916666667 | G82: 0.008333333333 | I82: 0.2286573054 | J82: 0.3557673787 | K82: 0.4039384036 | M82: 0.2248046817 | N82: 0.3510715796 | O82: 0.4006180875 | Q82: 0.001905477545 | R82: 2.259157401 | T82: 12.1921064 | V82: 0.002964728156 | W82: 1.342189591 | Y82: 10.41898753 | AA82: 0.003366153363 | AB82: 1.25571163 | AD82: 11.84242179 | AF82: 10.41898753 | AG82: 10.41898753 | AH82: 12.1921064 | AI82: 11.84242179 | AJ82: 10.41898753 | AL82: =IF(EMCI!$F$27="A",$AF82,IF(EMCI!$F$27="B",$AG82,IF(EMCI!$F$27="S",$AH82,IF(EMCI!$F$27="P",$AI82,IF(EMCI!$F$27="FS",$AJ82,"error"))))) -> 10.41898753
A83: =E43 -> 30 | B83: =AL43 -> 4.607584656 | E83: 20 | F83: 0.5 | G83: 0.008333333333 | I83: 0.2209847907 | J83: 0.3464069275 | K83: 0.3972966443 | M83: 0.2171976321 | N83: 0.3417734261 | O83: 0.3939746217 | Q83: 0.001841539922 | R83: 2.260998941 | T83: 12.61063959 | V83: 0.002886724396 | W83: 1.345076315 | Y83: 10.6939961 | AA83: 0.003310805369 | AB83: 1.259022436 | AD83: 12.0337131 | AF83: 10.6939961 | AG83: 10.6939961 | AH83: 12.61063959 | AI83: 12.0337131 | AJ83: 10.6939961 | AL83: =IF(EMCI!$F$27="A",$AF83,IF(EMCI!$F$27="B",$AG83,IF(EMCI!$F$27="S",$AH83,IF(EMCI!$F$27="P",$AI83,IF(EMCI!$F$27="FS",$AJ83,"error"))))) -> 10.6939961
A84: =E42 -> 30.25 | B84: =AL42 -> 4.522847488 | E84: 19.75 | F84: 0.5083333333 | G84: 0.008333333333 | I84: 0.2134432062 | J84: 0.3371710792 | K84: 0.3906525536 | M84: 0.2097215128 | N84: 0.3325998901 | O84: 0.3873309601 | Q84: 0.001778693385 | R84: 2.262777634 | T84: 13.05170046 | V84: 0.002809758993 | W84: 1.347886074 | Y84: 10.9805025 | AA84: 0.003255437946 | AB84: 1.262277874 | AD84: 12.23171555 | AF84: 10.9805025 | AG84: 10.9805025 | AH84: 13.05170046 | AI84: 12.23171555 | AJ84: 10.9805025 | AL84: =IF(EMCI!$F$27="A",$AF84,IF(EMCI!$F$27="B",$AG84,IF(EMCI!$F$27="S",$AH84,IF(EMCI!$F$27="P",$AI84,IF(EMCI!$F$27="FS",$AJ84,"error"))))) -> 10.9805025
A85: =E41 -> 30.5 | B85: =AL41 -> 4.440733057 | E85: 19.5 | F85: 0.5166666667 | G85: 0.008333333333 | I85: 0.206032552 | J85: 0.3280598619 | K85: 0.3840103482 | M85: 0.2023763238 | N85: 0.3235509978 | O85: 0.3806912115 | Q85: 0.001716937934 | R85: 2.264494572 | T85: 13.5169242 | V85: 0.002733832183 | W85: 1.350619906 | Y85: 11.27914956 | AA85: 0.003200086235 | AB85: 1.26547796 | AD85: 12.43664654 | AF85: 11.27914956 | AG85: 11.27914956 | AH85: 13.5169242 | AI85: 12.43664654 | AJ85: 11.27914956 | AL85: =IF(EMCI!$F$27="A",$AF85,IF(EMCI!$F$27="B",$AG85,IF(EMCI!$F$27="S",$AH85,IF(EMCI!$F$27="P",$AI85,IF(EMCI!$F$27="FS",$AJ85,"error"))))) -> 11.27914956
A86: =E40 -> 30.75 | B86: =AL40 -> 4.361137601 | E86: 19.25 | F86: 0.525 | G86: 0.008333333333 | I86: 0.1987528282 | J86: 0.3190733003 | K86: 0.3773740313 | M86: 0.1951620651 | N86: 0.3146267723 | O86: 0.3740592761 | Q86: 0.001656273568 | R86: 2.266150846 | T86: 14.00809708 | V86: 0.002658944169 | W86: 1.35327885 | Y86: 11.59062569 | AA86: 0.003144783594 | AB86: 1.268622744 | AD86: 12.6487366 | AF86: 11.59062569 | AG86: 11.59062569 | AH86: 14.00809708 | AI86: 12.6487366 | AJ86: 11.59062569 | AL86: =IF(EMCI!$F$27="A",$AF86,IF(EMCI!$F$27="B",$AG86,IF(EMCI!$F$27="S",$AH86,IF(EMCI!$F$27="P",$AI86,IF(EMCI!$F$27="FS",$AJ86,"error"))))) -> 11.59062569
A87: =E39 -> 31 | B87: =AL39 -> 4.283962436 | E87: 19 | F87: 0.5333333333 | G87: 0.008333333333 | I87: 0.1916040346 | J87: 0.3102114161 | K87: 0.3707474025 | M87: 0.1880787366 | N87: 0.305827234 | O87: 0.3674388551 | Q87: =G87*I87 -> 0.001596700288 | R87: 2.267747546 | T87: 14.52717358 | V87: =G87*J87 -> 0.002585095134 | W87: 1.355863946 | Y87: 11.91566888 | AA87: =G87*K87 -> 0.003089561687 | AB87: 1.271712305 | AD87: 12.86822999 | AF87: 11.91566888 | AG87: =Y87 -> 11.91566888 | AH87: =T87 -> 14.52717358 | AI87: =AD87 -> 12.86822999 | AJ87: 11.91566888 | AL87: =IF(EMCI!$F$27="A",$AF87,IF(EMCI!$F$27="B",$AG87,IF(EMCI!$F$27="S",$AH87,IF(EMCI!$F$27="P",$AI87,IF(EMCI!$F$27="FS",$AJ87,"error"))))) -> 11.91566888
A88: =E38 -> 31.25 | B88: =AL38 -> 4.209113665 | E88: 18.75 | F88: 0.5416666667 | G88: 0.008333333333 | I88: 0.1845861713 | J88: 0.3014742282 | K88: 0.3641340672 | M88: =IF(E88>$H$15,(0.00033*(E88-5.6)*((6.5-2.8)*(1-EXP(0.5*(6.5-9.8)))*(36.7-0.9324)*(1-EXP(0.42*(-5-0.9324)))))^2,0) -> 0.1811263385 | N88: 0.2971524006 | O88: 0.3608334606 | Q88: 0.001538218094 | R88: 2.269285764 | T88: =($G$15-R88)/M88 -> 15.07629569 | V88: 0.002512285235 | W88: 1.358376231 | Y88: =($G$16-W88)/N88 -> 12.25507101 | AA88: 0.00303445056 | AB88: 1.274746756 | AD88: =($G$17-AB88)/O88 -> 13.09538543 | AF88: =+MIN(AG88:AI88) -> 12.25507101 | AG88: 12.25507101 | AH88: 15.07629569 | AI88: 13.09538543 | AJ88: =MIN(AG88:AH88) -> 12.25507101 | AL88: =IF(EMCI!$F$27="A",$AF88,IF(EMCI!$F$27="B",$AG88,IF(EMCI!$F$27="S",$AH88,IF(EMCI!$F$27="P",$AI88,IF(EMCI!$F$27="FS",$AJ88,"error"))))) -> 12.25507101
A89: =E37 -> 31.5 | B89: =AL37 -> 4.136501901 | E89: =E88-0.25 -> 18.5 | F89: =(E89-$G$11)/$G$10 -> 0.55 | G89: =F89-F88 -> 0.008333333333 | I89: =IF(E89>$H$15,(0.00033*(((E89+E88)/2)-5.6)*((6.5-2.8)*(1-EXP(0.5*(6.5-9.8)))*(36.7-0.9324)*(1-EXP(0.42*(-5-0.9324)))))^2,0) -> 0.1776992382 | J89: =IF(E89>$H$16,(((0.175*(((E89+E88)/2)-1.5)*SQRT(0.995-0.92)*(1-EXP(0.4395*(((E89+E88)/2)-45)))))^2)/2.3,0) -> 0.2928617533 | K89: =IF(E89>$H$17,((0.1709*(((E89+E88)/2)+6.1)*SQRT(0.995-0.947)*(1-EXP(0.1723*(((E89+E88)/2)-41.2))))^2)/2.3,0) -> 0.3575374461 | M89: 0.1743048706 | N89: 0.2886022878 | O89: 0.354246424 | Q89: 0.001480826985 | R89: =R88+Q89 -> 2.270766591 | T89: 15.65781495 | V89: 0.002440514611 | W89: 1.360816745 | Y89: 12.60968263 | AA89: 0.002979478718 | AB89: 1.277726235 | AD89: 13.33047688 | AF89: 12.60968263 | AG89: 12.60968263 | AH89: 15.65781495 | AI89: 13.33047688 | AJ89: 12.60968263 | AL89: =IF(EMCI!$F$27="A",$AF89,IF(EMCI!$F$27="B",$AG89,IF(EMCI!$F$27="S",$AH89,IF(EMCI!$F$27="P",$AI89,IF(EMCI!$F$27="FS",$AJ89,"error"))))) -> 12.60968263
A90: =E36 -> 31.75 | B90: =AL36 -> 4.06604201 | E90: 18.25 | F90: 0.5583333333 | G90: 0.008333333333 | I90: 0.1709432355 | J90: 0.284374006 | K90: 0.3509607837 | M90: 0.167614333 | N90: 0.2801769093 | O90: 0.3476809048 | Q90: 0.001424526963 | R90: 2.272191118 | T90: 16.27431756 | V90: 0.002369783383 | W90: 1.363186529 | Y90: 12.98041827 | AA90: 0.002924673197 | AB90: 1.280650908 | AD90: 13.57379433 | AF90: 12.98041827 | AG90: 12.98041827 | AH90: 16.27431756 | AI90: 13.57379433 | AJ90: 12.98041827 | AL90: =IF(EMCI!$F$27="A",$AF90,IF(EMCI!$F$27="B",$AG90,IF(EMCI!$F$27="S",$AH90,IF(EMCI!$F$27="P",$AI90,IF(EMCI!$F$27="FS",$AJ90,"error"))))) -> 12.98041827
A91: =E35 -> 32 | B91: =AL35 -> 3.997652867 | E91: 18 | F91: 0.5666666667 | G91: 0.008333333333 | I91: 0.1643181631 | J91: 0.2760109992 | K91: 0.3444071566 | M91: 0.1610547257 | N91: 0.271876277 | O91: 0.341139899 | Q91: 0.001369318025 | R91: 2.273560436 | T91: 16.92865299 | V91: 0.00230009166 | W91: 1.36548662 | Y91: 13.36826228 | AA91: 0.002870059639 | AB91: 1.283520967 | AD91: 13.82564469 | AF91: 13.36826228 | AG91: 13.36826228 | AH91: 16.92865299 | AI91: 13.82564469 | AJ91: 13.36826228 | AL91: =IF(EMCI!$F$27="A",$AF91,IF(EMCI!$F$27="B",$AG91,IF(EMCI!$F$27="S",$AH91,IF(EMCI!$F$27="P",$AI91,IF(EMCI!$F$27="FS",$AJ91,"error"))))) -> 13.36826228
A92: =E34 -> 32.25 | B92: =AL34 -> 3.931257138 | E92: 17.75 | F92: 0.575 | G92: 0.008333333333 | I92: 0.1578240209 | J92: 0.267772744 | K92: 0.3378794821 | M92: 0.1546260487 | N92: 0.2637004015 | O92: 0.3346262469 | Q92: 0.001315200174 | R92: 2.274875636 | T92: 17.6239669 | V92: 0.002231439534 | W92: 1.36771806 | Y92: 13.77427535 | AA92: 0.002815662351 | AB92: 1.28633663 | AD92: 14.0863528 | AF92: 13.77427535 | AG92: 13.77427535 | AH92: 17.6239669 | AI92: 14.0863528 | AJ92: 13.77427535 | AL92: =IF(EMCI!$F$27="A",$AF92,IF(EMCI!$F$27="B",$AG92,IF(EMCI!$F$27="S",$AH92,IF(EMCI!$F$27="P",$AI92,IF(EMCI!$F$27="FS",$AJ92,"error"))))) -> 13.77427535
A93: =E33 -> 32.5 | B93: =AL33 -> 3.866781062 | E93: 17.5 | F93: 0.5833333333 | G93: 0.008333333333 | I93: 0.151460809 | J93: 0.2596592504 | K93: 0.3313805253 | M93: 0.1483283019 | N93: 0.255649292 | O93: 0.3281426405 | Q93: 0.001262173408 | R93: 2.27613781 | T93: 18.36373878 | V93: 0.002163827087 | W93: 1.369881887 | Y93: 14.19960167 | AA93: 0.002761504378 | AB93: 1.289098134 | AD93: 14.35626244 | AF93: 14.19960167 | AG93: 14.19960167 | AH93: 18.36373878 | AI93: 14.35626244 | AJ93: 14.19960167 | AL93: =IF(EMCI!$F$27="A",$AF93,IF(EMCI!$F$27="B",$AG93,IF(EMCI!$F$27="S",$AH93,IF(EMCI!$F$27="P",$AI93,IF(EMCI!$F$27="FS",$AJ93,"error"))))) -> 14.19960167
A94: =E32 -> 32.75 | B94: =AL32 -> 3.804154262 | E94: 17.25 | F94: 0.5916666667 | G94: 0.008333333333 | I94: 0.1452285274 | J94: 0.251670527 | K94: 0.324912907 | M94: 0.1421614855 | N94: =IF(E94>$H$16,(((0.175*(E94-1.5)*SQRT(0.995-0.92)*(1-EXP(0.4395*(E94-45)))))^2)/2.3,0) -> 0.2477229565 | O94: =IF(E94>$H$17,((0.1709*(E94+6.1)*SQRT(0.995-0.947)*(1-EXP(0.1723*(E94-41.2))))^2)/2.3,0) -> 0.321691631 | Q94: 0.001210237728 | R94: 2.277348047 | T94: 19.15182543 | V94: 0.002097254392 | W94: 1.371979141 | Y94: 14.64547698 | AA94: 0.002707607559 | AB94: 1.291805742 | AD94: 14.63573747 | AF94: 14.63573747 | AG94: 14.64547698 | AH94: 19.15182543 | AI94: 14.63573747 | AJ94: 14.64547698 | AL94: =IF(EMCI!$F$27="A",$AF94,IF(EMCI!$F$27="B",$AG94,IF(EMCI!$F$27="S",$AH94,IF(EMCI!$F$27="P",$AI94,IF(EMCI!$F$27="FS",$AJ94,"error"))))) -> 14.64547698
A95: =E31 -> 33 | B95: =AL31 -> 3.743309553 | E95: 17 | F95: 0.6 | G95: 0.008333333333 | I95: 0.1391271761 | J95: 0.2438065814 | K95: 0.3184791105 | M95: 0.1361255993 | N95: 0.2399214023 | O95: 0.3152756356 | Q95: 0.001159393134 | R95: 2.27850744 | T95: 19.99251113 | V95: 0.002031721511 | W95: 1.374010863 | Y95: 15.11323751 | AA95: 0.002653992588 | AB95: 1.294459734 | AD95: 14.92516305 | AF95: 14.92516305 | AG95: 15.11323751 | AH95: 19.99251113 | AI95: 14.92516305 | AJ95: 15.11323751 | AL95: =IF(EMCI!$F$27="A",$AF95,IF(EMCI!$F$27="B",$AG95,IF(EMCI!$F$27="S",$AH95,IF(EMCI!$F$27="P",$AI95,IF(EMCI!$F$27="FS",$AJ95,"error"))))) -> 15.11323751
A96: =E30 -> 33.25 | B96: =AL30 -> 3.684182777 | E96: =E95-0.25 -> 16.75 | F96: 0.6083333333 | G96: 0.008333333333 | I96: 0.1331567551 | J96: 0.2360674201 | K96: 0.3120814885 | M96: 0.1302206434 | N96: 0.2322446354 | O96: 0.308896944 | Q96: 0.001109639626 | R96: 2.27961708 | T96: 20.8905658 | V96: 0.001967228501 | W96: 1.375978091 | Y96: 15.6043299 | AA96: 0.002600679071 | AB96: 1.297060413 | AD96: 15.22494696 | AF96: 15.22494696 | AG96: 15.6043299 | AH96: 20.8905658 | AI96: 15.22494696 | AJ96: 15.6043299 | AL96: =IF(EMCI!$F$27="A",$AF96,IF(EMCI!$F$27="B",$AG96,IF(EMCI!$F$27="S",$AH96,IF(EMCI!$F$27="P",$AI96,IF(EMCI!$F$27="FS",$AJ96,"error"))))) -> 15.6043299
A97: =E29 -> 33.5 | B97: =AL29 -> 3.626712635 | E97: =E96-0.25 -> 16.5 | F97: 0.6166666667 | G97: 0.008333333333 | I97: 0.1273172643 | J97: 0.228453049 | K97: 0.3057222694 | M97: 0.1244466178 | N97: 0.2246926613 | O97: 0.3025577248 | Q97: 0.001060977203 | R97: =R96+Q97 -> 2.280678057 | T97: 21.85131255 | V97: 0.001903775408 | W97: =W96+V97 -> 1.377881867 | Y97: 16.12032236 | AA97: 0.002547685578 | AB97: =AB96+AA97 -> 1.299608099 | AD97: 15.53552104 | AF97: 15.53552104 | AG97: 16.12032236 | AH97: 21.85131255 | AI97: 15.53552104 | AJ97: 16.12032236 | AL97: =IF(EMCI!$F$27="A",$AF97,IF(EMCI!$F$27="B",$AG97,IF(EMCI!$F$27="S",$AH97,IF(EMCI!$F$27="P",$AI97,IF(EMCI!$F$27="FS",$AJ97,"error"))))) -> 16.12032236
A98: =E28 -> 33.75 | B98: =AL28 -> 3.570840539 | E98: 16.25 | F98: 0.625 | G98: 0.008333333333 | I98: 0.1216087039 | J98: 0.2209634731 | K98: 0.2994035635 | M98: 0.1188035225 | N98: 0.2172654848 | O98: 0.2962600318 | Q98: 0.001013405866 | R98: =R97+Q98 -> 2.281691463 | T98: 22.88070656 | V98: 0.001841362276 | W98: =W97+V98 -> 1.379723229 | Y98: 16.66291714 | AA98: 0.002495029696 | AB98: =AB97+AA98 -> 1.302103129 | AD98: 15.85734276 | AF98: 15.85734276 | AG98: 16.66291714 | AH98: 22.88070656 | AI98: 15.85734276 | AJ98: 16.66291714 | AL98: =IF(EMCI!$F$27="A",$AF98,IF(EMCI!$F$27="B",$AG98,IF(EMCI!$F$27="S",$AH98,IF(EMCI!$F$27="P",$AI98,IF(EMCI!$F$27="FS",$AJ98,"error"))))) -> 16.66291714
A99: =E27 -> 34 | B99: =AL27 -> 3.516510469 | E99: 16 | F99: 0.6333333333 | G99: 0.008333333333 | I99: 0.1160310737 | J99: 0.2135986969 | K99: 0.2931273694 | M99: 0.1132913575 | N99: 0.20996311 | O99: 0.2900058093 | Q99: 0.0009669256144 | R99: 2.282658389 | T99: 23.98542723 | V99: 0.001779989141 | W99: 1.381503218 | Y99: 17.23396449 | AA99: 0.002442728078 | AB99: 1.304545857 | AD99: 16.19089684 | AF99: 16.19089684 | AG99: 17.23396449 | AH99: 23.98542723 | AI99: 16.19089684 | AJ99: 17.23396449 | AL99: =IF(EMCI!$F$27="A",$AF99,IF(EMCI!$F$27="B",$AG99,IF(EMCI!$F$27="S",$AH99,IF(EMCI!$F$27="P",$AI99,IF(EMCI!$F$27="FS",$AJ99,"error"))))) -> 17.23396449
A100: =E26 -> 34.25 | B100: =AL26 -> 3.463668838 | E100: 15.75 | F100: 0.6416666667 | G100: 0.008333333333 | I100: 0.1105843739 | J100: 0.2063587244 | K100: 0.2868955786 | M100: 0.1079101228 | N100: 0.2027855405 | O100: 0.2837968979 | Q100: 0.0009215364488 | R100: 2.283579925 | T100: 25.1729866 | V100: 0.001719656036 | W100: 1.383222874 | Y100: 17.83547839 | AA100: 0.002390796489 | AB100: 1.306936653 | AD100: 16.53669713 | AF100: 16.53669713 | AG100: 17.83547839 | AH100: 25.1729866 | AI100: 16.53669713 | AJ100: 17.83547839 | AL100: =IF(EMCI!$F$27="A",$AF100,IF(EMCI!$F$27="B",$AG100,IF(EMCI!$F$27="S",$AH100,IF(EMCI!$F$27="P",$AI100,IF(EMCI!$F$27="FS",$AJ100,"error"))))) -> 17.83547839
A101: =E25 -> 34.5 | B101: =AL25 -> 3.412264364 | E101: 15.5 | F101: 0.65 | G101: 0.008333333333 | I101: 0.1052686043 | J101: 0.1992435588 | K101: 0.280709982 | M101: 0.1026598183 | N101: 0.1957327795 | O101: 0.2776350396 | Q101: 0.0008772383688 | R101: 2.284457164 | T101: 26.45185703 | V101: 0.00166036299 | W101: 1.384883237 | Y101: 18.46965425 | AA101: 0.00233924985 | AB101: 1.309275903 | AD101: 16.89528852 | AF101: 16.89528852 | AG101: 18.46965425 | AH101: 26.45185703 | AI101: 16.89528852 | AJ101: 18.46965425 | AL101: =IF(EMCI!$F$27="A",$AF101,IF(EMCI!$F$27="B",$AG101,IF(EMCI!$F$27="S",$AH101,IF(EMCI!$F$27="P",$AI101,IF(EMCI!$F$27="FS",$AJ101,"error"))))) -> 18.46965425
A102: =E24 -> 34.75 | B102: =AL24 -> 3.362247959 | E102: 15.25 | F102: 0.6583333333 | G102: 0.008333333333 | I102: 0.1000837649 | J102: 0.1922532031 | K102: 0.274572274 | M102: 0.09754044415 | N102: 0.1888048299 | O102: 0.2715218829 | Q102: 0.0008340313746 | R102: 2.285291195 | T102: 27.83162235 | V102: 0.001602110026 | W102: 1.386485347 | Y102: 19.13888885 | AA102: 0.002288102284 | AB102: 1.311564005 | AD102: 17.26724913 | AF102: 17.26724913 | AG102: 19.13888885 | AH102: 27.83162235 | AI102: 17.26724913 | AJ102: 19.13888885 | AL102: =IF(EMCI!$F$27="A",$AF102,IF(EMCI!$F$27="B",$AG102,IF(EMCI!$F$27="S",$AH102,IF(EMCI!$F$27="P",$AI102,IF(EMCI!$F$27="FS",$AJ102,"error"))))) -> 19.13888885
A103: =E23 -> 35 | B103: =AL23 -> 3.313572611 | E103: 15 | F103: 0.6666666667 | G103: 0.008333333333 | I103: 0.09502985592 | J103: 0.18538766 | K103: 0.2684840583 | M103: 0.09255200027 | N103: 0.1820016939 | O103: 0.2654589874 | Q103: 0.000791915466 | R103: 2.28608311 | T103: 29.32315759 | V103: 0.001544897167 | W103: 1.388030244 | Y103: 19.84580296 | AA103: 0.002237367153 | AB103: 1.313801372 | AD103: 17.65319258 | AF103: 17.65319258 | AG103: 19.84580296 | AH103: 29.32315759 | AI103: 17.65319258 | AJ103: 19.84580296 | AL103: =IF(EMCI!$F$27="A",$AF103,IF(EMCI!$F$27="B",$AG103,IF(EMCI!$F$27="S",$AH103,IF(EMCI!$F$27="P",$AI103,IF(EMCI!$F$27="FS",$AJ103,"error"))))) -> 19.84580296

Sheet 1st milking (D)
A2: Entry | E2: Milk cooling curve (1st milking)
A4: Milking | B4: =EMCI!F9 -> 1 | C4: 1 | E4: T | F4: t
A5: Time | B5: 0 | C5: 0 | E5: 25 | F5: 0
A6: Milk T | B6: =EMCI!F13 -> 20 | E6: 8 | F6: 2
A7: Volume | B7: =EMCI!F31 -> 0 | C7: D | E7: 5 | F7: =(E7-25)/-8.5 -> 2.352941176
A10: Outcome | B10: =IF(OR(B6>E5,B6<E7,B5>2.35),"out",LOOKUP(B6,A23:A103,B23:B103)) -> 10.94220405 | E10: slope | F10: -8.5
E11: intercept | F11: 25
F14: No (logs) | G14: Nf (logs) | H14: Tmin | J14: N after milk (logs) | K14: GR at 5C | L14: Growth storage | M14: N after stroage (logs)
E15: S aureus | F15: =EMCI!F19 -> 2 | G15: =EMCI!G19 -> 5 | H15: 5.6 | J15: =R103 -> 2.299900382 | K15: 0 | L15: =K15*(12-$F$7) -> 0 | M15: =J15+L15 -> 2.299900382
E16: B cereus | F16: =EMCI!F20 -> 1 | G16: =EMCI!G20 -> 5 | H16: 1.5 | J16: =W103 -> 1.506516397 | K16: 0.01223335541 | L16: =K16*(12-$F$7) -> 0.1180158993 | M16: =J16+L16 -> 1.624532296
E17: Pseudo | F17: =EMCI!F21 -> 1 | G17: =EMCI!G21 -> 6 | H17: -6.1 | J17: =AB103 -> 1.652658084 | K17: 0.07480722627 | L17: =K17*(12-$F$7) -> 0.7216697122 | M17: =J17+L17 -> 2.374327797
A21: Lookup function | E21: Cooling curve profile | I21: Growth during cooling (log/h) | M21: Growth to calc NMTL | Q21: Saureus | R21: Growth acc | T21: Time to NMTL (depending on initial logs) | V21: B cereus | W21: Growth acc | Y21: Time to NMTL (depending on initial logs) | AA21: Pseudo | AB21: Growth acc | AD21: Time to NMTL (depending on initial logs) | AF21: NMTL | AG21: NMTL | AH21: NMTL | AI21: NMTL | AJ21: NMTL | AL21: NMTL
A22: =E22 -> Temp | B22: NMTL | E22: Temp | F22: Time | G22: Time interval | I22: S. aureus | J22: B.cereus | K22: Pseudo | M22: S.aureus | N22: B.cereus | O22: Pseudo | Q22: Growth interval | R22: =F15 -> 2 | T22: =R22 -> 2 | V22: Growth interval | W22: =F16 -> 1 | Y22: =W22 -> 1 | AA22: Growth interval | AB22: =F17 -> 1 | AD22: =AB22 -> 1 | AF22: Shorter of 3 microorganisms | AG22: B. cereus | AH22: S. aureus | AI22: Pseudo | AJ22: Food Safety | AL22: Entry
A23: =E103 -> 5 | B23: =AL103 -> 285.5703513 | E23: =E5 -> 25 | F23: =(E23-$F$11)/$F$10 -> 0 | G23: =F23 -> 0 | I23: =IF(E23>H15,(0.00033*(E23-5.6)*((6.5-2.8)*(1-EXP(0.5*(6.5-9.8)))*(36.7-0.9324)*(1-EXP(0.42*(-5-0.9324)))))^2,0) -> 0.3942153782 | J23: =IF(E23>$H$16,(((0.175*(E23-1.5)*SQRT(0.995-0.92)*(1-EXP(0.4395*(E23-45)))))^2)/2.3,0) -> 0.5513317437 | K23: =IF(E23>$H$17,((0.1709*(E23+6.1)*SQRT(0.995-0.947)*(1-EXP(0.1723*(E23-41.2))))^2)/2.3,0) -> 0.5194351615 | M23: =IF(E23>$H$15,(0.00033*(E23-5.6)*((6.5-2.8)*(1-EXP(0.5*(6.5-9.8)))*(36.7-0.9324)*(1-EXP(0.42*(-5-0.9324)))))^2,0) -> 0.3942153782 | N23: =IF(E23>$H$16,(((0.175*(E23-1.5)*SQRT(0.995-0.92)*(1-EXP(0.4395*(E23-45)))))^2)/2.3,0) -> 0.5513317437 | O23: =IF(E23>$H$17,((0.1709*(E23+6.1)*SQRT(0.995-0.947)*(1-EXP(0.1723*(E23-41.2))))^2)/2.3,0) -> 0.5194351615 | Q23: =G23*I23 -> 0 | R23: =R22 -> 2 | T23: =($G$15-R23)/M23 -> 7.610053198 | V23: =G23*J23 -> 0 | W23: =W22 -> 1 | Y23: =($G$16-W23)/N23 -> 7.255159975 | AA23: =G23*K23 -> 0 | AB23: =AB22 -> 1 | AD23: =($G$17-AB23)/O23 -> 9.625840471 | AF23: =+MIN(AG23:AI23) -> 7.255159975 | AG23: =Y23 -> 7.255159975 | AH23: =T23 -> 7.610053198 | AI23: =AD23 -> 9.625840471 | AJ23: =MIN(AG23:AH23) -> 7.255159975 | AL23: =IF(EMCI!$F$27="A",'1st milking (D)'!AF23,IF(EMCI!$F$27="B",'1st milking (D)'!AG23,IF(EMCI!$F$27="S",'1st milking (D)'!AH23,IF(EMCI!$F$27="P",'1st milking (D)'!AI23,IF(EMCI!$F$27="FS",'1st milking (D)'!AJ23,"error"))))) -> 7.255159975
A24: =E102 -> 5.25 | B24: =AL102 -> 248.7909911 | E24: =E23-0.25 -> 24.75 | F24: =(E24-$F$11)/$F$10 -> 0.02941176471 | G24: =F24-F23 -> 0.02941176471 | I24: =IF(E24>$H$15,(0.00033*(((E24+E23)/2)-5.6)*((6.5-2.8)*(1-EXP(0.5*(6.5-9.8)))*(36.7-0.9324)*(1-EXP(0.42*(-5-0.9324)))))^2,0) -> 0.3891516494 | J24: =IF(E24>$H$16,(((0.175*(((E24+E23)/2)-1.5)*SQRT(0.995-0.92)*(1-EXP(0.4395*(((E24+E23)/2)-45)))))^2)/2.3,0) -> 0.5454909916 | K24: =IF(E24>$H$17,((0.1709*(((E24+E23)/2)+6.1)*SQRT(0.995-0.947)*(1-EXP(0.1723*(((E24+E23)/2)-41.2))))^2)/2.3,0) -> 0.5167040375 | M24: =IF(E24>$H$15,(0.00033*(E24-5.6)*((6.5-2.8)*(1-EXP(0.5*(6.5-9.8)))*(36.7-0.9324)*(1-EXP(0.42*(-5-0.9324)))))^2,0) -> 0.3841206532 | N24: =IF(E24>$H$16,(((0.175*(E24-1.5)*SQRT(0.995-0.92)*(1-EXP(0.4395*(E24-45)))))^2)/2.3,0) -> 0.5396807786 | O24: =IF(E24>$H$17,((0.1709*(E24+6.1)*SQRT(0.995-0.947)*(1-EXP(0.1723*(E24-41.2))))^2)/2.3,0) -> 0.5139381312 | Q24: =G24*I24 -> 0.01144563675 | R24: =R23+Q24 -> 2.011445637 | T24: =IF(M24=0,T23,($G$15-R24)/M24) -> 7.780249091 | V24: 0.0160438527 | W24: =W23+V24 -> 1.016043853 | Y24: =($G$16-W24)/N24 -> 7.38206048 | AA24: 0.01519717757 | AB24: =AB23+AA24 -> 1.015197178 | AD24: =($G$17-AB24)/O24 -> 9.699227437 | AF24: =+MIN(AG24:AI24) -> 7.38206048 | AG24: 7.38206048 | AH24: 7.780249091 | AI24: 9.699227437 | AJ24: =MIN(AG24:AH24) -> 7.38206048 | AL24: =IF(EMCI!$F$27="A",'1st milking (D)'!AF24,IF(EMCI!$F$27="B",'1st milking (D)'!AG24,IF(EMCI!$F$27="S",'1st milking (D)'!AH24,IF(EMCI!$F$27="P",'1st milking (D)'!AI24,IF(EMCI!$F$27="FS",'1st milking (D)'!AJ24,"error"))))) -> 7.38206048
A25: =E101 -> 5.5 | B25: =AL101 -> 218.6915605 | E25: =E24-0.25 -> 24.5 | F25: 0.05882352941 | G25: =F25-F24 -> 0.02941176471 | I25: =IF(E25>$H$15,(0.00033*(((E25+E24)/2)-5.6)*((6.5-2.8)*(1-EXP(0.5*(6.5-9.8)))*(36.7-0.9324)*(1-EXP(0.42*(-5-0.9324)))))^2,0) -> 0.3791223896 | J25: =IF(E25>$H$16,(((0.175*(((E25+E24)/2)-1.5)*SQRT(0.995-0.92)*(1-EXP(0.4395*(((E25+E24)/2)-45)))))^2)/2.3,0) -> 0.533901146 | K25: =IF(E25>$H$17,((0.1709*(((E25+E24)/2)+6.1)*SQRT(0.995-0.947)*(1-EXP(0.1723*(((E25+E24)/2)-41.2))))^2)/2.3,0) -> 0.5111387932 | M25: 0.3741568585 | N25: 0.5281521328 | O25: 0.5083073442 | Q25: 0.01115065852 | R25: =R24+Q25 -> 2.022596295 | T25: =IF(M25=0,T24,($G$15-R25)/M25) -> 7.957634979 | V25: 0.01570297488 | W25: =W24+V25 -> 1.031746828 | Y25: 7.51346615 | AA25: 0.01503349392 | AB25: =AB24+AA25 -> 1.030230671 | AD25: 9.777095265 | AF25: 7.51346615 | AG25: 7.51346615 | AH25: 7.957634979 | AI25: 9.777095265 | AJ25: 7.51346615 | AL25: =IF(EMCI!$F$27="A",'1st milking (D)'!AF25,IF(EMCI!$F$27="B",'1st milking (D)'!AG25,IF(EMCI!$F$27="S",'1st milking (D)'!AH25,IF(EMCI!$F$27="P",'1st milking (D)'!AI25,IF(EMCI!$F$27="FS",'1st milking (D)'!AJ25,"error"))))) -> 7.51346615
A26: =E100 -> 5.75 | B26: =AL100 -> 193.7475683 | E26: 24.25 | F26: 0.08823529412 | G26: 0.02941176471 | I26: 0.36922406 | J26: 0.5224337756 | K26: 0.5054450752 | M26: 0.364323994 | N26: 0.5167461085 | O26: 0.502553248 | Q26: 0.01085953118 | R26: 2.033455826 | T26: 8.142598956 | V26: 0.01536569928 | W26: 1.047112527 | Y26: 7.649573762 | AA26: 0.01486603162 | AB26: 1.045096703 | AD26: 9.859459305 | AF26: 7.649573762 | AG26: 7.649573762 | AH26: 8.142598956 | AI26: 9.859459305 | AJ26: 7.649573762 | AL26: =IF(EMCI!$F$27="A",'1st milking (D)'!AF26,IF(EMCI!$F$27="B",'1st milking (D)'!AG26,IF(EMCI!$F$27="S",'1st milking (D)'!AH26,IF(EMCI!$F$27="P",'1st milking (D)'!AI26,IF(EMCI!$F$27="FS",'1st milking (D)'!AJ26,"error"))))) -> 7.649573762
A27: =E99 -> 6 | B27: =AL99 -> 172.8458488 | E27: 24 | F27: 0.1176470588 | G27: 0.02941176471 | I27: 0.3594566607 | J27: 0.5110891638 | K27: 0.4996330956 | M27: 0.3546220599 | N27: 0.5054629716 | O27: 0.4966858232 | Q27: 0.01057225473 | R27: 2.044028081 | T27: 8.335555661 | V27: 0.01503203423 | W27: 1.062144561 | Y27: 7.79059132 | AA27: 0.01469509105 | AB27: 1.059791794 | AD27: 9.946344298 | AF27: 7.79059132 | AG27: 7.79059132 | AH27: 8.335555661 | AI27: 9.946344298 | AJ27: 7.79059132 | AL27: =IF(EMCI!$F$27="A",'1st milking (D)'!AF27,IF(EMCI!$F$27="B",'1st milking (D)'!AG27,IF(EMCI!$F$27="S",'1st milking (D)'!AH27,IF(EMCI!$F$27="P",'1st milking (D)'!AI27,IF(EMCI!$F$27="FS",'1st milking (D)'!AJ27,"error"))))) -> 7.79059132
A28: =E98 -> 6.25 | B28: =AL98 -> 155.1582317 | E28: 23.75 | F28: 0.1470588235 | G28: 0.02941176471 | I28: 0.3498201917 | J28: 0.4998675603 | K28: 0.4937126081 | M28: 0.345051056 | N28: 0.4943029564 | O28: 0.4907146006 | Q28: 0.01028882917 | R28: 2.05431691 | T28: 8.536948484 | V28: 0.01470198707 | W28: 1.076846548 | Y28: 7.936738798 | AA28: 0.01452095906 | AB28: 1.074312753 | AD28: 10.03778416 | AF28: 7.936738798 | AG28: 7.936738798 | AH28: 8.536948484 | AI28: 10.03778416 | AJ28: 7.936738798 | AL28: =IF(EMCI!$F$27="A",'1st milking (D)'!AF28,IF(EMCI!$F$27="B",'1st milking (D)'!AG28,IF(EMCI!$F$27="S",'1st milking (D)'!AH28,IF(EMCI!$F$27="P",'1st milking (D)'!AI28,IF(EMCI!$F$27="FS",'1st milking (D)'!AJ28,"error"))))) -> 7.936738798
A29: =E97 -> 6.5 | B29: =AL97 -> 140.058265 | E29: 23.5 | F29: 0.1764705882 | G29: 0.02941176471 | I29: 0.3403146529 | J29: 0.4887691849 | K29: 0.4876929244 | M29: 0.3356109824 | N29: 0.4832662692 | O29: 0.4846486768 | Q29: 0.0100092545 | R29: 2.064326165 | T29: 8.747251994 | V29: 0.01437556426 | W29: 1.091222112 | Y29: 8.088248935 | AA29: 0.01434390954 | AB29: 1.088656663 | AD29: 10.13382182 | AF29: 8.088248935 | AG29: 8.088248935 | AH29: 8.747251994 | AI29: 10.13382182 | AJ29: 8.088248935 | AL29: =IF(EMCI!$F$27="A",'1st milking (D)'!AF29,IF(EMCI!$F$27="B",'1st milking (D)'!AG29,IF(EMCI!$F$27="S",'1st milking (D)'!AH29,IF(EMCI!$F$27="P",'1st milking (D)'!AI29,IF(EMCI!$F$27="FS",'1st milking (D)'!AJ29,"error"))))) -> 8.088248935
A30: =E96 -> 6.75 | B30: =AL96 -> 127.0650042 | E30: 23.25 | F30: 0.2058823529 | G30: 0.02941176471 | I30: 0.3309400445 | J30: 0.4777942313 | K30: 0.4815829297 | M30: 0.3263018391 | N30: 0.4723530917 | O30: 0.47849673 | Q30: 0.00973353072 | R30: 2.074059696 | T30: 8.966974604 | V30: 0.01405277151 | W30: 1.105274884 | Y30: 8.245368104 | AA30: 0.01416420382 | AB30: 1.102820867 | AD30: 10.23450909 | AF30: 8.245368104 | AG30: 8.245368104 | AH30: 8.966974604 | AI30: 10.23450909 | AJ30: 8.245368104 | AL30: =IF(EMCI!$F$27="A",'1st milking (D)'!AF30,IF(EMCI!$F$27="B",'1st milking (D)'!AG30,IF(EMCI!$F$27="S",'1st milking (D)'!AH30,IF(EMCI!$F$27="P",'1st milking (D)'!AI30,IF(EMCI!$F$27="FS",'1st milking (D)'!AJ30,"error"))))) -> 8.245368104
A31: =E95 -> 7 | B31: =AL95 -> 115.8042626 | E31: 23 | F31: 0.2352941176 | G31: 0.02941176471 | I31: 0.3216963663 | J31: 0.4669428698 | K31: 0.4753910995 | M31: 0.3171236261 | N31: 0.4615635837 | O31: 0.4722670362 | Q31: 0.009461657833 | R31: 2.083521353 | T31: 9.196661512 | V31: 0.01373361382 | W31: 1.119008498 | Y31: 8.408357243 | AA31: 0.01398209116 | AB31: 1.116802958 | AD31: 10.3399066 | AF31: 8.408357243 | AG31: 8.408357243 | AH31: 9.196661512 | AI31: 10.3399066 | AJ31: 8.408357243 | AL31: =IF(EMCI!$F$27="A",'1st milking (D)'!AF31,IF(EMCI!$F$27="B",'1st milking (D)'!AG31,IF(EMCI!$F$27="S",'1st milking (D)'!AH31,IF(EMCI!$F$27="P",'1st milking (D)'!AI31,IF(EMCI!$F$27="FS",'1st milking (D)'!AJ31,"error"))))) -> 8.408357243
A32: =E94 -> 7.25 | B32: =AL94 -> 105.9813867 | E32: 22.75 | F32: 0.2647058824 | G32: 0.02941176471 | I32: 0.3125836184 | J32: 0.4562152505 | K32: 0.4691255141 | M32: 0.3080763434 | N32: 0.450897886 | O32: 0.4659674843 | Q32: 0.009193635837 | R32: 2.092714989 | T32: 9.436897942 | V32: 0.0134180956 | W32: 1.132426593 | Y32: 8.577492879 | AA32: 0.01379780924 | AB32: 1.130600767 | AD32: 10.45008374 | AF32: 8.577492879 | AG32: 8.577492879 | AH32: 9.436897942 | AI32: 10.45008374 | AJ32: 8.577492879 | AL32: =IF(EMCI!$F$27="A",'1st milking (D)'!AF32,IF(EMCI!$F$27="B",'1st milking (D)'!AG32,IF(EMCI!$F$27="S",'1st milking (D)'!AH32,IF(EMCI!$F$27="P",'1st milking (D)'!AI32,IF(EMCI!$F$27="FS",'1st milking (D)'!AJ32,"error"))))) -> 8.577492879
A33: =E93 -> 7.5 | B33: =AL93 -> 97.36180035 | E33: 22.5 | F33: 0.2941176471 | G33: 0.02941176471 | I33: 0.3036018009 | J33: 0.4456115053 | K33: 0.4627938749 | M33: 0.2991599909 | N33: 0.4403561224 | O33: 0.4596055917 | Q33: 0.008929464731 | R33: 2.101644454 | T33: 9.688312723 | V33: 0.01310622074 | W33: 1.145532814 | Y33: 8.753068232 | AA33: 0.01361158456 | AB33: 1.144212352 | AD33: 10.56511874 | AF33: 8.753068232 | AG33: 8.753068232 | AH33: 9.688312723 | AI33: 10.56511874 | AJ33: 8.753068232 | AL33: =IF(EMCI!$F$27="A",'1st milking (D)'!AF33,IF(EMCI!$F$27="B",'1st milking (D)'!AG33,IF(EMCI!$F$27="S",'1st milking (D)'!AH33,IF(EMCI!$F$27="P",'1st milking (D)'!AI33,IF(EMCI!$F$27="FS",'1st milking (D)'!AJ33,"error"))))) -> 8.753068232
A34: =E92 -> 7.75 | B34: =AL92 -> 89.75688371 | E34: 22.25 | F34: 0.3235294118 | G34: 0.02941176471 | I34: 0.2947509135 | J34: 0.4351317505 | K34: 0.4564035187 | M34: 0.2903745688 | N34: 0.4299384019 | O34: 0.4531885186 | Q34: 0.008669144516 | R34: 2.110313598 | T34: 9.951582241 | V34: 0.01279799266 | W34: 1.158330807 | Y34: 8.935394411 | AA34: 0.0134236329 | AB34: 1.157635984 | AD34: 10.68509862 | AF34: 8.935394411 | AG34: 8.935394411 | AH34: 9.951582241 | AI34: 10.68509862 | AJ34: 8.935394411 | AL34: =IF(EMCI!$F$27="A",'1st milking (D)'!AF34,IF(EMCI!$F$27="B",'1st milking (D)'!AG34,IF(EMCI!$F$27="S",'1st milking (D)'!AH34,IF(EMCI!$F$27="P",'1st milking (D)'!AI34,IF(EMCI!$F$27="FS",'1st milking (D)'!AJ34,"error"))))) -> 8.935394411
A35: =E91 -> 8 | B35: =AL91 -> 83.01357741 | E35: 22 | F35: 0.3529411765 | G35: 0.02941176471 | I35: 0.2860309565 | J35: 0.4247760882 | K35: 0.449961433 | M35: 0.2817200769 | N35: 0.4196448202 | O35: =IF(E35>$H$17,((0.1709*(E35+6.1)*SQRT(0.995-0.947)*(1-EXP(0.1723*(E35-41.2))))^2)/2.3,0) -> 0.4467230831 | Q35: 0.008412675192 | R35: 2.118726274 | T35: 10.22743483 | V35: 0.01249341436 | W35: 1.170824221 | Y35: 9.124801723 | AA35: 0.01323415979 | AB35: 1.170870144 | AD35: 10.81011938 | AF35: 9.124801723 | AG35: 9.124801723 | AH35: 10.22743483 | AI35: 10.81011938 | AJ35: 9.124801723 | AL35: =IF(EMCI!$F$27="A",'1st milking (D)'!AF35,IF(EMCI!$F$27="B",'1st milking (D)'!AG35,IF(EMCI!$F$27="S",'1st milking (D)'!AH35,IF(EMCI!$F$27="P",'1st milking (D)'!AI35,IF(EMCI!$F$27="FS",'1st milking (D)'!AJ35,"error"))))) -> 9.124801723
A36: =E90 -> 8.25 | B36: =AL90 -> 77.00663082 | E36: 21.75 | F36: 0.3823529412 | G36: 0.02941176471 | I36: 0.2774419298 | J36: 0.4145446083 | K36: 0.44347427 | M36: 0.2731965153 | N36: 0.4094754618 | O36: 0.4402157751 | Q36: 0.008160056759 | R36: 2.12688633 | T36: 10.51665563 | V36: 0.01219248848 | W36: 1.18301671 | Y36: 9.321641091 | AA36: 0.01304336088 | AB36: 1.183913505 | AD36: 10.94028603 | AF36: 9.321641091 | AG36: 9.321641091 | AH36: 10.51665563 | AI36: 10.94028603 | AJ36: 9.321641091 | AL36: =IF(EMCI!$F$27="A",'1st milking (D)'!AF36,IF(EMCI!$F$27="B",'1st milking (D)'!AG36,IF(EMCI!$F$27="S",'1st milking (D)'!AH36,IF(EMCI!$F$27="P",'1st milking (D)'!AI36,IF(EMCI!$F$27="FS",'1st milking (D)'!AJ36,"error"))))) -> 9.321641091
A37: =E89 -> 8.5 | B37: =AL89 -> 71.63275227 | E37: 21.5 | F37: 0.4117647059 | G37: 0.02941176471 | I37: 0.2689838333 | J37: 0.4044373898 | K37: 0.4369483608 | M37: 0.264803884 | N37: 0.3994304007 | O37: 0.4336727703 | Q37: 0.007911289216 | R37: 2.13479762 | T37: 10.82009198 | V37: 0.01189521735 | W37: 1.194911927 | Y37: 9.526285597 | AA37: 0.01285142238 | AB37: 1.196764927 | AD37: 11.07571285 | AF37: 9.526285597 | AG37: 9.526285597 | AH37: 10.82009198 | AI37: 11.07571285 | AJ37: 9.526285597 | AL37: =IF(EMCI!$F$27="A",'1st milking (D)'!AF37,IF(EMCI!$F$27="B",'1st milking (D)'!AG37,IF(EMCI!$F$27="S",'1st milking (D)'!AH37,IF(EMCI!$F$27="P",'1st milking (D)'!AI37,IF(EMCI!$F$27="FS",'1st milking (D)'!AJ37,"error"))))) -> 9.526285597
A38: =E88 -> 8.75 | B38: =AL88 -> 66.80614613 | E38: 21.25 | F38: 0.4411764706 | G38: 0.02941176471 | I38: 0.2606566672 | J38: 0.3944545023 | K38: 0.4303897288 | M38: 0.256542183 | N38: 0.3895097021 | O38: 0.4270999432 | Q38: 0.007666372564 | R38: 2.142463992 | T38: 11.13865944 | V38: 0.01160160301 | W38: 1.20651353 | Y38: 9.739132169 | AA38: 0.01265852143 | AB38: 1.209423449 | AD38: 11.2165235 | AF38: 9.739132169 | AG38: 9.739132169 | AH38: 11.13865944 | AI38: 11.2165235 | AJ38: 9.739132169 | AL38: =IF(EMCI!$F$27="A",'1st milking (D)'!AF38,IF(EMCI!$F$27="B",'1st milking (D)'!AG38,IF(EMCI!$F$27="S",'1st milking (D)'!AH38,IF(EMCI!$F$27="P",'1st milking (D)'!AI38,IF(EMCI!$F$27="FS",'1st milking (D)'!AJ38,"error"))))) -> 9.739132169
A39: =E87 -> 9 | B39: =AL87 -> 62.45507339 | E39: 21 | F39: 0.4705882353 | G39: 0.02941176471 | I39: 0.2524604313 | J39: 0.384596007 | K39: 0.423804103 | M39: 0.2484114122 | N39: 0.3797134233 | O39: 0.4205028805 | Q39: 0.007425306803 | R39: 2.149889299 | T39: 11.47334849 | V39: 0.01131164726 | W39: 1.217825177 | Y39: 9.960603419 | AA39: 0.01246482656 | AB39: 1.221888275 | AD39: 11.36285135 | AF39: 9.960603419 | AG39: 9.960603419 | AH39: 11.47334849 | AI39: 11.36285135 | AJ39: 9.960603419 | AL39: =IF(EMCI!$F$27="A",'1st milking (D)'!AF39,IF(EMCI!$F$27="B",'1st milking (D)'!AG39,IF(EMCI!$F$27="S",'1st milking (D)'!AH39,IF(EMCI!$F$27="P",'1st milking (D)'!AI39,IF(EMCI!$F$27="FS",'1st milking (D)'!AJ39,"error"))))) -> 9.960603419
A40: =E86 -> 9.25 | B40: =AL86 -> 58.51917597 | E40: 20.75 | F40: 0.5 | G40: 0.02941176471 | I40: 0.2443951257 | J40: 0.3748619574 | K40: 0.417196931 | M40: 0.2404115718 | N40: 0.3700416147 | O40: 0.4138868935 | Q40: 0.007188091933 | R40: 2.157077391 | T40: 11.82523199 | V40: 0.01102535169 | W40: 1.228850529 | Y40: 10.19114965 | AA40: 0.01227049797 | AB40: 1.234158773 | AD40: 11.51483968 | AF40: 10.19114965 | AG40: 10.19114965 | AH40: 11.82523199 | AI40: 11.51483968 | AJ40: 10.19114965 | AL40: =IF(EMCI!$F$27="A",'1st milking (D)'!AF40,IF(EMCI!$F$27="B",'1st milking (D)'!AG40,IF(EMCI!$F$27="S",'1st milking (D)'!AH40,IF(EMCI!$F$27="P",'1st milking (D)'!AI40,IF(EMCI!$F$27="FS",'1st milking (D)'!AJ40,"error"))))) -> 10.19114965
A41: =E85 -> 9.5 | B41: =AL85 -> 54.94737684 | E41: 20.5 | F41: 0.5294117647 | G41: 0.02941176471 | I41: 0.2364607504 | J41: 0.3652524008 | K41: 0.4105733909 | M41: 0.2325426616 | N41: 0.3604943205 | O41: 0.4072570303 | Q41: 0.006954727953 | R41: 2.164032119 | T41: 12.19547356 | V41: 0.01074271767 | W41: 1.239593247 | Y41: 10.43125103 | AA41: 0.01207568797 | AB41: 1.246234461 | AD41: 11.67264205 | AF41: 10.43125103 | AG41: 10.43125103 | AH41: 12.19547356 | AI41: 11.67264205 | AJ41: 10.43125103 | AL41: =IF(EMCI!$F$27="A",'1st milking (D)'!AF41,IF(EMCI!$F$27="B",'1st milking (D)'!AG41,IF(EMCI!$F$27="S",'1st milking (D)'!AH41,IF(EMCI!$F$27="P",'1st milking (D)'!AI41,IF(EMCI!$F$27="FS",'1st milking (D)'!AJ41,"error"))))) -> 10.43125103
A42: =E84 -> 9.75 | B42: =AL84 -> 51.69621878 | E42: 20.25 | F42: 0.5588235294 | G42: 0.02941176471 | I42: 0.2286573054 | J42: 0.3557673787 | K42: 0.4039384036 | M42: 0.2248046817 | N42: 0.3510715796 | O42: 0.4006180875 | Q42: 0.006725214864 | R42: 2.170757334 | T42: 12.58533694 | V42: 0.01046374643 | W42: 1.250056993 | Y42: 10.68142004 | AA42: 0.01188054128 | AB42: 1.258115003 | AD42: 11.83642263 | AF42: 10.68142004 | AG42: 10.68142004 | AH42: 12.58533694 | AI42: 11.83642263 | AJ42: 10.68142004 | AL42: =IF(EMCI!$F$27="A",'1st milking (D)'!AF42,IF(EMCI!$F$27="B",'1st milking (D)'!AG42,IF(EMCI!$F$27="S",'1st milking (D)'!AH42,IF(EMCI!$F$27="P",'1st milking (D)'!AI42,IF(EMCI!$F$27="FS",'1st milking (D)'!AJ42,"error"))))) -> 10.68142004
A43: =E83 -> 10 | B43: =AL83 -> 48.72853984 | E43: 20 | F43: 0.5882352941 | G43: 0.02941176471 | I43: 0.2209847907 | J43: 0.3464069275 | K43: 0.3972966443 | M43: 0.2171976321 | N43: 0.3417734261 | O43: 0.3939746217 | Q43: 0.006499552666 | R43: 2.177256886 | T43: 12.99619653 | V43: 0.01018843904 | W43: 1.260245432 | Y43: 10.94220405 | AA43: 0.01168519542 | AB43: 1.269800198 | AD43: 12.00635661 | AF43: 10.94220405 | AG43: 10.94220405 | AH43: 12.99619653 | AI43: 12.00635661 | AJ43: 10.94220405 | AL43: =IF(EMCI!$F$27="A",'1st milking (D)'!AF43,IF(EMCI!$F$27="B",'1st milking (D)'!AG43,IF(EMCI!$F$27="S",'1st milking (D)'!AH43,IF(EMCI!$F$27="P",'1st milking (D)'!AI43,IF(EMCI!$F$27="FS",'1st milking (D)'!AJ43,"error"))))) -> 10.94220405
A44: =E82 -> 10.25 | B44: =AL82 -> 46.01240991 | E44: 19.75 | F44: 0.6176470588 | G44: 0.02941176471 | I44: 0.2134432062 | J44: 0.3371710792 | K44: 0.3906525536 | M44: 0.2097215128 | N44: 0.3325998901 | O44: 0.3873309601 | Q44: 0.006277741359 | R44: 2.183534628 | T44: 13.42954919 | V44: 0.009916796447 | W44: 1.270162228 | Y44: 11.21418823 | AA44: 0.01148978099 | AB44: 1.281289979 | AD44: 12.18263064 | AF44: 11.21418823 | AG44: 11.21418823 | AH44: 13.42954919 | AI44: 12.18263064 | AJ44: 11.21418823 | AL44: =IF(EMCI!$F$27="A",'1st milking (D)'!AF44,IF(EMCI!$F$27="B",'1st milking (D)'!AG44,IF(EMCI!$F$27="S",'1st milking (D)'!AH44,IF(EMCI!$F$27="P",'1st milking (D)'!AI44,IF(EMCI!$F$27="FS",'1st milking (D)'!AJ44,"error"))))) -> 11.21418823
A45: =E81 -> 10.5 | B45: =AL81 -> 43.52027111 | E45: 19.5 | F45: 0.6470588235 | G45: 0.02941176471 | I45: 0.206032552 | J45: 0.3280598619 | K45: 0.3840103482 | M45: 0.2023763238 | N45: 0.3235509978 | O45: 0.3806912115 | Q45: 0.006059780942 | R45: 2.189594409 | T45: 13.88702758 | V45: 0.009648819468 | W45: 1.279811048 | Y45: 11.4979987 | AA45: 0.011294422 | AB45: 1.292584401 | AD45: 12.36544332 | AF45: 11.4979987 | AG45: 11.4979987 | AH45: 13.88702758 | AI45: 12.36544332 | AJ45: 11.4979987 | AL45: =IF(EMCI!$F$27="A",'1st milking (D)'!AF45,IF(EMCI!$F$27="B",'1st milking (D)'!AG45,IF(EMCI!$F$27="S",'1st milking (D)'!AH45,IF(EMCI!$F$27="P",'1st milking (D)'!AI45,IF(EMCI!$F$27="FS",'1st milking (D)'!AJ45,"error"))))) -> 11.4979987
A46: =E80 -> 10.75 | B46: =AL80 -> 41.22823856 | E46: 19.25 | F46: 0.6764705882 | G46: 0.02941176471 | I46: 0.1987528282 | J46: 0.3190733003 | K46: 0.3773740313 | M46: 0.1951620651 | N46: 0.3146267723 | O46: 0.3740592761 | Q46: 0.005845671416 | R46: 2.19544008 | T46: 14.37041527 | V46: 0.009384508833 | W46: 1.289195557 | Y46: 11.79430605 | AA46: 0.01109923621 | AB46: 1.303683637 | AD46: 12.55500575 | AF46: 11.79430605 | AG46: 11.79430605 | AH46: 14.37041527 | AI46: 12.55500575 | AJ46: 11.79430605 | AL46: =IF(EMCI!$F$27="A",'1st milking (D)'!AF46,IF(EMCI!$F$27="B",'1st milking (D)'!AG46,IF(EMCI!$F$27="S",'1st milking (D)'!AH46,IF(EMCI!$F$27="P",'1st milking (D)'!AI46,IF(EMCI!$F$27="FS",'1st milking (D)'!AJ46,"error"))))) -> 11.79430605
A47: =E79 -> 11 | B47: =AL79 -> 39.11552818 | E47: 19 | F47: 0.7058823529 | G47: 0.02941176471 | I47: 0.1916040346 | J47: 0.3102114161 | K47: 0.3707474025 | M47: 0.1880787366 | N47: 0.305827234 | O47: 0.3674388551 | Q47: 0.005635412781 | R47: 2.201075493 | T47: 14.8816637 | V47: 0.009123865179 | W47: 1.298319422 | Y47: 12.10382911 | AA47: 0.01090433537 | AB47: 1.314587973 | AD47: 12.75154209 | AF47: 12.10382911 | AG47: 12.10382911 | AH47: 14.8816637 | AI47: 12.75154209 | AJ47: 12.10382911 | AL47: =IF(EMCI!$F$27="A",'1st milking (D)'!AF47,IF(EMCI!$F$27="B",'1st milking (D)'!AG47,IF(EMCI!$F$27="S",'1st milking (D)'!AH47,IF(EMCI!$F$27="P",'1st milking (D)'!AI47,IF(EMCI!$F$27="FS",'1st milking (D)'!AJ47,"error"))))) -> 12.10382911
A48: =E78 -> 11.25 | B48: =AL78 -> 37.16398589 | E48: 18.75 | F48: 0.7352941176 | G48: 0.02941176471 | I48: 0.1845861713 | J48: 0.3014742282 | K48: 0.3641340672 | M48: 0.1811263385 | N48: 0.2971524006 | O48: 0.3608334606 | Q48: 0.005429005037 | R48: 2.206504498 | T48: =IF(M48=0,T47,($G$15-R48)/M48) -> 15.42291158 | V48: 0.008866889064 | W48: 1.307186311 | Y48: 12.42733924 | AA48: 0.01070982551 | AB48: 1.325297798 | AD48: 12.95529022 | AF48: 12.42733924 | AG48: 12.42733924 | AH48: 15.42291158 | AI48: 12.95529022 | AJ48: 12.42733924 | AL48: =IF(EMCI!$F$27="A",'1st milking (D)'!AF48,IF(EMCI!$F$27="B",'1st milking (D)'!AG48,IF(EMCI!$F$27="S",'1st milking (D)'!AH48,IF(EMCI!$F$27="P",'1st milking (D)'!AI48,IF(EMCI!$F$27="FS",'1st milking (D)'!AJ48,"error"))))) -> 12.42733924
A49: =E77 -> 11.5 | B49: =AL77 -> 35.35769812 | E49: 18.5 | F49: 0.7647058824 | G49: 0.02941176471 | I49: 0.1776992382 | J49: 0.2928617533 | K49: 0.3575374461 | M49: 0.1743048706 | N49: 0.2886022878 | O49: 0.354246424 | Q49: 0.005226448184 | R49: 2.211730946 | T49: 15.99650684 | V49: 0.008613580978 | W49: 1.315799892 | Y49: 12.76566494 | AA49: 0.01051580724 | AB49: 1.335813605 | AD49: 13.16650241 | AF49: 12.76566494 | AG49: 12.76566494 | AH49: 15.99650684 | AI49: 13.16650241 | AJ49: 12.76566494 | AL49: =IF(EMCI!$F$27="A",'1st milking (D)'!AF49,IF(EMCI!$F$27="B",'1st milking (D)'!AG49,IF(EMCI!$F$27="S",'1st milking (D)'!AH49,IF(EMCI!$F$27="P",'1st milking (D)'!AI49,IF(EMCI!$F$27="FS",'1st milking (D)'!AJ49,"error"))))) -> 12.76566494
A50: =E76 -> 11.75 | B50: =AL76 -> 33.68266802 | E50: 18.25 | F50: 0.7941176471 | G50: 0.02941176471 | I50: 0.1709432355 | J50: 0.284374006 | K50: 0.3509607837 | M50: 0.167614333 | N50: 0.2801769093 | O50: 0.3476809048 | Q50: 0.005027742221 | R50: 2.216758688 | T50: 16.60503169 | V50: 0.008363941353 | W50: 1.324163833 | Y50: 13.11969704 | AA50: 0.01032237599 | AB50: 1.346135981 | AD50: 13.38544612 | AF50: 13.11969704 | AG50: 13.11969704 | AH50: 16.60503169 | AI50: 13.38544612 | AJ50: 13.11969704 | AL50: =IF(EMCI!$F$27="A",'1st milking (D)'!AF50,IF(EMCI!$F$27="B",'1st milking (D)'!AG50,IF(EMCI!$F$27="S",'1st milking (D)'!AH50,IF(EMCI!$F$27="P",'1st milking (D)'!AI50,IF(EMCI!$F$27="FS",'1st milking (D)'!AJ50,"error"))))) -> 13.11969704
A51: =E75 -> 12 | B51: =AL75 -> 32.12654494 | E51: 18 | F51: 0.8235294118 | G51: 0.02941176471 | I51: 0.1643181631 | J51: 0.2760109992 | K51: 0.3444071566 | M51: 0.1610547257 | N51: 0.271876277 | O51: 0.341139899 | Q51: 0.004832887149 | R51: 2.221591576 | T51: 17.25133126 | V51: 0.008117970563 | W51: 1.332281804 | Y51: 13.49039437 | AA51: 0.01012962225 | AB51: 1.356265604 | AD51: 13.61240479 | AF51: 13.49039437 | AG51: 13.49039437 | AH51: 17.25133126 | AI51: 13.61240479 | AJ51: 13.49039437 | AL51: =IF(EMCI!$F$27="A",'1st milking (D)'!AF51,IF(EMCI!$F$27="B",'1st milking (D)'!AG51,IF(EMCI!$F$27="S",'1st milking (D)'!AH51,IF(EMCI!$F$27="P",'1st milking (D)'!AI51,IF(EMCI!$F$27="FS",'1st milking (D)'!AJ51,"error"))))) -> 13.49039437
A52: =E74 -> 12.25 | B52: =AL74 -> 30.67839745 | E52: 17.75 | F52: 0.8529411765 | G52: 0.02941176471 | I52: 0.1578240209 | J52: 0.267772744 | K52: 0.3378794821 | M52: 0.1546260487 | N52: 0.2637004015 | O52: 0.3346262469 | Q52: 0.004641882967 | R52: 2.226233458 | T52: 17.93854635 | V52: 0.007875668942 | W52: 1.340157473 | Y52: 13.87879012 | AA52: 0.009937631826 | AB52: 1.366203236 | AD52: 13.84767874 | AF52: 13.84767874 | AG52: 13.87879012 | AH52: 17.93854635 | AI52: 13.84767874 | AJ52: 13.87879012 | AL52: =IF(EMCI!$F$27="A",'1st milking (D)'!AF52,IF(EMCI!$F$27="B",'1st milking (D)'!AG52,IF(EMCI!$F$27="S",'1st milking (D)'!AH52,IF(EMCI!$F$27="P",'1st milking (D)'!AI52,IF(EMCI!$F$27="FS",'1st milking (D)'!AJ52,"error"))))) -> 13.87879012
A53: =E73 -> 12.5 | B53: =AL73 -> 29.32852206 | E53: 17.5 | F53: 0.8823529412 | G53: =F53-F52 -> 0.02941176471 | I53: 0.151460809 | J53: 0.2596592504 | K53: 0.3313805253 | M53: 0.1483283019 | N53: 0.255649292 | O53: 0.3281426405 | Q53: 0.004454729677 | R53: 2.230688188 | T53: 18.67015112 | V53: 0.007637036777 | W53: 1.34779451 | Y53: 14.28599885 | AA53: 0.009746486039 | AB53: 1.375949722 | AD53: 14.09158612 | AF53: 14.09158612 | AG53: 14.28599885 | AH53: 18.67015112 | AI53: 14.09158612 | AJ53: 14.28599885 | AL53: =IF(EMCI!$F$27="A",'1st milking (D)'!AF53,IF(EMCI!$F$27="B",'1st milking (D)'!AG53,IF(EMCI!$F$27="S",'1st milking (D)'!AH53,IF(EMCI!$F$27="P",'1st milking (D)'!AI53,IF(EMCI!$F$27="FS",'1st milking (D)'!AJ53,"error"))))) -> 14.28599885
A54: =E72 -> 12.75 | B54: =AL72 -> 28.06828129 | E54: =E53-0.25 -> 17.25 | F54: 0.9117647059 | G54: 0.02941176471 | I54: 0.1452285274 | J54: 0.251670527 | K54: 0.324912907 | M54: 0.1421614855 | N54: 0.2477229565 | O54: 0.321691631 | Q54: 0.004271427277 | R54: =R53+Q54 -> 2.234959615 | T54: 19.44999643 | V54: 0.007402074324 | W54: =W53+V54 -> 1.355196584 | Y54: 14.71322427 | AA54: 0.009556261971 | AB54: =AB53+AA54 -> 1.385505984 | AD54: 14.34446399 | AF54: 14.34446399 | AG54: 14.71322427 | AH54: 19.44999643 | AI54: 14.34446399 | AJ54: 14.71322427 | AL54: =IF(EMCI!$F$27="A",'1st milking (D)'!AF54,IF(EMCI!$F$27="B",'1st milking (D)'!AG54,IF(EMCI!$F$27="S",'1st milking (D)'!AH54,IF(EMCI!$F$27="P",'1st milking (D)'!AI54,IF(EMCI!$F$27="FS",'1st milking (D)'!AJ54,"error"))))) -> 14.71322427
A55: =E71 -> 13 | B55: =AL71 -> 26.88996623 | E55: 17 | F55: 0.9411764706 | G55: 0.02941176471 | I55: 0.1391271761 | J55: 0.2438065814 | K55: 0.3184791105 | M55: 0.1361255993 | N55: 0.2399214023 | O55: 0.3152756356 | Q55: 0.004091975768 | R55: 2.239051591 | T55: 20.28235999 | V55: =G55*J55 -> 0.007170781805 | W55: =W54+V55 -> 1.362367366 | Y55: 15.16176798 | AA55: =G55*K55 -> 0.009367032663 | AB55: =AB54+AA55 -> 1.394873016 | AD55: 14.60666942 | AF55: 14.60666942 | AG55: =Y55 -> 15.16176798 | AH55: =T55 -> 20.28235999 | AI55: =AD55 -> 14.60666942 | AJ55: 15.16176798 | AL55: =IF(EMCI!$F$27="A",'1st milking (D)'!AF55,IF(EMCI!$F$27="B",'1st milking (D)'!AG55,IF(EMCI!$F$27="S",'1st milking (D)'!AH55,IF(EMCI!$F$27="P",'1st milking (D)'!AI55,IF(EMCI!$F$27="FS",'1st milking (D)'!AJ55,"error"))))) -> 15.16176798
A56: =E70 -> 13.25 | B56: =AL70 -> 25.78667924 | E56: 16.75 | F56: 0.9705882353 | G56: 0.02941176471 | I56: 0.1331567551 | J56: 0.2360674201 | K56: 0.3120814885 | M56: 0.1302206434 | N56: 0.2322446354 | O56: 0.308896944 | Q56: 0.00391637515 | R56: 2.242967966 | T56: 21.17200438 | V56: 0.006943159414 | W56: 1.369310525 | Y56: 15.63303914 | AA56: 0.009178867309 | AB56: 1.404051883 | AD56: 14.87858072 | AF56: 14.87858072 | AG56: 15.63303914 | AH56: 21.17200438 | AI56: 14.87858072 | AJ56: 15.63303914 | AL56: =IF(EMCI!$F$27="A",'1st milking (D)'!AF56,IF(EMCI!$F$27="B",'1st milking (D)'!AG56,IF(EMCI!$F$27="S",'1st milking (D)'!AH56,IF(EMCI!$F$27="P",'1st milking (D)'!AI56,IF(EMCI!$F$27="FS",'1st milking (D)'!AJ56,"error"))))) -> 15.63303914
A57: =E69 -> 13.5 | B57: =AL69 -> 24.75223362 | E57: 16.5 | F57: 1 | G57: 0.02941176471 | I57: 0.1273172643 | J57: 0.228453049 | K57: 0.3057222694 | M57: 0.1244466178 | N57: 0.2246926613 | O57: 0.3025577248 | Q57: 0.003744625422 | R57: 2.246712592 | T57: 22.12424456 | V57: 0.006719207323 | W57: 1.376029733 | Y57: 16.12856533 | AA57: 0.008991831452 | AB57: 1.413043715 | AD57: 15.16059882 | AF57: 15.16059882 | AG57: 16.12856533 | AH57: 22.12424456 | AI57: 15.16059882 | AJ57: 16.12856533 | AL57: =IF(EMCI!$F$27="A",'1st milking (D)'!AF57,IF(EMCI!$F$27="B",'1st milking (D)'!AG57,IF(EMCI!$F$27="S",'1st milking (D)'!AH57,IF(EMCI!$F$27="P",'1st milking (D)'!AI57,IF(EMCI!$F$27="FS",'1st milking (D)'!AJ57,"error"))))) -> 16.12856533
A58: =E68 -> 13.75 | B58: =AL68 -> 23.78106746 | E58: 16.25 | F58: 1.029411765 | G58: 0.02941176471 | I58: 0.1216087039 | J58: 0.2209634731 | K58: 0.2994035635 | M58: 0.1188035225 | N58: 0.2172654848 | O58: 0.2962600318 | Q58: 0.003576726585 | R58: 2.250289318 | T58: 23.14502654 | V58: 0.00649892568 | W58: 1.382528658 | Y58: 16.65000469 | AA58: 0.008805987163 | AB58: 1.421849702 | AD58: 15.45314861 | AF58: 15.45314861 | AG58: 16.65000469 | AH58: 23.14502654 | AI58: 15.45314861 | AJ58: 16.65000469 | AL58: =IF(EMCI!$F$27="A",'1st milking (D)'!AF58,IF(EMCI!$F$27="B",'1st milking (D)'!AG58,IF(EMCI!$F$27="S",'1st milking (D)'!AH58,IF(EMCI!$F$27="P",'1st milking (D)'!AI58,IF(EMCI!$F$27="FS",'1st milking (D)'!AJ58,"error"))))) -> 16.65000469
A59: =E67 -> 14 | B59: =AL67 -> 22.86816942 | E59: 16 | F59: 1.058823529 | G59: 0.02941176471 | I59: 0.1160310737 | J59: 0.2135986969 | K59: 0.2931273694 | M59: 0.1132913575 | N59: 0.20996311 | O59: 0.2900058093 | Q59: 0.003412678639 | R59: 2.253701997 | T59: 24.24101947 | V59: 0.006282314616 | W59: 1.388810973 | Y59: 17.19915955 | AA59: 0.008621393217 | AB59: 1.430471095 | AD59: 15.75668058 | AF59: 15.75668058 | AG59: 17.19915955 | AH59: 24.24101947 | AI59: 15.75668058 | AJ59: 17.19915955 | AL59: =IF(EMCI!$F$27="A",'1st milking (D)'!AF59,IF(EMCI!$F$27="B",'1st milking (D)'!AG59,IF(EMCI!$F$27="S",'1st milking (D)'!AH59,IF(EMCI!$F$27="P",'1st milking (D)'!AI59,IF(EMCI!$F$27="FS",'1st milking (D)'!AJ59,"error"))))) -> 17.19915955
A60: =E66 -> 14.25 | B60: =AL66 -> 22.0090146 | E60: 15.75 | F60: 1.088235294 | G60: 0.02941176471 | I60: 0.1105843739 | J60: 0.2063587244 | K60: 0.2868955786 | M60: 0.1079101228 | N60: 0.2027855405 | O60: 0.2837968979 | Q60: 0.003252481584 | R60: 2.256954479 | T60: 25.41972385 | V60: 0.006069374246 | W60: 1.394880347 | Y60: 17.77799169 | AA60: 0.008438105254 | AB60: 1.438909201 | AD60: 16.0716725 | AF60: 16.0716725 | AG60: 17.77799169 | AH60: 25.41972385 | AI60: 16.0716725 | AJ60: 17.77799169 | AL60: =IF(EMCI!$F$27="A",'1st milking (D)'!AF60,IF(EMCI!$F$27="B",'1st milking (D)'!AG60,IF(EMCI!$F$27="S",'1st milking (D)'!AH60,IF(EMCI!$F$27="P",'1st milking (D)'!AI60,IF(EMCI!$F$27="FS",'1st milking (D)'!AJ60,"error"))))) -> 17.77799169
A61: =E65 -> 14.5 | B61: =AL65 -> 21.19950899 | E61: 15.5 | F61: 1.117647059 | G61: 0.02941176471 | I61: 0.1052686043 | J61: 0.1992435588 | K61: 0.280709982 | M61: 0.1026598183 | N61: 0.1957327795 | O61: 0.2776350396 | Q61: 0.003096135419 | R61: 2.260050614 | T61: 26.68959902 | V61: 0.005860104669 | W61: 1.400740452 | Y61: 18.38863964 | AA61: 0.00825617594 | AB61: 1.447165377 | AD61: 16.3986312 | AF61: 16.3986312 | AG61: 18.38863964 | AH61: 26.68959902 | AI61: 16.3986312 | AJ61: 18.38863964 | AL61: =IF(EMCI!$F$27="A",'1st milking (D)'!AF61,IF(EMCI!$F$27="B",'1st milking (D)'!AG61,IF(EMCI!$F$27="S",'1st milking (D)'!AH61,IF(EMCI!$F$27="P",'1st milking (D)'!AI61,IF(EMCI!$F$27="FS",'1st milking (D)'!AJ61,"error"))))) -> 18.38863964
A62: =E64 -> 14.75 | B62: =AL64 -> 20.43594111 | E62: 15.25 | F62: 1.147058824 | G62: 0.02941176471 | I62: 0.1000837649 | J62: 0.1922532031 | K62: 0.274572274 | M62: 0.09754044415 | N62: 0.1888048299 | O62: 0.2715218829 | Q62: 0.002943640146 | R62: 2.262994254 | T62: 28.0602141 | V62: 0.005654505974 | W62: 1.406394958 | Y62: 19.0334381 | AA62: 0.008075655119 | AB62: 1.455241032 | AD62: 16.73809463 | AF62: 16.73809463 | AG62: 19.0334381 | AH62: 28.0602141 | AI62: 16.73809463 | AJ62: 19.0334381 | AL62: =IF(EMCI!$F$27="A",'1st milking (D)'!AF62,IF(EMCI!$F$27="B",'1st milking (D)'!AG62,IF(EMCI!$F$27="S",'1st milking (D)'!AH62,IF(EMCI!$F$27="P",'1st milking (D)'!AI62,IF(EMCI!$F$27="FS",'1st milking (D)'!AJ62,"error"))))) -> 19.0334381
A63: =E63 -> 15 | B63: =AL63 -> 19.71493994 | E63: 15 | F63: 1.176470588 | G63: 0.02941176471 | I63: 0.09502985592 | J63: 0.18538766 | K63: 0.2684840583 | M63: 0.09255200027 | N63: 0.1820016939 | O63: 0.2654589874 | Q63: 0.002794995762 | R63: 2.26578925 | T63: 29.54242742 | V63: 0.005452578236 | W63: 1.411847536 | Y63: 19.71493994 | AA63: 0.007896589951 | AB63: 1.463137622 | AD63: 17.09063394 | AF63: 17.09063394 | AG63: 19.71493994 | AH63: 29.54242742 | AI63: 17.09063394 | AJ63: 19.71493994 | AL63: =IF(EMCI!$F$27="A",'1st milking (D)'!AF63,IF(EMCI!$F$27="B",'1st milking (D)'!AG63,IF(EMCI!$F$27="S",'1st milking (D)'!AH63,IF(EMCI!$F$27="P",'1st milking (D)'!AI63,IF(EMCI!$F$27="FS",'1st milking (D)'!AJ63,"error"))))) -> 19.71493994
A64: =E62 -> 15.25 | B64: =AL62 -> 19.0334381 | E64: 14.75 | F64: 1.205882353 | G64: 0.02941176471 | I64: 0.09010687719 | J64: 0.1786469318 | K64: 0.2624468518 | M64: 0.08769448668 | N64: 0.1753233738 | O64: 0.2594478286 | Q64: 0.00265020227 | R64: 2.268439452 | T64: =IF(M64=0,T63,($G$15-R64)/M64) -> 31.14860069 | V64: 0.005254321522 | W64: 1.417101857 | Y64: 20.43594111 | AA64: 0.007719025054 | AB64: 1.470856647 | AD64: 17.45685589 | AF64: 17.45685589 | AG64: 20.43594111 | AH64: 31.14860069 | AI64: 17.45685589 | AJ64: 20.43594111 | AL64: =IF(EMCI!$F$27="A",'1st milking (D)'!AF64,IF(EMCI!$F$27="B",'1st milking (D)'!AG64,IF(EMCI!$F$27="S",'1st milking (D)'!AH64,IF(EMCI!$F$27="P",'1st milking (D)'!AI64,IF(EMCI!$F$27="FS",'1st milking (D)'!AJ64,"error"))))) -> 20.43594111
A65: =E61 -> 15.5 | B65: =AL61 -> 18.38863964 | E65: 14.5 | F65: 1.235294118 | G65: 0.02941176471 | I65: 0.08531482873 | J65: 0.1720310203 | K65: 0.2564620895 | M65: 0.08296790337 | N65: 0.1687698714 | O65: 0.2534898019 | Q65: 0.002509259669 | R65: 2.270948712 | T65: 32.89285588 | V65: 0.005059735891 | W65: 1.422161593 | Y65: 21.19950899 | AA65: 0.007543002633 | AB65: 1.478399649 | AD65: 17.83740536 | AF65: 17.83740536 | AG65: 21.19950899 | AH65: 32.89285588 | AI65: 17.83740536 | AJ65: 21.19950899 | AL65: =IF(EMCI!$F$27="A",'1st milking (D)'!AF65,IF(EMCI!$F$27="B",'1st milking (D)'!AG65,IF(EMCI!$F$27="S",'1st milking (D)'!AH65,IF(EMCI!$F$27="P",'1st milking (D)'!AI65,IF(EMCI!$F$27="FS",'1st milking (D)'!AJ65,"error"))))) -> 21.19950899
A66: =E60 -> 15.75 | B66: =AL60 -> 17.77799169 | E66: 14.25 | F66: 1.264705882 | G66: 0.02941176471 | I66: 0.08065371057 | J66: 0.1655399274 | K66: 0.2505311284 | M66: 0.07837225034 | N66: 0.1623411884 | O66: 0.2475862272 | Q66: 0.002372167958 | R66: 2.27332088 | T66: 34.79138481 | V66: 0.004868821394 | W66: 1.427030415 | Y66: 22.0090146 | AA66: 0.007368562601 | AB66: 1.485768212 | AD66: 18.23296813 | AF66: 18.23296813 | AG66: 22.0090146 | AH66: 34.79138481 | AI66: 18.23296813 | AJ66: 22.0090146 | AL66: =IF(EMCI!$F$27="A",'1st milking (D)'!AF66,IF(EMCI!$F$27="B",'1st milking (D)'!AG66,IF(EMCI!$F$27="S",'1st milking (D)'!AH66,IF(EMCI!$F$27="P",'1st milking (D)'!AI66,IF(EMCI!$F$27="FS",'1st milking (D)'!AJ66,"error"))))) -> 22.0090146
A67: =E59 -> 16 | B67: =AL59 -> 17.19915955 | E67: 14 | F67: =(E67-$F$11)/$F$10 -> 1.294117647 | G67: 0.02941176471 | I67: 0.07612352269 | J67: 0.1591736545 | K67: 0.2446552518 | M67: 0.0739075276 | N67: 0.156037326 | O67: 0.241738352 | Q67: 0.002238927138 | R67: 2.275559807 | T67: 36.86282415 | V67: 0.004681578075 | W67: 1.431711993 | Y67: 22.86816942 | AA67: 0.007195742701 | AB67: 1.492963955 | AD67: 18.6442739 | AF67: 18.6442739 | AG67: 22.86816942 | AH67: 36.86282415 | AI67: 18.6442739 | AJ67: 22.86816942 | AL67: =IF(EMCI!$F$27="A",'1st milking (D)'!AF67,IF(EMCI!$F$27="B",'1st milking (D)'!AG67,IF(EMCI!$F$27="S",'1st milking (D)'!AH67,IF(EMCI!$F$27="P",'1st milking (D)'!AI67,IF(EMCI!$F$27="FS",'1st milking (D)'!AJ67,"error"))))) -> 22.86816942
A68: =E58 -> 16.25 | B68: =AL58 -> 16.65000469 | E68: 13.75 | F68: 1.323529412 | G68: 0.02941176471 | I68: 0.07172426509 | J68: 0.152932203 | K68: 0.2388356729 | M68: 0.06957373515 | N68: 0.1498582857 | O68: 0.235947356 | Q68: 0.002109537209 | R68: 2.277669344 | T68: 39.12871215 | V68: 0.004498005972 | W68: 1.436209999 | Y68: 23.78106746 | AA68: 0.007024578616 | AB68: 1.499988533 | AD68: 19.07209957 | AF68: 19.07209957 | AG68: 23.78106746 | AH68: 39.12871215 | AI68: 19.07209957 | AJ68: 23.78106746 | AL68: =IF(EMCI!$F$27="A",'1st milking (D)'!AF68,IF(EMCI!$F$27="B",'1st milking (D)'!AG68,IF(EMCI!$F$27="S",'1st milking (D)'!AH68,IF(EMCI!$F$27="P",'1st milking (D)'!AI68,IF(EMCI!$F$27="FS",'1st milking (D)'!AJ68,"error"))))) -> 23.78106746
A69: =E57 -> 16.5 | B69: =AL57 -> 16.12856533 | E69: 13.5 | F69: 1.352941176 | G69: 0.02941176471 | I69: 0.06745593778 | J69: 0.1468155741 | K69: 0.2330735386 | M69: 0.06537087298 | N69: 0.1438040684 | O69: 0.2302143542 | Q69: 0.00198399817 | R69: 2.279653342 | T69: 41.61404818 | V69: 0.00431810512 | W69: 1.440528104 | Y69: 24.75223362 | AA69: 0.006855104077 | AB69: 1.506843637 | AD69: 19.51727284 | AF69: 19.51727284 | AG69: 24.75223362 | AH69: 41.61404818 | AI69: 19.51727284 | AJ69: 24.75223362 | AL69: =IF(EMCI!$F$27="A",'1st milking (D)'!AF69,IF(EMCI!$F$27="B",'1st milking (D)'!AG69,IF(EMCI!$F$27="S",'1st milking (D)'!AH69,IF(EMCI!$F$27="P",'1st milking (D)'!AI69,IF(EMCI!$F$27="FS",'1st milking (D)'!AJ69,"error"))))) -> 24.75223362
A70: =E56 -> 16.75 | B70: =AL56 -> 15.63303914 | E70: 13.25 | F70: 1.382352941 | G70: 0.02941176471 | I70: 0.06331854076 | J70: 0.1408237686 | K70: 0.2273699327 | M70: 0.0612989411 | N70: 0.137874675 | O70: 0.2245404003 | Q70: 0.001862310022 | R70: 2.281515652 | T70: 44.34798218 | V70: 0.004141875548 | W70: 1.444669979 | Y70: 25.78667924 | AA70: 0.006687350963 | AB70: 1.513530988 | AD70: 19.98067611 | AF70: 19.98067611 | AG70: 25.78667924 | AH70: 44.34798218 | AI70: 19.98067611 | AJ70: 25.78667924 | AL70: =IF(EMCI!$F$27="A",'1st milking (D)'!AF70,IF(EMCI!$F$27="B",'1st milking (D)'!AG70,IF(EMCI!$F$27="S",'1st milking (D)'!AH70,IF(EMCI!$F$27="P",'1st milking (D)'!AI70,IF(EMCI!$F$27="FS",'1st milking (D)'!AJ70,"error"))))) -> 25.78667924
A71: =E55 -> 17 | B71: =AL55 -> 15.16176798 | E71: 13 | F71: 1.411764706 | G71: 0.02941176471 | I71: 0.05931207402 | J71: 0.1349567876 | K71: 0.2217258796 | M71: 0.05735793951 | N71: 0.1320701065 | O71: 0.2189264899 | Q71: 0.001744472765 | R71: 2.283260125 | T71: 47.36466997 | V71: 0.003969317282 | W71: 1.448639297 | Y71: 26.88996623 | AA71: 0.006521349401 | AB71: 1.520052338 | AD71: 20.46325076 | AF71: 20.46325076 | AG71: 26.88996623 | AH71: 47.36466997 | AI71: 20.46325076 | AJ71: 26.88996623 | AL71: =IF(EMCI!$F$27="A",'1st milking (D)'!AF71,IF(EMCI!$F$27="B",'1st milking (D)'!AG71,IF(EMCI!$F$27="S",'1st milking (D)'!AH71,IF(EMCI!$F$27="P",'1st milking (D)'!AI71,IF(EMCI!$F$27="FS",'1st milking (D)'!AJ71,"error"))))) -> 26.88996623
A72: =E54 -> 17.25 | B72: =AL54 -> 14.71322427 | E72: =E71-0.25 -> 12.75 | F72: 1.441176471 | G72: 0.02941176471 | I72: 0.05543653757 | J72: 0.1292146317 | K72: 0.2161423471 | M72: 0.0535478682 | N72: 0.1263903634 | O72: 0.2133735637 | Q72: 0.001630486399 | R72: 2.284890612 | T72: 50.70434137 | V72: 0.003800430345 | W72: 1.452439727 | Y72: 28.06828129 | AA72: 0.006357127855 | AB72: 1.526409465 | AD72: 20.96600187 | AF72: 20.96600187 | AG72: 28.06828129 | AH72: 50.70434137 | AI72: 20.96600187 | AJ72: 28.06828129 | AL72: =IF(EMCI!$F$27="A",'1st milking (D)'!AF72,IF(EMCI!$F$27="B",'1st milking (D)'!AG72,IF(EMCI!$F$27="S",'1st milking (D)'!AH72,IF(EMCI!$F$27="P",'1st milking (D)'!AI72,IF(EMCI!$F$27="FS",'1st milking (D)'!AJ72,"error"))))) -> 28.06828129
A73: =E53 -> 17.5 | B73: =AL53 -> 14.28599885 | E73: 12.5 | F73: 1.470588235 | G73: 0.02941176471 | I73: 0.0516919314 | J73: 0.1235973017 | K73: 0.2106202492 | M73: 0.04986872717 | N73: 0.1208354465 | O73: 0.2078825101 | Q73: 0.001520350923 | R73: 2.286410962 | T73: 54.41464404 | V73: 0.003635214755 | W73: 1.456074942 | Y73: 29.32852206 | AA73: 0.006194713213 | AB73: 1.532604179 | AD73: 21.49000326 | AF73: 21.49000326 | AG73: 29.32852206 | AH73: 54.41464404 | AI73: 21.49000326 | AJ73: 29.32852206 | AL73: =IF(EMCI!$F$27="A",'1st milking (D)'!AF73,IF(EMCI!$F$27="B",'1st milking (D)'!AG73,IF(EMCI!$F$27="S",'1st milking (D)'!AH73,IF(EMCI!$F$27="P",'1st milking (D)'!AI73,IF(EMCI!$F$27="FS",'1st milking (D)'!AJ73,"error"))))) -> 29.32852206
A74: =E52 -> 17.75 | B74: =AL52 -> 13.87879012 | E74: 12.25 | F74: 1.5 | G74: 0.02941176471 | I74: 0.04807825552 | J74: 0.118104798 | K74: 0.2051604497 | M74: 0.04632051643 | N74: 0.1154053563 | O74: 0.2024541685 | Q74: 0.001414066339 | R74: 2.287825029 | T74: 58.55234743 | V74: 0.00347367053 | W74: 1.459548612 | Y74: 30.67839745 | AA74: 0.006034130874 | AB74: 1.53863831 | AD74: 22.03640322 | AF74: 22.03640322 | AG74: 30.67839745 | AH74: 58.55234743 | AI74: 22.03640322 | AJ74: 30.67839745 | AL74: =IF(EMCI!$F$27="A",'1st milking (D)'!AF74,IF(EMCI!$F$27="B",'1st milking (D)'!AG74,IF(EMCI!$F$27="S",'1st milking (D)'!AH74,IF(EMCI!$F$27="P",'1st milking (D)'!AI74,IF(EMCI!$F$27="FS",'1st milking (D)'!AJ74,"error"))))) -> 30.67839745
A75: =E51 -> 18 | B75: =AL51 -> 13.49039437 | E75: 12 | F75: 1.529411765 | G75: 0.02941176471 | I75: 0.04459550992 | J75: 0.1127371213 | K75: 0.199763764 | M75: 0.04290323598 | N75: 0.1101000931 | O75: 0.1970893311 | Q75: 0.001311632645 | R75: =R74+Q75 -> 2.289136661 | T75: 63.18552148 | V75: 0.003315797685 | W75: =W74+V75 -> 1.46286441 | Y75: 32.12654494 | AA75: 0.005875404823 | AB75: =AB74+AA75 -> 1.544513714 | AD75: 22.6064306 | AF75: 22.6064306 | AG75: 32.12654494 | AH75: 63.18552148 | AI75: 22.6064306 | AJ75: 32.12654494 | AL75: =IF(EMCI!$F$27="A",'1st milking (D)'!AF75,IF(EMCI!$F$27="B",'1st milking (D)'!AG75,IF(EMCI!$F$27="S",'1st milking (D)'!AH75,IF(EMCI!$F$27="P",'1st milking (D)'!AI75,IF(EMCI!$F$27="FS",'1st milking (D)'!AJ75,"error"))))) -> 32.12654494
A76: =E50 -> 18.25 | B76: =AL50 -> 13.11969704 | E76: 11.75 | F76: 1.558823529 | G76: =F76-F75 -> 0.02941176471 | I76: 0.04124369461 | J76: 0.1074942719 | K76: 0.194430962 | M76: 0.03961688581 | N76: 0.1049196575 | O76: 0.1917887462 | Q76: 0.001213049841 | R76: 2.290349711 | T76: 68.3963475 | V76: 0.003161596232 | W76: =W75+V76 -> 1.466026006 | Y76: 33.68266802 | AA76: 0.005718557706 | AB76: =AB75+AA76 -> 1.550232272 | AD76: 23.20140163 | AF76: 23.20140163 | AG76: 33.68266802 | AH76: 68.3963475 | AI76: 23.20140163 | AJ76: 33.68266802 | AL76: =IF(EMCI!$F$27="A",'1st milking (D)'!AF76,IF(EMCI!$F$27="B",'1st milking (D)'!AG76,IF(EMCI!$F$27="S",'1st milking (D)'!AH76,IF(EMCI!$F$27="P",'1st milking (D)'!AI76,IF(EMCI!$F$27="FS",'1st milking (D)'!AJ76,"error"))))) -> 33.68266802
A77: =E49 -> 18.5 | B77: =AL49 -> 12.76566494 | E77: 11.5 | F77: 1.588235294 | G77: 0.02941176471 | I77: 0.03802280958 | J77: 0.1023762502 | K77: 0.1891627707 | M77: 0.03646146593 | N77: 0.09986404986 | O77: 0.1865531201 | Q77: 0.001118317929 | R77: 2.291468029 | T77: 74.28477989 | V77: 0.003011066182 | W77: 1.469037072 | Y77: 35.35769812 | AA77: 0.005563610904 | AB77: 1.555795883 | AD77: 23.82272736 | AF77: 23.82272736 | AG77: 35.35769812 | AH77: 74.28477989 | AI77: 23.82272736 | AJ77: 35.35769812 | AL77: =IF(EMCI!$F$27="A",'1st milking (D)'!AF77,IF(EMCI!$F$27="B",'1st milking (D)'!AG77,IF(EMCI!$F$27="S",'1st milking (D)'!AH77,IF(EMCI!$F$27="P",'1st milking (D)'!AI77,IF(EMCI!$F$27="FS",'1st milking (D)'!AJ77,"error"))))) -> 35.35769812
A78: =E48 -> 18.75 | B78: =AL48 -> 12.42733924 | E78: 11.25 | F78: 1.617647059 | G78: 0.02941176471 | I78: 0.03493285484 | J78: 0.09738305657 | K78: 0.1839598764 | M78: 0.03343697633 | N78: 0.09493327037 | O78: 0.1813831193 | Q78: 0.001027436907 | R78: 2.292495466 | T78: 80.97336634 | V78: 0.002864207546 | W78: 1.47190128 | Y78: 37.16398589 | AA78: 0.005410584599 | AB78: 1.561206468 | AD78: 24.47192191 | AF78: 24.47192191 | AG78: 37.16398589 | AH78: 80.97336634 | AI78: 24.47192191 | AJ78: 37.16398589 | AL78: =IF(EMCI!$F$27="A",'1st milking (D)'!AF78,IF(EMCI!$F$27="B",'1st milking (D)'!AG78,IF(EMCI!$F$27="S",'1st milking (D)'!AH78,IF(EMCI!$F$27="P",'1st milking (D)'!AI78,IF(EMCI!$F$27="FS",'1st milking (D)'!AJ78,"error"))))) -> 37.16398589
A79: =E47 -> 19 | B79: =AL47 -> 12.10382911 | E79: 11 | F79: 1.647058824 | G79: 0.02941176471 | I79: 0.03197383039 | J79: 0.09251469128 | K79: 0.1788229265 | M79: 0.03054341702 | N79: 0.09012731934 | O79: 0.176279373 | Q79: 0.0009404067762 | R79: 2.293435873 | T79: 88.61366511 | V79: 0.002721020332 | W79: 1.4746223 | Y79: 39.11552818 | AA79: 0.005259497837 | AB79: 1.566465965 | AD79: 25.15061155 | AF79: 25.15061155 | AG79: 39.11552818 | AH79: 88.61366511 | AI79: 25.15061155 | AJ79: 39.11552818 | AL79: =IF(EMCI!$F$27="A",'1st milking (D)'!AF79,IF(EMCI!$F$27="B",'1st milking (D)'!AG79,IF(EMCI!$F$27="S",'1st milking (D)'!AH79,IF(EMCI!$F$27="P",'1st milking (D)'!AI79,IF(EMCI!$F$27="FS",'1st milking (D)'!AJ79,"error"))))) -> 39.11552818
A80: =E46 -> 19.25 | B80: =AL46 -> 11.79430605 | E80: 10.75 | F80: 1.676470588 | G80: 0.02941176471 | I80: 0.02914573622 | J80: 0.08777115458 | K80: 0.1737525321 | M80: 0.02778078799 | N80: 0.08544619702 | O80: 0.1712424747 | Q80: 0.0008572275359 | R80: 2.2942931 | T80: 97.39489392 | V80: 0.002581504546 | W80: 1.477203805 | Y80: 41.22823856 | AA80: 0.005110368592 | AB80: 1.571576334 | AD80: 25.86054466 | AF80: 25.86054466 | AG80: 41.22823856 | AH80: 97.39489392 | AI80: 25.86054466 | AJ80: 41.22823856 | AL80: =IF(EMCI!$F$27="A",'1st milking (D)'!AF80,IF(EMCI!$F$27="B",'1st milking (D)'!AG80,IF(EMCI!$F$27="S",'1st milking (D)'!AH80,IF(EMCI!$F$27="P",'1st milking (D)'!AI80,IF(EMCI!$F$27="FS",'1st milking (D)'!AJ80,"error"))))) -> 41.22823856
A81: =E45 -> 19.5 | B81: =AL45 -> 11.4979987 | E81: 10.5 | F81: 1.705882353 | G81: 0.02941176471 | I81: 0.02644857234 | J81: 0.08315244668 | K81: 0.1687492698 | M81: 0.02514908925 | N81: 0.0808899036 | O81: 0.1662729844 | Q81: 0.0007778991864 | R81: 2.295071 | T81: 107.5557438 | V81: 0.002445660197 | W81: 1.479649465 | Y81: 43.52027111 | AA81: 0.004963213819 | AB81: 1.576539548 | AD81: 26.60360291 | AF81: 26.60360291 | AG81: 43.52027111 | AH81: 107.5557438 | AI81: 26.60360291 | AJ81: 43.52027111 | AL81: =IF(EMCI!$F$27="A",'1st milking (D)'!AF81,IF(EMCI!$F$27="B",'1st milking (D)'!AG81,IF(EMCI!$F$27="S",'1st milking (D)'!AH81,IF(EMCI!$F$27="P",'1st milking (D)'!AI81,IF(EMCI!$F$27="FS",'1st milking (D)'!AJ81,"error"))))) -> 43.52027111
A82: =E44 -> 19.75 | B82: =AL44 -> 11.21418823 | E82: 10.25 | F82: 1.735294118 | G82: 0.02941176471 | I82: 0.02388233874 | J82: 0.07865856778 | K82: 0.1638136835 | M82: 0.0226483208 | N82: 0.07645843925 | O82: 0.1613714302 | Q82: 0.0007024217277 | R82: 2.295773421 | T82: 119.4007539 | V82: 0.002313487288 | W82: 1.481962952 | Y82: 46.01240991 | AA82: 0.004818049514 | AB82: 1.581357597 | AD82: 27.38181348 | AF82: 27.38181348 | AG82: 46.01240991 | AH82: 119.4007539 | AI82: 27.38181348 | AJ82: 46.01240991 | AL82: =IF(EMCI!$F$27="A",'1st milking (D)'!AF82,IF(EMCI!$F$27="B",'1st milking (D)'!AG82,IF(EMCI!$F$27="S",'1st milking (D)'!AH82,IF(EMCI!$F$27="P",'1st milking (D)'!AI82,IF(EMCI!$F$27="FS",'1st milking (D)'!AJ82,"error"))))) -> 46.01240991
A83: =E43 -> 20 | B83: =AL43 -> 10.94220405 | E83: 10 | F83: 1.764705882 | G83: 0.02941176471 | I83: 0.02144703543 | J83: 0.07428951803 | K83: 0.158946286 | M83: 0.02027848263 | N83: 0.07215180413 | O83: 0.1565383103 | Q83: 0.0006307951597 | R83: 2.296404216 | T83: 133.3233769 | V83: 0.002184985824 | W83: 1.484147938 | Y83: 48.72853984 | AA83: 0.004674890763 | AB83: 1.586032488 | AD83: 28.19736271 | AF83: 28.19736271 | AG83: 48.72853984 | AH83: 133.3233769 | AI83: 28.19736271 | AJ83: 48.72853984 | AL83: =IF(EMCI!$F$27="A",'1st milking (D)'!AF83,IF(EMCI!$F$27="B",'1st milking (D)'!AG83,IF(EMCI!$F$27="S",'1st milking (D)'!AH83,IF(EMCI!$F$27="P",'1st milking (D)'!AI83,IF(EMCI!$F$27="FS",'1st milking (D)'!AJ83,"error"))))) -> 48.72853984
A84: =E42 -> 20.25 | B84: =AL42 -> 10.68142004 | E84: 9.75 | F84: 1.794117647 | G84: 0.02941176471 | I84: 0.0191426624 | J84: 0.07004529757 | K84: 0.1541475609 | M84: 0.01803957475 | N84: 0.06796999836 | O84: 0.1517740942 | Q84: 0.0005630194824 | R84: 2.296967236 | T84: 149.8390512 | V84: 0.002060155811 | W84: 1.486208094 | Y84: 51.69621878 | AA84: 0.004533751792 | AB84: 1.59056624 | AD84: 29.05261128 | AF84: 29.05261128 | AG84: 51.69621878 | AH84: 149.8390512 | AI84: 29.05261128 | AJ84: 51.69621878 | AL84: =IF(EMCI!$F$27="A",'1st milking (D)'!AF84,IF(EMCI!$F$27="B",'1st milking (D)'!AG84,IF(EMCI!$F$27="S",'1st milking (D)'!AH84,IF(EMCI!$F$27="P",'1st milking (D)'!AI84,IF(EMCI!$F$27="FS",'1st milking (D)'!AJ84,"error"))))) -> 51.69621878
A85: =E41 -> 20.5 | B85: =AL41 -> 10.43125103 | E85: 9.5 | F85: 1.823529412 | G85: 0.02941176471 | I85: 0.01696921966 | J85: 0.06592590652 | K85: 0.1494179645 | M85: 0.01593159715 | N85: 0.06391302207 | O85: 0.1470792247 | Q85: 0.000499094696 | R85: 2.297466331 | T85: 169.6335681 | V85: 0.001938997251 | W85: 1.488147091 | Y85: 54.94737684 | AA85: 0.004394646014 | AB85: 1.594960886 | AD85: 29.95011105 | AF85: 29.95011105 | AG85: 54.94737684 | AH85: 169.6335681 | AI85: 29.95011105 | AJ85: 54.94737684 | AL85: =IF(EMCI!$F$27="A",'1st milking (D)'!AF85,IF(EMCI!$F$27="B",'1st milking (D)'!AG85,IF(EMCI!$F$27="S",'1st milking (D)'!AH85,IF(EMCI!$F$27="P",'1st milking (D)'!AI85,IF(EMCI!$F$27="FS",'1st milking (D)'!AJ85,"error"))))) -> 54.94737684
A86: =E40 -> 20.75 | B86: =AL40 -> 10.19114965 | E86: 9.25 | F86: 1.852941176 | G86: 0.02941176471 | I86: 0.01492670721 | J86: 0.061931345 | K86: 0.1447579264 | M86: 0.01395454984 | N86: 0.05998087534 | O86: 0.1424541193 | Q86: 0.0004390208002 | R86: 2.297905351 | T86: 193.6353863 | V86: 0.001821510147 | W86: 1.489968601 | Y86: 58.51917597 | AA86: 0.004257586071 | AB86: 1.599218472 | AD86: 30.89262388 | AF86: 30.89262388 | AG86: 58.51917597 | AH86: 193.6353863 | AI86: 30.89262388 | AJ86: 58.51917597 | AL86: =IF(EMCI!$F$27="A",'1st milking (D)'!AF86,IF(EMCI!$F$27="B",'1st milking (D)'!AG86,IF(EMCI!$F$27="S",'1st milking (D)'!AH86,IF(EMCI!$F$27="P",'1st milking (D)'!AI86,IF(EMCI!$F$27="FS",'1st milking (D)'!AJ86,"error"))))) -> 58.51917597
A87: =E39 -> 21 | B87: =AL39 -> 9.960603419 | E87: 9 | F87: 1.882352941 | G87: 0.02941176471 | I87: 0.01301512504 | J87: 0.05806161309 | K87: 0.1401678519 | M87: 0.01210843281 | N87: 0.05617355826 | O87: 0.1378991712 | Q87: 0.0003827977952 | R87: 2.298288149 | T87: 223.1264684 | V87: =G87*J87 -> 0.001707694503 | W87: 1.491676296 | Y87: 62.45507339 | AA87: =G87*K87 -> 0.00412258388 | AB87: 1.603341056 | AD87: 31.88314262 | AF87: 31.88314262 | AG87: =Y87 -> 62.45507339 | AH87: =T87 -> 223.1264684 | AI87: =AD87 -> 31.88314262 | AJ87: 62.45507339 | AL87: =IF(EMCI!$F$27="A",'1st milking (D)'!AF87,IF(EMCI!$F$27="B",'1st milking (D)'!AG87,IF(EMCI!$F$27="S",'1st milking (D)'!AH87,IF(EMCI!$F$27="P",'1st milking (D)'!AI87,IF(EMCI!$F$27="FS",'1st milking (D)'!AJ87,"error"))))) -> 62.45507339
A88: =E38 -> 21.25 | B88: =AL38 -> 9.739132169 | E88: 8.75 | F88: =(E88-$F$11)/$F$10 -> 1.911764706 | G88: 0.02941176471 | I88: 0.01123447315 | J88: 0.05431671087 | K88: 0.1356481229 | M88: =IF(E88>$H$15,(0.00033*(E88-5.6)*((6.5-2.8)*(1-EXP(0.5*(6.5-9.8)))*(36.7-0.9324)*(1-EXP(0.42*(-5-0.9324)))))^2,0) -> 0.01039324607 | N88: =IF(E88>$H$16,(((0.175*(E88-1.5)*SQRT(0.995-0.92)*(1-EXP(0.4395*(E88-45)))))^2)/2.3,0) -> 0.05249107091 | O88: 0.1334147511 | Q88: =G88*I88 -> 0.000330425681 | R88: 2.298618575 | T88: =IF(M88=0,T87,($G$15-R88)/M88) -> 259.9170083 | V88: 0.00159755032 | W88: 1.493273846 | Y88: =($G$16-W88)/N88 -> 66.80614613 | AA88: 0.003989650672 | AB88: 1.607330707 | AD88: =($G$17-AB88)/O88 -> 32.92491466 | AF88: =+MIN(AG88:AI88) -> 32.92491466 | AG88: 66.80614613 | AH88: 259.9170083 | AI88: 32.92491466 | AJ88: =MIN(AG88:AH88) -> 66.80614613 | AL88: =IF(EMCI!$F$27="A",'1st milking (D)'!AF88,IF(EMCI!$F$27="B",'1st milking (D)'!AG88,IF(EMCI!$F$27="S",'1st milking (D)'!AH88,IF(EMCI!$F$27="P",'1st milking (D)'!AI88,IF(EMCI!$F$27="FS",'1st milking (D)'!AJ88,"error"))))) -> 66.80614613
A89: =E37 -> 21.5 | B89: =AL37 -> 9.526285597 | E89: =E88-0.25 -> 8.5 | F89: 1.941176471 | G89: =F89-F88 -> 0.02941176471 | I89: =IF(E89>$H$15,(0.00033*(((E89+E88)/2)-5.6)*((6.5-2.8)*(1-EXP(0.5*(6.5-9.8)))*(36.7-0.9324)*(1-EXP(0.42*(-5-0.9324)))))^2,0) -> 0.009584751556 | J89: =IF(E89>$H$16,(((0.175*(((E89+E88)/2)-1.5)*SQRT(0.995-0.92)*(1-EXP(0.4395*(((E89+E88)/2)-45)))))^2)/2.3,0) -> 0.0506966384 | K89: =IF(E89>$H$17,((0.1709*(((E89+E88)/2)+6.1)*SQRT(0.995-0.947)*(1-EXP(0.1723*(((E89+E88)/2)-41.2))))^2)/2.3,0) -> 0.1311990989 | M89: 0.008808989614 | N89: 0.04893341335 | O89: 0.129001208 | Q89: 0.0002819044575 | R89: =R88+Q89 -> 2.298900479 | T89: =IF(M89=0,T88,($G$15-R89)/M89) -> 306.6298905 | V89: 0.0014910776 | W89: 1.494764924 | Y89: 71.63275227 | AA89: 0.003858797027 | AB89: 1.611189504 | AD89: 34.0214682 | AF89: 34.0214682 | AG89: 71.63275227 | AH89: 306.6298905 | AI89: 34.0214682 | AJ89: 71.63275227 | AL89: =IF(EMCI!$F$27="A",'1st milking (D)'!AF89,IF(EMCI!$F$27="B",'1st milking (D)'!AG89,IF(EMCI!$F$27="S",'1st milking (D)'!AH89,IF(EMCI!$F$27="P",'1st milking (D)'!AI89,IF(EMCI!$F$27="FS",'1st milking (D)'!AJ89,"error"))))) -> 71.63275227
A90: =E36 -> 21.75 | B90: =AL36 -> 9.321641091 | E90: 8.25 | F90: 1.970588235 | G90: 0.02941176471 | I90: 0.008065960243 | J90: 0.04720139576 | K90: 0.126821119 | M90: 0.007355663444 | N90: 0.04550058563 | O90: 0.124658871 | Q90: 0.0002372341248 | R90: 2.299137714 | T90: 367.18133 | V90: 0.001388276346 | W90: 1.4961532 | Y90: 77.00663082 | AA90: 0.00373003291 | AB90: 1.614919537 | AD90: 35.1766419 | AF90: 35.1766419 | AG90: 77.00663082 | AH90: 367.18133 | AI90: 35.1766419 | AJ90: 77.00663082 | AL90: =IF(EMCI!$F$27="A",'1st milking (D)'!AF90,IF(EMCI!$F$27="B",'1st milking (D)'!AG90,IF(EMCI!$F$27="S",'1st milking (D)'!AH90,IF(EMCI!$F$27="P",'1st milking (D)'!AI90,IF(EMCI!$F$27="FS",'1st milking (D)'!AJ90,"error"))))) -> 77.00663082
A91: =E35 -> 22 | B91: =AL35 -> 9.124801723 | E91: 8 | F91: 2 | G91: 0.02941176471 | I91: 0.006678099216 | J91: 0.04383098297 | K91: 0.1225145022 | M91: 0.006033267559 | N91: 0.0421925878 | O91: 0.1203880496 | Q91: 0.0001964146828 | R91: 2.299334128 | T91: 447.6290576 | V91: 0.001289146558 | W91: 1.497442347 | Y91: 83.01357741 | AA91: 0.003603367711 | AB91: 1.618522904 | AD91: 36.39461817 | AF91: 36.39461817 | AG91: 83.01357741 | AH91: 447.6290576 | AI91: 36.39461817 | AJ91: 83.01357741 | AL91: =IF(EMCI!$F$27="A",'1st milking (D)'!AF91,IF(EMCI!$F$27="B",'1st milking (D)'!AG91,IF(EMCI!$F$27="S",'1st milking (D)'!AH91,IF(EMCI!$F$27="P",'1st milking (D)'!AI91,IF(EMCI!$F$27="FS",'1st milking (D)'!AJ91,"error"))))) -> 83.01357741
A92: =E34 -> 22.25 | B92: =AL34 -> 8.935394411 | E92: 7.75 | F92: 2.029411765 | G92: 0.02941176471 | I92: 0.005421168474 | J92: 0.0405854001 | K92: 0.1182795491 | M92: 0.004841801961 | N92: 0.03900941989 | O92: 0.1161890355 | Q92: 0.0001594461316 | R92: 2.299493574 | T92: 557.7482201 | V92: 0.001193688238 | W92: 1.498636035 | Y92: 89.75688371 | AA92: 0.003478810267 | AB92: 1.622001714 | AD92: 37.67996065 | AF92: 37.67996065 | AG92: 89.75688371 | AH92: 557.7482201 | AI92: 37.67996065 | AJ92: 89.75688371 | AL92: =IF(EMCI!$F$27="A",'1st milking (D)'!AF92,IF(EMCI!$F$27="B",'1st milking (D)'!AG92,IF(EMCI!$F$27="S",'1st milking (D)'!AH92,IF(EMCI!$F$27="P",'1st milking (D)'!AI92,IF(EMCI!$F$27="FS",'1st milking (D)'!AJ92,"error"))))) -> 89.75688371
A93: =E33 -> 22.5 | B93: =AL33 -> 8.753068232 | E93: 7.5 | F93: 2.058823529 | G93: 0.02941176471 | I93: 0.004295168018 | J93: 0.03746464718 | K93: 0.1141165426 | M93: 0.003781266648 | N93: 0.03595108196 | O93: 0.1120621033 | Q93: 0.0001263284711 | R93: 2.299619903 | T93: 714.1469642 | V93: 0.001101901388 | W93: 1.499737936 | Y93: 97.36180035 | AA93: 0.003356368901 | AB93: 1.625358083 | AD93: 39.03765669 | AF93: 39.03765669 | AG93: 97.36180035 | AH93: 714.1469642 | AI93: 39.03765669 | AJ93: 97.36180035 | AL93: =IF(EMCI!$F$27="A",'1st milking (D)'!AF93,IF(EMCI!$F$27="B",'1st milking (D)'!AG93,IF(EMCI!$F$27="S",'1st milking (D)'!AH93,IF(EMCI!$F$27="P",'1st milking (D)'!AI93,IF(EMCI!$F$27="FS",'1st milking (D)'!AJ93,"error"))))) -> 97.36180035
A94: =E32 -> 22.75 | B94: =AL32 -> 8.577492879 | E94: 7.25 | F94: 2.088235294 | G94: 0.02941176471 | I94: 0.003300097848 | J94: 0.03446872423 | K94: 0.1100257492 | M94: 0.00285166162 | N94: 0.03301757401 | O94: 0.1080075113 | Q94: 9.706170141e-05 | R94: 2.299716964 | T94: 946.9156567 | V94: 0.001013786007 | W94: 1.500751722 | Y94: 105.9813867 | AA94: 0.003236051448 | AB94: 1.628594135 | AD94: 40.47316535 | AF94: 40.47316535 | AG94: 105.9813867 | AH94: 946.9156567 | AI94: 40.47316535 | AJ94: 105.9813867 | AL94: =IF(EMCI!$F$27="A",'1st milking (D)'!AF94,IF(EMCI!$F$27="B",'1st milking (D)'!AG94,IF(EMCI!$F$27="S",'1st milking (D)'!AH94,IF(EMCI!$F$27="P",'1st milking (D)'!AI94,IF(EMCI!$F$27="FS",'1st milking (D)'!AJ94,"error"))))) -> 105.9813867
A95: =E31 -> 23 | B95: =AL31 -> 8.408357243 | E95: 7 | F95: 2.117647059 | G95: 0.02941176471 | I95: 0.002435957963 | J95: 0.03159763129 | K95: 0.1060074195 | M95: 0.002052986878 | N95: 0.03020889608 | O95: 0.1040255028 | Q95: 7.164582245e-05 | R95: 2.29978861 | T95: =IF(M95=0,T94,($G$15-R95)/M95) -> 1315.259936 | V95: 0.0009293420969 | W95: 1.501681064 | Y95: 115.8042626 | AA95: 0.00311786528 | AB95: 1.631712 | AD95: 41.99247186 | AF95: 41.99247186 | AG95: 115.8042626 | AH95: 1315.259936 | AI95: 41.99247186 | AJ95: 115.8042626 | AL95: =IF(EMCI!$F$27="A",'1st milking (D)'!AF95,IF(EMCI!$F$27="B",'1st milking (D)'!AG95,IF(EMCI!$F$27="S",'1st milking (D)'!AH95,IF(EMCI!$F$27="P",'1st milking (D)'!AI95,IF(EMCI!$F$27="FS",'1st milking (D)'!AJ95,"error"))))) -> 115.8042626
A96: =E30 -> 23.25 | B96: =AL30 -> 8.245368104 | E96: =E95-0.25 -> 6.75 | F96: 2.147058824 | G96: 0.02941176471 | I96: 0.001702748364 | J96: 0.02885136838 | K96: 0.1020617894 | M96: 0.001385242421 | N96: 0.0275250482 | O96: 0.1001163065 | Q96: 5.008083423e-05 | R96: 2.299838691 | T96: =IF(M96=0,T95,($G$15-R96)/M96) -> 1949.233771 | V96: 0.0008485696584 | W96: 1.502529634 | Y96: 127.0650042 | AA96: 0.003001817335 | AB96: 1.634713817 | AD96: 43.60214969 | AF96: 43.60214969 | AG96: 127.0650042 | AH96: 1949.233771 | AI96: 43.60214969 | AJ96: 127.0650042 | AL96: =IF(EMCI!$F$27="A",'1st milking (D)'!AF96,IF(EMCI!$F$27="B",'1st milking (D)'!AG96,IF(EMCI!$F$27="S",'1st milking (D)'!AH96,IF(EMCI!$F$27="P",'1st milking (D)'!AI96,IF(EMCI!$F$27="FS",'1st milking (D)'!AJ96,"error"))))) -> 127.0650042
A97: =E29 -> 23.5 | B97: =AL29 -> 8.088248935 | E97: =E96-0.25 -> 6.5 | F97: 2.176470588 | G97: 0.02941176471 | I97: 0.00110046905 | J97: 0.02622993553 | K97: 0.0981890807 | M97: 0.0008484282506 | N97: 0.02496603037 | O97: 0.09628013763 | Q97: 3.236673677e-05 | R97: =R96+Q97 -> 2.299871058 | T97: 3182.507113 | V97: 0.0007714686919 | W97: =W96+V97 -> 1.503301103 | Y97: 140.058265 | AA97: 0.002887914138 | AB97: =AB96+AA97 -> 1.637601732 | AD97: 45.30943117 | AF97: 45.30943117 | AG97: 140.058265 | AH97: 3182.507113 | AI97: 45.30943117 | AJ97: 140.058265 | AL97: =IF(EMCI!$F$27="A",'1st milking (D)'!AF97,IF(EMCI!$F$27="B",'1st milking (D)'!AG97,IF(EMCI!$F$27="S",'1st milking (D)'!AH97,IF(EMCI!$F$27="P",'1st milking (D)'!AI97,IF(EMCI!$F$27="FS",'1st milking (D)'!AJ97,"error"))))) -> 140.058265
A98: =E28 -> 23.75 | B98: =AL28 -> 7.936738798 | E98: 6.25 | F98: 2.205882353 | G98: 0.02941176471 | I98: 0.0006291200222 | J98: 0.02373333274 | K98: 0.0943895022 | M98: 0.0004425443653 | N98: 0.02253184262 | O98: 0.09251719858 | Q98: 1.850353006e-05 | R98: =R97+Q98 -> 2.299889561 | T98: 6101.332771 | V98: 0.0006980391981 | W98: =W97+V98 -> 1.503999142 | Y98: 155.1582317 | AA98: 0.00277616183 | AB98: =AB97+AA98 -> 1.640377893 | AD98: 47.12228833 | AF98: 47.12228833 | AG98: 155.1582317 | AH98: 6101.332771 | AI98: 47.12228833 | AJ98: 155.1582317 | AL98: =IF(EMCI!$F$27="A",'1st milking (D)'!AF98,IF(EMCI!$F$27="B",'1st milking (D)'!AG98,IF(EMCI!$F$27="S",'1st milking (D)'!AH98,IF(EMCI!$F$27="P",'1st milking (D)'!AI98,IF(EMCI!$F$27="FS",'1st milking (D)'!AJ98,"error"))))) -> 155.1582317
A99: =E27 -> 24 | B99: =AL27 -> 7.79059132 | E99: 6 | F99: 2.235294118 | G99: 0.02941176471 | I99: 0.0002887012797 | J99: 0.02136156003 | K99: 0.09066325017 | M99: 0.0001675907655 | N99: 0.02022248496 | O99: =IF(E99>$H$17,((0.1709*(E99+6.1)*SQRT(0.995-0.947)*(1-EXP(0.1723*(E99-41.2))))^2)/2.3,0) -> 0.08882767969 | Q99: 8.491214109e-06 | R99: 2.299898053 | T99: 16111.28118 | V99: 0.0006282811773 | W99: 1.504627423 | Y99: 172.8458488 | AA99: 0.002666566182 | AB99: 1.64304446 | AD99: 49.04952551 | AF99: 49.04952551 | AG99: 172.8458488 | AH99: 16111.28118 | AI99: 49.04952551 | AJ99: 172.8458488 | AL99: =IF(EMCI!$F$27="A",'1st milking (D)'!AF99,IF(EMCI!$F$27="B",'1st milking (D)'!AG99,IF(EMCI!$F$27="S",'1st milking (D)'!AH99,IF(EMCI!$F$27="P",'1st milking (D)'!AI99,IF(EMCI!$F$27="FS",'1st milking (D)'!AJ99,"error"))))) -> 172.8458488
A100: =E26 -> 24.25 | B100: =AL26 -> 7.649573762 | E100: 5.75 | F100: 2.264705882 | G100: 0.02941176471 | I100: 7.921282278e-05 | J100: 0.01911461741 | K100: 0.08701050913 | M100: 2.35674514e-05 | N100: 0.0180379574 | O100: 0.08521175986 | Q100: 2.329788905e-06 | R100: 2.299900382 | T100: 114569.0118 | V100: 0.0005621946298 | W100: 1.505189618 | Y100: 193.7475683 | AA100: 0.002559132622 | AB100: 1.645603592 | AD100: 51.10088578 | AF100: 51.10088578 | AG100: 193.7475683 | AH100: 114569.0118 | AI100: 51.10088578 | AJ100: 193.7475683 | AL100: =IF(EMCI!$F$27="A",'1st milking (D)'!AF100,IF(EMCI!$F$27="B",'1st milking (D)'!AG100,IF(EMCI!$F$27="S",'1st milking (D)'!AH100,IF(EMCI!$F$27="P",'1st milking (D)'!AI100,IF(EMCI!$F$27="FS",'1st milking (D)'!AJ100,"error"))))) -> 193.7475683
A101: =E25 -> 24.5 | B101: =AL25 -> 7.51346615 | E101: 5.5 | F101: 2.294117647 | G101: 0.02941176471 | I101: 0 | J101: 0.01699250491 | K101: 0.08343145255 | M101: 0 | N101: 0.01597825995 | O101: 0.08166960726 | Q101: 0 | R101: 2.299900382 | T101: 114569.0118 | V101: 0.0004997795561 | W101: 1.505689397 | Y101: 218.6915605 | AA101: 0.002453866251 | AB101: 1.648057458 | AD101: 53.28717362 | AF101: 53.28717362 | AG101: 218.6915605 | AH101: 114569.0118 | AI101: 53.28717362 | AJ101: 218.6915605 | AL101: =IF(EMCI!$F$27="A",'1st milking (D)'!AF101,IF(EMCI!$F$27="B",'1st milking (D)'!AG101,IF(EMCI!$F$27="S",'1st milking (D)'!AH101,IF(EMCI!$F$27="P",'1st milking (D)'!AI101,IF(EMCI!$F$27="FS",'1st milking (D)'!AJ101,"error"))))) -> 218.6915605
A102: =E24 -> 24.75 | B102: =AL24 -> 7.38206048 | E102: 5.25 | F102: 2.323529412 | G102: 0.02941176471 | I102: 0 | J102: 0.01499522252 | K102: 0.07992624344 | M102: 0 | N102: 0.01404339262 | O102: 0.07820137991 | Q102: 0 | R102: 2.299900382 | T102: 114569.0118 | V102: 0.0004410359563 | W102: 1.506130433 | Y102: 248.7909911 | AA102: 0.002350771866 | AB102: 1.65040823 | AD102: 55.62039665 | AF102: 55.62039665 | AG102: 248.7909911 | AH102: 114569.0118 | AI102: 55.62039665 | AJ102: 248.7909911 | AL102: =IF(EMCI!$F$27="A",'1st milking (D)'!AF102,IF(EMCI!$F$27="B",'1st milking (D)'!AG102,IF(EMCI!$F$27="S",'1st milking (D)'!AH102,IF(EMCI!$F$27="P",'1st milking (D)'!AI102,IF(EMCI!$F$27="FS",'1st milking (D)'!AJ102,"error"))))) -> 248.7909911
A103: =E23 -> 25 | B103: =AL23 -> 7.255159975 | E103: 5 | F103: 2.352941176 | G103: 0.02941176471 | I103: 0 | J103: 0.01312277025 | K103: 0.07649503496 | M103: 0 | N103: 0.01223335541 | O103: 0.07480722627 | Q103: 0 | R103: 2.299900382 | T103: 114569.0118 | V103: 0.0003859638308 | W103: 1.506516397 | Y103: 285.5703513 | AA103: 0.002249853969 | AB103: 1.652658084 | AD103: 58.11393007 | AF103: 58.11393007 | AG103: 285.5703513 | AH103: 114569.0118 | AI103: 58.11393007 | AJ103: 285.5703513 | AL103: =IF(EMCI!$F$27="A",'1st milking (D)'!AF103,IF(EMCI!$F$27="B",'1st milking (D)'!AG103,IF(EMCI!$F$27="S",'1st milking (D)'!AH103,IF(EMCI!$F$27="P",'1st milking (D)'!AI103,IF(EMCI!$F$27="FS",'1st milking (D)'!AJ103,"error"))))) -> 285.5703513

Sheet 1st milking (DF)
A2: Entry | E2: Milk cooling curve (1st milking) | O2: Entry: | P2: Temp | Q2: Time
P3: =E5 -> 25 | Q3: =F5 -> 0
A4: Milking | B4: =EMCI!F9 -> 1 | C4: 1 | E4: T | F4: t | P4: =E6 -> 20 | Q4: =F6 -> 0.5
A5: Time | B5: =EMCI!F11/60 -> 0.5 | C5: F | E5: 25 | F5: 0
A6: Milk T | B6: =EMCI!F13 -> 20 | E6: =B6 -> 20 | F6: =B5 -> 0.5
A7: Volume | B7: =EMCI!F31 -> 0 | C7: D | P7: x | Q7: y | R7: xy | S7: xx
P8: =Q3 -> 0 | Q8: =P3 -> 25 | R8: =P8*Q8 -> 0 | S8: =P8*P8 -> 0
G9: Flexible | P9: =Q4 -> 0.5 | Q9: =P4 -> 20 | R9: =P9*Q9 -> 10 | S9: =P9*P9 -> 0.25
A10: Outcome | B10: =IF(OR(B6>P15,B6<5,B5>2.35),"out",LOOKUP(B6,A23:A103,B23:B103)) -> 11.05642245 | E10: slope | F10: -8.5 | G10: =P12 -> -10 | O10: sum | P10: =SUM(P8:P9) -> 0.5 | Q10: =SUM(Q8:Q9) -> 45 | R10: 10 | S10: 0.25
E11: intercept | F11: 25 | G11: =P13 -> 25
O12: slope | P12: =(2*R10-P10*Q10)/(2*S10-(P10^2)) -> -10
O13: intercept | P13: =(Q10-P12*P10)/2 -> 25
F14: No (logs) | G14: Nf (logs) | H14: Tmin | J14: N after milk (logs) | K14: GR at 5C | L14: Growth storage | M14: N after stroage (logs)
E15: S aureus | F15: =EMCI!F19 -> 2 | G15: =EMCI!G19 -> 5 | H15: 5.6 | J15: =R103 -> 2.254915325 | K15: 0 | L15: =K15*(12-$F$7) -> 0 | M15: =J15+L15 -> 2.254915325 | O15: TEST(max) | P15: =F10*Q4+F11 -> 20.75
E16: B cereus | F16: =EMCI!F20 -> 1 | G16: =EMCI!G20 -> 5 | H16: 1.5 | J16: =W103 -> 1.430538938 | K16: 0.01223335541 | L16: =K16*(12-$F$7) -> 0.1468002649 | M16: =J16+L16 -> 1.577339203
E17: Pseudo | F17: =EMCI!F21 -> 1 | G17: =EMCI!G21 -> 6 | H17: -6.1 | J17: =AB103 -> 1.554759372 | K17: 0.07480722627 | L17: =K17*(12-$F$7) -> 0.8976867152 | M17: =J17+L17 -> 2.452446087
A21: Lookup function | E21: Cooling curve profile | I21: Growth (log/h) during cooling | M21: Growth (log/h) to calculate NMTL | Q21: Saureus | R21: Growth acc | T21: Time to NMTL (depending on initial logs) | V21: B cereus | W21: Growth acc | Y21: Time to NMTL (depending on initial logs) | AA21: Pseudo | AB21: Growth accumulated | AD21: Time to NMTL (depending on initial logs) | AF21: NMTL | AG21: NMTL | AH21: NMTL | AI21: NMTL | AJ21: NMTL | AL21: NMTL
A22: =E22 -> Temp | B22: NMTL | E22: Temp | F22: Time | G22: Time interval | I22: S. aureus | J22: B.cereus | K22: Pseudo | M22: S. aureus | N22: B.cereus | O22: Pseudo | Q22: Growth interval | R22: =F15 -> 2 | T22: =R22 -> 2 | V22: Growth interval | W22: =F16 -> 1 | Y22: =W22 -> 1 | AA22: Growth interval | AB22: =F17 -> 1 | AD22: =AB22 -> 1 | AF22: Shorter of 3 microorganisms | AG22: B. cereus | AH22: S. aureus | AI22: Pseudo | AJ22: Food Safety | AL22: Entry
A23: =E103 -> 5 | B23: =AL103 -> 291.7810317 | E23: =E5 -> 25 | F23: =(E23-$G$11)/$G$10 -> 0 | G23: =F23 -> 0 | I23: =IF(E23>H15,(0.00033*(E23-5.6)*((6.5-2.8)*(1-EXP(0.5*(6.5-9.8)))*(36.7-0.9324)*(1-EXP(0.42*(-5-0.9324)))))^2,0) -> 0.3942153782 | J23: =IF(E23>$H$16,(((0.175*(E23-1.5)*SQRT(0.995-0.92)*(1-EXP(0.4395*(E23-45)))))^2)/2.3,0) -> 0.5513317437 | K23: =IF(E23>$H$17,((0.1709*(E23+6.1)*SQRT(0.995-0.947)*(1-EXP(0.1723*(E23-41.2))))^2)/2.3,0) -> 0.5194351615 | M23: =IF(E23>$H$15,(0.00033*(E23-5.6)*((6.5-2.8)*(1-EXP(0.5*(6.5-9.8)))*(36.7-0.9324)*(1-EXP(0.42*(-5-0.9324)))))^2,0) -> 0.3942153782 | N23: =IF(E23>$H$16,(((0.175*(E23-1.5)*SQRT(0.995-0.92)*(1-EXP(0.4395*(E23-45)))))^2)/2.3,0) -> 0.5513317437 | O23: =IF(E23>$H$17,((0.1709*(E23+6.1)*SQRT(0.995-0.947)*(1-EXP(0.1723*(E23-41.2))))^2)/2.3,0) -> 0.5194351615 | Q23: =G23*I23 -> 0 | R23: =R22 -> 2 | T23: =($G$15-R23)/M23 -> 7.610053198 | V23: =G23*J23 -> 0 | W23: =W22 -> 1 | Y23: =($G$16-W23)/N23 -> 7.255159975 | AA23: =G23*K23 -> 0 | AB23: =AB22 -> 1 | AD23: =($G$17-AB23)/O23 -> 9.625840471 | AF23: =+MIN(AG23:AI23) -> 7.255159975 | AG23: =Y23 -> 7.255159975 | AH23: =T23 -> 7.610053198 | AI23: =AD23 -> 9.625840471 | AJ23: =MIN(AG23:AH23) -> 7.255159975 | AL23: =IF(EMCI!$F$27="A",'1st milking (DF)'!AF23,IF(EMCI!$F$27="B",'1st milking (DF)'!AG23,IF(EMCI!$F$27="S",'1st milking (DF)'!AH23,IF(EMCI!$F$27="P",'1st milking (DF)'!AI23,IF(EMCI!$F$27="FS",'1st milking (DF)'!AJ23,"error"))))) -> 7.255159975
A24: =E102 -> 5.25 | B24: =AL102 -> 254.1970612 | E24: =E23-0.25 -> 24.75 | F24: =(E24-$G$11)/$G$10 -> 0.025 | G24: =F24-F23 -> 0.025 | I24: =IF(E24>$H$15,(0.00033*(((E24+E23)/2)-5.6)*((6.5-2.8)*(1-EXP(0.5*(6.5-9.8)))*(36.7-0.9324)*(1-EXP(0.42*(-5-0.9324)))))^2,0) -> 0.3891516494 | J24: =IF(E24>$H$16,(((0.175*(((E24+E23)/2)-1.5)*SQRT(0.995-0.92)*(1-EXP(0.4395*(((E24+E23)/2)-45)))))^2)/2.3,0) -> 0.5454909916 | K24: =IF(E24>$H$17,((0.1709*(((E24+E23)/2)+6.1)*SQRT(0.995-0.947)*(1-EXP(0.1723*(((E24+E23)/2)-41.2))))^2)/2.3,0) -> 0.5167040375 | M24: =IF(E24>$H$15,(0.00033*(E24-5.6)*((6.5-2.8)*(1-EXP(0.5*(6.5-9.8)))*(36.7-0.9324)*(1-EXP(0.42*(-5-0.9324)))))^2,0) -> 0.3841206532 | N24: =IF(E24>$H$16,(((0.175*(E24-1.5)*SQRT(0.995-0.92)*(1-EXP(0.4395*(E24-45)))))^2)/2.3,0) -> 0.5396807786 | O24: =IF(E24>$H$17,((0.1709*(E24+6.1)*SQRT(0.995-0.947)*(1-EXP(0.1723*(E24-41.2))))^2)/2.3,0) -> 0.5139381312 | Q24: 0.009728791236 | R24: =R23+Q24 -> 2.009728791 | T24: =IF(M24=0,T23,($G$15-R24)/M24) -> 7.784718639 | V24: 0.01363727479 | W24: =W23+V24 -> 1.013637275 | Y24: =($G$16-W24)/N24 -> 7.386519742 | AA24: 0.01291760094 | AB24: =AB23+AA24 -> 1.012917601 | AD24: =($G$17-AB24)/O24 -> 9.703662945 | AF24: =+MIN(AG24:AI24) -> 7.386519742 | AG24: 7.386519742 | AH24: 7.784718639 | AI24: 9.703662945 | AJ24: =MIN(AG24:AH24) -> 7.386519742 | AL24: =IF(EMCI!$F$27="A",'1st milking (DF)'!AF24,IF(EMCI!$F$27="B",'1st milking (DF)'!AG24,IF(EMCI!$F$27="S",'1st milking (DF)'!AH24,IF(EMCI!$F$27="P",'1st milking (DF)'!AI24,IF(EMCI!$F$27="FS",'1st milking (DF)'!AJ24,"error"))))) -> 7.386519742
A25: =E101 -> 5.5 | B25: =AL101 -> 223.438849 | E25: =E24-0.25 -> 24.5 | F25: =(E25-$G$11)/$G$10 -> 0.05 | G25: =F25-F24 -> 0.025 | I25: =IF(E25>$H$15,(0.00033*(((E25+E24)/2)-5.6)*((6.5-2.8)*(1-EXP(0.5*(6.5-9.8)))*(36.7-0.9324)*(1-EXP(0.42*(-5-0.9324)))))^2,0) -> 0.3791223896 | J25: =IF(E25>$H$16,(((0.175*(((E25+E24)/2)-1.5)*SQRT(0.995-0.92)*(1-EXP(0.4395*(((E25+E24)/2)-45)))))^2)/2.3,0) -> 0.533901146 | K25: =IF(E25>$H$17,((0.1709*(((E25+E24)/2)+6.1)*SQRT(0.995-0.947)*(1-EXP(0.1723*(((E25+E24)/2)-41.2))))^2)/2.3,0) -> 0.5111387932 | M25: 0.3741568585 | N25: 0.5281521328 | O25: 0.5083073442 | Q25: 0.009478059739 | R25: =R24+Q25 -> 2.019206851 | T25: =IF(M25=0,T24,($G$15-R25)/M25) -> 7.966693865 | V25: 0.01334752865 | W25: =W24+V25 -> 1.026984803 | Y25: 7.522482538 | AA25: 0.01277846983 | AB25: =AB24+AA25 -> 1.025696071 | AD25: 9.786016247 | AF25: 7.522482538 | AG25: 7.522482538 | AH25: 7.966693865 | AI25: 9.786016247 | AJ25: 7.522482538 | AL25: =IF(EMCI!$F$27="A",'1st milking (DF)'!AF25,IF(EMCI!$F$27="B",'1st milking (DF)'!AG25,IF(EMCI!$F$27="S",'1st milking (DF)'!AH25,IF(EMCI!$F$27="P",'1st milking (DF)'!AI25,IF(EMCI!$F$27="FS",'1st milking (DF)'!AJ25,"error"))))) -> 7.522482538
A26: =E100 -> 5.75 | B26: =AL100 -> 197.9486228 | E26: 24.25 | F26: 0.075 | G26: 0.025 | I26: 0.36922406 | J26: 0.5224337756 | K26: 0.5054450752 | M26: 0.364323994 | N26: 0.5167461085 | O26: 0.502553248 | Q26: 0.0092306015 | R26: 2.028437452 | T26: 8.156373437 | V26: 0.01306084439 | W26: 1.040045648 | Y26: 7.663249489 | AA26: 0.01263612688 | AB26: 1.038332198 | AD26: 9.872919581 | AF26: 7.663249489 | AG26: 7.663249489 | AH26: 8.156373437 | AI26: 9.872919581 | AJ26: 7.663249489 | AL26: =IF(EMCI!$F$27="A",'1st milking (DF)'!AF26,IF(EMCI!$F$27="B",'1st milking (DF)'!AG26,IF(EMCI!$F$27="S",'1st milking (DF)'!AH26,IF(EMCI!$F$27="P",'1st milking (DF)'!AI26,IF(EMCI!$F$27="FS",'1st milking (DF)'!AJ26,"error"))))) -> 7.663249489
A27: =E99 -> 6 | B27: =AL99 -> 176.5889156 | E27: 24 | F27: 0.1 | G27: 0.025 | I27: 0.3594566607 | J27: 0.5110891638 | K27: 0.4996330956 | M27: 0.3546220599 | N27: 0.5054629716 | O27: 0.4966858232 | Q27: 0.008986416517 | R27: 2.037423869 | T27: 8.354178902 | V27: 0.01277722909 | W27: 1.052822877 | Y27: 7.809033193 | AA27: 0.01249082739 | AB27: 1.050823025 | AD27: 9.964401526 | AF27: 7.809033193 | AG27: 7.809033193 | AH27: 8.354178902 | AI27: 9.964401526 | AJ27: 7.809033193 | AL27: =IF(EMCI!$F$27="A",'1st milking (DF)'!AF27,IF(EMCI!$F$27="B",'1st milking (DF)'!AG27,IF(EMCI!$F$27="S",'1st milking (DF)'!AH27,IF(EMCI!$F$27="P",'1st milking (DF)'!AI27,IF(EMCI!$F$27="FS",'1st milking (DF)'!AJ27,"error"))))) -> 7.809033193
A28: =E98 -> 6.25 | B28: =AL98 -> 158.5134775 | E28: 23.75 | F28: 0.125 | G28: 0.025 | I28: 0.3498201917 | J28: 0.4998675603 | K28: 0.4937126081 | M28: 0.345051056 | N28: 0.4943029564 | O28: 0.4907146006 | Q28: 0.008745504792 | R28: 2.046169374 | T28: 8.560561038 | V28: 0.01249668901 | W28: 1.065319566 | Y28: 7.960058468 | AA28: 0.0123428152 | AB28: 1.06316584 | AD28: 10.06049984 | AF28: 7.960058468 | AG28: 7.960058468 | AH28: 8.560561038 | AI28: 10.06049984 | AJ28: 7.960058468 | AL28: =IF(EMCI!$F$27="A",'1st milking (DF)'!AF28,IF(EMCI!$F$27="B",'1st milking (DF)'!AG28,IF(EMCI!$F$27="S",'1st milking (DF)'!AH28,IF(EMCI!$F$27="P",'1st milking (DF)'!AI28,IF(EMCI!$F$27="FS",'1st milking (DF)'!AJ28,"error"))))) -> 7.960058468
A29: =E97 -> 6.5 | B29: =AL97 -> 143.0821804 | E29: 23.5 | F29: 0.15 | G29: 0.025 | I29: 0.3403146529 | J29: 0.4887691849 | K29: 0.4876929244 | M29: 0.3356109824 | N29: 0.4832662692 | O29: 0.4846486768 | Q29: 0.008507866323 | R29: 2.05467724 | T29: 8.776002319 | V29: 0.01221922962 | W29: 1.077538796 | Y29: 8.116563175 | AA29: 0.01219232311 | AB29: 1.075358163 | AD29: 10.16126129 | AF29: 8.116563175 | AG29: 8.116563175 | AH29: 8.776002319 | AI29: 10.16126129 | AJ29: 8.116563175 | AL29: =IF(EMCI!$F$27="A",'1st milking (DF)'!AF29,IF(EMCI!$F$27="B",'1st milking (DF)'!AG29,IF(EMCI!$F$27="S",'1st milking (DF)'!AH29,IF(EMCI!$F$27="P",'1st milking (DF)'!AI29,IF(EMCI!$F$27="FS",'1st milking (DF)'!AJ29,"error"))))) -> 8.116563175
A30: =E96 -> 6.75 | B30: =AL96 -> 129.8035806 | E30: 23.25 | F30: 0.175 | G30: 0.025 | I30: 0.3309400445 | J30: 0.4777942313 | K30: 0.4815829297 | M30: 0.3263018391 | N30: 0.4723530917 | O30: 0.47849673 | Q30: 0.008273501112 | R30: 2.062950741 | T30: 9.001019629 | V30: 0.01194485578 | W30: 1.089483651 | Y30: 8.278799096 | AA30: 0.01203957324 | AB30: 1.087397737 | AD30: 10.26674156 | AF30: 8.278799096 | AG30: 8.278799096 | AH30: 9.001019629 | AI30: 10.26674156 | AJ30: 8.278799096 | AL30: =IF(EMCI!$F$27="A",'1st milking (DF)'!AF30,IF(EMCI!$F$27="B",'1st milking (DF)'!AG30,IF(EMCI!$F$27="S",'1st milking (DF)'!AH30,IF(EMCI!$F$27="P",'1st milking (DF)'!AI30,IF(EMCI!$F$27="FS",'1st milking (DF)'!AJ30,"error"))))) -> 8.278799096
A31: =E95 -> 7 | B31: =AL95 -> 118.2953222 | E31: 23 | F31: 0.2 | G31: 0.025 | I31: 0.3216963663 | J31: 0.4669428698 | K31: 0.4753910995 | M31: 0.3171236261 | N31: 0.4615635837 | O31: 0.4722670362 | Q31: 0.008042409158 | R31: 2.07099315 | T31: 9.23616725 | V31: 0.01167357175 | W31: 1.101157223 | Y31: 8.447032899 | AA31: 0.01188477749 | AB31: 1.099282514 | AD31: 10.37700519 | AF31: 8.447032899 | AG31: 8.447032899 | AH31: 9.23616725 | AI31: 10.37700519 | AJ31: 8.447032899 | AL31: =IF(EMCI!$F$27="A",'1st milking (DF)'!AF31,IF(EMCI!$F$27="B",'1st milking (DF)'!AG31,IF(EMCI!$F$27="S",'1st milking (DF)'!AH31,IF(EMCI!$F$27="P",'1st milking (DF)'!AI31,IF(EMCI!$F$27="FS",'1st milking (DF)'!AJ31,"error"))))) -> 8.447032899
A32: =E94 -> 7.25 | B32: =AL94 -> 108.2563193 | E32: 22.75 | F32: 0.225 | G32: 0.025 | I32: 0.3125836184 | J32: 0.4562152505 | K32: 0.4691255141 | M32: 0.3080763434 | N32: 0.450897886 | O32: 0.4659674843 | Q32: 0.007814590461 | R32: 2.078807741 | T32: =IF(M32=0,T31,($G$15-R32)/M32) -> 9.482040157 | V32: 0.01140538126 | W32: 1.112562604 | Y32: 8.621547175 | AA32: 0.01172813785 | AB32: 1.111010652 | AD32: 10.49212555 | AF32: 8.621547175 | AG32: 8.621547175 | AH32: 9.482040157 | AI32: 10.49212555 | AJ32: 8.621547175 | AL32: =IF(EMCI!$F$27="A",'1st milking (DF)'!AF32,IF(EMCI!$F$27="B",'1st milking (DF)'!AG32,IF(EMCI!$F$27="S",'1st milking (DF)'!AH32,IF(EMCI!$F$27="P",'1st milking (DF)'!AI32,IF(EMCI!$F$27="FS",'1st milking (DF)'!AJ32,"error"))))) -> 8.621547175
A33: =E93 -> 7.5 | B33: =AL93 -> 99.44687502 | E33: 22.5 | F33: 0.25 | G33: 0.025 | I33: 0.3036018009 | J33: 0.4456115053 | K33: 0.4627938749 | M33: 0.2991599909 | N33: 0.4403561224 | O33: 0.4596055917 | Q33: 0.007590045021 | R33: 2.086397786 | T33: 9.739277653 | V33: 0.01114028763 | W33: 1.123702892 | Y33: 8.802641568 | AA33: 0.01156984687 | AB33: 1.122580499 | AD33: 10.61218486 | AF33: 8.802641568 | AG33: 8.802641568 | AH33: 9.739277653 | AI33: 10.61218486 | AJ33: 8.802641568 | AL33: =IF(EMCI!$F$27="A",'1st milking (DF)'!AF33,IF(EMCI!$F$27="B",'1st milking (DF)'!AG33,IF(EMCI!$F$27="S",'1st milking (DF)'!AH33,IF(EMCI!$F$27="P",'1st milking (DF)'!AI33,IF(EMCI!$F$27="FS",'1st milking (DF)'!AJ33,"error"))))) -> 8.802641568
A34: =E92 -> 7.75 | B34: =AL92 -> 91.6742515 | E34: 22.25 | F34: 0.275 | G34: 0.025 | I34: 0.2947509135 | J34: 0.4351317505 | K34: 0.4564035187 | M34: 0.2903745688 | N34: 0.4299384019 | O34: 0.4531885186 | Q34: 0.007368772839 | R34: 2.093766559 | T34: 10.0085674 | V34: 0.01087829376 | W34: 1.134581186 | Y34: 8.990634001 | AA34: 0.01141008797 | AB34: 1.133990587 | AD34: 10.73727426 | AF34: 8.990634001 | AG34: 8.990634001 | AH34: 10.0085674 | AI34: 10.73727426 | AJ34: 8.990634001 | AL34: =IF(EMCI!$F$27="A",'1st milking (DF)'!AF34,IF(EMCI!$F$27="B",'1st milking (DF)'!AG34,IF(EMCI!$F$27="S",'1st milking (DF)'!AH34,IF(EMCI!$F$27="P",'1st milking (DF)'!AI34,IF(EMCI!$F$27="FS",'1st milking (DF)'!AJ34,"error"))))) -> 8.990634001
A35: =E91 -> 8 | B35: =AL91 -> 84.78204803 | E35: 22 | F35: 0.3 | G35: 0.025 | I35: 0.2860309565 | J35: 0.4247760882 | K35: 0.449961433 | M35: 0.2817200769 | N35: 0.4196448202 | O35: 0.4467230831 | Q35: 0.007150773913 | R35: 2.100917333 | T35: 10.29064985 | V35: 0.0106194022 | W35: 1.145200588 | Y35: 9.18586201 | AA35: 0.01124903582 | AB35: 1.145239623 | AD35: 10.86749389 | AF35: 9.18586201 | AG35: 9.18586201 | AH35: 10.29064985 | AI35: 10.86749389 | AJ35: 9.18586201 | AL35: =IF(EMCI!$F$27="A",'1st milking (DF)'!AF35,IF(EMCI!$F$27="B",'1st milking (DF)'!AG35,IF(EMCI!$F$27="S",'1st milking (DF)'!AH35,IF(EMCI!$F$27="P",'1st milking (DF)'!AI35,IF(EMCI!$F$27="FS",'1st milking (DF)'!AJ35,"error"))))) -> 9.18586201
A36: =E90 -> 8.25 | B36: =AL90 -> 78.64227966 | E36: 21.75 | F36: 0.325 | G36: 0.025 | I36: 0.2774419298 | J36: 0.4145446083 | K36: 0.44347427 | M36: 0.2731965153 | N36: 0.4094754618 | O36: 0.4402157751 | Q36: 0.006936048245 | R36: 2.107853381 | T36: 10.58632324 | V36: 0.01036361521 | W36: 1.155564203 | Y36: 9.388684196 | AA36: 0.01108685675 | AB36: 1.156326479 | AD36: 11.00295308 | AF36: 9.388684196 | AG36: 9.388684196 | AH36: 10.58632324 | AI36: 11.00295308 | AJ36: 9.388684196 | AL36: =IF(EMCI!$F$27="A",'1st milking (DF)'!AF36,IF(EMCI!$F$27="B",'1st milking (DF)'!AG36,IF(EMCI!$F$27="S",'1st milking (DF)'!AH36,IF(EMCI!$F$27="P",'1st milking (DF)'!AI36,IF(EMCI!$F$27="FS",'1st milking (DF)'!AJ36,"error"))))) -> 9.388684196
A37: =E89 -> 8.5 | B37: =AL89 -> 73.14939976 | E37: 21.5 | F37: 0.35 | G37: 0.025 | I37: 0.2689838333 | J37: 0.4044373898 | K37: 0.4369483608 | M37: 0.264803884 | N37: 0.3994304007 | O37: 0.4336727703 | Q37: 0.006724595834 | R37: 2.114577977 | T37: 10.89644902 | V37: 0.01011093475 | W37: 1.165675138 | Y37: 9.599481801 | AA37: 0.01092370902 | AB37: 1.167250188 | AD37: 11.14377047 | AF37: 9.599481801 | AG37: 9.599481801 | AH37: 10.89644902 | AI37: 11.14377047 | AJ37: 9.599481801 | AL37: =IF(EMCI!$F$27="A",'1st milking (DF)'!AF37,IF(EMCI!$F$27="B",'1st milking (DF)'!AG37,IF(EMCI!$F$27="S",'1st milking (DF)'!AH37,IF(EMCI!$F$27="P",'1st milking (DF)'!AI37,IF(EMCI!$F$27="FS",'1st milking (DF)'!AJ37,"error"))))) -> 9.599481801
A38: =E88 -> 8.75 | B38: =AL88 -> 68.21573971 | E38: 21.25 | F38: 0.375 | G38: 0.025 | I38: 0.2606566672 | J38: 0.3944545023 | K38: 0.4303897288 | M38: 0.256542183 | N38: 0.3895097021 | O38: 0.4270999432 | Q38: 0.00651641668 | R38: 2.121094393 | T38: 11.22195802 | V38: 0.009861362558 | W38: 1.1755365 | Y38: 9.818660431 | AA38: 0.01075974322 | AB38: 1.178009932 | AD38: 11.29007424 | AF38: 9.818660431 | AG38: 9.818660431 | AH38: 11.22195802 | AI38: 11.29007424 | AJ38: 9.818660431 | AL38: =IF(EMCI!$F$27="A",'1st milking (DF)'!AF38,IF(EMCI!$F$27="B",'1st milking (DF)'!AG38,IF(EMCI!$F$27="S",'1st milking (DF)'!AH38,IF(EMCI!$F$27="P",'1st milking (DF)'!AI38,IF(EMCI!$F$27="FS",'1st milking (DF)'!AJ38,"error"))))) -> 9.818660431
A39: =E87 -> 9 | B39: =AL87 -> 63.76799439 | E39: 21 | F39: 0.4 | G39: 0.025 | I39: 0.2524604313 | J39: 0.384596007 | K39: 0.423804103 | M39: 0.2484114122 | N39: 0.3797134233 | O39: 0.4205028805 | Q39: 0.006311510783 | R39: 2.127405904 | T39: 11.56385719 | V39: 0.009614900174 | W39: 1.185151401 | Y39: 10.04665194 | AA39: 0.01059510258 | AB39: 1.188605034 | AD39: 11.44200239 | AF39: 10.04665194 | AG39: 10.04665194 | AH39: 11.56385719 | AI39: 11.44200239 | AJ39: 10.04665194 | AL39: =IF(EMCI!$F$27="A",'1st milking (DF)'!AF39,IF(EMCI!$F$27="B",'1st milking (DF)'!AG39,IF(EMCI!$F$27="S",'1st milking (DF)'!AH39,IF(EMCI!$F$27="P",'1st milking (DF)'!AI39,IF(EMCI!$F$27="FS",'1st milking (DF)'!AJ39,"error"))))) -> 10.04665194
A40: =E86 -> 9.25 | B40: =AL86 -> 59.74448803 | E40: 20.75 | F40: 0.425 | G40: 0.025 | I40: 0.2443951257 | J40: 0.3748619574 | K40: 0.417196931 | M40: 0.2404115718 | N40: 0.3700416147 | O40: 0.4138868935 | Q40: 0.006109878143 | R40: 2.133515782 | T40: 11.92323729 | V40: 0.009371548934 | W40: 1.19452295 | Y40: 10.28391645 | AA40: 0.01042992328 | AB40: 1.199034957 | AD40: 11.59970301 | AF40: 10.28391645 | AG40: 10.28391645 | AH40: 11.92323729 | AI40: 11.59970301 | AJ40: 10.28391645 | AL40: =IF(EMCI!$F$27="A",'1st milking (DF)'!AF40,IF(EMCI!$F$27="B",'1st milking (DF)'!AG40,IF(EMCI!$F$27="S",'1st milking (DF)'!AH40,IF(EMCI!$F$27="P",'1st milking (DF)'!AI40,IF(EMCI!$F$27="FS",'1st milking (DF)'!AJ40,"error"))))) -> 10.28391645
A41: =E85 -> 9.5 | B41: =AL85 -> 56.09302856 | E41: 20.5 | F41: 0.45 | G41: 0.025 | I41: 0.2364607504 | J41: 0.3652524008 | K41: 0.4105733909 | M41: 0.2325426616 | N41: 0.3604943205 | O41: 0.4072570303 | Q41: 0.00591151876 | R41: 2.139427301 | T41: 12.30128132 | V41: 0.009131310019 | W41: 1.20365426 | Y41: 10.53094466 | AA41: 0.01026433477 | AB41: 1.209299292 | AD41: 11.76333458 | AF41: 10.53094466 | AG41: 10.53094466 | AH41: 12.30128132 | AI41: 11.76333458 | AJ41: 10.53094466 | AL41: =IF(EMCI!$F$27="A",'1st milking (DF)'!AF41,IF(EMCI!$F$27="B",'1st milking (DF)'!AG41,IF(EMCI!$F$27="S",'1st milking (DF)'!AH41,IF(EMCI!$F$27="P",'1st milking (DF)'!AI41,IF(EMCI!$F$27="FS",'1st milking (DF)'!AJ41,"error"))))) -> 10.53094466
A42: =E84 -> 9.75 | B42: =AL84 -> 52.76921004 | E42: 20.25 | F42: 0.475 | G42: 0.025 | I42: 0.2286573054 | J42: 0.3557673787 | K42: 0.4039384036 | M42: 0.2248046817 | N42: 0.3510715796 | O42: 0.4006180875 | Q42: 0.005716432635 | R42: 2.145143734 | T42: 12.69927407 | V42: 0.008894184467 | W42: 1.212548444 | Y42: 10.78826022 | AA42: 0.01009846009 | AB42: 1.219397752 | AD42: 11.93306642 | AF42: 10.78826022 | AG42: 10.78826022 | AH42: 12.69927407 | AI42: 11.93306642 | AJ42: 10.78826022 | AL42: =IF(EMCI!$F$27="A",'1st milking (DF)'!AF42,IF(EMCI!$F$27="B",'1st milking (DF)'!AG42,IF(EMCI!$F$27="S",'1st milking (DF)'!AH42,IF(EMCI!$F$27="P",'1st milking (DF)'!AI42,IF(EMCI!$F$27="FS",'1st milking (DF)'!AJ42,"error"))))) -> 10.78826022
A43: =E83 -> 10 | B43: =AL83 -> 49.73505924 | E43: 20 | F43: 0.5 | G43: 0.025 | I43: 0.2209847907 | J43: 0.3464069275 | K43: 0.3972966443 | M43: 0.2171976321 | N43: 0.3417734261 | O43: 0.3939746217 | Q43: 0.005524619766 | R43: 2.150668353 | T43: 13.11861284 | V43: 0.008660173187 | W43: 1.221208617 | Y43: 11.05642245 | AA43: 0.009932416107 | AB43: 1.229330168 | AD43: 12.10907903 | AF43: 11.05642245 | AG43: 11.05642245 | AH43: 13.11861284 | AI43: 12.10907903 | AJ43: 11.05642245 | AL43: =IF(EMCI!$F$27="A",'1st milking (DF)'!AF43,IF(EMCI!$F$27="B",'1st milking (DF)'!AG43,IF(EMCI!$F$27="S",'1st milking (DF)'!AH43,IF(EMCI!$F$27="P",'1st milking (DF)'!AI43,IF(EMCI!$F$27="FS",'1st milking (DF)'!AJ43,"error"))))) -> 11.05642245
A44: =E82 -> 10.25 | B44: =AL82 -> 46.957949 | E44: 19.75 | F44: 0.525 | G44: 0.025 | I44: 0.2134432062 | J44: 0.3371710792 | K44: 0.3906525536 | M44: 0.2097215128 | N44: 0.3325998901 | O44: 0.3873309601 | Q44: 0.005336080155 | R44: 2.156004434 | T44: 13.56081943 | V44: 0.00842927698 | W44: 1.229637894 | Y44: 11.33602932 | AA44: 0.009766313839 | AB44: 1.239096482 | AD44: 12.2915646 | AF44: 11.33602932 | AG44: 11.33602932 | AH44: 13.56081943 | AI44: 12.2915646 | AJ44: 11.33602932 | AL44: =IF(EMCI!$F$27="A",'1st milking (DF)'!AF44,IF(EMCI!$F$27="B",'1st milking (DF)'!AG44,IF(EMCI!$F$27="S",'1st milking (DF)'!AH44,IF(EMCI!$F$27="P",'1st milking (DF)'!AI44,IF(EMCI!$F$27="FS",'1st milking (DF)'!AJ44,"error"))))) -> 11.33602932
A45: =E81 -> 10.5 | B45: =AL81 -> 44.40971982 | E45: 19.5 | F45: 0.55 | G45: 0.025 | I45: 0.206032552 | J45: 0.3280598619 | K45: 0.3840103482 | M45: 0.2023763238 | N45: 0.3235509978 | O45: 0.3806912115 | Q45: 0.005150813801 | R45: 2.161155247 | T45: 14.02755371 | V45: 0.008201496548 | W45: 1.237839391 | Y45: 11.62772062 | AA45: 0.009600258704 | AB45: 1.248696741 | AD45: 12.48072746 | AF45: 11.62772062 | AG45: 11.62772062 | AH45: 14.02755371 | AI45: 12.48072746 | AJ45: 11.62772062 | AL45: =IF(EMCI!$F$27="A",'1st milking (DF)'!AF45,IF(EMCI!$F$27="B",'1st milking (DF)'!AG45,IF(EMCI!$F$27="S",'1st milking (DF)'!AH45,IF(EMCI!$F$27="P",'1st milking (DF)'!AI45,IF(EMCI!$F$27="FS",'1st milking (DF)'!AJ45,"error"))))) -> 11.62772062
A46: =E80 -> 10.75 | B46: =AL80 -> 42.06596538 | E46: 19.25 | F46: 0.575 | G46: 0.025 | I46: 0.1987528282 | J46: 0.3190733003 | K46: 0.3773740313 | M46: 0.1951620651 | N46: 0.3146267723 | O46: 0.3740592761 | Q46: 0.004968820704 | R46: 2.166124068 | T46: 14.52062895 | V46: 0.007976832508 | W46: 1.245816223 | Y46: 11.93218158 | AA46: 0.009434350782 | AB46: 1.258131092 | AD46: 12.6767847 | AF46: 11.93218158 | AG46: 11.93218158 | AH46: 14.52062895 | AI46: 12.6767847 | AJ46: 11.93218158 | AL46: =IF(EMCI!$F$27="A",'1st milking (DF)'!AF46,IF(EMCI!$F$27="B",'1st milking (DF)'!AG46,IF(EMCI!$F$27="S",'1st milking (DF)'!AH46,IF(EMCI!$F$27="P",'1st milking (DF)'!AI46,IF(EMCI!$F$27="FS",'1st milking (DF)'!AJ46,"error"))))) -> 11.93218158
A47: =E79 -> 11 | B47: =AL79 -> 39.90544788 | E47: 19 | F47: 0.6 | G47: 0.025 | I47: 0.1916040346 | J47: 0.3102114161 | K47: 0.3707474025 | M47: 0.1880787366 | N47: 0.305827234 | O47: 0.3674388551 | Q47: 0.004790100864 | R47: 2.170914169 | T47: 15.04202911 | V47: 0.007755285402 | W47: 1.253571509 | Y47: 12.25014673 | AA47: 0.009268685061 | AB47: 1.267399777 | AD47: 12.87996671 | AF47: 12.25014673 | AG47: 12.25014673 | AH47: 15.04202911 | AI47: 12.87996671 | AJ47: 12.25014673 | AL47: =IF(EMCI!$F$27="A",'1st milking (DF)'!AF47,IF(EMCI!$F$27="B",'1st milking (DF)'!AG47,IF(EMCI!$F$27="S",'1st milking (DF)'!AH47,IF(EMCI!$F$27="P",'1st milking (DF)'!AI47,IF(EMCI!$F$27="FS",'1st milking (DF)'!AJ47,"error"))))) -> 12.25014673
A48: =E78 -> 11.25 | B48: =AL78 -> 37.90961691 | E48: 18.75 | F48: 0.625 | G48: 0.025 | I48: 0.1845861713 | J48: 0.3014742282 | K48: 0.3641340672 | M48: 0.1811263385 | N48: 0.2971524006 | O48: 0.3608334606 | Q48: 0.004614654282 | R48: 2.175528823 | T48: 15.59392853 | V48: 0.007536855704 | W48: 1.261108364 | Y48: 12.58240427 | AA48: 0.00910335168 | AB48: 1.276503128 | AD48: 13.09051789 | AF48: 12.58240427 | AG48: 12.58240427 | AH48: 15.59392853 | AI48: 13.09051789 | AJ48: 12.58240427 | AL48: =IF(EMCI!$F$27="A",'1st milking (DF)'!AF48,IF(EMCI!$F$27="B",'1st milking (DF)'!AG48,IF(EMCI!$F$27="S",'1st milking (DF)'!AH48,IF(EMCI!$F$27="P",'1st milking (DF)'!AI48,IF(EMCI!$F$27="FS",'1st milking (DF)'!AJ48,"error"))))) -> 12.58240427
A49: =E77 -> 11.5 | B49: =AL77 -> 36.06221151 | E49: 18.5 | F49: 0.65 | G49: 0.025 | I49: 0.1776992382 | J49: 0.2928617533 | K49: 0.3575374461 | M49: 0.1743048706 | N49: 0.2886022878 | O49: 0.354246424 | Q49: 0.004442480956 | R49: 2.179971304 | T49: 16.17871426 | V49: 0.007321543832 | W49: 1.268429908 | Y49: 12.9298008 | AA49: 0.008938436153 | AB49: 1.285441565 | AD49: 13.30869733 | AF49: 12.9298008 | AG49: 12.9298008 | AH49: 16.17871426 | AI49: 13.30869733 | AJ49: 12.9298008 | AL49: =IF(EMCI!$F$27="A",'1st milking (DF)'!AF49,IF(EMCI!$F$27="B",'1st milking (DF)'!AG49,IF(EMCI!$F$27="S",'1st milking (DF)'!AH49,IF(EMCI!$F$27="P",'1st milking (DF)'!AI49,IF(EMCI!$F$27="FS",'1st milking (DF)'!AJ49,"error"))))) -> 12.9298008
A50: =E76 -> 11.75 | B50: =AL76 -> 34.34892926 | E50: 18.25 | F50: 0.675 | G50: 0.025 | I50: 0.1709432355 | J50: 0.284374006 | K50: 0.3509607837 | M50: 0.167614333 | N50: 0.2801769093 | O50: 0.3476809048 | Q50: 0.004273580888 | R50: 2.184244885 | T50: 16.79901154 | V50: 0.00710935015 | W50: 1.275539258 | Y50: 13.29324658 | AA50: 0.008774019592 | AB50: 1.294215584 | AD50: 13.5347796 | AF50: 13.29324658 | AG50: 13.29324658 | AH50: 16.79901154 | AI50: 13.5347796 | AJ50: 13.29324658 | AL50: =IF(EMCI!$F$27="A",'1st milking (DF)'!AF50,IF(EMCI!$F$27="B",'1st milking (DF)'!AG50,IF(EMCI!$F$27="S",'1st milking (DF)'!AH50,IF(EMCI!$F$27="P",'1st milking (DF)'!AI50,IF(EMCI!$F$27="FS",'1st milking (DF)'!AJ50,"error"))))) -> 13.29324658
A51: =E75 -> 12 | B51: =AL75 -> 32.75714987 | E51: 18 | F51: 0.7 | G51: 0.025 | I51: 0.1643181631 | J51: 0.2760109992 | K51: 0.3444071566 | M51: 0.1610547257 | N51: 0.271876277 | O51: 0.341139899 | Q51: 0.004107954076 | R51: 2.188352839 | T51: 17.45771289 | V51: 0.006900274979 | W51: 1.282439533 | Y51: 13.6737214 | AA51: 0.008610178916 | AB51: 1.302825763 | AD51: 13.7690556 | AF51: 13.6737214 | AG51: 13.6737214 | AH51: 17.45771289 | AI51: 13.7690556 | AJ51: 13.6737214 | AL51: =IF(EMCI!$F$27="A",'1st milking (DF)'!AF51,IF(EMCI!$F$27="B",'1st milking (DF)'!AG51,IF(EMCI!$F$27="S",'1st milking (DF)'!AH51,IF(EMCI!$F$27="P",'1st milking (DF)'!AI51,IF(EMCI!$F$27="FS",'1st milking (DF)'!AJ51,"error"))))) -> 13.6737214
A52: =E74 -> 12.25 | B52: =AL74 -> 31.27570328 | E52: 17.75 | F52: 0.725 | G52: 0.025 | I52: 0.1578240209 | J52: 0.267772744 | K52: 0.3378794821 | M52: 0.1546260487 | N52: 0.2637004015 | O52: 0.3346262469 | Q52: 0.003945600522 | R52: 2.19229844 | T52: 18.15801144 | V52: 0.006694318601 | W52: 1.289133852 | Y52: 14.072281 | AA52: 0.008446987052 | AB52: 1.31127275 | AD52: 14.01183348 | AF52: 14.01183348 | AG52: 14.072281 | AH52: 18.15801144 | AI52: 14.01183348 | AJ52: 14.072281 | AL52: =IF(EMCI!$F$27="A",'1st milking (DF)'!AF52,IF(EMCI!$F$27="B",'1st milking (DF)'!AG52,IF(EMCI!$F$27="S",'1st milking (DF)'!AH52,IF(EMCI!$F$27="P",'1st milking (DF)'!AI52,IF(EMCI!$F$27="FS",'1st milking (DF)'!AJ52,"error"))))) -> 14.072281
A53: =E73 -> 12.5 | B53: =AL73 -> 29.89467415 | E53: 17.5 | F53: 0.75 | G53: =F53-F52 -> 0.025 | I53: 0.151460809 | J53: 0.2596592504 | K53: 0.3313805253 | M53: 0.1483283019 | N53: 0.255649292 | O53: 0.3281426405 | Q53: 0.003786520225 | R53: 2.19608496 | T53: 18.90343922 | V53: 0.006491481261 | W53: 1.295625333 | Y53: 14.49006425 | AA53: 0.008284513133 | AB53: 1.319557263 | AD53: 14.26343961 | AF53: 14.26343961 | AG53: 14.49006425 | AH53: 18.90343922 | AI53: 14.26343961 | AJ53: 14.49006425 | AL53: =IF(EMCI!$F$27="A",'1st milking (DF)'!AF53,IF(EMCI!$F$27="B",'1st milking (DF)'!AG53,IF(EMCI!$F$27="S",'1st milking (DF)'!AH53,IF(EMCI!$F$27="P",'1st milking (DF)'!AI53,IF(EMCI!$F$27="FS",'1st milking (DF)'!AJ53,"error"))))) -> 14.49006425
A54: =E72 -> 12.75 | B54: =AL72 -> 28.60523646 | E54: =E53-0.25 -> 17.25 | F54: 0.775 | G54: 0.025 | I54: 0.1452285274 | J54: 0.251670527 | K54: 0.324912907 | M54: 0.1421614855 | N54: 0.2477229565 | O54: 0.321691631 | Q54: 0.003630713185 | R54: =R53+Q54 -> 2.199715673 | T54: 19.69791127 | V54: 0.006291763176 | W54: =W53+V54 -> 1.301917096 | Y54: 14.92830118 | AA54: 0.008122822676 | AB54: =AB53+AA54 -> 1.327680086 | AD54: 14.52421967 | AF54: 14.52421967 | AG54: 14.92830118 | AH54: 19.69791127 | AI54: 14.52421967 | AJ54: 14.92830118 | AL54: =IF(EMCI!$F$27="A",'1st milking (DF)'!AF54,IF(EMCI!$F$27="B",'1st milking (DF)'!AG54,IF(EMCI!$F$27="S",'1st milking (DF)'!AH54,IF(EMCI!$F$27="P",'1st milking (DF)'!AI54,IF(EMCI!$F$27="FS",'1st milking (DF)'!AJ54,"error"))))) -> 14.92830118
A55: =E71 -> 13 | B55: =AL71 -> 27.39951299 | E55: 17 | F55: 0.8 | G55: 0.025 | I55: 0.1391271761 | J55: 0.2438065814 | K55: 0.3184791105 | M55: 0.1361255993 | N55: 0.2399214023 | O55: 0.3152756356 | Q55: =G55*I55 -> 0.003478179403 | R55: 2.203193853 | T55: 20.54577656 | V55: =G55*J55 -> 0.006095164534 | W55: =W54+V55 -> 1.308012261 | Y55: 15.38832177 | AA55: =G55*K55 -> 0.007961977763 | AB55: =AB54+AA55 -> 1.335642064 | AD55: 14.79453979 | AF55: 14.79453979 | AG55: =Y55 -> 15.38832177 | AH55: =T55 -> 20.54577656 | AI55: =AD55 -> 14.79453979 | AJ55: 15.38832177 | AL55: =IF(EMCI!$F$27="A",'1st milking (DF)'!AF55,IF(EMCI!$F$27="B",'1st milking (DF)'!AG55,IF(EMCI!$F$27="S",'1st milking (DF)'!AH55,IF(EMCI!$F$27="P",'1st milking (DF)'!AI55,IF(EMCI!$F$27="FS",'1st milking (DF)'!AJ55,"error"))))) -> 15.38832177
A56: =E70 -> 13.25 | B56: =AL70 -> 26.27045552 | E56: 16.75 | F56: 0.825 | G56: 0.025 | I56: 0.1331567551 | J56: 0.2360674201 | K56: 0.3120814885 | M56: 0.1302206434 | N56: 0.2322446354 | O56: 0.308896944 | Q56: 0.003328918877 | R56: 2.206522771 | T56: 21.45187702 | V56: 0.005901685502 | W56: 1.313913946 | Y56: 15.87156598 | AA56: 0.007802037212 | AB56: 1.343444101 | AD56: 15.07478785 | AF56: 15.07478785 | AG56: 15.87156598 | AH56: 21.45187702 | AI56: 15.07478785 | AJ56: 15.87156598 | AL56: =IF(EMCI!$F$27="A",'1st milking (DF)'!AF56,IF(EMCI!$F$27="B",'1st milking (DF)'!AG56,IF(EMCI!$F$27="S",'1st milking (DF)'!AH56,IF(EMCI!$F$27="P",'1st milking (DF)'!AI56,IF(EMCI!$F$27="FS",'1st milking (DF)'!AJ56,"error"))))) -> 15.87156598
A57: =E69 -> 13.5 | B57: =AL69 -> 25.21174229 | E57: 16.5 | F57: 0.85 | G57: 0.025 | I57: 0.1273172643 | J57: 0.228453049 | K57: 0.3057222694 | M57: 0.1244466178 | N57: 0.2246926613 | O57: 0.3025577248 | Q57: 0.003182931609 | R57: 2.209705703 | T57: 22.42161616 | V57: 0.005711326224 | W57: 1.319625273 | Y57: 16.37959471 | AA57: 0.007643056734 | AB57: 1.351087158 | AD57: 15.36537481 | AF57: 15.36537481 | AG57: 16.37959471 | AH57: 22.42161616 | AI57: 15.36537481 | AJ57: 16.37959471 | AL57: =IF(EMCI!$F$27="A",'1st milking (DF)'!AF57,IF(EMCI!$F$27="B",'1st milking (DF)'!AG57,IF(EMCI!$F$27="S",'1st milking (DF)'!AH57,IF(EMCI!$F$27="P",'1st milking (DF)'!AI57,IF(EMCI!$F$27="FS",'1st milking (DF)'!AJ57,"error"))))) -> 16.37959471
A58: =E68 -> 13.75 | B58: =AL68 -> 24.21768996 | E58: 16.25 | F58: 0.875 | G58: 0.025 | I58: 0.1216087039 | J58: 0.2209634731 | K58: 0.2994035635 | M58: 0.1188035225 | N58: 0.2172654848 | O58: 0.2962600318 | Q58: 0.003040217597 | R58: 2.212745921 | T58: 23.46103903 | V58: 0.005524086828 | W58: 1.325149359 | Y58: 16.91410232 | AA58: 0.007485089089 | AB58: 1.358572247 | AD58: 15.66673616 | AF58: 15.66673616 | AG58: 16.91410232 | AH58: 23.46103903 | AI58: 15.66673616 | AJ58: 16.91410232 | AL58: =IF(EMCI!$F$27="A",'1st milking (DF)'!AF58,IF(EMCI!$F$27="B",'1st milking (DF)'!AG58,IF(EMCI!$F$27="S",'1st milking (DF)'!AH58,IF(EMCI!$F$27="P",'1st milking (DF)'!AI58,IF(EMCI!$F$27="FS",'1st milking (DF)'!AJ58,"error"))))) -> 16.91410232
A59: =E67 -> 14 | B59: =AL67 -> 23.2831778 | E59: 16 | F59: 0.9 | G59: 0.025 | I59: 0.1160310737 | J59: 0.2135986969 | K59: 0.2931273694 | M59: 0.1132913575 | N59: 0.20996311 | O59: 0.2900058093 | Q59: 0.002900776843 | R59: 2.215646697 | T59: 24.57692594 | V59: 0.005339967423 | W59: 1.330489327 | Y59: 17.47693046 | AA59: 0.007328184234 | AB59: 1.365900431 | AD59: 15.97933358 | AF59: 15.97933358 | AG59: 17.47693046 | AH59: 24.57692594 | AI59: 15.97933358 | AJ59: 17.47693046 | AL59: =IF(EMCI!$F$27="A",'1st milking (DF)'!AF59,IF(EMCI!$F$27="B",'1st milking (DF)'!AG59,IF(EMCI!$F$27="S",'1st milking (DF)'!AH59,IF(EMCI!$F$27="P",'1st milking (DF)'!AI59,IF(EMCI!$F$27="FS",'1st milking (DF)'!AJ59,"error"))))) -> 17.47693046
A60: =E66 -> 14.25 | B60: =AL66 -> 22.40358213 | E60: 15.75 | F60: 0.925 | G60: 0.025 | I60: 0.1105843739 | J60: 0.2063587244 | K60: 0.2868955786 | M60: 0.1079101228 | N60: 0.2027855405 | O60: 0.2837968979 | Q60: 0.002764609346 | R60: 2.218411307 | T60: 25.77690231 | V60: 0.005158968109 | W60: 1.335648295 | Y60: 18.07008378 | AA60: 0.007172389466 | AB60: 1.37307282 | AD60: 16.30365664 | AF60: 16.30365664 | AG60: 18.07008378 | AH60: 25.77690231 | AI60: 16.30365664 | AJ60: 18.07008378 | AL60: =IF(EMCI!$F$27="A",'1st milking (DF)'!AF60,IF(EMCI!$F$27="B",'1st milking (DF)'!AG60,IF(EMCI!$F$27="S",'1st milking (DF)'!AH60,IF(EMCI!$F$27="P",'1st milking (DF)'!AI60,IF(EMCI!$F$27="FS",'1st milking (DF)'!AJ60,"error"))))) -> 18.07008378
A61: =E65 -> 14.5 | B61: =AL65 -> 21.57471956 | E61: 15.5 | F61: 0.95 | G61: 0.025 | I61: 0.1052686043 | J61: 0.1992435588 | K61: 0.280709982 | M61: 0.1026598183 | N61: 0.1957327795 | O61: 0.2776350396 | Q61: 0.002631715106 | R61: 2.221043022 | T61: 27.06956844 | V61: 0.004981088969 | W61: 1.340629384 | Y61: 18.69574746 | AA61: 0.007017749549 | AB61: 1.38009057 | AD61: 16.64022465 | AF61: 16.64022465 | AG61: 18.69574746 | AH61: 27.06956844 | AI61: 16.64022465 | AJ61: 18.69574746 | AL61: =IF(EMCI!$F$27="A",'1st milking (DF)'!AF61,IF(EMCI!$F$27="B",'1st milking (DF)'!AG61,IF(EMCI!$F$27="S",'1st milking (DF)'!AH61,IF(EMCI!$F$27="P",'1st milking (DF)'!AI61,IF(EMCI!$F$27="FS",'1st milking (DF)'!AJ61,"error"))))) -> 18.69574746
A62: =E64 -> 14.75 | B62: =AL64 -> 20.79279757 | E62: 15.25 | F62: 0.975 | G62: 0.025 | I62: 0.1000837649 | J62: 0.1922532031 | K62: 0.274572274 | M62: 0.09754044415 | N62: 0.1888048299 | O62: 0.2715218829 | Q62: 0.002502094124 | R62: 2.223545116 | T62: 28.46465287 | V62: 0.004806330078 | W62: 1.345435714 | Y62: 19.35630719 | AA62: 0.006864306851 | AB62: 1.386954877 | AD62: 16.98958874 | AF62: 16.98958874 | AG62: 19.35630719 | AH62: 28.46465287 | AI62: 16.98958874 | AJ62: 19.35630719 | AL62: =IF(EMCI!$F$27="A",'1st milking (DF)'!AF62,IF(EMCI!$F$27="B",'1st milking (DF)'!AG62,IF(EMCI!$F$27="S",'1st milking (DF)'!AH62,IF(EMCI!$F$27="P",'1st milking (DF)'!AI62,IF(EMCI!$F$27="FS",'1st milking (DF)'!AJ62,"error"))))) -> 19.35630719
A63: =E63 -> 15 | B63: =AL63 -> 20.05437156 | E63: 15 | F63: 1 | G63: 0.025 | I63: 0.09502985592 | J63: 0.18538766 | K63: 0.2684840583 | M63: 0.09255200027 | N63: 0.1820016939 | O63: 0.2654589874 | Q63: 0.002375746398 | R63: 2.225920862 | T63: 29.97319485 | V63: 0.004634691501 | W63: 1.350070406 | Y63: 20.05437156 | AA63: 0.006712101458 | AB63: 1.393666978 | AD63: 17.35233404 | AF63: 17.35233404 | AG63: 20.05437156 | AH63: 29.97319485 | AI63: 17.35233404 | AJ63: 20.05437156 | AL63: =IF(EMCI!$F$27="A",'1st milking (DF)'!AF63,IF(EMCI!$F$27="B",'1st milking (DF)'!AG63,IF(EMCI!$F$27="S",'1st milking (DF)'!AH63,IF(EMCI!$F$27="P",'1st milking (DF)'!AI63,IF(EMCI!$F$27="FS",'1st milking (DF)'!AJ63,"error"))))) -> 20.05437156
A64: =E62 -> 15.25 | B64: =AL62 -> 19.35630719 | E64: 14.75 | F64: 1.025 | G64: 0.025 | I64: 0.09010687719 | J64: 0.1786469318 | K64: 0.2624468518 | M64: 0.08769448668 | N64: 0.1753233738 | O64: 0.2594478286 | Q64: 0.00225267193 | R64: 2.228173534 | T64: 31.60776202 | V64: 0.004466173294 | W64: 1.354536579 | Y64: 20.79279757 | AA64: 0.006561171296 | AB64: 1.40022815 | AD64: 17.72908209 | AF64: 17.72908209 | AG64: 20.79279757 | AH64: 31.60776202 | AI64: 17.72908209 | AJ64: 20.79279757 | AL64: =IF(EMCI!$F$27="A",'1st milking (DF)'!AF64,IF(EMCI!$F$27="B",'1st milking (DF)'!AG64,IF(EMCI!$F$27="S",'1st milking (DF)'!AH64,IF(EMCI!$F$27="P",'1st milking (DF)'!AI64,IF(EMCI!$F$27="FS",'1st milking (DF)'!AJ64,"error"))))) -> 20.79279757
A65: =E61 -> 15.5 | B65: =AL61 -> 18.69574746 | E65: 14.5 | F65: 1.05 | G65: 0.025 | I65: 0.08531482873 | J65: 0.1720310203 | K65: 0.2564620895 | M65: 0.08296790337 | N65: 0.1687698714 | O65: 0.2534898019 | Q65: 0.002132870718 | R65: 2.230306405 | T65: 33.38271166 | V65: 0.004300775508 | W65: 1.358837354 | Y65: 21.57471956 | AA65: 0.006411552238 | AB65: 1.406639702 | AD65: 18.12049346 | AF65: 18.12049346 | AG65: 21.57471956 | AH65: 33.38271166 | AI65: 18.12049346 | AJ65: 21.57471956 | AL65: =IF(EMCI!$F$27="A",'1st milking (DF)'!AF65,IF(EMCI!$F$27="B",'1st milking (DF)'!AG65,IF(EMCI!$F$27="S",'1st milking (DF)'!AH65,IF(EMCI!$F$27="P",'1st milking (DF)'!AI65,IF(EMCI!$F$27="FS",'1st milking (DF)'!AJ65,"error"))))) -> 21.57471956
A66: =E60 -> 15.75 | B66: =AL60 -> 18.07008378 | E66: 14.25 | F66: 1.075 | G66: 0.025 | I66: 0.08065371057 | J66: 0.1655399274 | K66: 0.2505311284 | M66: 0.07837225034 | N66: 0.1623411884 | O66: 0.2475862272 | Q66: 0.002016342764 | R66: 2.232322748 | T66: 35.31450533 | V66: 0.004138498185 | W66: 1.362975853 | Y66: 22.40358213 | AA66: 0.006263278211 | AB66: 1.41290298 | AD66: 18.52727057 | AF66: 18.52727057 | AG66: 22.40358213 | AH66: 35.31450533 | AI66: 18.52727057 | AJ66: 22.40358213 | AL66: =IF(EMCI!$F$27="A",'1st milking (DF)'!AF66,IF(EMCI!$F$27="B",'1st milking (DF)'!AG66,IF(EMCI!$F$27="S",'1st milking (DF)'!AH66,IF(EMCI!$F$27="P",'1st milking (DF)'!AI66,IF(EMCI!$F$27="FS",'1st milking (DF)'!AJ66,"error"))))) -> 22.40358213
A67: =E59 -> 16 | B67: =AL59 -> 17.47693046 | E67: 14 | F67: 1.1 | G67: 0.025 | I67: 0.07612352269 | J67: 0.1591736545 | K67: 0.2446552518 | M67: 0.0739075276 | N67: 0.156037326 | O67: 0.241738352 | Q67: 0.001903088067 | R67: 2.234225836 | T67: 37.4220902 | V67: 0.003979341363 | W67: 1.366955194 | Y67: 23.2831778 | AA67: 0.006116381296 | AB67: 1.419019361 | AD67: 18.95016079 | AF67: 18.95016079 | AG67: 23.2831778 | AH67: 37.4220902 | AI67: 18.95016079 | AJ67: 23.2831778 | AL67: =IF(EMCI!$F$27="A",'1st milking (DF)'!AF67,IF(EMCI!$F$27="B",'1st milking (DF)'!AG67,IF(EMCI!$F$27="S",'1st milking (DF)'!AH67,IF(EMCI!$F$27="P",'1st milking (DF)'!AI67,IF(EMCI!$F$27="FS",'1st milking (DF)'!AJ67,"error"))))) -> 23.2831778
A68: =E58 -> 16.25 | B68: =AL58 -> 16.91410232 | E68: 13.75 | F68: 1.125 | G68: 0.025 | I68: 0.07172426509 | J68: 0.152932203 | K68: 0.2388356729 | M68: 0.06957373515 | N68: 0.1498582857 | O68: 0.235947356 | Q68: 0.001793106627 | R68: 2.236018943 | T68: 39.72736337 | V68: 0.003823305076 | W68: 1.370778499 | Y68: 24.21768996 | AA68: 0.005970891824 | AB68: 1.424990253 | AD68: 19.38995979 | AF68: 19.38995979 | AG68: 24.21768996 | AH68: 39.72736337 | AI68: 19.38995979 | AJ68: 24.21768996 | AL68: =IF(EMCI!$F$27="A",'1st milking (DF)'!AF68,IF(EMCI!$F$27="B",'1st milking (DF)'!AG68,IF(EMCI!$F$27="S",'1st milking (DF)'!AH68,IF(EMCI!$F$27="P",'1st milking (DF)'!AI68,IF(EMCI!$F$27="FS",'1st milking (DF)'!AJ68,"error"))))) -> 24.21768996
A69: =E57 -> 16.5 | B69: =AL57 -> 16.37959471 | E69: 13.5 | F69: 1.15 | G69: 0.025 | I69: 0.06745593778 | J69: 0.1468155741 | K69: 0.2330735386 | M69: 0.06537087298 | N69: 0.1438040684 | O69: 0.2302143542 | Q69: 0.001686398445 | R69: 2.237705341 | T69: 42.25574071 | V69: 0.003670389352 | W69: 1.374448888 | Y69: 25.21174229 | AA69: 0.005826838465 | AB69: 1.430817092 | AD69: 19.84751526 | AF69: 19.84751526 | AG69: 25.21174229 | AH69: 42.25574071 | AI69: 19.84751526 | AJ69: 25.21174229 | AL69: =IF(EMCI!$F$27="A",'1st milking (DF)'!AF69,IF(EMCI!$F$27="B",'1st milking (DF)'!AG69,IF(EMCI!$F$27="S",'1st milking (DF)'!AH69,IF(EMCI!$F$27="P",'1st milking (DF)'!AI69,IF(EMCI!$F$27="FS",'1st milking (DF)'!AJ69,"error"))))) -> 25.21174229
A70: =E56 -> 16.75 | B70: =AL56 -> 15.87156598 | E70: 13.25 | F70: 1.175 | G70: 0.025 | I70: 0.06331854076 | J70: 0.1408237686 | K70: 0.2273699327 | M70: 0.0612989411 | N70: 0.137874675 | O70: 0.2245404003 | Q70: 0.001582963519 | R70: 2.239288304 | T70: 45.03685783 | V70: 0.003520594216 | W70: 1.377969483 | Y70: 26.27045552 | AA70: 0.005684248319 | AB70: 1.43650134 | AD70: 20.32373085 | AF70: 20.32373085 | AG70: 26.27045552 | AH70: 45.03685783 | AI70: 20.32373085 | AJ70: 26.27045552 | AL70: =IF(EMCI!$F$27="A",'1st milking (DF)'!AF70,IF(EMCI!$F$27="B",'1st milking (DF)'!AG70,IF(EMCI!$F$27="S",'1st milking (DF)'!AH70,IF(EMCI!$F$27="P",'1st milking (DF)'!AI70,IF(EMCI!$F$27="FS",'1st milking (DF)'!AJ70,"error"))))) -> 26.27045552
A71: =E55 -> 17 | B71: =AL55 -> 15.38832177 | E71: 13 | F71: 1.2 | G71: 0.025 | I71: 0.05931207402 | J71: 0.1349567876 | K71: 0.2217258796 | M71: 0.05735793951 | N71: 0.1320701065 | O71: 0.2189264899 | Q71: 0.00148280185 | R71: 2.240771106 | T71: 48.10543959 | V71: 0.00337391969 | W71: 1.381343402 | Y71: 27.39951299 | AA71: 0.005543146991 | AB71: 1.442044487 | AD71: 20.8195706 | AF71: 20.8195706 | AG71: 27.39951299 | AH71: 48.10543959 | AI71: 20.8195706 | AJ71: 27.39951299 | AL71: =IF(EMCI!$F$27="A",'1st milking (DF)'!AF71,IF(EMCI!$F$27="B",'1st milking (DF)'!AG71,IF(EMCI!$F$27="S",'1st milking (DF)'!AH71,IF(EMCI!$F$27="P",'1st milking (DF)'!AI71,IF(EMCI!$F$27="FS",'1st milking (DF)'!AJ71,"error"))))) -> 27.39951299
A72: =E54 -> 17.25 | B72: =AL54 -> 14.92830118 | E72: =E71-0.25 -> 12.75 | F72: 1.225 | G72: 0.025 | I72: 0.05543653757 | J72: 0.1292146317 | K72: 0.2161423471 | M72: 0.0535478682 | N72: 0.1263903634 | O72: 0.2133735637 | Q72: 0.001385913439 | R72: 2.24215702 | T72: 51.50238605 | V72: 0.003230365793 | W72: 1.384573768 | Y72: 28.60523646 | AA72: 0.005403558677 | AB72: 1.447448046 | AD72: 21.33606374 | AF72: 21.33606374 | AG72: 28.60523646 | AH72: 51.50238605 | AI72: 21.33606374 | AJ72: 28.60523646 | AL72: =IF(EMCI!$F$27="A",'1st milking (DF)'!AF72,IF(EMCI!$F$27="B",'1st milking (DF)'!AG72,IF(EMCI!$F$27="S",'1st milking (DF)'!AH72,IF(EMCI!$F$27="P",'1st milking (DF)'!AI72,IF(EMCI!$F$27="FS",'1st milking (DF)'!AJ72,"error"))))) -> 28.60523646
A73: =E53 -> 17.5 | B73: =AL53 -> 14.49006425 | E73: 12.5 | F73: 1.25 | G73: 0.025 | I73: 0.0516919314 | J73: 0.1235973017 | K73: 0.2106202492 | M73: 0.04986872717 | N73: 0.1208354465 | O73: 0.2078825101 | Q73: 0.001292298285 | R73: 2.243449318 | T73: 55.27613874 | V73: 0.003089932542 | W73: 1.387663701 | Y73: 29.89467415 | AA73: 0.005265506231 | AB73: 1.452713552 | AD73: 21.87430989 | AF73: 21.87430989 | AG73: 29.89467415 | AH73: 55.27613874 | AI73: 21.87430989 | AJ73: 29.89467415 | AL73: =IF(EMCI!$F$27="A",'1st milking (DF)'!AF73,IF(EMCI!$F$27="B",'1st milking (DF)'!AG73,IF(EMCI!$F$27="S",'1st milking (DF)'!AH73,IF(EMCI!$F$27="P",'1st milking (DF)'!AI73,IF(EMCI!$F$27="FS",'1st milking (DF)'!AJ73,"error"))))) -> 29.89467415
A74: =E52 -> 17.75 | B74: =AL52 -> 14.072281 | E74: 12.25 | F74: 1.275 | G74: 0.025 | I74: 0.04807825552 | J74: 0.118104798 | K74: 0.2051604497 | M74: 0.04632051643 | N74: 0.1154053563 | O74: 0.2024541685 | Q74: 0.001201956388 | R74: 2.244651274 | T74: 59.48441291 | V74: 0.002952619951 | W74: 1.390616321 | Y74: 31.27570328 | AA74: 0.005129011243 | AB74: 1.457842563 | AD74: 22.43548489 | AF74: 22.43548489 | AG74: 31.27570328 | AH74: 59.48441291 | AI74: 22.43548489 | AJ74: 31.27570328 | AL74: =IF(EMCI!$F$27="A",'1st milking (DF)'!AF74,IF(EMCI!$F$27="B",'1st milking (DF)'!AG74,IF(EMCI!$F$27="S",'1st milking (DF)'!AH74,IF(EMCI!$F$27="P",'1st milking (DF)'!AI74,IF(EMCI!$F$27="FS",'1st milking (DF)'!AJ74,"error"))))) -> 31.27570328
A75: =E51 -> 18 | B75: =AL51 -> 13.6737214 | E75: 12 | F75: 1.3 | G75: 0.025 | I75: 0.04459550992 | J75: 0.1127371213 | K75: 0.199763764 | M75: 0.04290323598 | N75: 0.1101000931 | O75: 0.1970893311 | Q75: 0.001114887748 | R75: =R74+Q75 -> 2.245766162 | T75: 64.19641258 | V75: 0.002818428032 | W75: =W74+V75 -> 1.393434749 | Y75: 32.75714987 | AA75: 0.004994094099 | AB75: =AB74+AA75 -> 1.462836657 | AD75: 23.02084703 | AF75: 23.02084703 | AG75: 32.75714987 | AH75: 64.19641258 | AI75: 23.02084703 | AJ75: 32.75714987 | AL75: =IF(EMCI!$F$27="A",'1st milking (DF)'!AF75,IF(EMCI!$F$27="B",'1st milking (DF)'!AG75,IF(EMCI!$F$27="S",'1st milking (DF)'!AH75,IF(EMCI!$F$27="P",'1st milking (DF)'!AI75,IF(EMCI!$F$27="FS",'1st milking (DF)'!AJ75,"error"))))) -> 32.75714987
A76: =E50 -> 18.25 | B76: =AL50 -> 13.29324658 | E76: 11.75 | F76: 1.325 | G76: =F76-F75 -> 0.025 | I76: 0.04124369461 | J76: 0.1074942719 | K76: 0.194430962 | M76: 0.03961688581 | N76: 0.1049196575 | O76: 0.1917887462 | Q76: 0.001031092365 | R76: 2.246797255 | T76: 69.49568824 | V76: 0.002687356797 | W76: =W75+V76 -> 1.396122105 | Y76: 34.34892926 | AA76: 0.00486077405 | AB76: =AB75+AA76 -> 1.467697431 | AD76: 23.63174408 | AF76: 23.63174408 | AG76: 34.34892926 | AH76: 69.49568824 | AI76: 23.63174408 | AJ76: 34.34892926 | AL76: =IF(EMCI!$F$27="A",'1st milking (DF)'!AF76,IF(EMCI!$F$27="B",'1st milking (DF)'!AG76,IF(EMCI!$F$27="S",'1st milking (DF)'!AH76,IF(EMCI!$F$27="P",'1st milking (DF)'!AI76,IF(EMCI!$F$27="FS",'1st milking (DF)'!AJ76,"error"))))) -> 34.34892926
A77: =E49 -> 18.5 | B77: =AL49 -> 12.9298008 | E77: 11.5 | F77: 1.35 | G77: 0.025 | I77: 0.03802280958 | J77: 0.1023762502 | K77: 0.1891627707 | M77: 0.03646146593 | N77: 0.09986404986 | O77: 0.1865531201 | Q77: 0.0009505702396 | R77: 2.247747825 | T77: 75.48385961 | V77: 0.002559406255 | W77: 1.398681512 | Y77: 36.06221151 | AA77: 0.004729069268 | AB77: 1.472426501 | AD77: 24.26962089 | AF77: 24.26962089 | AG77: 36.06221151 | AH77: 75.48385961 | AI77: 24.26962089 | AJ77: 36.06221151 | AL77: =IF(EMCI!$F$27="A",'1st milking (DF)'!AF77,IF(EMCI!$F$27="B",'1st milking (DF)'!AG77,IF(EMCI!$F$27="S",'1st milking (DF)'!AH77,IF(EMCI!$F$27="P",'1st milking (DF)'!AI77,IF(EMCI!$F$27="FS",'1st milking (DF)'!AJ77,"error"))))) -> 36.06221151
A78: =E48 -> 18.75 | B78: =AL48 -> 12.58240427 | E78: 11.25 | F78: 1.375 | G78: 0.025 | I78: 0.03493285484 | J78: 0.09738305657 | K78: 0.1839598764 | M78: 0.03343697633 | N78: 0.09493327037 | O78: 0.1813831193 | Q78: 0.0008733213711 | R78: 2.248621146 | T78: 82.28551609 | V78: 0.002434576414 | W78: 1.401116088 | Y78: 37.90961691 | AA78: 0.004598996909 | AB78: 1.477025497 | AD78: 24.93602778 | AF78: 24.93602778 | AG78: 37.90961691 | AH78: 82.28551609 | AI78: 24.93602778 | AJ78: 37.90961691 | AL78: =IF(EMCI!$F$27="A",'1st milking (DF)'!AF78,IF(EMCI!$F$27="B",'1st milking (DF)'!AG78,IF(EMCI!$F$27="S",'1st milking (DF)'!AH78,IF(EMCI!$F$27="P",'1st milking (DF)'!AI78,IF(EMCI!$F$27="FS",'1st milking (DF)'!AJ78,"error"))))) -> 37.90961691
A79: =E47 -> 19 | B79: =AL47 -> 12.25014673 | E79: 11 | F79: 1.4 | G79: 0.025 | I79: 0.03197383039 | J79: 0.09251469128 | K79: 0.1788229265 | M79: 0.03054341702 | N79: 0.09012731934 | O79: 0.176279373 | Q79: 0.0007993457597 | R79: 2.249420492 | T79: 90.05474097 | V79: 0.002312867282 | W79: 1.403428955 | Y79: 39.90544788 | AA79: 0.004470573161 | AB79: 1.481496071 | AD79: 25.63262991 | AF79: 25.63262991 | AG79: 39.90544788 | AH79: 90.05474097 | AI79: 25.63262991 | AJ79: 39.90544788 | AL79: =IF(EMCI!$F$27="A",'1st milking (DF)'!AF79,IF(EMCI!$F$27="B",'1st milking (DF)'!AG79,IF(EMCI!$F$27="S",'1st milking (DF)'!AH79,IF(EMCI!$F$27="P",'1st milking (DF)'!AI79,IF(EMCI!$F$27="FS",'1st milking (DF)'!AJ79,"error"))))) -> 39.90544788
A80: =E46 -> 19.25 | B80: =AL46 -> 11.93218158 | E80: 10.75 | F80: 1.425 | G80: 0.025 | I80: 0.02914573622 | J80: 0.08777115458 | K80: 0.1737525321 | M80: 0.02778078799 | N80: 0.08544619702 | O80: 0.1712424747 | Q80: 0.0007286434055 | R80: 2.250149135 | T80: 98.98390446 | V80: 0.002194278865 | W80: 1.405623234 | Y80: 42.06596538 | AA80: 0.004343813303 | AB80: 1.485839884 | AD80: 26.36121747 | AF80: 26.36121747 | AG80: 42.06596538 | AH80: 98.98390446 | AI80: 26.36121747 | AJ80: 42.06596538 | AL80: =IF(EMCI!$F$27="A",'1st milking (DF)'!AF80,IF(EMCI!$F$27="B",'1st milking (DF)'!AG80,IF(EMCI!$F$27="S",'1st milking (DF)'!AH80,IF(EMCI!$F$27="P",'1st milking (DF)'!AI80,IF(EMCI!$F$27="FS",'1st milking (DF)'!AJ80,"error"))))) -> 42.06596538
A81: =E45 -> 19.5 | B81: =AL45 -> 11.62772062 | E81: 10.5 | F81: 1.45 | G81: 0.025 | I81: 0.02644857234 | J81: 0.08315244668 | K81: 0.1687492698 | M81: 0.02514908925 | N81: 0.0808899036 | O81: 0.1662729844 | Q81: 0.0006612143085 | R81: 2.25081035 | T81: 109.3156743 | V81: 0.002078811167 | W81: 1.407702045 | Y81: 44.40971982 | AA81: 0.004218731746 | AB81: 1.490058616 | AD81: 27.12371706 | AF81: 27.12371706 | AG81: 44.40971982 | AH81: 109.3156743 | AI81: 27.12371706 | AJ81: 44.40971982 | AL81: =IF(EMCI!$F$27="A",'1st milking (DF)'!AF81,IF(EMCI!$F$27="B",'1st milking (DF)'!AG81,IF(EMCI!$F$27="S",'1st milking (DF)'!AH81,IF(EMCI!$F$27="P",'1st milking (DF)'!AI81,IF(EMCI!$F$27="FS",'1st milking (DF)'!AJ81,"error"))))) -> 44.40971982
A82: =E44 -> 19.75 | B82: =AL44 -> 11.33602932 | E82: 10.25 | F82: 1.475 | G82: 0.025 | I82: 0.02388233874 | J82: 0.07865856778 | K82: 0.1638136835 | M82: 0.0226483208 | N82: 0.07645843925 | O82: 0.1613714302 | Q82: 0.0005970584685 | R82: 2.251407408 | T82: 121.3596635 | V82: 0.001966464194 | W82: 1.40966851 | Y82: 46.957949 | AA82: 0.004095342087 | AB82: 1.494153958 | AD82: 27.9222043 | AF82: 27.9222043 | AG82: 46.957949 | AH82: 121.3596635 | AI82: 27.9222043 | AJ82: 46.957949 | AL82: =IF(EMCI!$F$27="A",'1st milking (DF)'!AF82,IF(EMCI!$F$27="B",'1st milking (DF)'!AG82,IF(EMCI!$F$27="S",'1st milking (DF)'!AH82,IF(EMCI!$F$27="P",'1st milking (DF)'!AI82,IF(EMCI!$F$27="FS",'1st milking (DF)'!AJ82,"error"))))) -> 46.957949
A83: =E43 -> 20 | B83: =AL43 -> 11.05642245 | E83: 10 | F83: 1.5 | G83: 0.025 | I83: 0.02144703543 | J83: 0.07428951803 | K83: 0.158946286 | M83: 0.02027848263 | N83: 0.07215180413 | O83: 0.1565383103 | Q83: 0.0005361758857 | R83: 2.251943584 | T83: 135.5158799 | V83: 0.001857237951 | W83: 1.411525747 | Y83: 49.73505924 | AA83: 0.003973657149 | AB83: 1.498127615 | AD83: 28.75891772 | AF83: 28.75891772 | AG83: 49.73505924 | AH83: 135.5158799 | AI83: 28.75891772 | AJ83: 49.73505924 | AL83: =IF(EMCI!$F$27="A",'1st milking (DF)'!AF83,IF(EMCI!$F$27="B",'1st milking (DF)'!AG83,IF(EMCI!$F$27="S",'1st milking (DF)'!AH83,IF(EMCI!$F$27="P",'1st milking (DF)'!AI83,IF(EMCI!$F$27="FS",'1st milking (DF)'!AJ83,"error"))))) -> 49.73505924
A84: =E42 -> 20.25 | B84: =AL42 -> 10.78826022 | E84: 9.75 | F84: 1.525 | G84: 0.025 | I84: 0.0191426624 | J84: 0.07004529757 | K84: 0.1541475609 | M84: 0.01803957475 | N84: 0.06796999836 | O84: 0.1517740942 | Q84: 0.0004785665601 | R84: 2.252422151 | T84: 152.3083492 | V84: 0.001751132439 | W84: 1.41327688 | Y84: 52.76921004 | AA84: 0.003853689023 | AB84: 1.501981304 | AD84: 29.63627436 | AF84: 29.63627436 | AG84: 52.76921004 | AH84: 152.3083492 | AI84: 29.63627436 | AJ84: 52.76921004 | AL84: =IF(EMCI!$F$27="A",'1st milking (DF)'!AF84,IF(EMCI!$F$27="B",'1st milking (DF)'!AG84,IF(EMCI!$F$27="S",'1st milking (DF)'!AH84,IF(EMCI!$F$27="P",'1st milking (DF)'!AI84,IF(EMCI!$F$27="FS",'1st milking (DF)'!AJ84,"error"))))) -> 52.76921004
A85: =E41 -> 20.5 | B85: =AL41 -> 10.53094466 | E85: 9.5 | F85: 1.55 | G85: 0.025 | I85: 0.01696921966 | J85: 0.06592590652 | K85: 0.1494179645 | M85: 0.01593159715 | N85: 0.06391302207 | O85: 0.1470792247 | Q85: 0.0004242304916 | R85: 2.252846381 | T85: 172.4342885 | V85: 0.001648147663 | W85: 1.414925028 | Y85: 56.09302856 | AA85: 0.003735449111 | AB85: 1.505716753 | AD85: 30.55688698 | AF85: 30.55688698 | AG85: 56.09302856 | AH85: 172.4342885 | AI85: 30.55688698 | AJ85: 56.09302856 | AL85: =IF(EMCI!$F$27="A",'1st milking (DF)'!AF85,IF(EMCI!$F$27="B",'1st milking (DF)'!AG85,IF(EMCI!$F$27="S",'1st milking (DF)'!AH85,IF(EMCI!$F$27="P",'1st milking (DF)'!AI85,IF(EMCI!$F$27="FS",'1st milking (DF)'!AJ85,"error"))))) -> 56.09302856
A86: =E40 -> 20.75 | B86: =AL40 -> 10.28391645 | E86: 9.25 | F86: 1.575 | G86: 0.025 | I86: 0.01492670721 | J86: 0.061931345 | K86: 0.1447579264 | M86: 0.01395454984 | N86: 0.05998087534 | O86: 0.1424541193 | Q86: 0.0003731676802 | R86: 2.253219549 | T86: 196.8376252 | V86: 0.001548283625 | W86: 1.416473311 | Y86: 59.74448803 | AA86: 0.00361894816 | AB86: 1.509335701 | AD86: 31.52358331 | AF86: 31.52358331 | AG86: 59.74448803 | AH86: 196.8376252 | AI86: 31.52358331 | AJ86: 59.74448803 | AL86: =IF(EMCI!$F$27="A",'1st milking (DF)'!AF86,IF(EMCI!$F$27="B",'1st milking (DF)'!AG86,IF(EMCI!$F$27="S",'1st milking (DF)'!AH86,IF(EMCI!$F$27="P",'1st milking (DF)'!AI86,IF(EMCI!$F$27="FS",'1st milking (DF)'!AJ86,"error"))))) -> 59.74448803
A87: =E39 -> 21 | B87: =AL39 -> 10.04665194 | E87: 9 | F87: 1.6 | G87: 0.025 | I87: 0.01301512504 | J87: 0.05806161309 | K87: 0.1401678519 | M87: 0.01210843281 | N87: 0.05617355826 | O87: 0.1378991712 | Q87: =G87*I87 -> 0.0003253781259 | R87: 2.253544927 | T87: 226.8216801 | V87: =G87*J87 -> 0.001451540327 | W87: 1.417924852 | Y87: 63.76799439 | AA87: =G87*K87 -> 0.003504196298 | AB87: 1.512839898 | AD87: 32.53942763 | AF87: 32.53942763 | AG87: =Y87 -> 63.76799439 | AH87: =T87 -> 226.8216801 | AI87: =AD87 -> 32.53942763 | AJ87: 63.76799439 | AL87: =IF(EMCI!$F$27="A",'1st milking (DF)'!AF87,IF(EMCI!$F$27="B",'1st milking (DF)'!AG87,IF(EMCI!$F$27="S",'1st milking (DF)'!AH87,IF(EMCI!$F$27="P",'1st milking (DF)'!AI87,IF(EMCI!$F$27="FS",'1st milking (DF)'!AJ87,"error"))))) -> 63.76799439
A88: =E38 -> 21.25 | B88: =AL38 -> 9.818660431 | E88: 8.75 | F88: =(E88-$G$11)/$G$10 -> 1.625 | G88: 0.025 | I88: 0.01123447315 | J88: 0.05431671087 | K88: 0.1356481229 | M88: =IF(E88>$H$15,(0.00033*(E88-5.6)*((6.5-2.8)*(1-EXP(0.5*(6.5-9.8)))*(36.7-0.9324)*(1-EXP(0.42*(-5-0.9324)))))^2,0) -> 0.01039324607 | N88: =IF(E88>$H$16,(((0.175*(E88-1.5)*SQRT(0.995-0.92)*(1-EXP(0.4395*(E88-45)))))^2)/2.3,0) -> 0.05249107091 | O88: =IF(E88>$H$17,((0.1709*(E88+6.1)*SQRT(0.995-0.947)*(1-EXP(0.1723*(E88-41.2))))^2)/2.3,0) -> 0.1334147511 | Q88: 0.0002808618289 | R88: 2.253825789 | T88: 264.2268059 | V88: 0.001357917772 | W88: 1.419282769 | Y88: =($G$16-W88)/N88 -> 68.21573971 | AA88: 0.003391203071 | AB88: 1.516231101 | AD88: =($G$17-AB88)/O88 -> 33.60774474 | AF88: =+MIN(AG88:AI88) -> 33.60774474 | AG88: 68.21573971 | AH88: 264.2268059 | AI88: 33.60774474 | AJ88: =MIN(AG88:AH88) -> 68.21573971 | AL88: =IF(EMCI!$F$27="A",'1st milking (DF)'!AF88,IF(EMCI!$F$27="B",'1st milking (DF)'!AG88,IF(EMCI!$F$27="S",'1st milking (DF)'!AH88,IF(EMCI!$F$27="P",'1st milking (DF)'!AI88,IF(EMCI!$F$27="FS",'1st milking (DF)'!AJ88,"error"))))) -> 68.21573971
A89: =E37 -> 21.5 | B89: =AL37 -> 9.599481801 | E89: =E88-0.25 -> 8.5 | F89: 1.65 | G89: =F89-F88 -> 0.025 | I89: =IF(E89>$H$15,(0.00033*(((E89+E88)/2)-5.6)*((6.5-2.8)*(1-EXP(0.5*(6.5-9.8)))*(36.7-0.9324)*(1-EXP(0.42*(-5-0.9324)))))^2,0) -> 0.009584751556 | J89: =IF(E89>$H$16,(((0.175*(((E89+E88)/2)-1.5)*SQRT(0.995-0.92)*(1-EXP(0.4395*(((E89+E88)/2)-45)))))^2)/2.3,0) -> 0.0506966384 | K89: =IF(E89>$H$17,((0.1709*(((E89+E88)/2)+6.1)*SQRT(0.995-0.947)*(1-EXP(0.1723*(((E89+E88)/2)-41.2))))^2)/2.3,0) -> 0.1311990989 | M89: 0.008808989614 | N89: 0.04893341335 | O89: 0.129001208 | Q89: 0.0002396187889 | R89: =R88+Q89 -> 2.254065407 | T89: =IF(M89=0,T88,($G$15-R89)/M89) -> 311.7195857 | V89: 0.00126741596 | W89: 1.420550185 | Y89: 73.14939976 | AA89: 0.003279977473 | AB89: 1.519511078 | AD89: 34.73214701 | AF89: 34.73214701 | AG89: 73.14939976 | AH89: 311.7195857 | AI89: 34.73214701 | AJ89: 73.14939976 | AL89: =IF(EMCI!$F$27="A",'1st milking (DF)'!AF89,IF(EMCI!$F$27="B",'1st milking (DF)'!AG89,IF(EMCI!$F$27="S",'1st milking (DF)'!AH89,IF(EMCI!$F$27="P",'1st milking (DF)'!AI89,IF(EMCI!$F$27="FS",'1st milking (DF)'!AJ89,"error"))))) -> 73.14939976
A90: =E36 -> 21.75 | B90: =AL36 -> 9.388684196 | E90: 8.25 | F90: 1.675 | G90: 0.025 | I90: 0.008065960243 | J90: 0.04720139576 | K90: 0.126821119 | M90: 0.007355663444 | N90: 0.04550058563 | O90: 0.124658871 | Q90: 0.0002016490061 | R90: 2.254267056 | T90: 373.2814809 | V90: 0.001180034894 | W90: 1.42173022 | Y90: 78.64227966 | AA90: 0.003170527974 | AB90: 1.522681606 | AD90: 35.91656462 | AF90: 35.91656462 | AG90: 78.64227966 | AH90: 373.2814809 | AI90: 35.91656462 | AJ90: 78.64227966 | AL90: =IF(EMCI!$F$27="A",'1st milking (DF)'!AF90,IF(EMCI!$F$27="B",'1st milking (DF)'!AG90,IF(EMCI!$F$27="S",'1st milking (DF)'!AH90,IF(EMCI!$F$27="P",'1st milking (DF)'!AI90,IF(EMCI!$F$27="FS",'1st milking (DF)'!AJ90,"error"))))) -> 78.64227966
A91: =E35 -> 22 | B91: =AL35 -> 9.18586201 | E91: 8 | F91: 1.7 | G91: 0.025 | I91: 0.006678099216 | J91: 0.04383098297 | K91: 0.1225145022 | M91: 0.006033267559 | N91: 0.0421925878 | O91: 0.1203880496 | Q91: 0.0001669524804 | R91: 2.254434009 | T91: 455.0711474 | V91: 0.001095774574 | W91: 1.422825995 | Y91: 84.78204803 | AA91: 0.003062862554 | AB91: 1.525744469 | AD91: 37.16527967 | AF91: 37.16527967 | AG91: 84.78204803 | AH91: 455.0711474 | AI91: 37.16527967 | AJ91: 84.78204803 | AL91: =IF(EMCI!$F$27="A",'1st milking (DF)'!AF91,IF(EMCI!$F$27="B",'1st milking (DF)'!AG91,IF(EMCI!$F$27="S",'1st milking (DF)'!AH91,IF(EMCI!$F$27="P",'1st milking (DF)'!AI91,IF(EMCI!$F$27="FS",'1st milking (DF)'!AJ91,"error"))))) -> 84.78204803
A92: =E34 -> 22.25 | B92: =AL34 -> 8.990634001 | E92: 7.75 | F92: 1.725 | G92: 0.025 | I92: 0.005421168474 | J92: 0.0405854001 | K92: 0.1182795491 | M92: 0.004841801961 | N92: 0.03900941989 | O92: 0.1161890355 | Q92: 0.0001355292119 | R92: 2.254569538 | T92: 567.0265914 | V92: 0.001014635003 | W92: 1.42384063 | Y92: 91.6742515 | AA92: 0.002956988727 | AB92: 1.528701457 | AD92: 38.48296462 | AF92: 38.48296462 | AG92: 91.6742515 | AH92: 567.0265914 | AI92: 38.48296462 | AJ92: 91.6742515 | AL92: =IF(EMCI!$F$27="A",'1st milking (DF)'!AF92,IF(EMCI!$F$27="B",'1st milking (DF)'!AG92,IF(EMCI!$F$27="S",'1st milking (DF)'!AH92,IF(EMCI!$F$27="P",'1st milking (DF)'!AI92,IF(EMCI!$F$27="FS",'1st milking (DF)'!AJ92,"error"))))) -> 91.6742515
A93: =E33 -> 22.5 | B93: =AL33 -> 8.802641568 | E93: 7.5 | F93: 1.75 | G93: 0.025 | I93: 0.004295168018 | J93: 0.03746464718 | K93: 0.1141165426 | M93: 0.003781266648 | N93: 0.03595108196 | O93: 0.1120621033 | Q93: 0.0001073792005 | R93: 2.254676917 | T93: 726.0326601 | V93: 0.0009366161794 | W93: 1.424777246 | Y93: 99.44687502 | AA93: 0.002852913566 | AB93: 1.531554371 | AD93: 39.87472569 | AF93: 39.87472569 | AG93: 99.44687502 | AH93: 726.0326601 | AI93: 39.87472569 | AJ93: 99.44687502 | AL93: =IF(EMCI!$F$27="A",'1st milking (DF)'!AF93,IF(EMCI!$F$27="B",'1st milking (DF)'!AG93,IF(EMCI!$F$27="S",'1st milking (DF)'!AH93,IF(EMCI!$F$27="P",'1st milking (DF)'!AI93,IF(EMCI!$F$27="FS",'1st milking (DF)'!AJ93,"error"))))) -> 99.44687502
A94: =E32 -> 22.75 | B94: =AL32 -> 8.621547175 | E94: 7.25 | F94: 1.775 | G94: 0.025 | I94: 0.003300097848 | J94: 0.03446872423 | K94: 0.1100257492 | M94: 0.00285166162 | N94: 0.03301757401 | O94: 0.1080075113 | Q94: 8.25024462e-05 | R94: 2.25475942 | T94: 962.6810422 | V94: 0.0008617181058 | W94: 1.425638964 | Y94: 108.2563193 | AA94: 0.002750643731 | AB94: 1.534305015 | AD94: 41.34615204 | AF94: 41.34615204 | AG94: 108.2563193 | AH94: 962.6810422 | AI94: 41.34615204 | AJ94: 108.2563193 | AL94: =IF(EMCI!$F$27="A",'1st milking (DF)'!AF94,IF(EMCI!$F$27="B",'1st milking (DF)'!AG94,IF(EMCI!$F$27="S",'1st milking (DF)'!AH94,IF(EMCI!$F$27="P",'1st milking (DF)'!AI94,IF(EMCI!$F$27="FS",'1st milking (DF)'!AJ94,"error"))))) -> 108.2563193
A95: =E31 -> 23 | B95: =AL31 -> 8.447032899 | E95: 7 | F95: 1.8 | G95: 0.025 | I95: 0.002435957963 | J95: 0.03159763129 | K95: 0.1060074195 | M95: 0.002052986878 | N95: 0.03020889608 | O95: 0.1040255028 | Q95: 6.089894908e-05 | R95: 2.254820319 | T95: 1337.163774 | V95: 0.0007899407823 | W95: 1.426428905 | Y95: 118.2953222 | AA95: 0.002650185488 | AB95: 1.5369552 | AD95: 42.90337157 | AF95: 42.90337157 | AG95: 118.2953222 | AH95: 1337.163774 | AI95: 42.90337157 | AJ95: 118.2953222 | AL95: =IF(EMCI!$F$27="A",'1st milking (DF)'!AF95,IF(EMCI!$F$27="B",'1st milking (DF)'!AG95,IF(EMCI!$F$27="S",'1st milking (DF)'!AH95,IF(EMCI!$F$27="P",'1st milking (DF)'!AI95,IF(EMCI!$F$27="FS",'1st milking (DF)'!AJ95,"error"))))) -> 118.2953222
A96: =E30 -> 23.25 | B96: =AL30 -> 8.278799096 | E96: =E95-0.25 -> 6.75 | F96: 1.825 | G96: 0.025 | I96: 0.001702748364 | J96: 0.02885136838 | K96: 0.1020617894 | M96: 0.001385242421 | N96: 0.0275250482 | O96: 0.1001163065 | Q96: 4.25687091e-05 | R96: 2.254862887 | T96: 1981.701592 | V96: 0.0007212842096 | W96: 1.427150189 | Y96: 129.8035806 | AA96: 0.002551544734 | AB96: 1.539506745 | AD96: 44.55311438 | AF96: 44.55311438 | AG96: 129.8035806 | AH96: 1981.701592 | AI96: 44.55311438 | AJ96: 129.8035806 | AL96: =IF(EMCI!$F$27="A",'1st milking (DF)'!AF96,IF(EMCI!$F$27="B",'1st milking (DF)'!AG96,IF(EMCI!$F$27="S",'1st milking (DF)'!AH96,IF(EMCI!$F$27="P",'1st milking (DF)'!AI96,IF(EMCI!$F$27="FS",'1st milking (DF)'!AJ96,"error"))))) -> 129.8035806
A97: =E29 -> 23.5 | B97: =AL29 -> 8.116563175 | E97: =E96-0.25 -> 6.5 | F97: 1.85 | G97: 0.025 | I97: 0.00110046905 | J97: 0.02622993553 | K97: 0.0981890807 | M97: 0.0008484282506 | N97: 0.02496603037 | O97: 0.09628013763 | Q97: 2.751172626e-05 | R97: =R96+Q97 -> 2.254890399 | T97: 3235.523568 | V97: 0.0006557483881 | W97: =W96+V97 -> 1.427805937 | Y97: 143.0821804 | AA97: 0.002454727017 | AB97: =AB96+AA97 -> 1.541961472 | AD97: 46.30278516 | AF97: 46.30278516 | AG97: 143.0821804 | AH97: 3235.523568 | AI97: 46.30278516 | AJ97: 143.0821804 | AL97: =IF(EMCI!$F$27="A",'1st milking (DF)'!AF97,IF(EMCI!$F$27="B",'1st milking (DF)'!AG97,IF(EMCI!$F$27="S",'1st milking (DF)'!AH97,IF(EMCI!$F$27="P",'1st milking (DF)'!AI97,IF(EMCI!$F$27="FS",'1st milking (DF)'!AJ97,"error"))))) -> 143.0821804
A98: =E28 -> 23.75 | B98: =AL28 -> 7.960058468 | E98: 6.25 | F98: 1.875 | G98: 0.025 | I98: 0.0006291200222 | J98: 0.02373333274 | K98: 0.0943895022 | M98: 0.0004425443653 | N98: 0.02253184262 | O98: 0.09251719858 | Q98: 1.572800056e-05 | R98: =R97+Q98 -> 2.254906127 | T98: 6202.980059 | V98: 0.0005933333184 | W98: =W97+V98 -> 1.428399271 | Y98: 158.5134775 | AA98: 0.002359737555 | AB98: =AB97+AA98 -> 1.544321209 | AD98: 48.16054592 | AF98: 48.16054592 | AG98: 158.5134775 | AH98: 6202.980059 | AI98: 48.16054592 | AJ98: 158.5134775 | AL98: =IF(EMCI!$F$27="A",'1st milking (DF)'!AF98,IF(EMCI!$F$27="B",'1st milking (DF)'!AG98,IF(EMCI!$F$27="S",'1st milking (DF)'!AH98,IF(EMCI!$F$27="P",'1st milking (DF)'!AI98,IF(EMCI!$F$27="FS",'1st milking (DF)'!AJ98,"error"))))) -> 158.5134775
A99: =E27 -> 24 | B99: =AL27 -> 7.809033193 | E99: 6 | F99: 1.9 | G99: 0.025 | I99: 0.0002887012797 | J99: 0.02136156003 | K99: 0.09066325017 | M99: 0.0001675907655 | N99: 0.02022248496 | O99: 0.08882767969 | Q99: 7.217531993e-06 | R99: 2.254913345 | T99: 16379.70115 | V99: 0.0005340390007 | W99: 1.42893331 | Y99: 176.5889156 | AA99: 0.002266581254 | AB99: 1.546587791 | AD99: 50.13541078 | AF99: 50.13541078 | AG99: 176.5889156 | AH99: 16379.70115 | AI99: 50.13541078 | AJ99: 176.5889156 | AL99: =IF(EMCI!$F$27="A",'1st milking (DF)'!AF99,IF(EMCI!$F$27="B",'1st milking (DF)'!AG99,IF(EMCI!$F$27="S",'1st milking (DF)'!AH99,IF(EMCI!$F$27="P",'1st milking (DF)'!AI99,IF(EMCI!$F$27="FS",'1st milking (DF)'!AJ99,"error"))))) -> 176.5889156
A100: =E26 -> 24.25 | B100: =AL26 -> 7.663249489 | E100: 5.75 | F100: 1.925 | G100: 0.025 | I100: 7.921282278e-05 | J100: 0.01911461741 | K100: 0.08701050913 | M100: 2.35674514e-05 | N100: 0.0180379574 | O100: 0.08521175986 | Q100: 1.980320569e-06 | R100: 2.254915325 | T100: 116477.7908 | V100: 0.0004778654354 | W100: 1.429411175 | Y100: 197.9486228 | AA100: 0.002175262728 | AB100: 1.548763053 | AD100: 52.23735496 | AF100: 52.23735496 | AG100: 197.9486228 | AH100: 116477.7908 | AI100: 52.23735496 | AJ100: 197.9486228 | AL100: =IF(EMCI!$F$27="A",'1st milking (DF)'!AF100,IF(EMCI!$F$27="B",'1st milking (DF)'!AG100,IF(EMCI!$F$27="S",'1st milking (DF)'!AH100,IF(EMCI!$F$27="P",'1st milking (DF)'!AI100,IF(EMCI!$F$27="FS",'1st milking (DF)'!AJ100,"error"))))) -> 197.9486228
A101: =E25 -> 24.5 | B101: =AL25 -> 7.522482538 | E101: 5.5 | F101: 1.95 | G101: 0.025 | I101: 0 | J101: 0.01699250491 | K101: 0.08343145255 | M101: 0 | N101: 0.01597825995 | O101: 0.08166960726 | Q101: 0 | R101: 2.254915325 | T101: 116477.7908 | V101: 0.0004248126227 | W101: 1.429835988 | Y101: 223.438849 | AA101: 0.002085786314 | AB101: 1.55084884 | AD101: 54.47744038 | AF101: 54.47744038 | AG101: 223.438849 | AH101: 116477.7908 | AI101: 54.47744038 | AJ101: 223.438849 | AL101: =IF(EMCI!$F$27="A",'1st milking (DF)'!AF101,IF(EMCI!$F$27="B",'1st milking (DF)'!AG101,IF(EMCI!$F$27="S",'1st milking (DF)'!AH101,IF(EMCI!$F$27="P",'1st milking (DF)'!AI101,IF(EMCI!$F$27="FS",'1st milking (DF)'!AJ101,"error"))))) -> 223.438849
A102: =E24 -> 24.75 | B102: =AL24 -> 7.386519742 | E102: 5.25 | F102: 1.975 | G102: 0.025 | I102: 0 | J102: 0.01499522252 | K102: 0.07992624344 | M102: 0 | N102: 0.01404339262 | O102: 0.07820137991 | Q102: 0 | R102: 2.254915325 | T102: 116477.7908 | V102: 0.0003748805629 | W102: 1.430210868 | Y102: 254.1970612 | AA102: 0.001998156086 | AB102: 1.552846996 | AD102: 56.86796076 | AF102: 56.86796076 | AG102: 254.1970612 | AH102: 116477.7908 | AI102: 56.86796076 | AJ102: 254.1970612 | AL102: =IF(EMCI!$F$27="A",'1st milking (DF)'!AF102,IF(EMCI!$F$27="B",'1st milking (DF)'!AG102,IF(EMCI!$F$27="S",'1st milking (DF)'!AH102,IF(EMCI!$F$27="P",'1st milking (DF)'!AI102,IF(EMCI!$F$27="FS",'1st milking (DF)'!AJ102,"error"))))) -> 254.1970612
A103: =E23 -> 25 | B103: =AL23 -> 7.255159975 | E103: 5 | F103: 2 | G103: 0.025 | I103: 0 | J103: 0.01312277025 | K103: 0.07649503496 | M103: 0 | N103: 0.01223335541 | O103: 0.07480722627 | Q103: 0 | R103: 2.254915325 | T103: 116477.7908 | V103: 0.0003280692562 | W103: 1.430538938 | Y103: 291.7810317 | AA103: 0.001912375874 | AB103: 1.554759372 | AD103: 59.42260996 | AF103: 59.42260996 | AG103: 291.7810317 | AH103: 116477.7908 | AI103: 59.42260996 | AJ103: 291.7810317 | AL103: =IF(EMCI!$F$27="A",'1st milking (DF)'!AF103,IF(EMCI!$F$27="B",'1st milking (DF)'!AG103,IF(EMCI!$F$27="S",'1st milking (DF)'!AH103,IF(EMCI!$F$27="P",'1st milking (DF)'!AI103,IF(EMCI!$F$27="FS",'1st milking (DF)'!AJ103,"error"))))) -> 291.7810317

Sheet 1st milking (DO)
A2: Entry | E2: Milk cooling curve (1st milking) | O2: Entry: | P2: Temp | Q2: Time
P3: =E5 -> 25 | Q3: =F5 -> -0.08823529412
A4: Milking | B4: =EMCI!F9 -> 1 | C4: 1 | E4: T | F4: t | P4: =E6 -> 20 | Q4: =F6 -> 0.5
A5: Time | B5: =EMCI!F11/60 -> 0.5 | C5: O | E5: 25 | F5: =F6-((E6-F11)/F10) -> -0.08823529412
A6: Milk T | B6: =EMCI!F13 -> 20 | E6: =B6 -> 20 | F6: =B5 -> 0.5
A7: Volume | B7: =EMCI!F31 -> 0 | C7: D | P7: x | Q7: y | R7: xy | S7: xx
P8: =Q3 -> -0.08823529412 | Q8: =P3 -> 25 | R8: =P8*Q8 -> -2.205882353 | S8: =P8*P8 -> 0.007785467128
G9: Outside!!! | P9: =Q4 -> 0.5 | Q9: =P4 -> 20 | R9: =P9*Q9 -> 10 | S9: =P9*P9 -> 0.25
A10: Outcome | B10: =IF(OR(B6>E5,B6<5),"out",LOOKUP(B6,A23:A103,B23:B103)) -> 11.0845408 | E10: slope | F10: -8.5 | G10: =P12 -> -8.5 | O10: sum | P10: =SUM(P8:P9) -> 0.4117647059 | Q10: =SUM(Q8:Q9) -> 45 | R10: 7.794117647 | S10: 0.2577854671
E11: intercept | F11: 25 | G11: =P13 -> 24.25
O12: slope | P12: =(2*R10-P10*Q10)/(2*S10-(P10^2)) -> -8.5
O13: intercept | P13: =(Q10-P12*P10)/2 -> 24.25
F14: No (logs) | G14: Nf (logs) | H14: Tmin | J14: N after milk (logs) | K14: GR at 5C | L14: Growth storage | M14: N after stroage (logs)
E15: S aureus | F15: =EMCI!F19 -> 2 | G15: =EMCI!G19 -> 5 | H15: 5.6 | J15: =R103 -> 2.265116673 | K15: 0 | L15: =K15*(12-$F$7) -> 0 | M15: =J15+L15 -> 2.265116673 | O15: TEST(max) | P15: =F10*Q4+F11 -> 20.75
E16: B cereus | F16: =EMCI!F20 -> 1 | G16: =EMCI!G20 -> 5 | H16: 1.5 | J16: =W103 -> 1.457869479 | K16: 0.01223335541 | L16: =K16*(12-$F$7) -> 0.1468002649 | M16: =J16+L16 -> 1.604669744
E17: Pseudo | F17: =EMCI!F21 -> 1 | G17: =EMCI!G21 -> 6 | H17: -6.1 | J17: =AB103 -> 1.60682557 | K17: 0.07480722627 | L17: =K17*(12-$F$7) -> 0.8976867152 | M17: =J17+L17 -> 2.504512285
A21: Lookup function | E21: Cooling curve profile | I21: Growth (log/h) during cooling | M21: Growth (log/h) to calculate NMTL | Q21: Saureus | R21: Growth acc | T21: Time to NMTL (depending on initial logs) | V21: B cereus | W21: Growth acc | Y21: Time to NMTL (depending on initial logs) | AA21: Pseudo | AB21: Growth acc | AD21: Time to NMTL (depending on initial logs) | AF21: NMTL | AG21: NMTL | AH21: NMTL | AI21: NMTL | AJ21: NMTL | AL21: NMTL
A22: =E22 -> Temp | B22: NMTL | E22: Temp | F22: Time | G22: Time interval | I22: S. aureus | J22: B.cereus | K22: Pseudo | M22: S. aureus | N22: B.cereus | O22: Pseudo | Q22: Growth interval | R22: =F15 -> 2 | T22: =R22 -> 2 | V22: Growth interval | W22: =F16 -> 1 | Y22: =W22 -> 1 | AA22: Growth interval | AB22: =F17 -> 1 | AD22: =AB22 -> 1 | AF22: Shorter of 3 microorganisms | AG22: B. cereus | AH22: S. aureus | AI22: Pseudo | AJ22: Food Safety | AL22: Entry
A23: =E103 -> 5 | B23: =AL103 -> 289.5469315 | E23: =E5 -> 25 | F23: =(E23-$G$11)/$G$10 -> -0.08823529412 | G23: =IF(E6=E5,F5,F23) -> -0.08823529412 | I23: =IF(E23>H15,(0.00033*(E23-5.6)*((6.5-2.8)*(1-EXP(0.5*(6.5-9.8)))*(36.7-0.9324)*(1-EXP(0.42*(-5-0.9324)))))^2,0) -> 0.3942153782 | J23: =IF(E23>$H$16,(((0.175*(E23-1.5)*SQRT(0.995-0.92)*(1-EXP(0.4395*(E23-45)))))^2)/2.3,0) -> 0.5513317437 | K23: =IF(E23>$H$17,((0.1709*(E23+6.1)*SQRT(0.995-0.947)*(1-EXP(0.1723*(E23-41.2))))^2)/2.3,0) -> 0.5194351615 | M23: =IF(E23>$H$15,(0.00033*(E23-5.6)*((6.5-2.8)*(1-EXP(0.5*(6.5-9.8)))*(36.7-0.9324)*(1-EXP(0.42*(-5-0.9324)))))^2,0) -> 0.3942153782 | N23: =IF(E23>$H$16,(((0.175*(E23-1.5)*SQRT(0.995-0.92)*(1-EXP(0.4395*(E23-45)))))^2)/2.3,0) -> 0.5513317437 | O23: =IF(E23>$H$17,((0.1709*(E23+6.1)*SQRT(0.995-0.947)*(1-EXP(0.1723*(E23-41.2))))^2)/2.3,0) -> 0.5194351615 | Q23: =G23*I23 -> -0.03478370985 | R23: =R22+Q23 -> 1.96521629 | T23: =($G$15-R23)/M23 -> 7.698288492 | V23: =G23*J23 -> -0.04864691856 | W23: =W22+V23 -> 0.9513530814 | Y23: =($G$16-W23)/N23 -> 7.343395269 | AA23: =G23*K23 -> -0.04583251425 | AB23: =AB22+AA23 -> 0.9541674857 | AD23: =($G$17-AB23)/O23 -> 9.714075765 | AF23: =+MIN(AG23:AI23) -> 7.343395269 | AG23: =Y23 -> 7.343395269 | AH23: =T23 -> 7.698288492 | AI23: =AD23 -> 9.714075765 | AJ23: =MIN(AG23:AH23) -> 7.343395269 | AL23: =IF(EMCI!$F$27="A",'1st milking (DO)'!AF23,IF(EMCI!$F$27="B",'1st milking (DO)'!AG23,IF(EMCI!$F$27="S",'1st milking (DO)'!AH23,IF(EMCI!$F$27="P",'1st milking (DO)'!AI23,IF(EMCI!$F$27="FS",'1st milking (DO)'!AJ23,"error"))))) -> 7.343395269
A24: =E102 -> 5.25 | B24: =AL102 -> 252.2550342 | E24: =E23-0.25 -> 24.75 | F24: =(E24-$G$11)/$G$10 -> -0.05882352941 | G24: =F24-F23 -> 0.02941176471 | I24: =IF(E24>$H$15,(0.00033*(((E24+E23)/2)-5.6)*((6.5-2.8)*(1-EXP(0.5*(6.5-9.8)))*(36.7-0.9324)*(1-EXP(0.42*(-5-0.9324)))))^2,0) -> 0.3891516494 | J24: =IF(E24>$H$16,(((0.175*(((E24+E23)/2)-1.5)*SQRT(0.995-0.92)*(1-EXP(0.4395*(((E24+E23)/2)-45)))))^2)/2.3,0) -> 0.5454909916 | K24: =IF(E24>$H$17,((0.1709*(((E24+E23)/2)+6.1)*SQRT(0.995-0.947)*(1-EXP(0.1723*(((E24+E23)/2)-41.2))))^2)/2.3,0) -> 0.5167040375 | M24: =IF(E24>$H$15,(0.00033*(E24-5.6)*((6.5-2.8)*(1-EXP(0.5*(6.5-9.8)))*(36.7-0.9324)*(1-EXP(0.42*(-5-0.9324)))))^2,0) -> 0.3841206532 | N24: =IF(E24>$H$16,(((0.175*(E24-1.5)*SQRT(0.995-0.92)*(1-EXP(0.4395*(E24-45)))))^2)/2.3,0) -> 0.5396807786 | O24: =IF(E24>$H$17,((0.1709*(E24+6.1)*SQRT(0.995-0.947)*(1-EXP(0.1723*(E24-41.2))))^2)/2.3,0) -> 0.5139381312 | Q24: 0.01144563675 | R24: =R23+Q24 -> 1.976661927 | T24: =IF(M24=0,T23,($G$15-R24)/M24) -> 7.870803217 | V24: 0.0160438527 | W24: =W23+V24 -> 0.9673969341 | Y24: =($G$16-W24)/N24 -> 7.472200652 | AA24: 0.01519717757 | AB24: =AB23+AA24 -> 0.9693646633 | AD24: =($G$17-AB24)/O24 -> 9.788406487 | AF24: =+MIN(AG24:AI24) -> 7.472200652 | AG24: 7.472200652 | AH24: 7.870803217 | AI24: 9.788406487 | AJ24: =MIN(AG24:AH24) -> 7.472200652 | AL24: =IF(EMCI!$F$27="A",'1st milking (DO)'!AF24,IF(EMCI!$F$27="B",'1st milking (DO)'!AG24,IF(EMCI!$F$27="S",'1st milking (DO)'!AH24,IF(EMCI!$F$27="P",'1st milking (DO)'!AI24,IF(EMCI!$F$27="FS",'1st milking (DO)'!AJ24,"error"))))) -> 7.472200652
A25: =E101 -> 5.5 | B25: =AL101 -> 221.7361298 | E25: =E24-0.25 -> 24.5 | F25: -0.02941176471 | G25: =F25-F24 -> 0.02941176471 | I25: =IF(E25>$H$15,(0.00033*(((E25+E24)/2)-5.6)*((6.5-2.8)*(1-EXP(0.5*(6.5-9.8)))*(36.7-0.9324)*(1-EXP(0.42*(-5-0.9324)))))^2,0) -> 0.3791223896 | J25: =IF(E25>$H$16,(((0.175*(((E25+E24)/2)-1.5)*SQRT(0.995-0.92)*(1-EXP(0.4395*(((E25+E24)/2)-45)))))^2)/2.3,0) -> 0.533901146 | K25: =IF(E25>$H$17,((0.1709*(((E25+E24)/2)+6.1)*SQRT(0.995-0.947)*(1-EXP(0.1723*(((E25+E24)/2)-41.2))))^2)/2.3,0) -> 0.5111387932 | M25: 0.3741568585 | N25: 0.5281521328 | O25: 0.5083073442 | Q25: 0.01115065852 | R25: =R24+Q25 -> 1.987812585 | T25: =IF(M25=0,T24,($G$15-R25)/M25) -> 8.05060056 | V25: 0.01570297488 | W25: =W24+V25 -> 0.983099909 | Y25: 7.605573927 | AA25: 0.01503349392 | AB25: =AB24+AA25 -> 0.9843981572 | AD25: 9.867262198 | AF25: 7.605573927 | AG25: 7.605573927 | AH25: 8.05060056 | AI25: 9.867262198 | AJ25: 7.605573927 | AL25: =IF(EMCI!$F$27="A",'1st milking (DO)'!AF25,IF(EMCI!$F$27="B",'1st milking (DO)'!AG25,IF(EMCI!$F$27="S",'1st milking (DO)'!AH25,IF(EMCI!$F$27="P",'1st milking (DO)'!AI25,IF(EMCI!$F$27="FS",'1st milking (DO)'!AJ25,"error"))))) -> 7.605573927
A26: =E100 -> 5.75 | B26: =AL100 -> 196.4444877 | E26: 24.25 | F26: 0 | G26: 0.02941176471 | I26: 0.36922406 | J26: 0.5224337756 | K26: 0.5054450752 | M26: 0.364323994 | N26: 0.5167461085 | O26: 0.502553248 | Q26: 0.01085953118 | R26: 1.998672117 | T26: =IF(M26=0,T25,($G$15-R26)/M26) -> 8.238073617 | V26: 0.01536569928 | W26: 0.9984656083 | Y26: 7.743714613 | AA26: 0.01486603162 | AB26: 0.9992641889 | AD26: 9.950658625 | AF26: 7.743714613 | AG26: 7.743714613 | AH26: 8.238073617 | AI26: 9.950658625 | AJ26: 7.743714613 | AL26: =IF(EMCI!$F$27="A",'1st milking (DO)'!AF26,IF(EMCI!$F$27="B",'1st milking (DO)'!AG26,IF(EMCI!$F$27="S",'1st milking (DO)'!AH26,IF(EMCI!$F$27="P",'1st milking (DO)'!AI26,IF(EMCI!$F$27="FS",'1st milking (DO)'!AJ26,"error"))))) -> 7.743714613
A27: =E99 -> 6 | B27: =AL99 -> 175.2514344 | E27: 24 | F27: 0.02941176471 | G27: 0.02941176471 | I27: 0.3594566607 | J27: 0.5110891638 | K27: 0.4996330956 | M27: 0.3546220599 | N27: 0.5054629716 | O27: 0.4966858232 | Q27: 0.01057225473 | R27: 2.009244371 | T27: 8.433642367 | V27: 0.01503203423 | W27: 1.013497643 | Y27: 7.886833619 | AA27: 0.01469509105 | AB27: 1.01395928 | AD27: 10.03862097 | AF27: 7.886833619 | AG27: 7.886833619 | AH27: 8.433642367 | AI27: 10.03862097 | AJ27: 7.886833619 | AL27: =IF(EMCI!$F$27="A",'1st milking (DO)'!AF27,IF(EMCI!$F$27="B",'1st milking (DO)'!AG27,IF(EMCI!$F$27="S",'1st milking (DO)'!AH27,IF(EMCI!$F$27="P",'1st milking (DO)'!AI27,IF(EMCI!$F$27="FS",'1st milking (DO)'!AJ27,"error"))))) -> 7.886833619
A28: =E98 -> 6.25 | B28: =AL98 -> 157.3172615 | E28: 23.75 | F28: 0.05882352941 | G28: 0.02941176471 | I28: 0.3498201917 | J28: 0.4998675603 | K28: 0.4937126081 | M28: 0.345051056 | N28: 0.4943029564 | O28: 0.4907146006 | Q28: 0.01028882917 | R28: 2.0195332 | T28: 8.637755914 | V28: 0.01470198707 | W28: 1.02819963 | Y28: 8.035153986 | AA28: 0.01452095906 | AB28: 1.028480239 | AD28: 10.1311837 | AF28: 8.035153986 | AG28: 8.035153986 | AH28: 8.637755914 | AI28: 10.1311837 | AJ28: 8.035153986 | AL28: =IF(EMCI!$F$27="A",'1st milking (DO)'!AF28,IF(EMCI!$F$27="B",'1st milking (DO)'!AG28,IF(EMCI!$F$27="S",'1st milking (DO)'!AH28,IF(EMCI!$F$27="P",'1st milking (DO)'!AI28,IF(EMCI!$F$27="FS",'1st milking (DO)'!AJ28,"error"))))) -> 8.035153986
A29: =E97 -> 6.5 | B29: =AL97 -> 142.0067893 | E29: 23.5 | F29: 0.08823529412 | G29: 0.02941176471 | I29: 0.3403146529 | J29: 0.4887691849 | K29: 0.4876929244 | M29: 0.3356109824 | N29: 0.4832662692 | O29: 0.4846486768 | Q29: 0.0100092545 | R29: 2.029542455 | T29: 8.850894937 | V29: 0.01437556426 | W29: 1.042575194 | Y29: 8.1889117 | AA29: 0.01434390954 | AB29: 1.042824149 | AD29: 10.22839036 | AF29: 8.1889117 | AG29: 8.1889117 | AH29: 8.850894937 | AI29: 10.22839036 | AJ29: 8.1889117 | AL29: =IF(EMCI!$F$27="A",'1st milking (DO)'!AF29,IF(EMCI!$F$27="B",'1st milking (DO)'!AG29,IF(EMCI!$F$27="S",'1st milking (DO)'!AH29,IF(EMCI!$F$27="P",'1st milking (DO)'!AI29,IF(EMCI!$F$27="FS",'1st milking (DO)'!AJ29,"error"))))) -> 8.1889117
A30: =E96 -> 6.75 | B30: =AL96 -> 128.8323733 | E30: 23.25 | F30: 0.1176470588 | G30: 0.02941176471 | I30: 0.3309400445 | J30: 0.4777942313 | K30: 0.4815829297 | M30: 0.3263018391 | N30: 0.4723530917 | O30: 0.47849673 | Q30: 0.00973353072 | R30: 2.039275986 | T30: 9.073574401 | V30: 0.01405277151 | W30: 1.056627965 | Y30: 8.348356566 | AA30: 0.01416420382 | AB30: 1.056988352 | AD30: 10.33029348 | AF30: 8.348356566 | AG30: 8.348356566 | AH30: 9.073574401 | AI30: 10.33029348 | AJ30: 8.348356566 | AL30: =IF(EMCI!$F$27="A",'1st milking (DO)'!AF30,IF(EMCI!$F$27="B",'1st milking (DO)'!AG30,IF(EMCI!$F$27="S",'1st milking (DO)'!AH30,IF(EMCI!$F$27="P",'1st milking (DO)'!AI30,IF(EMCI!$F$27="FS",'1st milking (DO)'!AJ30,"error"))))) -> 8.348356566
A31: =E95 -> 7 | B31: =AL95 -> 117.4146134 | E31: 23 | F31: 0.1470588235 | G31: 0.02941176471 | I31: 0.3216963663 | J31: 0.4669428698 | K31: 0.4753910995 | M31: 0.3171236261 | N31: 0.4615635837 | O31: 0.4722670362 | Q31: 0.009461657833 | R31: 2.048737644 | T31: 9.306346527 | V31: 0.01373361382 | W31: 1.070361579 | Y31: 8.513753163 | AA31: 0.01398209116 | AB31: 1.070970443 | AD31: 10.43695447 | AF31: 8.513753163 | AG31: 8.513753163 | AH31: 9.306346527 | AI31: 10.43695447 | AJ31: 8.513753163 | AL31: =IF(EMCI!$F$27="A",'1st milking (DO)'!AF31,IF(EMCI!$F$27="B",'1st milking (DO)'!AG31,IF(EMCI!$F$27="S",'1st milking (DO)'!AH31,IF(EMCI!$F$27="P",'1st milking (DO)'!AI31,IF(EMCI!$F$27="FS",'1st milking (DO)'!AJ31,"error"))))) -> 8.513753163
A32: =E94 -> 7.25 | B32: =AL94 -> 107.4547511 | E32: 22.75 | F32: 0.1764705882 | G32: 0.02941176471 | I32: 0.3125836184 | J32: 0.4562152505 | K32: 0.4691255141 | M32: 0.3080763434 | N32: 0.450897886 | O32: 0.4659674843 | Q32: 0.009193635837 | R32: 2.057931279 | T32: 9.549804079 | V32: 0.0134180956 | W32: 1.083779675 | Y32: 8.685381872 | AA32: 0.01379780924 | AB32: 1.084768253 | AD32: 10.54844364 | AF32: 8.685381872 | AG32: 8.685381872 | AH32: 9.549804079 | AI32: 10.54844364 | AJ32: 8.685381872 | AL32: =IF(EMCI!$F$27="A",'1st milking (DO)'!AF32,IF(EMCI!$F$27="B",'1st milking (DO)'!AG32,IF(EMCI!$F$27="S",'1st milking (DO)'!AH32,IF(EMCI!$F$27="P",'1st milking (DO)'!AI32,IF(EMCI!$F$27="FS",'1st milking (DO)'!AJ32,"error"))))) -> 8.685381872
A33: =E93 -> 7.5 | B33: =AL93 -> 98.71494234 | E33: 22.5 | F33: 0.2058823529 | G33: 0.02941176471 | I33: 0.3036018009 | J33: 0.4456115053 | K33: 0.4627938749 | M33: 0.2991599909 | N33: 0.4403561224 | O33: 0.4596055917 | Q33: 0.008929464731 | R33: 2.066860744 | T33: 9.804583985 | V33: 0.01310622074 | W33: 1.096885896 | Y33: 8.863539998 | AA33: 0.01361158456 | AB33: 1.098379837 | AD33: 10.66484014 | AF33: 8.863539998 | AG33: 8.863539998 | AH33: 9.804583985 | AI33: 10.66484014 | AJ33: 8.863539998 | AL33: =IF(EMCI!$F$27="A",'1st milking (DO)'!AF33,IF(EMCI!$F$27="B",'1st milking (DO)'!AG33,IF(EMCI!$F$27="S",'1st milking (DO)'!AH33,IF(EMCI!$F$27="P",'1st milking (DO)'!AI33,IF(EMCI!$F$27="FS",'1st milking (DO)'!AJ33,"error"))))) -> 8.863539998
A34: =E92 -> 7.75 | B34: =AL92 -> 91.00393939 | E34: 22.25 | F34: 0.2352941176 | G34: 0.02941176471 | I34: 0.2947509135 | J34: 0.4351317505 | K34: 0.4564035187 | M34: 0.2903745688 | N34: 0.4299384019 | O34: 0.4531885186 | Q34: 0.008669144516 | R34: 2.075529889 | T34: 10.07137135 | V34: 0.01279799266 | W34: 1.109683888 | Y34: 9.048542989 | AA34: 0.0134236329 | AB34: 1.11180347 | AD34: 10.78623206 | AF34: 9.048542989 | AG34: 9.048542989 | AH34: 10.07137135 | AI34: 10.78623206 | AJ34: 9.048542989 | AL34: =IF(EMCI!$F$27="A",'1st milking (DO)'!AF34,IF(EMCI!$F$27="B",'1st milking (DO)'!AG34,IF(EMCI!$F$27="S",'1st milking (DO)'!AH34,IF(EMCI!$F$27="P",'1st milking (DO)'!AI34,IF(EMCI!$F$27="FS",'1st milking (DO)'!AJ34,"error"))))) -> 9.048542989
A35: =E91 -> 8 | B35: =AL91 -> 84.16655051 | E35: 22 | F35: 0.2647058824 | G35: 0.02941176471 | I35: 0.2860309565 | J35: 0.4247760882 | K35: 0.449961433 | M35: 0.2817200769 | N35: 0.4196448202 | O35: 0.4467230831 | Q35: 0.008412675192 | R35: 2.083942564 | T35: 10.35090388 | V35: 0.01249341436 | W35: 1.122177303 | Y35: 9.240725753 | AA35: 0.01323415979 | AB35: 1.12503763 | AD35: 10.91271652 | AF35: 9.240725753 | AG35: 9.240725753 | AH35: 10.35090388 | AI35: 10.91271652 | AJ35: 9.240725753 | AL35: =IF(EMCI!$F$27="A",'1st milking (DO)'!AF35,IF(EMCI!$F$27="B",'1st milking (DO)'!AG35,IF(EMCI!$F$27="S",'1st milking (DO)'!AH35,IF(EMCI!$F$27="P",'1st milking (DO)'!AI35,IF(EMCI!$F$27="FS",'1st milking (DO)'!AJ35,"error"))))) -> 9.240725753
A36: =E90 -> 8.25 | B36: =AL90 -> 78.07578011 | E36: 21.75 | F36: 0.2941176471 | G36: 0.02941176471 | I36: 0.2774419298 | J36: 0.4145446083 | K36: 0.44347427 | M36: 0.2731965153 | N36: 0.4094754618 | O36: 0.4402157751 | Q36: 0.008160056759 | R36: 2.092102621 | T36: 10.64397683 | V36: 0.01219248848 | W36: 1.134369791 | Y36: 9.440444104 | AA36: 0.01304336088 | AB36: 1.138080991 | AD36: 11.04439978 | AF36: 9.440444104 | AG36: 9.440444104 | AH36: 10.64397683 | AI36: 11.04439978 | AJ36: 9.440444104 | AL36: =IF(EMCI!$F$27="A",'1st milking (DO)'!AF36,IF(EMCI!$F$27="B",'1st milking (DO)'!AG36,IF(EMCI!$F$27="S",'1st milking (DO)'!AH36,IF(EMCI!$F$27="P",'1st milking (DO)'!AI36,IF(EMCI!$F$27="FS",'1st milking (DO)'!AJ36,"error"))))) -> 9.440444104
A37: =E89 -> 8.5 | B37: =AL89 -> 72.62689748 | E37: 21.5 | F37: 0.3235294118 | G37: 0.02941176471 | I37: 0.2689838333 | J37: 0.4044373898 | K37: 0.4369483608 | M37: 0.264803884 | N37: 0.3994304007 | O37: 0.4336727703 | Q37: 0.007911289216 | R37: 2.10001391 | T37: 10.95144847 | V37: 0.01189521735 | W37: 1.146265008 | Y37: 9.648076323 | AA37: 0.01285142238 | AB37: 1.150932413 | AD37: 11.1813974 | AF37: 9.648076323 | AG37: 9.648076323 | AH37: 10.95144847 | AI37: 11.1813974 | AJ37: 9.648076323 | AL37: =IF(EMCI!$F$27="A",'1st milking (DO)'!AF37,IF(EMCI!$F$27="B",'1st milking (DO)'!AG37,IF(EMCI!$F$27="S",'1st milking (DO)'!AH37,IF(EMCI!$F$27="P",'1st milking (DO)'!AI37,IF(EMCI!$F$27="FS",'1st milking (DO)'!AJ37,"error"))))) -> 9.648076323
A38: =E88 -> 8.75 | B38: =AL88 -> 67.73291172 | E38: 21.25 | F38: 0.3529411765 | G38: 0.02941176471 | I38: 0.2606566672 | J38: 0.3944545023 | K38: 0.4303897288 | M38: 0.256542183 | N38: 0.3895097021 | O38: 0.4270999432 | Q38: 0.007666372564 | R38: 2.107680282 | T38: 11.27424615 | V38: 0.01160160301 | W38: 1.157866611 | Y38: 9.86402487 | AA38: 0.01265852143 | AB38: 1.163590935 | AD38: 11.32383448 | AF38: 9.86402487 | AG38: 9.86402487 | AH38: 11.27424615 | AI38: 11.32383448 | AJ38: 9.86402487 | AL38: =IF(EMCI!$F$27="A",'1st milking (DO)'!AF38,IF(EMCI!$F$27="B",'1st milking (DO)'!AG38,IF(EMCI!$F$27="S",'1st milking (DO)'!AH38,IF(EMCI!$F$27="P",'1st milking (DO)'!AI38,IF(EMCI!$F$27="FS",'1st milking (DO)'!AJ38,"error"))))) -> 9.86402487
A39: =E87 -> 9 | B39: =AL87 -> 63.32108438 | E39: 21 | F39: 0.3823529412 | G39: 0.02941176471 | I39: 0.2524604313 | J39: 0.384596007 | K39: 0.423804103 | M39: 0.2484114122 | N39: 0.3797134233 | O39: 0.4205028805 | Q39: 0.007425306803 | R39: 2.115105589 | T39: 11.61337309 | V39: 0.01131164726 | W39: 1.169178259 | Y39: 10.08871824 | AA39: 0.01246482656 | AB39: 1.176055761 | AD39: 11.47184588 | AF39: 10.08871824 | AG39: 10.08871824 | AH39: 11.61337309 | AI39: 11.47184588 | AJ39: 10.08871824 | AL39: =IF(EMCI!$F$27="A",'1st milking (DO)'!AF39,IF(EMCI!$F$27="B",'1st milking (DO)'!AG39,IF(EMCI!$F$27="S",'1st milking (DO)'!AH39,IF(EMCI!$F$27="P",'1st milking (DO)'!AI39,IF(EMCI!$F$27="FS",'1st milking (DO)'!AJ39,"error"))))) -> 10.08871824
A40: =E86 -> 9.25 | B40: =AL86 -> 59.33021646 | E40: 20.75 | F40: 0.4117647059 | G40: 0.02941176471 | I40: 0.2443951257 | J40: 0.3748619574 | K40: 0.417196931 | M40: 0.2404115718 | N40: 0.3700416147 | O40: 0.4138868935 | Q40: 0.007188091933 | R40: 2.122293681 | T40: 11.969916 | V40: 0.01102535169 | W40: 1.18020361 | Y40: 10.32261302 | AA40: 0.01227049797 | AB40: 1.188326259 | AD40: 11.62557649 | AF40: 10.32261302 | AG40: 10.32261302 | AH40: 11.969916 | AI40: 11.62557649 | AJ40: 10.32261302 | AL40: =IF(EMCI!$F$27="A",'1st milking (DO)'!AF40,IF(EMCI!$F$27="B",'1st milking (DO)'!AG40,IF(EMCI!$F$27="S",'1st milking (DO)'!AH40,IF(EMCI!$F$27="P",'1st milking (DO)'!AI40,IF(EMCI!$F$27="FS",'1st milking (DO)'!AJ40,"error"))))) -> 10.32261302
A41: =E85 -> 9.5 | B41: =AL85 -> 55.70851936 | E41: 20.5 | F41: 0.4411764706 | G41: 0.02941176471 | I41: 0.2364607504 | J41: 0.3652524008 | K41: 0.4105733909 | M41: 0.2325426616 | N41: 0.3604943205 | O41: 0.4072570303 | Q41: 0.006954727953 | R41: 2.129248409 | T41: 12.34505347 | V41: 0.01074271767 | W41: 1.190946328 | Y41: 10.56619607 | AA41: 0.01207568797 | AB41: 1.200401947 | AD41: 11.78518158 | AF41: 10.56619607 | AG41: 10.56619607 | AH41: 12.34505347 | AI41: 11.78518158 | AJ41: 10.56619607 | AL41: =IF(EMCI!$F$27="A",'1st milking (DO)'!AF41,IF(EMCI!$F$27="B",'1st milking (DO)'!AG41,IF(EMCI!$F$27="S",'1st milking (DO)'!AH41,IF(EMCI!$F$27="P",'1st milking (DO)'!AI41,IF(EMCI!$F$27="FS",'1st milking (DO)'!AJ41,"error"))))) -> 10.56619607
A42: =E84 -> 9.75 | B42: =AL84 -> 52.41193042 | E42: 20.25 | F42: 0.4705882353 | G42: 0.02941176471 | I42: 0.2286573054 | J42: 0.3557673787 | K42: 0.4039384036 | M42: 0.2248046817 | N42: 0.3510715796 | O42: 0.4006180875 | Q42: 0.006725214864 | R42: 2.135973624 | T42: 12.74006553 | V42: 0.01046374643 | W42: 1.201410074 | Y42: 10.81998699 | AA42: 0.01188054128 | AB42: 1.212282488 | AD42: 11.95082714 | AF42: 10.81998699 | AG42: 10.81998699 | AH42: 12.74006553 | AI42: 11.95082714 | AJ42: 10.81998699 | AL42: =IF(EMCI!$F$27="A",'1st milking (DO)'!AF42,IF(EMCI!$F$27="B",'1st milking (DO)'!AG42,IF(EMCI!$F$27="S",'1st milking (DO)'!AH42,IF(EMCI!$F$27="P",'1st milking (DO)'!AI42,IF(EMCI!$F$27="FS",'1st milking (DO)'!AJ42,"error"))))) -> 10.81998699
A43: =E83 -> 10 | B43: =AL83 -> 49.40276994 | E43: 20 | F43: 0.5 | G43: 0.02941176471 | I43: 0.2209847907 | J43: 0.3464069275 | K43: 0.3972966443 | M43: 0.2171976321 | N43: 0.3417734261 | O43: 0.3939746217 | Q43: 0.006499552666 | R43: 2.142473177 | T43: 13.15634427 | V43: 0.01018843904 | W43: 1.211598513 | Y43: 11.0845408 | AA43: 0.01168519542 | AB43: 1.223967684 | AD43: 12.12269028 | AF43: 11.0845408 | AG43: 11.0845408 | AH43: 13.15634427 | AI43: 12.12269028 | AJ43: 11.0845408 | AL43: =IF(EMCI!$F$27="A",'1st milking (DO)'!AF43,IF(EMCI!$F$27="B",'1st milking (DO)'!AG43,IF(EMCI!$F$27="S",'1st milking (DO)'!AH43,IF(EMCI!$F$27="P",'1st milking (DO)'!AI43,IF(EMCI!$F$27="FS",'1st milking (DO)'!AJ43,"error"))))) -> 11.0845408
A44: =E82 -> 10.25 | B44: =AL82 -> 46.648663 | E44: 19.75 | F44: 0.5294117647 | G44: 0.02941176471 | I44: 0.2134432062 | J44: 0.3371710792 | K44: 0.3906525536 | M44: 0.2097215128 | N44: 0.3325998901 | O44: 0.3873309601 | Q44: 0.006277741359 | R44: 2.148750918 | T44: 13.59540585 | V44: 0.009916796447 | W44: 1.22151531 | Y44: 11.36045081 | AA44: 0.01148978099 | AB44: 1.235457465 | AD44: 12.30095971 | AF44: 11.36045081 | AG44: 11.36045081 | AH44: 13.59540585 | AI44: 12.30095971 | AJ44: 11.36045081 | AL44: =IF(EMCI!$F$27="A",'1st milking (DO)'!AF44,IF(EMCI!$F$27="B",'1st milking (DO)'!AG44,IF(EMCI!$F$27="S",'1st milking (DO)'!AH44,IF(EMCI!$F$27="P",'1st milking (DO)'!AI44,IF(EMCI!$F$27="FS",'1st milking (DO)'!AJ44,"error"))))) -> 11.36045081
A45: =E81 -> 10.5 | B45: =AL81 -> 44.12166778 | E45: 19.5 | F45: 0.5588235294 | G45: 0.02941176471 | I45: 0.206032552 | J45: 0.3280598619 | K45: 0.3840103482 | M45: 0.2023763238 | N45: 0.3235509978 | O45: 0.3806912115 | Q45: 0.006059780942 | R45: 2.154810699 | T45: 14.05890396 | V45: 0.009648819468 | W45: 1.231164129 | Y45: 11.64835187 | AA45: 0.011294422 | AB45: 1.246751887 | AD45: 12.48583621 | AF45: 11.64835187 | AG45: 11.64835187 | AH45: 14.05890396 | AI45: 12.48583621 | AJ45: 11.64835187 | AL45: =IF(EMCI!$F$27="A",'1st milking (DO)'!AF45,IF(EMCI!$F$27="B",'1st milking (DO)'!AG45,IF(EMCI!$F$27="S",'1st milking (DO)'!AH45,IF(EMCI!$F$27="P",'1st milking (DO)'!AI45,IF(EMCI!$F$27="FS",'1st milking (DO)'!AJ45,"error"))))) -> 11.64835187
A46: =E80 -> 10.75 | B46: =AL80 -> 41.79756664 | E46: 19.25 | F46: 0.5882352941 | G46: 0.02941176471 | I46: 0.1987528282 | J46: 0.3190733003 | K46: 0.3773740313 | M46: 0.1951620651 | N46: 0.3146267723 | O46: 0.3740592761 | Q46: 0.005845671416 | R46: 2.16065637 | T46: 14.54864514 | V46: 0.009384508833 | W46: 1.240548638 | Y46: 11.94892391 | AA46: 0.01109923621 | AB46: 1.257851123 | AD46: 12.67753316 | AF46: 11.94892391 | AG46: 11.94892391 | AH46: 14.54864514 | AI46: 12.67753316 | AJ46: 11.94892391 | AL46: =IF(EMCI!$F$27="A",'1st milking (DO)'!AF46,IF(EMCI!$F$27="B",'1st milking (DO)'!AG46,IF(EMCI!$F$27="S",'1st milking (DO)'!AH46,IF(EMCI!$F$27="P",'1st milking (DO)'!AI46,IF(EMCI!$F$27="FS",'1st milking (DO)'!AJ46,"error"))))) -> 11.94892391
A47: =E79 -> 11 | B47: =AL79 -> 39.65528593 | E47: 19 | F47: 0.6176470588 | G47: 0.02941176471 | I47: 0.1916040346 | J47: 0.3102114161 | K47: 0.3707474025 | M47: 0.1880787366 | N47: 0.305827234 | O47: 0.3674388551 | Q47: 0.005635412781 | R47: 2.166291783 | T47: 15.06660597 | V47: 0.009123865179 | W47: 1.249672503 | Y47: 12.26289578 | AA47: 0.01090433537 | AB47: 1.268755458 | AD47: 12.87627717 | AF47: 12.26289578 | AG47: 12.26289578 | AH47: 15.06660597 | AI47: 12.87627717 | AJ47: 12.26289578 | AL47: =IF(EMCI!$F$27="A",'1st milking (DO)'!AF47,IF(EMCI!$F$27="B",'1st milking (DO)'!AG47,IF(EMCI!$F$27="S",'1st milking (DO)'!AH47,IF(EMCI!$F$27="P",'1st milking (DO)'!AI47,IF(EMCI!$F$27="FS",'1st milking (DO)'!AJ47,"error"))))) -> 12.26289578
A48: =E78 -> 11.25 | B48: =AL78 -> 37.67641865 | E48: 18.75 | F48: 0.6470588235 | G48: 0.02941176471 | I48: 0.1845861713 | J48: 0.3014742282 | K48: 0.3641340672 | M48: 0.1811263385 | N48: 0.2971524006 | O48: 0.3608334606 | Q48: 0.005429005037 | R48: 2.171720788 | T48: 15.61495272 | V48: 0.008866889064 | W48: 1.258539392 | Y48: 12.59104957 | AA48: 0.01070982551 | AB48: 1.279465284 | AD48: 13.08230869 | AF48: 12.59104957 | AG48: 12.59104957 | AH48: 15.61495272 | AI48: 13.08230869 | AJ48: 12.59104957 | AL48: =IF(EMCI!$F$27="A",'1st milking (DO)'!AF48,IF(EMCI!$F$27="B",'1st milking (DO)'!AG48,IF(EMCI!$F$27="S",'1st milking (DO)'!AH48,IF(EMCI!$F$27="P",'1st milking (DO)'!AI48,IF(EMCI!$F$27="FS",'1st milking (DO)'!AJ48,"error"))))) -> 12.59104957
A49: =E77 -> 11.5 | B49: =AL77 -> 35.84482956 | E49: 18.5 | F49: 0.6764705882 | G49: 0.02941176471 | I49: 0.1776992382 | J49: 0.2928617533 | K49: 0.3575374461 | M49: 0.1743048706 | N49: 0.2886022878 | O49: 0.354246424 | Q49: 0.005226448184 | R49: 2.176947236 | T49: 16.19606357 | V49: 0.008613580978 | W49: 1.267152973 | Y49: 12.93422535 | AA49: 0.01051580724 | AB49: 1.289981091 | AD49: 13.29588273 | AF49: 12.93422535 | AG49: 12.93422535 | AH49: 16.19606357 | AI49: 13.29588273 | AJ49: 12.93422535 | AL49: =IF(EMCI!$F$27="A",'1st milking (DO)'!AF49,IF(EMCI!$F$27="B",'1st milking (DO)'!AG49,IF(EMCI!$F$27="S",'1st milking (DO)'!AH49,IF(EMCI!$F$27="P",'1st milking (DO)'!AI49,IF(EMCI!$F$27="FS",'1st milking (DO)'!AJ49,"error"))))) -> 12.93422535
A50: =E76 -> 11.75 | B50: =AL76 -> 34.14632678 | E50: 18.25 | F50: 0.7058823529 | G50: 0.02941176471 | I50: 0.1709432355 | J50: 0.284374006 | K50: 0.3509607837 | M50: 0.167614333 | N50: 0.2801769093 | O50: 0.3476809048 | Q50: 0.005027742221 | R50: 2.181974979 | T50: 16.81255398 | V50: 0.008363941353 | W50: 1.275516915 | Y50: 13.29332633 | AA50: 0.01032237599 | AB50: 1.300303467 | AD50: 13.51726962 | AF50: 13.29332633 | AG50: 13.29332633 | AH50: 16.81255398 | AI50: 13.51726962 | AJ50: 13.29332633 | AL50: =IF(EMCI!$F$27="A",'1st milking (DO)'!AF50,IF(EMCI!$F$27="B",'1st milking (DO)'!AG50,IF(EMCI!$F$27="S",'1st milking (DO)'!AH50,IF(EMCI!$F$27="P",'1st milking (DO)'!AI50,IF(EMCI!$F$27="FS",'1st milking (DO)'!AJ50,"error"))))) -> 13.29332633
A51: =E75 -> 12 | B51: =AL75 -> 32.5683876 | E51: 18 | F51: 0.7352941176 | G51: 0.02941176471 | I51: 0.1643181631 | J51: 0.2760109992 | K51: 0.3444071566 | M51: 0.1610547257 | N51: 0.271876277 | O51: 0.341139899 | Q51: 0.004832887149 | R51: 2.186807866 | T51: 17.46730574 | V51: 0.008117970563 | W51: 1.283634885 | Y51: 13.66932472 | AA51: 0.01012962225 | AB51: 1.310433089 | AD51: 13.74675587 | AF51: 13.66932472 | AG51: 13.66932472 | AH51: 17.46730574 | AI51: 13.74675587 | AJ51: 13.66932472 | AL51: =IF(EMCI!$F$27="A",'1st milking (DO)'!AF51,IF(EMCI!$F$27="B",'1st milking (DO)'!AG51,IF(EMCI!$F$27="S",'1st milking (DO)'!AH51,IF(EMCI!$F$27="P",'1st milking (DO)'!AI51,IF(EMCI!$F$27="FS",'1st milking (DO)'!AJ51,"error"))))) -> 13.66932472
A52: =E74 -> 12.25 | B52: =AL74 -> 31.09992831 | E52: 17.75 | F52: 0.7647058824 | G52: 0.02941176471 | I52: 0.1578240209 | J52: 0.267772744 | K52: 0.3378794821 | M52: 0.1546260487 | N52: 0.2637004015 | O52: 0.3346262469 | Q52: 0.004641882967 | R52: 2.191449749 | T52: 18.16350011 | V52: 0.007875668942 | W52: 1.291510554 | Y52: 14.06326811 | AA52: 0.009937631826 | AB52: 1.320370721 | AD52: 13.98464502 | AF52: 13.98464502 | AG52: 14.06326811 | AH52: 18.16350011 | AI52: 13.98464502 | AJ52: 14.06326811 | AL52: =IF(EMCI!$F$27="A",'1st milking (DO)'!AF52,IF(EMCI!$F$27="B",'1st milking (DO)'!AG52,IF(EMCI!$F$27="S",'1st milking (DO)'!AH52,IF(EMCI!$F$27="P",'1st milking (DO)'!AI52,IF(EMCI!$F$27="FS",'1st milking (DO)'!AJ52,"error"))))) -> 14.06326811
A53: =E73 -> 12.5 | B53: =AL73 -> 29.7311102 | E53: 17.5 | F53: 0.7941176471 | G53: =F53-F52 -> 0.02941176471 | I53: 0.151460809 | J53: 0.2596592504 | K53: 0.3313805253 | M53: 0.1483283019 | N53: 0.255649292 | O53: 0.3281426405 | Q53: 0.004454729677 | R53: 2.195904478 | T53: 18.90465599 | V53: 0.007637036777 | W53: 1.299147591 | Y53: 14.47628656 | AA53: 0.009746486039 | AB53: 1.330117207 | AD53: 14.23125865 | AF53: 14.23125865 | AG53: 14.47628656 | AH53: 18.90465599 | AI53: 14.23125865 | AJ53: 14.47628656 | AL53: =IF(EMCI!$F$27="A",'1st milking (DO)'!AF53,IF(EMCI!$F$27="B",'1st milking (DO)'!AG53,IF(EMCI!$F$27="S",'1st milking (DO)'!AH53,IF(EMCI!$F$27="P",'1st milking (DO)'!AI53,IF(EMCI!$F$27="FS",'1st milking (DO)'!AJ53,"error"))))) -> 14.47628656
A54: =E72 -> 12.75 | B54: =AL72 -> 28.45317549 | E54: =E53-0.25 -> 17.25 | F54: 0.8235294118 | G54: 0.02941176471 | I54: 0.1452285274 | J54: 0.251670527 | K54: 0.324912907 | M54: 0.1421614855 | N54: 0.2477229565 | O54: 0.321691631 | Q54: 0.004271427277 | R54: =R53+Q54 -> 2.200175906 | T54: 19.69467388 | V54: 0.007402074324 | W54: =W53+V54 -> 1.306549665 | Y54: 14.90960057 | AA54: 0.009556261971 | AB54: =AB53+AA54 -> 1.339673469 | AD54: 14.48693743 | AF54: 14.48693743 | AG54: 14.90960057 | AH54: 19.69467388 | AI54: 14.48693743 | AJ54: 14.90960057 | AL54: =IF(EMCI!$F$27="A",'1st milking (DO)'!AF54,IF(EMCI!$F$27="B",'1st milking (DO)'!AG54,IF(EMCI!$F$27="S",'1st milking (DO)'!AH54,IF(EMCI!$F$27="P",'1st milking (DO)'!AI54,IF(EMCI!$F$27="FS",'1st milking (DO)'!AJ54,"error"))))) -> 14.90960057
A55: =E71 -> 13 | B55: =AL71 -> 27.25830786 | E55: 17 | F55: 0.8529411765 | G55: 0.02941176471 | I55: 0.1391271761 | J55: 0.2438065814 | K55: 0.3184791105 | M55: 0.1361255993 | N55: 0.2399214023 | O55: 0.3152756356 | Q55: =G55*I55 -> 0.004091975768 | R55: 2.204267881 | T55: 20.53788658 | V55: =G55*J55 -> 0.007170781805 | W55: =W54+V55 -> 1.313720447 | Y55: 15.36452987 | AA55: =G55*K55 -> 0.009367032663 | AB55: =AB54+AA55 -> 1.349040502 | AD55: 14.75204225 | AF55: 14.75204225 | AG55: =Y55 -> 15.36452987 | AH55: =T55 -> 20.53788658 | AI55: =AD55 -> 14.75204225 | AJ55: 15.36452987 | AL55: =IF(EMCI!$F$27="A",'1st milking (DO)'!AF55,IF(EMCI!$F$27="B",'1st milking (DO)'!AG55,IF(EMCI!$F$27="S",'1st milking (DO)'!AH55,IF(EMCI!$F$27="P",'1st milking (DO)'!AI55,IF(EMCI!$F$27="FS",'1st milking (DO)'!AJ55,"error"))))) -> 15.36452987
A56: =E70 -> 13.25 | B56: =AL70 -> 26.13951357 | E56: 16.75 | F56: 0.8823529412 | G56: 0.02941176471 | I56: 0.1331567551 | J56: 0.2360674201 | K56: 0.3120814885 | M56: 0.1302206434 | N56: 0.2322446354 | O56: 0.308896944 | Q56: 0.00391637515 | R56: 2.208184257 | T56: 21.43911802 | V56: 0.006943159414 | W56: 1.320663607 | Y56: 15.84250326 | AA56: 0.009178867309 | AB56: 1.358219369 | AD56: 15.0269555 | AF56: 15.0269555 | AG56: 15.84250326 | AH56: 21.43911802 | AI56: 15.0269555 | AJ56: 15.84250326 | AL56: =IF(EMCI!$F$27="A",'1st milking (DO)'!AF56,IF(EMCI!$F$27="B",'1st milking (DO)'!AG56,IF(EMCI!$F$27="S",'1st milking (DO)'!AH56,IF(EMCI!$F$27="P",'1st milking (DO)'!AI56,IF(EMCI!$F$27="FS",'1st milking (DO)'!AJ56,"error"))))) -> 15.84250326
A57: =E69 -> 13.5 | B57: =AL69 -> 25.09051973 | E57: 16.5 | F57: 0.9117647059 | G57: 0.02941176471 | I57: 0.1273172643 | J57: 0.228453049 | K57: 0.3057222694 | M57: 0.1244466178 | N57: 0.2246926613 | O57: 0.3025577248 | Q57: 0.003744625422 | R57: 2.211928882 | T57: 22.40375164 | V57: 0.006719207323 | W57: 1.327382814 | Y57: 16.34506959 | AA57: 0.008991831452 | AB57: 1.367211201 | AD57: 15.31208235 | AF57: 15.31208235 | AG57: 16.34506959 | AH57: 22.40375164 | AI57: 15.31208235 | AJ57: 16.34506959 | AL57: =IF(EMCI!$F$27="A",'1st milking (DO)'!AF57,IF(EMCI!$F$27="B",'1st milking (DO)'!AG57,IF(EMCI!$F$27="S",'1st milking (DO)'!AH57,IF(EMCI!$F$27="P",'1st milking (DO)'!AI57,IF(EMCI!$F$27="FS",'1st milking (DO)'!AJ57,"error"))))) -> 16.34506959
A58: =E68 -> 13.75 | B58: =AL68 -> 24.10568694 | E58: 16.25 | F58: 0.9411764706 | G58: 0.02941176471 | I58: 0.1216087039 | J58: 0.2209634731 | K58: 0.2994035635 | M58: 0.1188035225 | N58: 0.2172654848 | O58: 0.2962600318 | Q58: 0.003576726585 | R58: 2.215505609 | T58: 23.43781003 | V58: 0.00649892568 | W58: 1.33388174 | Y58: 16.87391011 | AA58: 0.008805987163 | AB58: 1.376017188 | AD58: 15.60785228 | AF58: 15.60785228 | AG58: 16.87391011 | AH58: 23.43781003 | AI58: 15.60785228 | AJ58: 16.87391011 | AL58: =IF(EMCI!$F$27="A",'1st milking (DO)'!AF58,IF(EMCI!$F$27="B",'1st milking (DO)'!AG58,IF(EMCI!$F$27="S",'1st milking (DO)'!AH58,IF(EMCI!$F$27="P",'1st milking (DO)'!AI58,IF(EMCI!$F$27="FS",'1st milking (DO)'!AJ58,"error"))))) -> 16.87391011
A59: =E67 -> 14 | B59: =AL67 -> 23.17993404 | E59: 16 | F59: 0.9705882353 | G59: 0.02941176471 | I59: 0.1160310737 | J59: 0.2135986969 | K59: 0.2931273694 | M59: 0.1132913575 | N59: 0.20996311 | O59: 0.2900058093 | Q59: 0.003412678639 | R59: 2.218918287 | T59: 24.54804827 | V59: 0.006282314616 | W59: 1.340164054 | Y59: 17.43085224 | AA59: 0.008621393217 | AB59: 1.384638581 | AD59: 15.91472057 | AF59: 15.91472057 | AG59: 17.43085224 | AH59: 24.54804827 | AI59: 15.91472057 | AJ59: 17.43085224 | AL59: =IF(EMCI!$F$27="A",'1st milking (DO)'!AF59,IF(EMCI!$F$27="B",'1st milking (DO)'!AG59,IF(EMCI!$F$27="S",'1st milking (DO)'!AH59,IF(EMCI!$F$27="P",'1st milking (DO)'!AI59,IF(EMCI!$F$27="FS",'1st milking (DO)'!AJ59,"error"))))) -> 17.43085224
A60: =E66 -> 14.25 | B60: =AL66 -> 22.30867311 | E60: 15.75 | F60: 1 | G60: 0.02941176471 | I60: 0.1105843739 | J60: 0.2063587244 | K60: 0.2868955786 | M60: 0.1079101228 | N60: 0.2027855405 | O60: 0.2837968979 | Q60: 0.003252481584 | R60: 2.222170769 | T60: 25.74206349 | V60: 0.006069374246 | W60: 1.346233428 | Y60: 18.01788512 | AA60: 0.008438105254 | AB60: 1.393076686 | AD60: 16.23317009 | AF60: 16.23317009 | AG60: 18.01788512 | AH60: 25.74206349 | AI60: 16.23317009 | AJ60: 18.01788512 | AL60: =IF(EMCI!$F$27="A",'1st milking (DO)'!AF60,IF(EMCI!$F$27="B",'1st milking (DO)'!AG60,IF(EMCI!$F$27="S",'1st milking (DO)'!AH60,IF(EMCI!$F$27="P",'1st milking (DO)'!AI60,IF(EMCI!$F$27="FS",'1st milking (DO)'!AJ60,"error"))))) -> 18.01788512
A61: =E65 -> 14.5 | B61: =AL65 -> 21.48775308 | E61: 15.5 | F61: 1.029411765 | G61: 0.02941176471 | I61: 0.1052686043 | J61: 0.1992435588 | K61: 0.280709982 | M61: 0.1026598183 | N61: 0.1957327795 | O61: 0.2776350396 | Q61: 0.003096135419 | R61: 2.225266904 | T61: 27.02842399 | V61: 0.005860104669 | W61: 1.352093533 | Y61: 18.63717705 | AA61: 0.00825617594 | AB61: 1.401332862 | AD61: 16.56371308 | AF61: 16.56371308 | AG61: 18.63717705 | AH61: 27.02842399 | AI61: 16.56371308 | AJ61: 18.63717705 | AL61: =IF(EMCI!$F$27="A",'1st milking (DO)'!AF61,IF(EMCI!$F$27="B",'1st milking (DO)'!AG61,IF(EMCI!$F$27="S",'1st milking (DO)'!AH61,IF(EMCI!$F$27="P",'1st milking (DO)'!AI61,IF(EMCI!$F$27="FS",'1st milking (DO)'!AJ61,"error"))))) -> 18.63717705
A62: =E64 -> 14.75 | B62: =AL64 -> 20.71341078 | E62: 15.25 | F62: 1.058823529 | G62: 0.02941176471 | I62: 0.1000837649 | J62: 0.1922532031 | K62: 0.274572274 | M62: 0.09754044415 | N62: 0.1888048299 | O62: 0.2715218829 | Q62: 0.002943640146 | R62: 2.228210544 | T62: 28.41682217 | V62: 0.005654505974 | W62: 1.357748039 | Y62: 19.29109527 | AA62: 0.008075655119 | AB62: 1.409408517 | AD62: 16.90689323 | AF62: 16.90689323 | AG62: 19.29109527 | AH62: 28.41682217 | AI62: 16.90689323 | AJ62: 19.29109527 | AL62: =IF(EMCI!$F$27="A",'1st milking (DO)'!AF62,IF(EMCI!$F$27="B",'1st milking (DO)'!AG62,IF(EMCI!$F$27="S",'1st milking (DO)'!AH62,IF(EMCI!$F$27="P",'1st milking (DO)'!AI62,IF(EMCI!$F$27="FS",'1st milking (DO)'!AJ62,"error"))))) -> 19.29109527
A63: =E63 -> 15 | B63: =AL63 -> 19.98222821 | E63: 15 | F63: 1.088235294 | G63: 0.02941176471 | I63: 0.09502985592 | J63: 0.18538766 | K63: 0.2684840583 | M63: 0.09255200027 | N63: 0.1820016939 | O63: 0.2654589874 | Q63: 0.002794995762 | R63: 2.23100554 | T63: 29.91825624 | V63: 0.005452578236 | W63: 1.363200617 | Y63: 19.98222821 | AA63: 0.007896589951 | AB63: 1.417305107 | AD63: 17.26328778 | AF63: 17.26328778 | AG63: 19.98222821 | AH63: 29.91825624 | AI63: 17.26328778 | AJ63: 19.98222821 | AL63: =IF(EMCI!$F$27="A",'1st milking (DO)'!AF63,IF(EMCI!$F$27="B",'1st milking (DO)'!AG63,IF(EMCI!$F$27="S",'1st milking (DO)'!AH63,IF(EMCI!$F$27="P",'1st milking (DO)'!AI63,IF(EMCI!$F$27="FS",'1st milking (DO)'!AJ63,"error"))))) -> 19.98222821
A64: =E62 -> 15.25 | B64: =AL62 -> 19.29109527 | E64: 14.75 | F64: 1.117647059 | G64: 0.02941176471 | I64: 0.09010687719 | J64: 0.1786469318 | K64: 0.2624468518 | M64: 0.08769448668 | N64: 0.1753233738 | O64: 0.2594478286 | Q64: 0.00265020227 | R64: 2.233655742 | T64: 31.54524717 | V64: 0.005254321522 | W64: 1.368454939 | Y64: 20.71341078 | AA64: 0.007719025054 | AB64: 1.425024132 | AD64: 17.63350995 | AF64: 17.63350995 | AG64: 20.71341078 | AH64: 31.54524717 | AI64: 17.63350995 | AJ64: 20.71341078 | AL64: =IF(EMCI!$F$27="A",'1st milking (DO)'!AF64,IF(EMCI!$F$27="B",'1st milking (DO)'!AG64,IF(EMCI!$F$27="S",'1st milking (DO)'!AH64,IF(EMCI!$F$27="P",'1st milking (DO)'!AI64,IF(EMCI!$F$27="FS",'1st milking (DO)'!AJ64,"error"))))) -> 20.71341078
A65: =E61 -> 15.5 | B65: =AL61 -> 18.63717705 | E65: 14.5 | F65: 1.147058824 | G65: 0.02941176471 | I65: 0.08531482873 | J65: 0.1720310203 | K65: 0.2564620895 | M65: 0.08296790337 | N65: 0.1687698714 | O65: 0.2534898019 | Q65: 0.002509259669 | R65: 2.236165002 | T65: 33.31209885 | V65: 0.005059735891 | W65: 1.373514675 | Y65: 21.48775308 | AA65: 0.007543002633 | AB65: 1.432567135 | AD65: 18.0182115 | AF65: 18.0182115 | AG65: 21.48775308 | AH65: 33.31209885 | AI65: 18.0182115 | AJ65: 21.48775308 | AL65: =IF(EMCI!$F$27="A",'1st milking (DO)'!AF65,IF(EMCI!$F$27="B",'1st milking (DO)'!AG65,IF(EMCI!$F$27="S",'1st milking (DO)'!AH65,IF(EMCI!$F$27="P",'1st milking (DO)'!AI65,IF(EMCI!$F$27="FS",'1st milking (DO)'!AJ65,"error"))))) -> 21.48775308
A66: =E60 -> 15.75 | B66: =AL60 -> 18.01788512 | E66: 14.25 | F66: 1.176470588 | G66: 0.02941176471 | I66: 0.08065371057 | J66: 0.1655399274 | K66: 0.2505311284 | M66: 0.07837225034 | N66: 0.1623411884 | O66: 0.2475862272 | Q66: 0.002372167958 | R66: 2.23853717 | T66: 35.23521167 | V66: 0.004868821394 | W66: 1.378383496 | Y66: 22.30867311 | AA66: 0.007368562601 | AB66: 1.439935698 | AD66: 18.41808551 | AF66: 18.41808551 | AG66: 22.30867311 | AH66: 35.23521167 | AI66: 18.41808551 | AJ66: 22.30867311 | AL66: =IF(EMCI!$F$27="A",'1st milking (DO)'!AF66,IF(EMCI!$F$27="B",'1st milking (DO)'!AG66,IF(EMCI!$F$27="S",'1st milking (DO)'!AH66,IF(EMCI!$F$27="P",'1st milking (DO)'!AI66,IF(EMCI!$F$27="FS",'1st milking (DO)'!AJ66,"error"))))) -> 22.30867311
A67: =E59 -> 16 | B67: =AL59 -> 17.43085224 | E67: 14 | F67: 1.205882353 | G67: 0.02941176471 | I67: 0.07612352269 | J67: 0.1591736545 | K67: 0.2446552518 | M67: 0.0739075276 | N67: 0.156037326 | O67: 0.241738352 | Q67: 0.002238927138 | R67: 2.240776097 | T67: 37.3334624 | V67: 0.004681578075 | W67: 1.383065074 | Y67: 23.17993404 | AA67: 0.007195742701 | AB67: 1.44713144 | AD67: 18.83386944 | AF67: 18.83386944 | AG67: 23.17993404 | AH67: 37.3334624 | AI67: 18.83386944 | AJ67: 23.17993404 | AL67: =IF(EMCI!$F$27="A",'1st milking (DO)'!AF67,IF(EMCI!$F$27="B",'1st milking (DO)'!AG67,IF(EMCI!$F$27="S",'1st milking (DO)'!AH67,IF(EMCI!$F$27="P",'1st milking (DO)'!AI67,IF(EMCI!$F$27="FS",'1st milking (DO)'!AJ67,"error"))))) -> 23.17993404
A68: =E58 -> 16.25 | B68: =AL58 -> 16.87391011 | E68: 13.75 | F68: 1.235294118 | G68: 0.02941176471 | I68: 0.07172426509 | J68: 0.152932203 | K68: 0.2388356729 | M68: 0.06957373515 | N68: 0.1498582857 | O68: 0.235947356 | Q68: 0.002109537209 | R68: 2.242885634 | T68: 39.62866676 | V68: 0.004498005972 | W68: 1.38756308 | Y68: 24.10568694 | AA68: 0.007024578616 | AB68: 1.454156019 | AD68: 19.26634847 | AF68: 19.26634847 | AG68: 24.10568694 | AH68: 39.62866676 | AI68: 19.26634847 | AJ68: 24.10568694 | AL68: =IF(EMCI!$F$27="A",'1st milking (DO)'!AF68,IF(EMCI!$F$27="B",'1st milking (DO)'!AG68,IF(EMCI!$F$27="S",'1st milking (DO)'!AH68,IF(EMCI!$F$27="P",'1st milking (DO)'!AI68,IF(EMCI!$F$27="FS",'1st milking (DO)'!AJ68,"error"))))) -> 24.10568694
A69: =E57 -> 16.5 | B69: =AL57 -> 16.34506959 | E69: 13.5 | F69: 1.264705882 | G69: 0.02941176471 | I69: 0.06745593778 | J69: 0.1468155741 | K69: 0.2330735386 | M69: 0.06537087298 | N69: 0.1438040684 | O69: 0.2302143542 | Q69: 0.00198399817 | R69: 2.244869632 | T69: 42.14614616 | V69: 0.00431810512 | W69: 1.391881185 | Y69: 25.09051973 | AA69: 0.006855104077 | AB69: 1.461011123 | AD69: 19.71635909 | AF69: 19.71635909 | AG69: 25.09051973 | AH69: 42.14614616 | AI69: 19.71635909 | AJ69: 25.09051973 | AL69: =IF(EMCI!$F$27="A",'1st milking (DO)'!AF69,IF(EMCI!$F$27="B",'1st milking (DO)'!AG69,IF(EMCI!$F$27="S",'1st milking (DO)'!AH69,IF(EMCI!$F$27="P",'1st milking (DO)'!AI69,IF(EMCI!$F$27="FS",'1st milking (DO)'!AJ69,"error"))))) -> 25.09051973
A70: =E56 -> 16.75 | B70: =AL56 -> 15.84250326 | E70: 13.25 | F70: 1.294117647 | G70: 0.02941176471 | I70: 0.06331854076 | J70: 0.1408237686 | K70: 0.2273699327 | M70: 0.0612989411 | N70: 0.137874675 | O70: 0.2245404003 | Q70: 0.001862310022 | R70: 2.246731942 | T70: 44.91542607 | V70: 0.004141875548 | W70: 1.396023061 | Y70: 26.13951357 | AA70: 0.006687350963 | AB70: 1.467698474 | AD70: 20.18479311 | AF70: 20.18479311 | AG70: 26.13951357 | AH70: 44.91542607 | AI70: 20.18479311 | AJ70: 26.13951357 | AL70: =IF(EMCI!$F$27="A",'1st milking (DO)'!AF70,IF(EMCI!$F$27="B",'1st milking (DO)'!AG70,IF(EMCI!$F$27="S",'1st milking (DO)'!AH70,IF(EMCI!$F$27="P",'1st milking (DO)'!AI70,IF(EMCI!$F$27="FS",'1st milking (DO)'!AJ70,"error"))))) -> 26.13951357
A71: =E55 -> 17 | B71: =AL55 -> 15.36452987 | E71: 13 | F71: 1.323529412 | G71: 0.02941176471 | I71: 0.05931207402 | J71: 0.1349567876 | K71: 0.2217258796 | M71: 0.05735793951 | N71: 0.1320701065 | O71: 0.2189264899 | Q71: 0.001744472765 | R71: 2.248476415 | T71: 47.97110232 | V71: 0.003969317282 | W71: 1.399992378 | Y71: 27.25830786 | AA71: 0.006521349401 | AB71: 1.474219823 | AD71: 20.67260192 | AF71: 20.67260192 | AG71: 27.25830786 | AH71: 47.97110232 | AI71: 20.67260192 | AJ71: 27.25830786 | AL71: =IF(EMCI!$F$27="A",'1st milking (DO)'!AF71,IF(EMCI!$F$27="B",'1st milking (DO)'!AG71,IF(EMCI!$F$27="S",'1st milking (DO)'!AH71,IF(EMCI!$F$27="P",'1st milking (DO)'!AI71,IF(EMCI!$F$27="FS",'1st milking (DO)'!AJ71,"error"))))) -> 27.25830786
A72: =E54 -> 17.25 | B72: =AL54 -> 14.90960057 | E72: =E71-0.25 -> 12.75 | F72: 1.352941176 | G72: 0.02941176471 | I72: 0.05543653757 | J72: 0.1292146317 | K72: 0.2161423471 | M72: 0.0535478682 | N72: 0.1263903634 | O72: 0.2133735637 | Q72: 0.001630486399 | R72: 2.250106902 | T72: 51.35392297 | V72: 0.003800430345 | W72: 1.403792809 | Y72: 28.45317549 | AA72: 0.006357127855 | AB72: 1.480576951 | AD72: 21.18080127 | AF72: 21.18080127 | AG72: 28.45317549 | AH72: 51.35392297 | AI72: 21.18080127 | AJ72: 28.45317549 | AL72: =IF(EMCI!$F$27="A",'1st milking (DO)'!AF72,IF(EMCI!$F$27="B",'1st milking (DO)'!AG72,IF(EMCI!$F$27="S",'1st milking (DO)'!AH72,IF(EMCI!$F$27="P",'1st milking (DO)'!AI72,IF(EMCI!$F$27="FS",'1st milking (DO)'!AJ72,"error"))))) -> 28.45317549
A73: =E53 -> 17.5 | B73: =AL53 -> 14.47628656 | E73: 12.5 | F73: 1.382352941 | G73: 0.02941176471 | I73: 0.0516919314 | J73: 0.1235973017 | K73: 0.2106202492 | M73: 0.04986872717 | N73: 0.1208354465 | O73: 0.2078825101 | Q73: 0.001520350923 | R73: 2.251627253 | T73: 55.1121495 | V73: 0.003635214755 | W73: 1.407428023 | Y73: 29.7311102 | AA73: 0.006194713213 | AB73: 1.486771664 | AD73: 21.71047643 | AF73: 21.71047643 | AG73: 29.7311102 | AH73: 55.1121495 | AI73: 21.71047643 | AJ73: 29.7311102 | AL73: =IF(EMCI!$F$27="A",'1st milking (DO)'!AF73,IF(EMCI!$F$27="B",'1st milking (DO)'!AG73,IF(EMCI!$F$27="S",'1st milking (DO)'!AH73,IF(EMCI!$F$27="P",'1st milking (DO)'!AI73,IF(EMCI!$F$27="FS",'1st milking (DO)'!AJ73,"error"))))) -> 29.7311102
A74: =E52 -> 17.75 | B74: =AL52 -> 14.06326811 | E74: 12.25 | F74: 1.411764706 | G74: 0.02941176471 | I74: 0.04807825552 | J74: 0.118104798 | K74: 0.2051604497 | M74: 0.04632051643 | N74: 0.1154053563 | O74: 0.2024541685 | Q74: 0.001414066339 | R74: 2.253041319 | T74: 59.30328271 | V74: 0.00347367053 | W74: 1.410901694 | Y74: 31.09992831 | AA74: 0.006034130874 | AB74: 1.492805795 | AD74: 22.26278786 | AF74: 22.26278786 | AG74: 31.09992831 | AH74: 59.30328271 | AI74: 22.26278786 | AJ74: 31.09992831 | AL74: =IF(EMCI!$F$27="A",'1st milking (DO)'!AF74,IF(EMCI!$F$27="B",'1st milking (DO)'!AG74,IF(EMCI!$F$27="S",'1st milking (DO)'!AH74,IF(EMCI!$F$27="P",'1st milking (DO)'!AI74,IF(EMCI!$F$27="FS",'1st milking (DO)'!AJ74,"error"))))) -> 31.09992831
A75: =E51 -> 18 | B75: =AL51 -> 13.66932472 | E75: 12 | F75: 1.441176471 | G75: 0.02941176471 | I75: 0.04459550992 | J75: 0.1127371213 | K75: 0.199763764 | M75: 0.04290323598 | N75: 0.1101000931 | O75: 0.1970893311 | Q75: 0.001311632645 | R75: =R74+Q75 -> 2.254352952 | T75: 63.99626941 | V75: 0.003315797685 | W75: =W74+V75 -> 1.414217491 | Y75: 32.5683876 | AA75: 0.005875404823 | AB75: =AB74+AA75 -> 1.4986812 | AD75: 22.83897751 | AF75: 22.83897751 | AG75: 32.5683876 | AH75: 63.99626941 | AI75: 22.83897751 | AJ75: 32.5683876 | AL75: =IF(EMCI!$F$27="A",'1st milking (DO)'!AF75,IF(EMCI!$F$27="B",'1st milking (DO)'!AG75,IF(EMCI!$F$27="S",'1st milking (DO)'!AH75,IF(EMCI!$F$27="P",'1st milking (DO)'!AI75,IF(EMCI!$F$27="FS",'1st milking (DO)'!AJ75,"error"))))) -> 32.5683876
A76: =E50 -> 18.25 | B76: =AL50 -> 13.29332633 | E76: 11.75 | F76: 1.470588235 | G76: =F76-F75 -> 0.02941176471 | I76: 0.04124369461 | J76: 0.1074942719 | K76: 0.194430962 | M76: 0.03961688581 | N76: 0.1049196575 | O76: 0.1917887462 | Q76: 0.001213049841 | R76: 2.255566001 | T76: 69.27434962 | V76: 0.003161596232 | W76: =W75+V76 -> 1.417379088 | Y76: 34.14632678 | AA76: 0.005718557706 | AB76: =AB75+AA76 -> 1.504399758 | AD76: 23.44037558 | AF76: 23.44037558 | AG76: 34.14632678 | AH76: 69.27434962 | AI76: 23.44037558 | AJ76: 34.14632678 | AL76: =IF(EMCI!$F$27="A",'1st milking (DO)'!AF76,IF(EMCI!$F$27="B",'1st milking (DO)'!AG76,IF(EMCI!$F$27="S",'1st milking (DO)'!AH76,IF(EMCI!$F$27="P",'1st milking (DO)'!AI76,IF(EMCI!$F$27="FS",'1st milking (DO)'!AJ76,"error"))))) -> 34.14632678
A77: =E49 -> 18.5 | B77: =AL49 -> 12.93422535 | E77: 11.5 | F77: 1.5 | G77: 0.02941176471 | I77: 0.03802280958 | J77: 0.1023762502 | K77: 0.1891627707 | M77: 0.03646146593 | N77: 0.09986404986 | O77: 0.1865531201 | Q77: 0.001118317929 | R77: 2.256684319 | T77: 75.23876539 | V77: 0.003011066182 | W77: 1.420390154 | Y77: 35.84482956 | AA77: 0.005563610904 | AB77: 1.509963369 | AD77: 24.06840813 | AF77: 24.06840813 | AG77: 35.84482956 | AH77: 75.23876539 | AI77: 24.06840813 | AJ77: 35.84482956 | AL77: =IF(EMCI!$F$27="A",'1st milking (DO)'!AF77,IF(EMCI!$F$27="B",'1st milking (DO)'!AG77,IF(EMCI!$F$27="S",'1st milking (DO)'!AH77,IF(EMCI!$F$27="P",'1st milking (DO)'!AI77,IF(EMCI!$F$27="FS",'1st milking (DO)'!AJ77,"error"))))) -> 35.84482956
A78: =E48 -> 18.75 | B78: =AL48 -> 12.59104957 | E78: 11.25 | F78: 1.529411765 | G78: 0.02941176471 | I78: 0.03493285484 | J78: 0.09738305657 | K78: 0.1839598764 | M78: 0.03343697633 | N78: 0.09493327037 | O78: 0.1813831193 | Q78: 0.001027436907 | R78: 2.257711756 | T78: 82.01364312 | V78: 0.002864207546 | W78: 1.423254361 | Y78: 37.67641865 | AA78: 0.005410584599 | AB78: 1.515373953 | AD78: 24.72460537 | AF78: 24.72460537 | AG78: 37.67641865 | AH78: 82.01364312 | AI78: 24.72460537 | AJ78: 37.67641865 | AL78: =IF(EMCI!$F$27="A",'1st milking (DO)'!AF78,IF(EMCI!$F$27="B",'1st milking (DO)'!AG78,IF(EMCI!$F$27="S",'1st milking (DO)'!AH78,IF(EMCI!$F$27="P",'1st milking (DO)'!AI78,IF(EMCI!$F$27="FS",'1st milking (DO)'!AJ78,"error"))))) -> 37.67641865
A79: =E47 -> 19 | B79: =AL47 -> 12.26289578 | E79: 11 | F79: 1.558823529 | G79: 0.02941176471 | I79: 0.03197383039 | J79: 0.09251469128 | K79: 0.1788229265 | M79: 0.03054341702 | N79: 0.09012731934 | O79: 0.176279373 | Q79: 0.0009404067762 | R79: 2.258652163 | T79: 89.75249348 | V79: 0.002721020332 | W79: 1.425975382 | Y79: 39.65528593 | AA79: 0.005259497837 | AB79: 1.520633451 | AD79: 25.41061085 | AF79: 25.41061085 | AG79: 39.65528593 | AH79: 89.75249348 | AI79: 25.41061085 | AJ79: 39.65528593 | AL79: =IF(EMCI!$F$27="A",'1st milking (DO)'!AF79,IF(EMCI!$F$27="B",'1st milking (DO)'!AG79,IF(EMCI!$F$27="S",'1st milking (DO)'!AH79,IF(EMCI!$F$27="P",'1st milking (DO)'!AI79,IF(EMCI!$F$27="FS",'1st milking (DO)'!AJ79,"error"))))) -> 39.65528593
A80: =E46 -> 19.25 | B80: =AL46 -> 11.94892391 | E80: 10.75 | F80: 1.588235294 | G80: 0.02941176471 | I80: 0.02914573622 | J80: 0.08777115458 | K80: 0.1737525321 | M80: 0.02778078799 | N80: 0.08544619702 | O80: 0.1712424747 | Q80: 0.0008572275359 | R80: 2.259509391 | T80: 98.64697179 | V80: 0.002581504546 | W80: 1.428556886 | Y80: 41.79756664 | AA80: 0.005110368592 | AB80: 1.52574382 | AD80: 26.12819154 | AF80: 26.12819154 | AG80: 41.79756664 | AH80: 98.64697179 | AI80: 26.12819154 | AJ80: 41.79756664 | AL80: =IF(EMCI!$F$27="A",'1st milking (DO)'!AF80,IF(EMCI!$F$27="B",'1st milking (DO)'!AG80,IF(EMCI!$F$27="S",'1st milking (DO)'!AH80,IF(EMCI!$F$27="P",'1st milking (DO)'!AI80,IF(EMCI!$F$27="FS",'1st milking (DO)'!AJ80,"error"))))) -> 41.79756664
A81: =E45 -> 19.5 | B81: =AL45 -> 11.64835187 | E81: 10.5 | F81: 1.617647059 | G81: 0.02941176471 | I81: 0.02644857234 | J81: 0.08315244668 | K81: 0.1687492698 | M81: 0.02514908925 | N81: 0.0808899036 | O81: 0.1662729844 | Q81: 0.0007778991864 | R81: 2.26028729 | T81: 108.938844 | V81: 0.002445660197 | W81: 1.431002547 | Y81: 44.12166778 | AA81: 0.004963213819 | AB81: 1.530707034 | AD81: 26.8792491 | AF81: 26.8792491 | AG81: 44.12166778 | AH81: 108.938844 | AI81: 26.8792491 | AJ81: 44.12166778 | AL81: =IF(EMCI!$F$27="A",'1st milking (DO)'!AF81,IF(EMCI!$F$27="B",'1st milking (DO)'!AG81,IF(EMCI!$F$27="S",'1st milking (DO)'!AH81,IF(EMCI!$F$27="P",'1st milking (DO)'!AI81,IF(EMCI!$F$27="FS",'1st milking (DO)'!AJ81,"error"))))) -> 44.12166778
A82: =E44 -> 19.75 | B82: =AL44 -> 11.36045081 | E82: 10.25 | F82: 1.647058824 | G82: 0.02941176471 | I82: 0.02388233874 | J82: 0.07865856778 | K82: 0.1638136835 | M82: 0.0226483208 | N82: 0.07645843925 | O82: 0.1613714302 | Q82: 0.0007024217277 | R82: 2.260989711 | T82: 120.9365724 | V82: 0.002313487288 | W82: 1.433316034 | Y82: 46.648663 | AA82: 0.004818049514 | AB82: 1.535525083 | AD82: 27.66583224 | AF82: 27.66583224 | AG82: 46.648663 | AH82: 120.9365724 | AI82: 27.66583224 | AJ82: 46.648663 | AL82: =IF(EMCI!$F$27="A",'1st milking (DO)'!AF82,IF(EMCI!$F$27="B",'1st milking (DO)'!AG82,IF(EMCI!$F$27="S",'1st milking (DO)'!AH82,IF(EMCI!$F$27="P",'1st milking (DO)'!AI82,IF(EMCI!$F$27="FS",'1st milking (DO)'!AJ82,"error"))))) -> 46.648663
A83: =E43 -> 20 | B83: =AL43 -> 11.0845408 | E83: 10 | F83: 1.676470588 | G83: 0.02941176471 | I83: 0.02144703543 | J83: 0.07428951803 | K83: 0.158946286 | M83: 0.02027848263 | N83: 0.07215180413 | O83: 0.1565383103 | Q83: 0.0006307951597 | R83: 2.261620507 | T83: 135.0386784 | V83: 0.002184985824 | W83: 1.43550102 | Y83: 49.40276994 | AA83: 0.004674890763 | AB83: 1.540199974 | AD83: 28.49015055 | AF83: 28.49015055 | AG83: 49.40276994 | AH83: 135.0386784 | AI83: 28.49015055 | AJ83: 49.40276994 | AL83: =IF(EMCI!$F$27="A",'1st milking (DO)'!AF83,IF(EMCI!$F$27="B",'1st milking (DO)'!AG83,IF(EMCI!$F$27="S",'1st milking (DO)'!AH83,IF(EMCI!$F$27="P",'1st milking (DO)'!AI83,IF(EMCI!$F$27="FS",'1st milking (DO)'!AJ83,"error"))))) -> 49.40276994
A84: =E42 -> 20.25 | B84: =AL42 -> 10.81998699 | E84: 9.75 | F84: 1.705882353 | G84: 0.02941176471 | I84: 0.0191426624 | J84: 0.07004529757 | K84: 0.1541475609 | M84: 0.01803957475 | N84: 0.06796999836 | O84: 0.1517740942 | Q84: 0.0005630194824 | R84: 2.262183526 | T84: 151.7672402 | V84: 0.002060155811 | W84: 1.437561175 | Y84: 52.41193042 | AA84: 0.004533751792 | AB84: 1.544733726 | AD84: 29.35458979 | AF84: 29.35458979 | AG84: 52.41193042 | AH84: 151.7672402 | AI84: 29.35458979 | AJ84: 52.41193042 | AL84: =IF(EMCI!$F$27="A",'1st milking (DO)'!AF84,IF(EMCI!$F$27="B",'1st milking (DO)'!AG84,IF(EMCI!$F$27="S",'1st milking (DO)'!AH84,IF(EMCI!$F$27="P",'1st milking (DO)'!AI84,IF(EMCI!$F$27="FS",'1st milking (DO)'!AJ84,"error"))))) -> 52.41193042
A85: =E41 -> 20.5 | B85: =AL41 -> 10.56619607 | E85: 9.5 | F85: 1.735294118 | G85: 0.02941176471 | I85: 0.01696921966 | J85: 0.06592590652 | K85: 0.1494179645 | M85: 0.01593159715 | N85: 0.06391302207 | O85: 0.1470792247 | Q85: 0.000499094696 | R85: 2.262682621 | T85: 171.816884 | V85: 0.001938997251 | W85: 1.439500173 | Y85: 55.70851936 | AA85: 0.004394646014 | AB85: 1.549128372 | AD85: 30.26172892 | AF85: 30.26172892 | AG85: 55.70851936 | AH85: 171.816884 | AI85: 30.26172892 | AJ85: 55.70851936 | AL85: =IF(EMCI!$F$27="A",'1st milking (DO)'!AF85,IF(EMCI!$F$27="B",'1st milking (DO)'!AG85,IF(EMCI!$F$27="S",'1st milking (DO)'!AH85,IF(EMCI!$F$27="P",'1st milking (DO)'!AI85,IF(EMCI!$F$27="FS",'1st milking (DO)'!AJ85,"error"))))) -> 55.70851936
A86: =E40 -> 20.75 | B86: =AL40 -> 10.32261302 | E86: 9.25 | F86: 1.764705882 | G86: 0.02941176471 | I86: 0.01492670721 | J86: 0.061931345 | K86: 0.1447579264 | M86: 0.01395454984 | N86: 0.05998087534 | O86: 0.1424541193 | Q86: 0.0004390208002 | R86: 2.263121642 | T86: 196.1280292 | V86: 0.001821510147 | W86: 1.441321683 | Y86: 59.33021646 | AA86: 0.004257586071 | AB86: 1.553385958 | AD86: 31.21435915 | AF86: 31.21435915 | AG86: 59.33021646 | AH86: 196.1280292 | AI86: 31.21435915 | AJ86: 59.33021646 | AL86: =IF(EMCI!$F$27="A",'1st milking (DO)'!AF86,IF(EMCI!$F$27="B",'1st milking (DO)'!AG86,IF(EMCI!$F$27="S",'1st milking (DO)'!AH86,IF(EMCI!$F$27="P",'1st milking (DO)'!AI86,IF(EMCI!$F$27="FS",'1st milking (DO)'!AJ86,"error"))))) -> 59.33021646
A87: =E39 -> 21 | B87: =AL39 -> 10.08871824 | E87: 9 | F87: 1.794117647 | G87: 0.02941176471 | I87: 0.01301512504 | J87: 0.05806161309 | K87: 0.1401678519 | M87: 0.01210843281 | N87: 0.05617355826 | O87: 0.1378991712 | Q87: =G87*I87 -> 0.0003827977952 | R87: 2.263504439 | T87: 225.9991531 | V87: =G87*J87 -> 0.001707694503 | W87: 1.443029377 | Y87: 63.32108438 | AA87: =G87*K87 -> 0.00412258388 | AB87: 1.557508542 | AD87: 32.21550513 | AF87: 32.21550513 | AG87: =Y87 -> 63.32108438 | AH87: =T87 -> 225.9991531 | AI87: =AD87 -> 32.21550513 | AJ87: 63.32108438 | AL87: =IF(EMCI!$F$27="A",'1st milking (DO)'!AF87,IF(EMCI!$F$27="B",'1st milking (DO)'!AG87,IF(EMCI!$F$27="S",'1st milking (DO)'!AH87,IF(EMCI!$F$27="P",'1st milking (DO)'!AI87,IF(EMCI!$F$27="FS",'1st milking (DO)'!AJ87,"error"))))) -> 63.32108438
